Workbook

Sheet Portada Libro
K3: Para iniciar el trabajo que seguidamente le proponemos, Usted debe escribir primeramente su DNI o documento similar sin la/s letra/s en la celda anaranjada y hacer click en el botón ACEPTAR
C4: PROYECTO DE INNOVACIÓN EDUCATIVA | K4: DNI o documento similar:
D6: SUBPROGRAMA DOCENTIC 2014
C8: MODELOS DE SIMULACIÓN DE ENTORNOS REALES PARA EL EJERCICIO PROFESIONAL DE LA CONTABILIDAD FINANCIERA
I10: AUTORES: | K10: MARÍA DOLORES MONTAGUD MASCARELL (COORDINADORA)
K11: JOSÉ ANTONIO APARISI CAUDELI
K12: ROSA MARÍA DASÍ GONZÁLEZ
K13: JUAN LUIS GANDÍA CABEDO
K14: DAVID HUGUET BENAVENT
K15: REYES MESTRE BARBERÁ
K16: RAFAEL MOLINA LLOPIS
C18: Modelos de simulación de entornos reales para el ejercicio profesional de la Contabilidad Financiera by y María Dolores Montagud Mascarell,
C19: José Antonio Aparisi Caudeli, Rosa María Dasí González, Juan Luis Gandía Cabedo, David Huguet Benavent, Reyes Mestre Barberá y Rafael Molina Llopis is
C20: licensed under aCreative Commons Reconocimiento-NoComercial-SinObraDerivada 4.0 Internacional License.

Sheet Índice Libro (hidden)
C3: A continuación, Usted debe seleccionar el tema que desea trabajar en el presente ÍNDICE LIBRO. Para ello, haga click en el botón del TEMA que haya elegido.
C5: ÍNDICE LIBRO
F8: OPERACIONES COMERCIALES (MERCADERÍAS)
F10: ACREEDORES Y DEUDORES POR OPERACIONES DE TRÁFICO
F12: OTROS GASTOS E INGRESOS DE EXPLOTACIÓN
F14: INMOVILIZADO MATERIAL
F16: INMOVILIZADO INTANGIBLE
F18: ACTIVOS FINANCIEROS
F20: PRÉSTAMOS BANCARIOS
F22: FONDOS PROPIOS
D23: ANEXO. | F23: CUADRO DE CUENTAS

Sheet Índice Tema 1 (hidden)
D3: TEMA 1. OPERACIONES COMERCIALES (MERCADERÍAS) | O3: ÍNDICE LIBRO
D5: OBJETIVO DEL TEMA
D7: CONCEPTOS BÁSICOS
D9: Niveles | E9: Objetivos de los casos propuestos
E10: Compras y ventas nacionales sin descuentos ni gastos adicionales
E11: Compras y ventas nacionales con descuentos comerciales incluidos en factura y sin gastos adicionales
E12: Compras y ventas nacionales con descuentos comerciales y por pronto pago incluidos en factura y sin gastos adicionales
E13: Compras y ventas internacionales con descuentos comerciales y por pronto pago incluidos en factura, con transporte y seguros contratados de forma externa para las compras y prestados de forma interna para el caso de las ventas como prestación de servicios diversos. Además, se realiza la liquidación en aduana pagándose los correspondientes aranceles
E14: Compras y ventas internacionales con descuentos comerciales y por pronto pago incluidos en factura, con transporte y seguros contratados de forma externa tanto para las compras como para las ventas. Además, se realiza la liquidación en aduana pagándose los correspondientes aranceles
C16: ANEXO. | D16: CUADRO DE CUENTAS

Sheet Índice Tema 4 (hidden)
D3: TEMA 4. INMOVILIZADO MATERIAL | O3: ÍNDICE LIBRO
P4: Nivel 1
D5: OBJETIVO DEL TEMA | P5: Nivel 2
P6: Nivel 3
D7: CONCEPTOS BÁSICOS | P7: Nivel 4
P8: Nivel 5
D9: CASOS | E9: Objetivos de los casos propuestos
E10: CONTABILIZACIÓN DE LA OPERACIÓN DE COMPRA DE MAQUINARIA
E11: CONTABILIZACIÓN DE LA OPERACIÓN DE LEASING DE MAQUINARIA
E12: CONTABILIZACIÓN DE LA OPERACIÓN DE PERMUTA DE VEHÍCULOS
E13: CONTABILIZACIÓN DE LA OPERACIÓN DE RENOVACIÓN DE MAQUINARIA CON OPERACIÓN INTRACOMUNITARIA Y MONEDA EXTRANJERA
E14: CONTABILIZACIÓN DE DIFERENTES OPERACIONES CON ELEMENTOS DE INMOVILIZADO
C16: ANEXO. | D16: CUADRO DE CUENTAS

Sheet Objetivo Tema 4 (hidden)
G1: Haga un doble click sobre la imagen para ver esta Presentación
P3: ÍNDICE TEMA 4

Sheet Conceptos Básicos Tema 4 (hidden)
G1: Haga un doble click sobre la imagen para ver esta Presentación
P3: ÍNDICE TEMA 4

Sheet Cuadro de Cuentas (3) (hidden)
B2: Cuadro de Cuentas Plan General Contable 2008
B3: 1 | C3: Financiación Básica
B4: 10 | C4: Capital
B5: 100 | C5: Capital social
B6: 101 | C6: Fondo social
B7: 102 | C7: Capital
B8: 103 | C8: Socios por desembolsos no exigidos...
B9: 1030 | C9: Socios por desembolsos no exigidos, capital social
B10: 1034 | C10: Socios por desembolsos no exigidos, capital pendiente de inscripción
B11: 103 | C11: Socios por desembolsos no exigidos...
B12: 104 | C12: Socios por aportaciones no dinerarias pendientes...
B13: 1040 | C13: Socios por aportaciones no dinerarias pendientes, capital social
B14: 1044 | C14: Socios por aportaciones no dinerarias pendientes, capital pendiente de inscripción
B15: 108 | C15: Acciones o participaciones propias en situaciones especiales
B16: 109 | C16: Acciones o participaciones propias para reducción de capital
B17: 11 | C17: Reservas
B18: 110 | C18: Prima de emisión o asunción
B19: 111 | C19: Patrimonio neto por emisión de instrumentos financieros compuestos
B20: 112 | C20: Reserva legal
B21: 113 | C21: Reservas voluntarias
B22: 114 | C22: Reservas especiales
B23: 115 | C23: Reservas por pérdidas y ganancias actuariales y otros ajustes
B24: 117 | C24: Aportaciones de socios o propietarios
B25: 119 | C25: Diferencias por ajuste del capital a euros
B26: 12 | C26: Resultados pendientes de aplicación
B27: 120 | C27: Remanente
B28: 121 | C28: Resultados negativos de ejercicios anteriores
B29: 129 | C29: Resultados del ejercicio
B30: 13 | C30: Subvenciones, donaciones y ajustes por cambios de valor
B31: 130 | C31: Subvenciones oficiales de capital
B32: 131 | C32: Donaciones y legados de capital
B33: 132 | C33: Otras subvenciones, donaciones y legados
B34: 133 | C34: Ajustes por valoración en instrumentos financieros
B35: 134 | C35: Operaciones de cobertura
B36: 135 | C36: Diferencias de conversión
B37: 136 | C37: Ajustes por valoración en activos no corrientes y grupos enajenables de elementos mantenidos para la venta
B38: 137 | C38: Ingresos fiscales a distribuir en varios ejercicios
B39: 14 | C39: Provisiones
B40: 140 | C40: Provisión para retribuciones y otras prestaciones al personal.
B41: 141 | C41: Provisión para impuestos
B42: 142 | C42: Provisión para otras responsabilidades
B43: 143 | C43: Provisión por desmantelamiento, retiro o rehabilitación del inmovilizado.
B44: 144 | C44: Provisión para otras responsabilidades
B45: 145 | C45: Provisión para actuaciones medioambientales
B46: 146 | C46: Provisión para reestructuraciones
B47: 147 | C47: Provisiones por transacciones con pagos basados en instrumentos de patrimonio
B48: 15 | C48: Deudas a largo plazo con características especiales
B49: 150 | C49: Acciones o participaciones a largo plazo contabilizadas como pasivo
B50: 153 | C50: Desembolsos no exigidos por acciones o participaciones contabilizadas como pasivo.
B51: 154 | C51: Aportaciones no dinerarias pendientes por acciones o participaciones contabilizadas como pasivo
B52: 16 | C52: Deudas a largo plazo con partes vinculadas
B53: 160 | C53: Deudas a largo plazo con entidades de crédito vinculadas
B54: 161 | C54: Proveedores de inmovilizado a largo plazo, partes vinculadas
B55: 162 | C55: Otras deudas a largo plazo con partes vinculadas
B56: 163 | C56: Otras deudas a largo plazo con partes vinculadas
B57: 17 | C57: Deudas a largo plazo por préstamos recibidos y otros conceptos
B58: 170 | C58: Deudas a largo plazo con entidades de crédito
B59: 171 | C59: Deudas a largo plazo
B60: 172 | C60: Deudas a largo plazo transformables en subvenciones, donaciones y legados
B61: 173 | C61: Proveedores de inmovilizado a largo plazo
B62: 174 | C62: Acreedores por arrendamiento financiero a largo plazo
B63: 175 | C63: Efectos a pagar a largo plazo
B64: 176 | C64: Pasivos por derivados financieros a largo plazo
B65: 177 | C65: Obligaciones y bonos
B66: 178 | C66: Obligaciones y bonos convertibles
B67: 179 | C67: Deudas representadas en otros valores negociables
B68: 18 | C68: Pasivos por fianzas y garantías a largo plazo
B69: 180 | C69: Fianzas recibidas a largo plazo
B70: 181 | C70: Anticipos recibidos por ventas o prestaciones de servicios a largo plazo
B71: 185 | C71: Depósitos recibidos a largo plazo
B72: 189 | C72: Garantías financieras a largo plazo
B73: 19 | C73: Situaciones transitorias de financiación
B74: 190 | C74: Acciones o participaciones emitidas
B75: 192 | C75: Suscriptores de acciones
B76: 194 | C76: Capital emitido pendiente de inscripción
B77: 195 | C77: Acciones o participaciones emitidas consideradas como pasivos financieros
B78: 197 | C78: Suscriptores de acciones consideradas coo pasivos financieros
B79: 199 | C79: Acciones o participaciones emitidas consideradas como pasivo financieros, pendientes de inscripción
B80: 2 | C80: Inmovilizado
B81: 20 | C81: Inmovilizaciones intangibles
B82: 200 | C82: Investigación
B83: 201 | C83: Desarrollo
B84: 202 | C84: Concesiones administrativas
B85: 203 | C85: Propiedad industrial
B86: 204 | C86: Fondo de comercio
B87: 205 | C87: Derechos de traspaso
B88: 206 | C88: Aplicaciones informáticas
B89: 209 | C89: Anticipos para inmovilizaciones intangibles
B90: 21 | C90: Inmovilizaciones materiales
B91: 210 | C91: Terrenos y bienes naturales
B92: 211 | C92: Construcciones
B93: 212 | C93: Instalaciones técnicas
B94: 213 | C94: Maquinaria
B95: 214 | C95: Utillaje
B96: 215 | C96: Otras instalaciones
B97: 216 | C97: Mobiliario
B98: 217 | C98: Equipos para procesos de información
B99: 218 | C99: Elementos de transporte
B100: 219 | C100: Otro inmovilizado material
B101: 22 | C101: Inversiones inmobiliarias
B102: 220 | C102: Inversiones en terrenos y bienes naturales
B103: 221 | C103: Inversiones en construcciones
B104: 23 | C104: Inmovilizaciones materiales en curso
B105: 230 | C105: Adaptación de terrenos y bienes naturales
B106: 231 | C106: Construcciones en curso
B107: 232 | C107: Instalaciones técnicas en montaje
B108: 233 | C108: Maquinaria en montaje
B109: 237 | C109: Equipos para procesos de información en montaje
B110: 239 | C110: Anticipos para inmovilizaciones materiales
B111: 24 | C111: Inversiones financieras en partes vinculadas
B112: 240 | C112: Participaciones a largo plazo en partes vinculadas
B113: 241 | C113: Valores representativos de deuda a largo plazo de partes vinculadas
B114: 242 | C114: Créditos a largo plazo a partes vinculadas
B115: 249 | C115: Desembolsos pendientes sobre participaciones a largo plazo en partes vinculadas
B116: 25 | C116: Otras inversiones financieras a largo plazo
B117: 250 | C117: Inversiones financieras a largo plazo en instrumentos de patrimonio
B118: 251 | C118: Valores representativos de deuda a largo plazo
B119: 252 | C119: Créditos a largo plazo
B120: 253 | C120: Créditos a largo plazo por enajenación de inmovilizado
B121: 254 | C121: Créditos a largo plazo al personal
B122: 255 | C122: Activos por derivados financieros a largo plazo
B123: 257 | C123: Activos por retribuciones a largo plazo de prestación definida
B124: 258 | C124: Imposiciones a largo plazo
B125: 259 | C125: Desembolsos pendientes sobre participaciones en el patrimonio neto a largo plazo
B126: 26 | C126: Fianzas y depósitos constituidos a largo plazo
B127: 260 | C127: Fianzas constituidas a largo plazo
B128: 265 | C128: Depósitos constituidos a largo plazo
B129: 28 | C129: Amortización acumulada del inmovilizado
B130: 280 | C130: Amortización acumulada del inmovilizado intangible
B131: 281 | C131: Amortización acumulada del inmovilizado material
B132: 282 | C132: Amortización acumulada de las inversiones inmobiliarias
B133: 29 | C133: Deterioro de valor de inmovilizado
B134: 290 | C134: Deterioro de valor del inmovilizado intangible
B135: 291 | C135: Deterioro de valor del inmovilizado material
B136: 292 | C136: Deterioro de valor de las inversiones inmobiliarias
B137: 293 | C137: Deterioro de valor de participaciones a largo plazo en partes vinculadas
B138: 294 | C138: Deterioro de valor de valores representativos de deuda a largo plazo de partes vinculadas
B139: 295 | C139: Deterioro de valor de créditos a largo plazo a partes vinculadas
B140: 297 | C140: Deterioro de valor de valores representativos de deuda a largo plazo
B141: 298 | C141: Deterioro de valor de créditos a largo plazo
B142: 3 | C142: Existencias
B143: 30 | C143: Comerciales
B144: 300 | C144: Mercaderías A
B145: 301 | C145: Mercaderías B
B146: 302 | C146: Mercaderías C
B147: 303 | C147: Mercaderías D
B148: 304 | C148: Mercaderías E
B149: 305 | C149: Mercaderías F
B150: 306 | C150: Mercaderías G
B151: 307 | C151: Mercaderías H
B152: 308 | C152: Mercaderías I
B153: 309 | C153: Mercaderías J
B154: 31 | C154: Materias Primas
B155: 310 | C155: Materias primas A
B156: 312 | C156: Materias primas B
B157: 313 | C157: Materias primas C
B158: 314 | C158: Materias primas D
B159: 315 | C159: Materias primas E
B160: 316 | C160: Materias primas F
B161: 317 | C161: Materias primas H
B162: 318 | C162: Materias primas I
B163: 319 | C163: Materias primas J
B164: 32 | C164: Otros aprovisionamientos
B165: 320 | C165: Elementos y conjuntos incorporables
B166: 321 | C166: Combustibles
B167: 322 | C167: Repuestos
B168: 325 | C168: Materiales diversos
B169: 326 | C169: Embalajes
B170: 327 | C170: Envases
B171: 328 | C171: Material de oficina
B172: 33 | C172: Productos en curso
B173: 330 | C173: Productos en curso A
B174: 331 | C174: Productos en curso B
B175: 332 | C175: Productos en curso C
B176: 333 | C176: Productos en curso D
B177: 334 | C177: Productos en curso E
B178: 335 | C178: Productos en curso F
B179: 336 | C179: Productos en curso G
B180: 337 | C180: Productos en curso H
B181: 338 | C181: Productos en curso I
B182: 339 | C182: Productos en curso J
B183: 34 | C183: Productos semiterminados
B184: 340 | C184: Productos semiterminados A
B185: 341 | C185: Productos semiterminados B
B186: 342 | C186: Productos semiterminados C
B187: 343 | C187: Productos semiterminados D
B188: 344 | C188: Productos semiterminados E
B189: 345 | C189: Productos semiterminados F
B190: 346 | C190: Productos semiterminados G
B191: 347 | C191: Productos semiterminados H
B192: 348 | C192: Productos semiterminados I
B193: 349 | C193: Productos semiterminados J
B194: 35 | C194: Productos terminados
B195: 350 | C195: Productos terminados A
B196: 351 | C196: Productos terminados B
B197: 352 | C197: Productos terminados C
B198: 353 | C198: Productos terminados D
B199: 354 | C199: Productos terminados E
B200: 355 | C200: Productos terminados F
B201: 356 | C201: Productos terminados G
... 357 more rows

Sheet Enunciado Adq. Maquinaria (hidden)
B3: La empresa adquirió a crédito a | E3: 90 | F3: días el | G3: ='Factura Adquisición'!L5 -> 2015-05-01 | H3: una columna de refracción por
B4: ='Factura Adquisición'!K38 -> 10000 | C4: IVA no incluido | E4: 0.21 | F4: Por cuestiones operativas, no es utilizada hasta mediados del
B5: mes de julio. La vida útil estimada es de | E5: 12 | F5: años y el valor que se calcula tendrá al finalización de la misma es de
B6: 1100 | C6: Asimismo, se ha considerado que el método que mejor refleja la pérdida de valor es el lineal.
B7: El | C7: ='Factura Servicio Técnico'!H10 -> 2015-12-10 | D7: se solicita al servicio técnico que realice una reparación no incluida en la garantía puesto que
B8: la avería se ha debido a neglicencia del óptico. Por ello, se le factura | G8: 302.5 | H8: IVA incluido | I8: 0.21
B9: que es abonada en efectivo.
B10: Contabilice las operaciones anteriores teniendo en cuenta que la empresa paga la factura mediante transferencia bancaria.

Sheet Factura Adquisición (hidden)
K5: Fecha: | L5: 2015-05-01
K6: Nº Factura: | L6: 15338
D11: MONTAJE E INSTALACIONES ÓPTICAS, S.L.
D12: C/ Caribe, 44. 08044 Barcelona
D13: CIF: B-08314555
C18: Cliente: | D18: Buena Visión, S.A.
C19: Dirección: | D19: C/ Martín Colomer, 45. 46007 Valencia
C20: CIF: | D20: A-20.396.059
C21: Ref:
C25: Cantidad | D25: Concepto | K25: Precio Unitario | L25: Importe
L26: =IF(D26<>"",D26*K26,"") -> 
C38: 1 | D38: Columna de refracción mod. AZ9987 | K38: 10000 | L38: =C38*K38 -> 10000
J53: Base Imponible | L53: =+SUM(L26:L52) -> 10000
I54: IVA | J54: =+'Enunciado Adq. Maquinaria'!E4 -> 0.21 | L54: =+L53*J54 -> 2100
J55: TOTAL FACTURA | L55: =+L53+L54 -> 12100
C58: DATOS DE PAGO:
C59: Banco: | E59: BANKINTER
C61: Código IBAN: | E61: ES332 2251 6582 7530 0001 1785
C63: Observaciones: | E63: Mediante transferencia bancaria
C65: Con vencimiento el: | E65: =L5+90 -> 2015-07-30 | I65: Por importe de: | K65: =L55 -> 12100

Sheet Transferencia Bancaria 1 (hidden)
H2: COMUNICACIÓN DE OPERACIÓN EN CUENTA
B6: Fecha | H6: Concepto | O6: Importe
I7: Su orden de transf. a Montajes e Instalaciones Ópticas, S.L. | O7: ='Factura Adquisición'!K65 -> 12100 | P7: €
E8: 2015-07-29
B9: Ordenante: | E9: Buena Visión S.A.
B10: Beneficiario: | E10: Montaje e Instalaciones Ópticas, S.L.
B11: Concepto: | E11: Pago factura nº | F11: ='Factura Adquisición'!L6 -> 15338
B12: IBAN Beneficiario | E12: ES33 2251 6582 7530 0001 1785
B13: Clave transferencia: | E13: 130T13185003333
B16: Cuenta Adeudo/Abono | F16: Moneda de la cuenta | H16: Fecha valor | K16: Anotación en cuenta
B17: 2038 | C17: 6015 | D17: 40 | E17: 3101767432 | F17: EURO | H17: =E8+1 -> 2015-07-30 | K17: Importe del recibo/factura | O17: =O7 -> 12100 | P17: =P7 -> €
B18: Titular/es de la cuenta | K18: Total anotado en cuenta | O18: =O17 -> 12100 | P18: =P17 -> €
D19: =+E9 -> Buena Visión S.A.

Sheet Factura Servicio Técnico (hidden)
E4: Ser-Tec Vissione, S.L.
E5: Dirección: Gandía, 26
E6: C.P. 46022 Valencia, España
E7: Teléfono/Fax: 96 317 28 43
E8: CIF: B-46606056
C10: FACTURA : | D10: 2015-0199 | G10: FECHA: | H10: 2015-12-10
C14: Buena Visión, S.A.
C15: CIF: A-20.396.059
C16: Dirección: C/ Martín Colomer, 45
C17: 46007 Valencia
C23: DESCRIPCIÓN | H23: IMPORTE
C27: Sustitución lentes y calibrado | H27: 250
C32: BASE IMPONIBLE | H32: =SUM(H25:H31) -> 250
D33: IVA | E33: % | G33: =+'Enunciado Adq. Maquinaria'!I8 -> 0.21 | H33: =H32*G33 -> 52.5
C35: TOTAL (EUR) | H35: =H32+H33 -> 302.5
C38: Con vencimiento el: | D38: contado | G38: Por importe de: | H38: =H35 -> 302.5

Sheet Cuadro de Cuentas (4) (hidden)
B2: Cuadro de Cuentas Plan General Contable 2008
B3: 1 | C3: Financiación Básica
B4: 10 | C4: Capital
B5: 100 | C5: Capital social
B6: 101 | C6: Fondo social
B7: 102 | C7: Capital
B8: 103 | C8: Socios por desembolsos no exigidos...
B9: 1030 | C9: Socios por desembolsos no exigidos, capital social
B10: 1034 | C10: Socios por desembolsos no exigidos, capital pendiente de inscripción
B11: 103 | C11: Socios por desembolsos no exigidos...
B12: 104 | C12: Socios por aportaciones no dinerarias pendientes...
B13: 1040 | C13: Socios por aportaciones no dinerarias pendientes, capital social
B14: 1044 | C14: Socios por aportaciones no dinerarias pendientes, capital pendiente de inscripción
B15: 108 | C15: Acciones o participaciones propias en situaciones especiales
B16: 109 | C16: Acciones o participaciones propias para reducción de capital
B17: 11 | C17: Reservas
B18: 110 | C18: Prima de emisión o asunción
B19: 111 | C19: Patrimonio neto por emisión de instrumentos financieros compuestos
B20: 112 | C20: Reserva legal
B21: 113 | C21: Reservas voluntarias
B22: 114 | C22: Reservas especiales
B23: 115 | C23: Reservas por pérdidas y ganancias actuariales y otros ajustes
B24: 117 | C24: Aportaciones de socios o propietarios
B25: 119 | C25: Diferencias por ajuste del capital a euros
B26: 12 | C26: Resultados pendientes de aplicación
B27: 120 | C27: Remanente
B28: 121 | C28: Resultados negativos de ejercicios anteriores
B29: 129 | C29: Resultados del ejercicio
B30: 13 | C30: Subvenciones, donaciones y ajustes por cambios de valor
B31: 130 | C31: Subvenciones oficiales de capital
B32: 131 | C32: Donaciones y legados de capital
B33: 132 | C33: Otras subvenciones, donaciones y legados
B34: 133 | C34: Ajustes por valoración en instrumentos financieros
B35: 134 | C35: Operaciones de cobertura
B36: 135 | C36: Diferencias de conversión
B37: 136 | C37: Ajustes por valoración en activos no corrientes y grupos enajenables de elementos mantenidos para la venta
B38: 137 | C38: Ingresos fiscales a distribuir en varios ejercicios
B39: 14 | C39: Provisiones
B40: 140 | C40: Provisión para retribuciones y otras prestaciones al personal.
B41: 141 | C41: Provisión para impuestos
B42: 142 | C42: Provisión para otras responsabilidades
B43: 143 | C43: Provisión por desmantelamiento, retiro o rehabilitación del inmovilizado.
B44: 144 | C44: Provisión para otras responsabilidades
B45: 145 | C45: Provisión para actuaciones medioambientales
B46: 146 | C46: Provisión para reestructuraciones
B47: 147 | C47: Provisiones por transacciones con pagos basados en instrumentos de patrimonio
B48: 15 | C48: Deudas a largo plazo con características especiales
B49: 150 | C49: Acciones o participaciones a largo plazo contabilizadas como pasivo
B50: 153 | C50: Desembolsos no exigidos por acciones o participaciones contabilizadas como pasivo.
B51: 154 | C51: Aportaciones no dinerarias pendientes por acciones o participaciones contabilizadas como pasivo
B52: 16 | C52: Deudas a largo plazo con partes vinculadas
B53: 160 | C53: Deudas a largo plazo con entidades de crédito vinculadas
B54: 161 | C54: Proveedores de inmovilizado a largo plazo, partes vinculadas
B55: 162 | C55: Otras deudas a largo plazo con partes vinculadas
B56: 163 | C56: Otras deudas a largo plazo con partes vinculadas
B57: 17 | C57: Deudas a largo plazo por préstamos recibidos y otros conceptos
B58: 170 | C58: Deudas a largo plazo con entidades de crédito
B59: 171 | C59: Deudas a largo plazo
B60: 172 | C60: Deudas a largo plazo transformables en subvenciones, donaciones y legados
B61: 173 | C61: Proveedores de inmovilizado a largo plazo
B62: 174 | C62: Acreedores por arrendamiento financiero a largo plazo
B63: 175 | C63: Efectos a pagar a largo plazo
B64: 176 | C64: Pasivos por derivados financieros a largo plazo
B65: 177 | C65: Obligaciones y bonos
B66: 178 | C66: Obligaciones y bonos convertibles
B67: 179 | C67: Deudas representadas en otros valores negociables
B68: 18 | C68: Pasivos por fianzas y garantías a largo plazo
B69: 180 | C69: Fianzas recibidas a largo plazo
B70: 181 | C70: Anticipos recibidos por ventas o prestaciones de servicios a largo plazo
B71: 185 | C71: Depósitos recibidos a largo plazo
B72: 189 | C72: Garantías financieras a largo plazo
B73: 19 | C73: Situaciones transitorias de financiación
B74: 190 | C74: Acciones o participaciones emitidas
B75: 192 | C75: Suscriptores de acciones
B76: 194 | C76: Capital emitido pendiente de inscripción
B77: 195 | C77: Acciones o participaciones emitidas consideradas como pasivos financieros
B78: 197 | C78: Suscriptores de acciones consideradas coo pasivos financieros
B79: 199 | C79: Acciones o participaciones emitidas consideradas como pasivo financieros, pendientes de inscripción
B80: 2 | C80: Inmovilizado
B81: 20 | C81: Inmovilizaciones intangibles
B82: 200 | C82: Investigación
B83: 201 | C83: Desarrollo
B84: 202 | C84: Concesiones administrativas
B85: 203 | C85: Propiedad industrial
B86: 204 | C86: Fondo de comercio
B87: 205 | C87: Derechos de traspaso
B88: 206 | C88: Aplicaciones informáticas
B89: 209 | C89: Anticipos para inmovilizaciones intangibles
B90: 21 | C90: Inmovilizaciones materiales
B91: 210 | C91: Terrenos y bienes naturales
B92: 211 | C92: Construcciones
B93: 212 | C93: Instalaciones técnicas
B94: 213 | C94: Maquinaria
B95: 214 | C95: Utillaje
B96: 215 | C96: Otras instalaciones
B97: 216 | C97: Mobiliario
B98: 217 | C98: Equipos para procesos de información
B99: 218 | C99: Elementos de transporte
B100: 219 | C100: Otro inmovilizado material
B101: 22 | C101: Inversiones inmobiliarias
B102: 220 | C102: Inversiones en terrenos y bienes naturales
B103: 221 | C103: Inversiones en construcciones
B104: 23 | C104: Inmovilizaciones materiales en curso
B105: 230 | C105: Adaptación de terrenos y bienes naturales
B106: 231 | C106: Construcciones en curso
B107: 232 | C107: Instalaciones técnicas en montaje
B108: 233 | C108: Maquinaria en montaje
B109: 237 | C109: Equipos para procesos de información en montaje
B110: 239 | C110: Anticipos para inmovilizaciones materiales
B111: 24 | C111: Inversiones financieras en partes vinculadas
B112: 240 | C112: Participaciones a largo plazo en partes vinculadas
B113: 241 | C113: Valores representativos de deuda a largo plazo de partes vinculadas
B114: 242 | C114: Créditos a largo plazo a partes vinculadas
B115: 249 | C115: Desembolsos pendientes sobre participaciones a largo plazo en partes vinculadas
B116: 25 | C116: Otras inversiones financieras a largo plazo
B117: 250 | C117: Inversiones financieras a largo plazo en instrumentos de patrimonio
B118: 251 | C118: Valores representativos de deuda a largo plazo
B119: 252 | C119: Créditos a largo plazo
B120: 253 | C120: Créditos a largo plazo por enajenación de inmovilizado
B121: 254 | C121: Créditos a largo plazo al personal
B122: 255 | C122: Activos por derivados financieros a largo plazo
B123: 257 | C123: Activos por retribuciones a largo plazo de prestación definida
B124: 258 | C124: Imposiciones a largo plazo
B125: 259 | C125: Desembolsos pendientes sobre participaciones en el patrimonio neto a largo plazo
B126: 26 | C126: Fianzas y depósitos constituidos a largo plazo
B127: 260 | C127: Fianzas constituidas a largo plazo
B128: 265 | C128: Depósitos constituidos a largo plazo
B129: 28 | C129: Amortización acumulada del inmovilizado
B130: 280 | C130: Amortización acumulada del inmovilizado intangible
B131: 281 | C131: Amortización acumulada del inmovilizado material
B132: 282 | C132: Amortización acumulada de las inversiones inmobiliarias
B133: 29 | C133: Deterioro de valor de inmovilizado
B134: 290 | C134: Deterioro de valor del inmovilizado intangible
B135: 291 | C135: Deterioro de valor del inmovilizado material
B136: 292 | C136: Deterioro de valor de las inversiones inmobiliarias
B137: 293 | C137: Deterioro de valor de participaciones a largo plazo en partes vinculadas
B138: 294 | C138: Deterioro de valor de valores representativos de deuda a largo plazo de partes vinculadas
B139: 295 | C139: Deterioro de valor de créditos a largo plazo a partes vinculadas
B140: 297 | C140: Deterioro de valor de valores representativos de deuda a largo plazo
B141: 298 | C141: Deterioro de valor de créditos a largo plazo
B142: 3 | C142: Existencias
B143: 30 | C143: Comerciales
B144: 300 | C144: Mercaderías A
B145: 301 | C145: Mercaderías B
B146: 302 | C146: Mercaderías C
B147: 303 | C147: Mercaderías D
B148: 304 | C148: Mercaderías E
B149: 305 | C149: Mercaderías F
B150: 306 | C150: Mercaderías G
B151: 307 | C151: Mercaderías H
B152: 308 | C152: Mercaderías I
B153: 309 | C153: Mercaderías J
B154: 31 | C154: Materias Primas
B155: 310 | C155: Materias primas A
B156: 312 | C156: Materias primas B
B157: 313 | C157: Materias primas C
B158: 314 | C158: Materias primas D
B159: 315 | C159: Materias primas E
B160: 316 | C160: Materias primas F
B161: 317 | C161: Materias primas H
B162: 318 | C162: Materias primas I
B163: 319 | C163: Materias primas J
B164: 32 | C164: Otros aprovisionamientos
B165: 320 | C165: Elementos y conjuntos incorporables
B166: 321 | C166: Combustibles
B167: 322 | C167: Repuestos
B168: 325 | C168: Materiales diversos
B169: 326 | C169: Embalajes
B170: 327 | C170: Envases
B171: 328 | C171: Material de oficina
B172: 33 | C172: Productos en curso
B173: 330 | C173: Productos en curso A
B174: 331 | C174: Productos en curso B
B175: 332 | C175: Productos en curso C
B176: 333 | C176: Productos en curso D
B177: 334 | C177: Productos en curso E
B178: 335 | C178: Productos en curso F
B179: 336 | C179: Productos en curso G
B180: 337 | C180: Productos en curso H
B181: 338 | C181: Productos en curso I
B182: 339 | C182: Productos en curso J
B183: 34 | C183: Productos semiterminados
B184: 340 | C184: Productos semiterminados A
B185: 341 | C185: Productos semiterminados B
B186: 342 | C186: Productos semiterminados C
B187: 343 | C187: Productos semiterminados D
B188: 344 | C188: Productos semiterminados E
B189: 345 | C189: Productos semiterminados F
B190: 346 | C190: Productos semiterminados G
B191: 347 | C191: Productos semiterminados H
B192: 348 | C192: Productos semiterminados I
B193: 349 | C193: Productos semiterminados J
B194: 35 | C194: Productos terminados
B195: 350 | C195: Productos terminados A
B196: 351 | C196: Productos terminados B
B197: 352 | C197: Productos terminados C
B198: 353 | C198: Productos terminados D
B199: 354 | C199: Productos terminados E
B200: 355 | C200: Productos terminados F
B201: 356 | C201: Productos terminados G
... 357 more rows

Sheet Solución Lib. Diario Maquinaria (hidden)
C3: DEBE | I3: HABER
C4: IMPORTES | D4: Nº CUENTA | E4: NOMBRE CUENTA | F4: ='Factura Adquisición'!L5 -> 2015-05-01 | G4: Nº CUENTA | H4: NOMBRE CUENTA | I4: IMPORTES
C5: ='Factura Adquisición'!L53 -> 10000 | D5: 213 | E5: =IF(D5="","",VLOOKUP(D5,'Cuadro de Cuentas (4)'!$B$3:$C$558,2,FALSE)) -> Maquinaria | F5: =IF(G5="","","a") ->  | H5: =IF(G5="","",VLOOKUP(G5,'Cuadro de Cuentas (4)'!$B$3:$C$558,2,FALSE)) -> 
C6: ='Factura Adquisición'!L54 -> 2100 | D6: ='Cuadro de Cuentas (4)'!B255 -> 472 | E6: =IF(D6="","",VLOOKUP(D6,'Cuadro de Cuentas (4)'!$B$3:$C$558,2,FALSE)) -> Hacienda Pública, IVA soportado | F6: a | G6: 523 | H6: =IF(G6="","",VLOOKUP(G6,'Cuadro de Cuentas (4)'!$B$3:$C$558,2,FALSE)) -> Proveedores de inmovilizado a corto plazo | I6: ='Factura Adquisición'!L55 -> 12100
E7: =IF(D7="","",VLOOKUP(D7,'Cuadro de Cuentas (4)'!$B$3:$C$558,2,FALSE)) ->  | H7: =IF(G7="","",VLOOKUP(G7,'Cuadro de Cuentas (4)'!$B$3:$C$558,2,FALSE)) -> 
E8: Por la compra de la maquinaria | H8: =IF(G8="","",VLOOKUP(G8,'Cuadro de Cuentas (4)'!$B$3:$C$558,2,FALSE)) -> 
E9: =IF(D9="","",VLOOKUP(D9,'Cuadro de Cuentas (4)'!$B$3:$C$558,2,FALSE)) ->  | F9: =+'Factura Adquisición'!L5+90 -> 2015-07-30 | H9: =IF(G9="","",VLOOKUP(G9,'Cuadro de Cuentas (4)'!$B$3:$C$558,2,FALSE)) -> 
C10: =I6 -> 12100 | D10: 523 | E10: =IF(D10="","",VLOOKUP(D10,'Cuadro de Cuentas (4)'!$B$3:$C$558,2,FALSE)) -> Proveedores de inmovilizado a corto plazo | F10: a | G10: ='Cuadro de Cuentas (4)'!B336 -> 572 | H10: =IF(G10="","",VLOOKUP(G10,'Cuadro de Cuentas (4)'!$B$3:$C$558,2,FALSE)) -> Bancos e instituciones de crédito c/c vista, euros | I10: =C10 -> 12100
E11: =IF(D11="","",VLOOKUP(D11,'Cuadro de Cuentas (4)'!$B$3:$C$558,2,FALSE)) ->  | H11: =IF(G11="","",VLOOKUP(G11,'Cuadro de Cuentas (4)'!$B$3:$C$558,2,FALSE)) -> 
E12: =IF(D12="","",VLOOKUP(D12,'Cuadro de Cuentas (4)'!$B$3:$C$558,2,FALSE)) ->  | H12: =IF(G12="","",VLOOKUP(G12,'Cuadro de Cuentas (4)'!$B$3:$C$558,2,FALSE)) -> 
E13: Por el pago de la factura | H13: =IF(G13="","",VLOOKUP(G13,'Cuadro de Cuentas (4)'!$B$3:$C$558,2,FALSE)) -> 
E14: =IF(D14="","",VLOOKUP(D14,'Cuadro de Cuentas (4)'!$B$3:$C$558,2,FALSE)) ->  | F14: 2015-12-10 | H14: =IF(G14="","",VLOOKUP(G14,'Cuadro de Cuentas (4)'!$B$3:$C$558,2,FALSE)) -> 
C15: ='Factura Servicio Técnico'!H32 -> 250 | D15: 622 | E15: =IF(D15="","",VLOOKUP(D15,'Cuadro de Cuentas (4)'!$B$3:$C$558,2,FALSE)) -> Reparaciones y conservación | F15: a | G15: 410 | H15: =IF(G15="","",VLOOKUP(G15,'Cuadro de Cuentas (4)'!$B$3:$C$558,2,FALSE)) -> Acreedores por prestaciones de servicios | I15: ='Factura Servicio Técnico'!H35 -> 302.5
C16: ='Factura Servicio Técnico'!H33 -> 52.5 | D16: 472 | E16: =IF(D16="","",VLOOKUP(D16,'Cuadro de Cuentas (4)'!$B$3:$C$558,2,FALSE)) -> Hacienda Pública, IVA soportado | H16: =IF(G16="","",VLOOKUP(G16,'Cuadro de Cuentas (4)'!$B$3:$C$558,2,FALSE)) -> 
E17: =IF(D17="","",VLOOKUP(D17,'Cuadro de Cuentas (4)'!$B$3:$C$558,2,FALSE)) ->  | H17: =IF(G17="","",VLOOKUP(G17,'Cuadro de Cuentas (4)'!$B$3:$C$558,2,FALSE)) -> 
E18: Fra. Reparación | H18: =IF(G18="","",VLOOKUP(G18,'Cuadro de Cuentas (4)'!$B$3:$C$558,2,FALSE)) -> 
E19: =IF(D19="","",VLOOKUP(D19,'Cuadro de Cuentas (4)'!$B$3:$C$558,2,FALSE)) ->  | F19: 2015-12-31 | H19: =IF(G19="","",VLOOKUP(G19,'Cuadro de Cuentas (4)'!$B$3:$C$558,2,FALSE)) -> 
C20: 381.94 | D20: 680 | E20: =IF(D20="","",VLOOKUP(D20,'Cuadro de Cuentas (4)'!$B$3:$C$558,2,FALSE)) -> Amortización del inmovilizado intangible | F20: a | G20: 281 | H20: =IF(G20="","",VLOOKUP(G20,'Cuadro de Cuentas (4)'!$B$3:$C$558,2,FALSE)) -> Amortización acumulada del inmovilizado material | I20: =+C20 -> 381.94
E21: =IF(D21="","",VLOOKUP(D21,'Cuadro de Cuentas (4)'!$B$3:$C$558,2,FALSE)) ->  | H21: =IF(G21="","",VLOOKUP(G21,'Cuadro de Cuentas (4)'!$B$3:$C$558,2,FALSE)) -> 
E22: Dotación del ejercicio | H22: =IF(G22="","",VLOOKUP(G22,'Cuadro de Cuentas (4)'!$B$3:$C$558,2,FALSE)) -> 
E23: =IF(D23="","",VLOOKUP(D23,'Cuadro de Cuentas (4)'!$B$3:$C$558,2,FALSE)) ->  | H23: =IF(G23="","",VLOOKUP(G23,'Cuadro de Cuentas (4)'!$B$3:$C$558,2,FALSE)) -> 
E36: =IF(D36="","",VLOOKUP(D36,'Cuadro de Cuentas (4)'!$B$3:$C$558,2,FALSE)) ->  | H36: =IF(G36="","",VLOOKUP(G36,'Cuadro de Cuentas (4)'!$B$3:$C$558,2,FALSE)) -> 
E37: =IF(D37="","",VLOOKUP(D37,'Cuadro de Cuentas (4)'!$B$3:$C$558,2,FALSE)) ->  | H37: =IF(G37="","",VLOOKUP(G37,'Cuadro de Cuentas (4)'!$B$3:$C$558,2,FALSE)) -> 
E47: =IF(D47="","",VLOOKUP(D47,'Cuadro de Cuentas (4)'!$B$3:$C$558,2,FALSE)) ->  | H47: =IF(G47="","",VLOOKUP(G47,'Cuadro de Cuentas (4)'!$B$3:$C$558,2,FALSE)) -> 
E48: =IF(D48="","",VLOOKUP(D48,'Cuadro de Cuentas (4)'!$B$3:$C$558,2,FALSE)) ->  | H48: =IF(G48="","",VLOOKUP(G48,'Cuadro de Cuentas (4)'!$B$3:$C$558,2,FALSE)) -> 
C52: DEBE | I52: HABER
C53: IMPORTES | D53: Nº CUENTA | E53: NOMBRE CUENTA | G53: Nº CUENTA | H53: NOMBRE CUENTA | I53: IMPORTES
E62: =IF(D62="","",VLOOKUP(D62,'Cuadro de Cuentas (4)'!$B$3:$C$558,2,FALSE)) ->  | F62: =IF(G62="","","a") ->  | H62: =IF(G62="","",VLOOKUP(G62,'Cuadro de Cuentas (4)'!$B$3:$C$558,2,FALSE)) -> 
E63: =IF(D63="","",VLOOKUP(D63,'Cuadro de Cuentas (4)'!$B$3:$C$558,2,FALSE)) ->  | H63: =IF(G63="","",VLOOKUP(G63,'Cuadro de Cuentas (4)'!$B$3:$C$558,2,FALSE)) -> 
E64: =IF(D64="","",VLOOKUP(D64,'Cuadro de Cuentas (4)'!$B$3:$C$558,2,FALSE)) ->  | H64: =IF(G64="","",VLOOKUP(G64,'Cuadro de Cuentas (4)'!$B$3:$C$558,2,FALSE)) -> 
E65: =IF(D65="","",VLOOKUP(D65,'Cuadro de Cuentas (4)'!$B$3:$C$558,2,FALSE)) ->  | H65: =IF(G65="","",VLOOKUP(G65,'Cuadro de Cuentas (4)'!$B$3:$C$558,2,FALSE)) -> 
E66: =IF(D66="","",VLOOKUP(D66,'Cuadro de Cuentas (4)'!$B$3:$C$558,2,FALSE)) ->  | H66: =IF(G66="","",VLOOKUP(G66,'Cuadro de Cuentas (4)'!$B$3:$C$558,2,FALSE)) -> 
E67: =IF(D67="","",VLOOKUP(D67,'Cuadro de Cuentas (4)'!$B$3:$C$558,2,FALSE)) ->  | H67: =IF(G67="","",VLOOKUP(G67,'Cuadro de Cuentas (4)'!$B$3:$C$558,2,FALSE)) -> 
E68: =IF(D68="","",VLOOKUP(D68,'Cuadro de Cuentas (4)'!$B$3:$C$558,2,FALSE)) ->  | H68: =IF(G68="","",VLOOKUP(G68,'Cuadro de Cuentas (4)'!$B$3:$C$558,2,FALSE)) -> 
E69: =IF(D69="","",VLOOKUP(D69,'Cuadro de Cuentas (4)'!$B$3:$C$558,2,FALSE)) ->  | H69: =IF(G69="","",VLOOKUP(G69,'Cuadro de Cuentas (4)'!$B$3:$C$558,2,FALSE)) -> 
E70: =IF(D70="","",VLOOKUP(D70,'Cuadro de Cuentas (4)'!$B$3:$C$558,2,FALSE)) ->  | H70: =IF(G70="","",VLOOKUP(G70,'Cuadro de Cuentas (4)'!$B$3:$C$558,2,FALSE)) -> 
E71: =IF(D71="","",VLOOKUP(D71,'Cuadro de Cuentas (4)'!$B$3:$C$558,2,FALSE)) ->  | H71: =IF(G71="","",VLOOKUP(G71,'Cuadro de Cuentas (4)'!$B$3:$C$558,2,FALSE)) -> 
E72: =IF(D72="","",VLOOKUP(D72,'Cuadro de Cuentas (4)'!$B$3:$C$558,2,FALSE)) ->  | H72: =IF(G72="","",VLOOKUP(G72,'Cuadro de Cuentas (4)'!$B$3:$C$558,2,FALSE)) -> 
E73: =IF(D73="","",VLOOKUP(D73,'Cuadro de Cuentas (4)'!$B$3:$C$558,2,FALSE)) ->  | H73: =IF(G73="","",VLOOKUP(G73,'Cuadro de Cuentas (4)'!$B$3:$C$558,2,FALSE)) -> 
E74: =IF(D74="","",VLOOKUP(D74,'Cuadro de Cuentas (4)'!$B$3:$C$558,2,FALSE)) ->  | H74: =IF(G74="","",VLOOKUP(G74,'Cuadro de Cuentas (4)'!$B$3:$C$558,2,FALSE)) -> 
E75: =IF(D75="","",VLOOKUP(D75,'Cuadro de Cuentas (4)'!$B$3:$C$558,2,FALSE)) ->  | H75: =IF(G75="","",VLOOKUP(G75,'Cuadro de Cuentas (4)'!$B$3:$C$558,2,FALSE)) -> 
E76: =IF(D76="","",VLOOKUP(D76,'Cuadro de Cuentas (4)'!$B$3:$C$558,2,FALSE)) ->  | H76: =IF(G76="","",VLOOKUP(G76,'Cuadro de Cuentas (4)'!$B$3:$C$558,2,FALSE)) -> 
E77: =IF(D77="","",VLOOKUP(D77,'Cuadro de Cuentas (4)'!$B$3:$C$558,2,FALSE)) ->  | H77: =IF(G77="","",VLOOKUP(G77,'Cuadro de Cuentas (4)'!$B$3:$C$558,2,FALSE)) -> 
E78: =IF(D78="","",VLOOKUP(D78,'Cuadro de Cuentas (4)'!$B$3:$C$558,2,FALSE)) ->  | H78: =IF(G78="","",VLOOKUP(G78,'Cuadro de Cuentas (4)'!$B$3:$C$558,2,FALSE)) -> 
E79: =IF(D79="","",VLOOKUP(D79,'Cuadro de Cuentas (4)'!$B$3:$C$558,2,FALSE)) ->  | H79: =IF(G79="","",VLOOKUP(G79,'Cuadro de Cuentas (4)'!$B$3:$C$558,2,FALSE)) -> 
E80: =IF(D80="","",VLOOKUP(D80,'Cuadro de Cuentas (4)'!$B$3:$C$558,2,FALSE)) ->  | H80: =IF(G80="","",VLOOKUP(G80,'Cuadro de Cuentas (4)'!$B$3:$C$558,2,FALSE)) -> 
E81: =IF(D81="","",VLOOKUP(D81,'Cuadro de Cuentas (4)'!$B$3:$C$558,2,FALSE)) ->  | H81: =IF(G81="","",VLOOKUP(G81,'Cuadro de Cuentas (4)'!$B$3:$C$558,2,FALSE)) -> 
E82: =IF(D82="","",VLOOKUP(D82,'Cuadro de Cuentas (4)'!$B$3:$C$558,2,FALSE)) ->  | H82: =IF(G82="","",VLOOKUP(G82,'Cuadro de Cuentas (4)'!$B$3:$C$558,2,FALSE)) -> 
E83: =IF(D83="","",VLOOKUP(D83,'Cuadro de Cuentas (4)'!$B$3:$C$558,2,FALSE)) ->  | H83: =IF(G83="","",VLOOKUP(G83,'Cuadro de Cuentas (4)'!$B$3:$C$558,2,FALSE)) -> 
E84: =IF(D84="","",VLOOKUP(D84,'Cuadro de Cuentas (4)'!$B$3:$C$558,2,FALSE)) ->  | H84: =IF(G84="","",VLOOKUP(G84,'Cuadro de Cuentas (4)'!$B$3:$C$558,2,FALSE)) -> 
E85: =IF(D85="","",VLOOKUP(D85,'Cuadro de Cuentas (4)'!$B$3:$C$558,2,FALSE)) ->  | H85: =IF(G85="","",VLOOKUP(G85,'Cuadro de Cuentas (4)'!$B$3:$C$558,2,FALSE)) -> 
E86: =IF(D86="","",VLOOKUP(D86,'Cuadro de Cuentas (4)'!$B$3:$C$558,2,FALSE)) ->  | H86: =IF(G86="","",VLOOKUP(G86,'Cuadro de Cuentas (4)'!$B$3:$C$558,2,FALSE)) -> 
E87: =IF(D87="","",VLOOKUP(D87,'Cuadro de Cuentas (4)'!$B$3:$C$558,2,FALSE)) ->  | H87: =IF(G87="","",VLOOKUP(G87,'Cuadro de Cuentas (4)'!$B$3:$C$558,2,FALSE)) -> 
E88: =IF(D88="","",VLOOKUP(D88,'Cuadro de Cuentas (4)'!$B$3:$C$558,2,FALSE)) ->  | H88: =IF(G88="","",VLOOKUP(G88,'Cuadro de Cuentas (4)'!$B$3:$C$558,2,FALSE)) -> 
E89: =IF(D89="","",VLOOKUP(D89,'Cuadro de Cuentas (4)'!$B$3:$C$558,2,FALSE)) ->  | H89: =IF(G89="","",VLOOKUP(G89,'Cuadro de Cuentas (4)'!$B$3:$C$558,2,FALSE)) -> 
E90: =IF(D90="","",VLOOKUP(D90,'Cuadro de Cuentas (4)'!$B$3:$C$558,2,FALSE)) ->  | H90: =IF(G90="","",VLOOKUP(G90,'Cuadro de Cuentas (4)'!$B$3:$C$558,2,FALSE)) -> 
E91: =IF(D91="","",VLOOKUP(D91,'Cuadro de Cuentas (4)'!$B$3:$C$558,2,FALSE)) ->  | H91: =IF(G91="","",VLOOKUP(G91,'Cuadro de Cuentas (4)'!$B$3:$C$558,2,FALSE)) -> 
E92: =IF(D92="","",VLOOKUP(D92,'Cuadro de Cuentas (4)'!$B$3:$C$558,2,FALSE)) ->  | H92: =IF(G92="","",VLOOKUP(G92,'Cuadro de Cuentas (4)'!$B$3:$C$558,2,FALSE)) -> 
E93: =IF(D93="","",VLOOKUP(D93,'Cuadro de Cuentas (4)'!$B$3:$C$558,2,FALSE)) ->  | H93: =IF(G93="","",VLOOKUP(G93,'Cuadro de Cuentas (4)'!$B$3:$C$558,2,FALSE)) -> 
E94: =IF(D94="","",VLOOKUP(D94,'Cuadro de Cuentas (4)'!$B$3:$C$558,2,FALSE)) ->  | H94: =IF(G94="","",VLOOKUP(G94,'Cuadro de Cuentas (4)'!$B$3:$C$558,2,FALSE)) -> 
E95: =IF(D95="","",VLOOKUP(D95,'Cuadro de Cuentas (4)'!$B$3:$C$558,2,FALSE)) ->  | H95: =IF(G95="","",VLOOKUP(G95,'Cuadro de Cuentas (4)'!$B$3:$C$558,2,FALSE)) -> 
E96: =IF(D96="","",VLOOKUP(D96,'Cuadro de Cuentas (4)'!$B$3:$C$558,2,FALSE)) ->  | H96: =IF(G96="","",VLOOKUP(G96,'Cuadro de Cuentas (4)'!$B$3:$C$558,2,FALSE)) -> 
E97: =IF(D97="","",VLOOKUP(D97,'Cuadro de Cuentas (4)'!$B$3:$C$558,2,FALSE)) ->  | H97: =IF(G97="","",VLOOKUP(G97,'Cuadro de Cuentas (4)'!$B$3:$C$558,2,FALSE)) -> 
E98: =IF(D98="","",VLOOKUP(D98,'Cuadro de Cuentas (4)'!$B$3:$C$558,2,FALSE)) ->  | H98: =IF(G98="","",VLOOKUP(G98,'Cuadro de Cuentas (4)'!$B$3:$C$558,2,FALSE)) -> 
C102: DEBE | I102: HABER
C103: IMPORTES | D103: Nº CUENTA | E103: NOMBRE CUENTA | G103: Nº CUENTA | H103: NOMBRE CUENTA | I103: IMPORTES
E104: =IF(D104="","",VLOOKUP(D104,'Cuadro de Cuentas (4)'!$B$3:$C$558,2,FALSE)) ->  | F104: =IF(G104="","","a") ->  | H104: =IF(G104="","",VLOOKUP(G104,'Cuadro de Cuentas (4)'!$B$3:$C$558,2,FALSE)) -> 
E105: =IF(D105="","",VLOOKUP(D105,'Cuadro de Cuentas (4)'!$B$3:$C$558,2,FALSE)) ->  | H105: =IF(G105="","",VLOOKUP(G105,'Cuadro de Cuentas (4)'!$B$3:$C$558,2,FALSE)) -> 
E106: =IF(D106="","",VLOOKUP(D106,'Cuadro de Cuentas (4)'!$B$3:$C$558,2,FALSE)) ->  | H106: =IF(G106="","",VLOOKUP(G106,'Cuadro de Cuentas (4)'!$B$3:$C$558,2,FALSE)) -> 
E107: =IF(D107="","",VLOOKUP(D107,'Cuadro de Cuentas (4)'!$B$3:$C$558,2,FALSE)) ->  | H107: =IF(G107="","",VLOOKUP(G107,'Cuadro de Cuentas (4)'!$B$3:$C$558,2,FALSE)) -> 
E108: =IF(D108="","",VLOOKUP(D108,'Cuadro de Cuentas (4)'!$B$3:$C$558,2,FALSE)) ->  | H108: =IF(G108="","",VLOOKUP(G108,'Cuadro de Cuentas (4)'!$B$3:$C$558,2,FALSE)) -> 
E109: =IF(D109="","",VLOOKUP(D109,'Cuadro de Cuentas (4)'!$B$3:$C$558,2,FALSE)) ->  | H109: =IF(G109="","",VLOOKUP(G109,'Cuadro de Cuentas (4)'!$B$3:$C$558,2,FALSE)) -> 
E110: =IF(D110="","",VLOOKUP(D110,'Cuadro de Cuentas (4)'!$B$3:$C$558,2,FALSE)) ->  | H110: =IF(G110="","",VLOOKUP(G110,'Cuadro de Cuentas (4)'!$B$3:$C$558,2,FALSE)) -> 
E111: =IF(D111="","",VLOOKUP(D111,'Cuadro de Cuentas (4)'!$B$3:$C$558,2,FALSE)) ->  | H111: =IF(G111="","",VLOOKUP(G111,'Cuadro de Cuentas (4)'!$B$3:$C$558,2,FALSE)) -> 
E112: =IF(D112="","",VLOOKUP(D112,'Cuadro de Cuentas (4)'!$B$3:$C$558,2,FALSE)) ->  | H112: =IF(G112="","",VLOOKUP(G112,'Cuadro de Cuentas (4)'!$B$3:$C$558,2,FALSE)) -> 
E113: =IF(D113="","",VLOOKUP(D113,'Cuadro de Cuentas (4)'!$B$3:$C$558,2,FALSE)) ->  | H113: =IF(G113="","",VLOOKUP(G113,'Cuadro de Cuentas (4)'!$B$3:$C$558,2,FALSE)) -> 
E114: =IF(D114="","",VLOOKUP(D114,'Cuadro de Cuentas (4)'!$B$3:$C$558,2,FALSE)) ->  | H114: =IF(G114="","",VLOOKUP(G114,'Cuadro de Cuentas (4)'!$B$3:$C$558,2,FALSE)) -> 
E115: =IF(D115="","",VLOOKUP(D115,'Cuadro de Cuentas (4)'!$B$3:$C$558,2,FALSE)) ->  | H115: =IF(G115="","",VLOOKUP(G115,'Cuadro de Cuentas (4)'!$B$3:$C$558,2,FALSE)) -> 
E116: =IF(D116="","",VLOOKUP(D116,'Cuadro de Cuentas (4)'!$B$3:$C$558,2,FALSE)) ->  | H116: =IF(G116="","",VLOOKUP(G116,'Cuadro de Cuentas (4)'!$B$3:$C$558,2,FALSE)) -> 
E117: =IF(D117="","",VLOOKUP(D117,'Cuadro de Cuentas (4)'!$B$3:$C$558,2,FALSE)) ->  | H117: =IF(G117="","",VLOOKUP(G117,'Cuadro de Cuentas (4)'!$B$3:$C$558,2,FALSE)) -> 
E118: =IF(D118="","",VLOOKUP(D118,'Cuadro de Cuentas (4)'!$B$3:$C$558,2,FALSE)) ->  | H118: =IF(G118="","",VLOOKUP(G118,'Cuadro de Cuentas (4)'!$B$3:$C$558,2,FALSE)) -> 
E119: =IF(D119="","",VLOOKUP(D119,'Cuadro de Cuentas (4)'!$B$3:$C$558,2,FALSE)) ->  | H119: =IF(G119="","",VLOOKUP(G119,'Cuadro de Cuentas (4)'!$B$3:$C$558,2,FALSE)) -> 
E120: =IF(D120="","",VLOOKUP(D120,'Cuadro de Cuentas (4)'!$B$3:$C$558,2,FALSE)) ->  | H120: =IF(G120="","",VLOOKUP(G120,'Cuadro de Cuentas (4)'!$B$3:$C$558,2,FALSE)) -> 
E121: =IF(D121="","",VLOOKUP(D121,'Cuadro de Cuentas (4)'!$B$3:$C$558,2,FALSE)) ->  | H121: =IF(G121="","",VLOOKUP(G121,'Cuadro de Cuentas (4)'!$B$3:$C$558,2,FALSE)) -> 
E122: =IF(D122="","",VLOOKUP(D122,'Cuadro de Cuentas (4)'!$B$3:$C$558,2,FALSE)) ->  | H122: =IF(G122="","",VLOOKUP(G122,'Cuadro de Cuentas (4)'!$B$3:$C$558,2,FALSE)) -> 
E123: =IF(D123="","",VLOOKUP(D123,'Cuadro de Cuentas (4)'!$B$3:$C$558,2,FALSE)) ->  | H123: =IF(G123="","",VLOOKUP(G123,'Cuadro de Cuentas (4)'!$B$3:$C$558,2,FALSE)) -> 
E124: =IF(D124="","",VLOOKUP(D124,'Cuadro de Cuentas (4)'!$B$3:$C$558,2,FALSE)) ->  | H124: =IF(G124="","",VLOOKUP(G124,'Cuadro de Cuentas (4)'!$B$3:$C$558,2,FALSE)) -> 
E125: =IF(D125="","",VLOOKUP(D125,'Cuadro de Cuentas (4)'!$B$3:$C$558,2,FALSE)) ->  | H125: =IF(G125="","",VLOOKUP(G125,'Cuadro de Cuentas (4)'!$B$3:$C$558,2,FALSE)) -> 
E126: =IF(D126="","",VLOOKUP(D126,'Cuadro de Cuentas (4)'!$B$3:$C$558,2,FALSE)) ->  | H126: =IF(G126="","",VLOOKUP(G126,'Cuadro de Cuentas (4)'!$B$3:$C$558,2,FALSE)) -> 
E127: =IF(D127="","",VLOOKUP(D127,'Cuadro de Cuentas (4)'!$B$3:$C$558,2,FALSE)) ->  | H127: =IF(G127="","",VLOOKUP(G127,'Cuadro de Cuentas (4)'!$B$3:$C$558,2,FALSE)) -> 
E128: =IF(D128="","",VLOOKUP(D128,'Cuadro de Cuentas (4)'!$B$3:$C$558,2,FALSE)) ->  | H128: =IF(G128="","",VLOOKUP(G128,'Cuadro de Cuentas (4)'!$B$3:$C$558,2,FALSE)) -> 
E129: =IF(D129="","",VLOOKUP(D129,'Cuadro de Cuentas (4)'!$B$3:$C$558,2,FALSE)) ->  | H129: =IF(G129="","",VLOOKUP(G129,'Cuadro de Cuentas (4)'!$B$3:$C$558,2,FALSE)) -> 
E130: =IF(D130="","",VLOOKUP(D130,'Cuadro de Cuentas (4)'!$B$3:$C$558,2,FALSE)) ->  | H130: =IF(G130="","",VLOOKUP(G130,'Cuadro de Cuentas (4)'!$B$3:$C$558,2,FALSE)) -> 
E131: =IF(D131="","",VLOOKUP(D131,'Cuadro de Cuentas (4)'!$B$3:$C$558,2,FALSE)) ->  | H131: =IF(G131="","",VLOOKUP(G131,'Cuadro de Cuentas (4)'!$B$3:$C$558,2,FALSE)) -> 
E132: =IF(D132="","",VLOOKUP(D132,'Cuadro de Cuentas (4)'!$B$3:$C$558,2,FALSE)) ->  | H132: =IF(G132="","",VLOOKUP(G132,'Cuadro de Cuentas (4)'!$B$3:$C$558,2,FALSE)) -> 
E133: =IF(D133="","",VLOOKUP(D133,'Cuadro de Cuentas (4)'!$B$3:$C$558,2,FALSE)) ->  | H133: =IF(G133="","",VLOOKUP(G133,'Cuadro de Cuentas (4)'!$B$3:$C$558,2,FALSE)) -> 
E134: =IF(D134="","",VLOOKUP(D134,'Cuadro de Cuentas (4)'!$B$3:$C$558,2,FALSE)) ->  | H134: =IF(G134="","",VLOOKUP(G134,'Cuadro de Cuentas (4)'!$B$3:$C$558,2,FALSE)) -> 
E135: =IF(D135="","",VLOOKUP(D135,'Cuadro de Cuentas (4)'!$B$3:$C$558,2,FALSE)) ->  | H135: =IF(G135="","",VLOOKUP(G135,'Cuadro de Cuentas (4)'!$B$3:$C$558,2,FALSE)) -> 
E136: =IF(D136="","",VLOOKUP(D136,'Cuadro de Cuentas (4)'!$B$3:$C$558,2,FALSE)) ->  | H136: =IF(G136="","",VLOOKUP(G136,'Cuadro de Cuentas (4)'!$B$3:$C$558,2,FALSE)) -> 
E137: =IF(D137="","",VLOOKUP(D137,'Cuadro de Cuentas (4)'!$B$3:$C$558,2,FALSE)) ->  | H137: =IF(G137="","",VLOOKUP(G137,'Cuadro de Cuentas (4)'!$B$3:$C$558,2,FALSE)) -> 
E138: =IF(D138="","",VLOOKUP(D138,'Cuadro de Cuentas (4)'!$B$3:$C$558,2,FALSE)) ->  | H138: =IF(G138="","",VLOOKUP(G138,'Cuadro de Cuentas (4)'!$B$3:$C$558,2,FALSE)) -> 
E139: =IF(D139="","",VLOOKUP(D139,'Cuadro de Cuentas (4)'!$B$3:$C$558,2,FALSE)) ->  | H139: =IF(G139="","",VLOOKUP(G139,'Cuadro de Cuentas (4)'!$B$3:$C$558,2,FALSE)) -> 
E140: =IF(D140="","",VLOOKUP(D140,'Cuadro de Cuentas (4)'!$B$3:$C$558,2,FALSE)) ->  | H140: =IF(G140="","",VLOOKUP(G140,'Cuadro de Cuentas (4)'!$B$3:$C$558,2,FALSE)) -> 
E141: =IF(D141="","",VLOOKUP(D141,'Cuadro de Cuentas (4)'!$B$3:$C$558,2,FALSE)) ->  | H141: =IF(G141="","",VLOOKUP(G141,'Cuadro de Cuentas (4)'!$B$3:$C$558,2,FALSE)) -> 
E142: =IF(D142="","",VLOOKUP(D142,'Cuadro de Cuentas (4)'!$B$3:$C$558,2,FALSE)) ->  | H142: =IF(G142="","",VLOOKUP(G142,'Cuadro de Cuentas (4)'!$B$3:$C$558,2,FALSE)) -> 
E143: =IF(D143="","",VLOOKUP(D143,'Cuadro de Cuentas (4)'!$B$3:$C$558,2,FALSE)) ->  | H143: =IF(G143="","",VLOOKUP(G143,'Cuadro de Cuentas (4)'!$B$3:$C$558,2,FALSE)) -> 
E144: =IF(D144="","",VLOOKUP(D144,'Cuadro de Cuentas (4)'!$B$3:$C$558,2,FALSE)) ->  | H144: =IF(G144="","",VLOOKUP(G144,'Cuadro de Cuentas (4)'!$B$3:$C$558,2,FALSE)) -> 
E145: =IF(D145="","",VLOOKUP(D145,'Cuadro de Cuentas (4)'!$B$3:$C$558,2,FALSE)) ->  | H145: =IF(G145="","",VLOOKUP(G145,'Cuadro de Cuentas (4)'!$B$3:$C$558,2,FALSE)) -> 
E146: =IF(D146="","",VLOOKUP(D146,'Cuadro de Cuentas (4)'!$B$3:$C$558,2,FALSE)) ->  | H146: =IF(G146="","",VLOOKUP(G146,'Cuadro de Cuentas (4)'!$B$3:$C$558,2,FALSE)) -> 
E147: =IF(D147="","",VLOOKUP(D147,'Cuadro de Cuentas (4)'!$B$3:$C$558,2,FALSE)) ->  | H147: =IF(G147="","",VLOOKUP(G147,'Cuadro de Cuentas (4)'!$B$3:$C$558,2,FALSE)) -> 
E148: =IF(D148="","",VLOOKUP(D148,'Cuadro de Cuentas (4)'!$B$3:$C$558,2,FALSE)) ->  | H148: =IF(G148="","",VLOOKUP(G148,'Cuadro de Cuentas (4)'!$B$3:$C$558,2,FALSE)) -> 
C152: DEBE | I152: HABER
C153: IMPORTES | D153: Nº CUENTA | E153: NOMBRE CUENTA | G153: Nº CUENTA | H153: NOMBRE CUENTA | I153: IMPORTES
E154: =IF(D154="","",VLOOKUP(D154,'Cuadro de Cuentas (4)'!$B$3:$C$558,2,FALSE)) ->  | F154: =IF(G154="","","a") ->  | H154: =IF(G154="","",VLOOKUP(G154,'Cuadro de Cuentas (4)'!$B$3:$C$558,2,FALSE)) -> 
E155: =IF(D155="","",VLOOKUP(D155,'Cuadro de Cuentas (4)'!$B$3:$C$558,2,FALSE)) ->  | H155: =IF(G155="","",VLOOKUP(G155,'Cuadro de Cuentas (4)'!$B$3:$C$558,2,FALSE)) -> 
E156: =IF(D156="","",VLOOKUP(D156,'Cuadro de Cuentas (4)'!$B$3:$C$558,2,FALSE)) ->  | H156: =IF(G156="","",VLOOKUP(G156,'Cuadro de Cuentas (4)'!$B$3:$C$558,2,FALSE)) -> 
E157: =IF(D157="","",VLOOKUP(D157,'Cuadro de Cuentas (4)'!$B$3:$C$558,2,FALSE)) ->  | H157: =IF(G157="","",VLOOKUP(G157,'Cuadro de Cuentas (4)'!$B$3:$C$558,2,FALSE)) -> 
E158: =IF(D158="","",VLOOKUP(D158,'Cuadro de Cuentas (4)'!$B$3:$C$558,2,FALSE)) ->  | H158: =IF(G158="","",VLOOKUP(G158,'Cuadro de Cuentas (4)'!$B$3:$C$558,2,FALSE)) -> 
E159: =IF(D159="","",VLOOKUP(D159,'Cuadro de Cuentas (4)'!$B$3:$C$558,2,FALSE)) ->  | H159: =IF(G159="","",VLOOKUP(G159,'Cuadro de Cuentas (4)'!$B$3:$C$558,2,FALSE)) -> 
E160: =IF(D160="","",VLOOKUP(D160,'Cuadro de Cuentas (4)'!$B$3:$C$558,2,FALSE)) ->  | H160: =IF(G160="","",VLOOKUP(G160,'Cuadro de Cuentas (4)'!$B$3:$C$558,2,FALSE)) -> 
E161: =IF(D161="","",VLOOKUP(D161,'Cuadro de Cuentas (4)'!$B$3:$C$558,2,FALSE)) ->  | H161: =IF(G161="","",VLOOKUP(G161,'Cuadro de Cuentas (4)'!$B$3:$C$558,2,FALSE)) -> 
E162: =IF(D162="","",VLOOKUP(D162,'Cuadro de Cuentas (4)'!$B$3:$C$558,2,FALSE)) ->  | H162: =IF(G162="","",VLOOKUP(G162,'Cuadro de Cuentas (4)'!$B$3:$C$558,2,FALSE)) -> 
E163: =IF(D163="","",VLOOKUP(D163,'Cuadro de Cuentas (4)'!$B$3:$C$558,2,FALSE)) ->  | H163: =IF(G163="","",VLOOKUP(G163,'Cuadro de Cuentas (4)'!$B$3:$C$558,2,FALSE)) -> 
E164: =IF(D164="","",VLOOKUP(D164,'Cuadro de Cuentas (4)'!$B$3:$C$558,2,FALSE)) ->  | H164: =IF(G164="","",VLOOKUP(G164,'Cuadro de Cuentas (4)'!$B$3:$C$558,2,FALSE)) -> 
E165: =IF(D165="","",VLOOKUP(D165,'Cuadro de Cuentas (4)'!$B$3:$C$558,2,FALSE)) ->  | H165: =IF(G165="","",VLOOKUP(G165,'Cuadro de Cuentas (4)'!$B$3:$C$558,2,FALSE)) -> 
E166: =IF(D166="","",VLOOKUP(D166,'Cuadro de Cuentas (4)'!$B$3:$C$558,2,FALSE)) ->  | H166: =IF(G166="","",VLOOKUP(G166,'Cuadro de Cuentas (4)'!$B$3:$C$558,2,FALSE)) -> 
E167: =IF(D167="","",VLOOKUP(D167,'Cuadro de Cuentas (4)'!$B$3:$C$558,2,FALSE)) ->  | H167: =IF(G167="","",VLOOKUP(G167,'Cuadro de Cuentas (4)'!$B$3:$C$558,2,FALSE)) -> 
E168: =IF(D168="","",VLOOKUP(D168,'Cuadro de Cuentas (4)'!$B$3:$C$558,2,FALSE)) ->  | H168: =IF(G168="","",VLOOKUP(G168,'Cuadro de Cuentas (4)'!$B$3:$C$558,2,FALSE)) -> 
E169: =IF(D169="","",VLOOKUP(D169,'Cuadro de Cuentas (4)'!$B$3:$C$558,2,FALSE)) ->  | H169: =IF(G169="","",VLOOKUP(G169,'Cuadro de Cuentas (4)'!$B$3:$C$558,2,FALSE)) -> 
E170: =IF(D170="","",VLOOKUP(D170,'Cuadro de Cuentas (4)'!$B$3:$C$558,2,FALSE)) ->  | H170: =IF(G170="","",VLOOKUP(G170,'Cuadro de Cuentas (4)'!$B$3:$C$558,2,FALSE)) -> 
E171: =IF(D171="","",VLOOKUP(D171,'Cuadro de Cuentas (4)'!$B$3:$C$558,2,FALSE)) ->  | H171: =IF(G171="","",VLOOKUP(G171,'Cuadro de Cuentas (4)'!$B$3:$C$558,2,FALSE)) -> 
E172: =IF(D172="","",VLOOKUP(D172,'Cuadro de Cuentas (4)'!$B$3:$C$558,2,FALSE)) ->  | H172: =IF(G172="","",VLOOKUP(G172,'Cuadro de Cuentas (4)'!$B$3:$C$558,2,FALSE)) -> 
E173: =IF(D173="","",VLOOKUP(D173,'Cuadro de Cuentas (4)'!$B$3:$C$558,2,FALSE)) ->  | H173: =IF(G173="","",VLOOKUP(G173,'Cuadro de Cuentas (4)'!$B$3:$C$558,2,FALSE)) -> 
E174: =IF(D174="","",VLOOKUP(D174,'Cuadro de Cuentas (4)'!$B$3:$C$558,2,FALSE)) ->  | H174: =IF(G174="","",VLOOKUP(G174,'Cuadro de Cuentas (4)'!$B$3:$C$558,2,FALSE)) -> 
E175: =IF(D175="","",VLOOKUP(D175,'Cuadro de Cuentas (4)'!$B$3:$C$558,2,FALSE)) ->  | H175: =IF(G175="","",VLOOKUP(G175,'Cuadro de Cuentas (4)'!$B$3:$C$558,2,FALSE)) -> 
E176: =IF(D176="","",VLOOKUP(D176,'Cuadro de Cuentas (4)'!$B$3:$C$558,2,FALSE)) ->  | H176: =IF(G176="","",VLOOKUP(G176,'Cuadro de Cuentas (4)'!$B$3:$C$558,2,FALSE)) -> 
E177: =IF(D177="","",VLOOKUP(D177,'Cuadro de Cuentas (4)'!$B$3:$C$558,2,FALSE)) ->  | H177: =IF(G177="","",VLOOKUP(G177,'Cuadro de Cuentas (4)'!$B$3:$C$558,2,FALSE)) -> 
E178: =IF(D178="","",VLOOKUP(D178,'Cuadro de Cuentas (4)'!$B$3:$C$558,2,FALSE)) ->  | H178: =IF(G178="","",VLOOKUP(G178,'Cuadro de Cuentas (4)'!$B$3:$C$558,2,FALSE)) -> 
E179: =IF(D179="","",VLOOKUP(D179,'Cuadro de Cuentas (4)'!$B$3:$C$558,2,FALSE)) ->  | H179: =IF(G179="","",VLOOKUP(G179,'Cuadro de Cuentas (4)'!$B$3:$C$558,2,FALSE)) -> 
E180: =IF(D180="","",VLOOKUP(D180,'Cuadro de Cuentas (4)'!$B$3:$C$558,2,FALSE)) ->  | H180: =IF(G180="","",VLOOKUP(G180,'Cuadro de Cuentas (4)'!$B$3:$C$558,2,FALSE)) -> 
E181: =IF(D181="","",VLOOKUP(D181,'Cuadro de Cuentas (4)'!$B$3:$C$558,2,FALSE)) ->  | H181: =IF(G181="","",VLOOKUP(G181,'Cuadro de Cuentas (4)'!$B$3:$C$558,2,FALSE)) -> 
E182: =IF(D182="","",VLOOKUP(D182,'Cuadro de Cuentas (4)'!$B$3:$C$558,2,FALSE)) ->  | H182: =IF(G182="","",VLOOKUP(G182,'Cuadro de Cuentas (4)'!$B$3:$C$558,2,FALSE)) -> 
E183: =IF(D183="","",VLOOKUP(D183,'Cuadro de Cuentas (4)'!$B$3:$C$558,2,FALSE)) ->  | H183: =IF(G183="","",VLOOKUP(G183,'Cuadro de Cuentas (4)'!$B$3:$C$558,2,FALSE)) -> 
E184: =IF(D184="","",VLOOKUP(D184,'Cuadro de Cuentas (4)'!$B$3:$C$558,2,FALSE)) ->  | H184: =IF(G184="","",VLOOKUP(G184,'Cuadro de Cuentas (4)'!$B$3:$C$558,2,FALSE)) -> 
E185: =IF(D185="","",VLOOKUP(D185,'Cuadro de Cuentas (4)'!$B$3:$C$558,2,FALSE)) ->  | H185: =IF(G185="","",VLOOKUP(G185,'Cuadro de Cuentas (4)'!$B$3:$C$558,2,FALSE)) -> 
E186: =IF(D186="","",VLOOKUP(D186,'Cuadro de Cuentas (4)'!$B$3:$C$558,2,FALSE)) ->  | H186: =IF(G186="","",VLOOKUP(G186,'Cuadro de Cuentas (4)'!$B$3:$C$558,2,FALSE)) -> 
E187: =IF(D187="","",VLOOKUP(D187,'Cuadro de Cuentas (4)'!$B$3:$C$558,2,FALSE)) ->  | H187: =IF(G187="","",VLOOKUP(G187,'Cuadro de Cuentas (4)'!$B$3:$C$558,2,FALSE)) -> 
E188: =IF(D188="","",VLOOKUP(D188,'Cuadro de Cuentas (4)'!$B$3:$C$558,2,FALSE)) ->  | H188: =IF(G188="","",VLOOKUP(G188,'Cuadro de Cuentas (4)'!$B$3:$C$558,2,FALSE)) -> 
E189: =IF(D189="","",VLOOKUP(D189,'Cuadro de Cuentas (4)'!$B$3:$C$558,2,FALSE)) ->  | H189: =IF(G189="","",VLOOKUP(G189,'Cuadro de Cuentas (4)'!$B$3:$C$558,2,FALSE)) -> 
E190: =IF(D190="","",VLOOKUP(D190,'Cuadro de Cuentas (4)'!$B$3:$C$558,2,FALSE)) ->  | H190: =IF(G190="","",VLOOKUP(G190,'Cuadro de Cuentas (4)'!$B$3:$C$558,2,FALSE)) -> 
E191: =IF(D191="","",VLOOKUP(D191,'Cuadro de Cuentas (4)'!$B$3:$C$558,2,FALSE)) ->  | H191: =IF(G191="","",VLOOKUP(G191,'Cuadro de Cuentas (4)'!$B$3:$C$558,2,FALSE)) -> 
E192: =IF(D192="","",VLOOKUP(D192,'Cuadro de Cuentas (4)'!$B$3:$C$558,2,FALSE)) ->  | H192: =IF(G192="","",VLOOKUP(G192,'Cuadro de Cuentas (4)'!$B$3:$C$558,2,FALSE)) -> 
E193: =IF(D193="","",VLOOKUP(D193,'Cuadro de Cuentas (4)'!$B$3:$C$558,2,FALSE)) ->  | H193: =IF(G193="","",VLOOKUP(G193,'Cuadro de Cuentas (4)'!$B$3:$C$558,2,FALSE)) -> 
E194: =IF(D194="","",VLOOKUP(D194,'Cuadro de Cuentas (4)'!$B$3:$C$558,2,FALSE)) ->  | H194: =IF(G194="","",VLOOKUP(G194,'Cuadro de Cuentas (4)'!$B$3:$C$558,2,FALSE)) -> 
E195: =IF(D195="","",VLOOKUP(D195,'Cuadro de Cuentas (4)'!$B$3:$C$558,2,FALSE)) ->  | H195: =IF(G195="","",VLOOKUP(G195,'Cuadro de Cuentas (4)'!$B$3:$C$558,2,FALSE)) -> 
E196: =IF(D196="","",VLOOKUP(D196,'Cuadro de Cuentas (4)'!$B$3:$C$558,2,FALSE)) ->  | H196: =IF(G196="","",VLOOKUP(G196,'Cuadro de Cuentas (4)'!$B$3:$C$558,2,FALSE)) -> 
E197: =IF(D197="","",VLOOKUP(D197,'Cuadro de Cuentas (4)'!$B$3:$C$558,2,FALSE)) ->  | H197: =IF(G197="","",VLOOKUP(G197,'Cuadro de Cuentas (4)'!$B$3:$C$558,2,FALSE)) -> 
E198: =IF(D198="","",VLOOKUP(D198,'Cuadro de Cuentas (4)'!$B$3:$C$558,2,FALSE)) ->  | H198: =IF(G198="","",VLOOKUP(G198,'Cuadro de Cuentas (4)'!$B$3:$C$558,2,FALSE)) -> 

Sheet Enunciado Leasing (hidden)
B3: El | C3: 2015-11-01 | D3: la empresa adquiere una columna de refracción por | H3: 10000 | I3: que financia
B4: mediante una operación de leasing a 3 años. La vida útil estimada es de | G4: 12 | H4: años y el valor que se calcula tendrá
B5: a la finalización de la misma es de | E5: 1100 | F5: Asimismo, se ha considerado que el método que mejor refleja la pérdida
B6: de valor es el lineal. La amortización financiera de la deuda se muestra en la tabla.
B7: Contabilice los asientos que procedan de acuerdo con la operación anterior durante el año 2015 así como el ejercicio de la opción de compra.

Sheet Leasing 3 Años Postpagable (hidden)
B6: Importe del Leasing | D6: 10000 | E6: VA
B7: Años | D7: 3 | E7: n
B8: Pagos anuales | D8: 12 | E8: q
B9: Tipo nominal | D9: 0.07 | E9: i | F9: V.residual | G9: CUOTA CALCULADA = | I9: =IF(VA<>0,-PMT(i/q,n*q,VA,-VF,tipo),0) -> 301.2578396
B10: Tipo IVA | D10: 0.21 | E10: IVA | F10: descontado
B11: Valor residual | D11: =+VA*n/100 -> 300 | E11: VF | F11: =IF(tipo=1,D11*(1+i/q)^-1,D11) -> 300
B12: Fecha de la operación | D12: 2015-11-01 | E12: FECHA
B13: tipo (1-prepagable 0-pos.) | D13: 0
B17: Período | C17: Fecha | D17: Cap.pte. al inicio | E17: Amor.Capital | F17: Intereses | G17: Cuota neta | H17: IVA | I17: Cuota total | K17: Cap. pte. al final
B18: inicial | C18: =IF(VA<>0,FECHA,"") -> 2015-11-01 | D18: =VA -> 10000 | E18: =IF(tipo=1,CUOTA,0) -> 0 | G18: =E18 -> 0 | H18: =G18*IVA -> 0 | I18: =G18+H18 -> 0 | K18: =D18-E18 -> 10000
B19: =IF(VA<>0,1,0) -> 1 | C19: =IF(B19<>0, DATE( YEAR(C18),MONTH(C18)+(12/q),MIN(DAY($C$18),DAY(DATE(YEAR(C18),MONTH(C18)+(12/q)+1,0))) ),"") -> 2015-12-01 | D19: =IF(B19<>0,K18,0) -> 10000 | E19: =IF(B19<>0,CUOTA-F19,0) -> 242.9245063 | F19: =IF(B19<>0,D19*i/q,0) -> 58.33333333 | G19: =E19+F19 -> 301.2578396 | H19: 63.26414631 | I19: 364.5219859 | K19: 9757.075494
B20: =IF(tipo=1,IF(AND((B19+2<=n*q),(B19<>0)),B19+1,0),IF(AND((B19+1<=n*q),(B19<>0)),B19+1,0)) -> 2 | C20: =IF(B20<>0, DATE( YEAR(C19),MONTH(C19)+(12/q),MIN(DAY($C$18),DAY(DATE(YEAR(C19),MONTH(C19)+(12/q)+1,0))) ),"") -> 2016-01-01 | D20: 9757.075494 | E20: 244.3415659 | F20: 56.91627371 | G20: 301.2578396 | H20: 63.26414631 | I20: 364.5219859 | K20: 9512.733928
B21: 3 | C21: 2016-02-01 | D21: 9512.733928 | E21: 245.7668917 | F21: 55.49094791 | G21: 301.2578396 | H21: 63.26414631 | I21: 364.5219859 | K21: 9266.967036
B22: 4 | C22: 2016-03-01 | D22: 9266.967036 | E22: 247.2005319 | F22: 54.05730771 | G22: 301.2578396 | H22: 63.26414631 | I22: 364.5219859 | K22: 9019.766504
B23: 5 | C23: 2016-04-01 | D23: 9019.766504 | E23: 248.642535 | F23: 52.61530461 | G23: 301.2578396 | H23: 63.26414631 | I23: 364.5219859 | K23: 8771.123969
B24: 6 | C24: 2016-05-01 | D24: 8771.123969 | E24: 250.0929498 | F24: 51.16488982 | G24: 301.2578396 | H24: 63.26414631 | I24: 364.5219859 | K24: 8521.03102
B25: 7 | C25: 2016-06-01 | D25: 8521.03102 | E25: 251.5518253 | F25: 49.70601428 | G25: 301.2578396 | H25: 63.26414631 | I25: 364.5219859 | K25: 8269.479194
B26: 8 | C26: 2016-07-01 | D26: 8269.479194 | E26: 253.019211 | F26: 48.23862863 | G26: 301.2578396 | H26: 63.26414631 | I26: 364.5219859 | K26: 8016.459983
B27: 9 | C27: 2016-08-01 | D27: 8016.459983 | E27: 254.4951564 | F27: 46.76268324 | G27: 301.2578396 | H27: 63.26414631 | I27: 364.5219859 | K27: 7761.964827
B28: 10 | C28: 2016-09-01 | D28: 7761.964827 | E28: 255.9797114 | F28: 45.27812816 | G28: 301.2578396 | H28: 63.26414631 | I28: 364.5219859 | K28: 7505.985115
B29: 11 | C29: 2016-10-01 | D29: 7505.985115 | E29: 257.4729264 | F29: 43.78491317 | G29: 301.2578396 | H29: 63.26414631 | I29: 364.5219859 | K29: 7248.512189
B30: 12 | C30: 2016-11-01 | D30: 7248.512189 | E30: 258.9748518 | F30: 42.28298777 | G30: 301.2578396 | H30: 63.26414631 | I30: 364.5219859 | K30: 6989.537337
B31: 13 | C31: 2016-12-01 | D31: 6989.537337 | E31: 260.4855385 | F31: 40.77230113 | G31: 301.2578396 | H31: 63.26414631 | I31: 364.5219859 | K31: 6729.051799
B32: 14 | C32: 2017-01-01 | D32: 6729.051799 | E32: 262.0050374 | F32: 39.25280216 | G32: 301.2578396 | H32: 63.26414631 | I32: 364.5219859 | K32: 6467.046761
B33: 15 | C33: 2017-02-01 | D33: 6467.046761 | E33: 263.5334002 | F33: 37.72443944 | G33: 301.2578396 | H33: 63.26414631 | I33: 364.5219859 | K33: 6203.513361
B34: 16 | C34: 2017-03-01 | D34: 6203.513361 | E34: 265.0706783 | F34: 36.18716127 | G34: 301.2578396 | H34: 63.26414631 | I34: 364.5219859 | K34: 5938.442683
B35: 17 | C35: 2017-04-01 | D35: 5938.442683 | E35: 266.6169239 | F35: 34.64091565 | G35: 301.2578396 | H35: 63.26414631 | I35: 364.5219859 | K35: 5671.825759
B36: 18 | C36: 2017-05-01 | D36: 5671.825759 | E36: 268.1721893 | F36: 33.08565026 | G36: 301.2578396 | H36: 63.26414631 | I36: 364.5219859 | K36: 5403.65357
B37: 19 | C37: 2017-06-01 | D37: 5403.65357 | E37: 269.7365271 | F37: 31.52131249 | G37: 301.2578396 | H37: 63.26414631 | I37: 364.5219859 | K37: 5133.917042
B38: 20 | C38: 2017-07-01 | D38: 5133.917042 | E38: 271.3099902 | F38: 29.94784941 | G38: 301.2578396 | H38: 63.26414631 | I38: 364.5219859 | K38: 4862.607052
B39: 21 | C39: 2017-08-01 | D39: 4862.607052 | E39: 272.8926318 | F39: 28.36520781 | G39: 301.2578396 | H39: 63.26414631 | I39: 364.5219859 | K39: 4589.71442
B40: 22 | C40: 2017-09-01 | D40: 4589.71442 | E40: 274.4845055 | F40: 26.77333412 | G40: 301.2578396 | H40: 63.26414631 | I40: 364.5219859 | K40: 4315.229915
B41: 23 | C41: 2017-10-01 | D41: 4315.229915 | E41: 276.0856651 | F41: 25.1721745 | G41: 301.2578396 | H41: 63.26414631 | I41: 364.5219859 | K41: 4039.14425
B42: 24 | C42: 2017-11-01 | D42: 4039.14425 | E42: 277.6961648 | F42: 23.56167479 | G42: 301.2578396 | H42: 63.26414631 | I42: 364.5219859 | K42: 3761.448085
B43: 25 | C43: 2017-12-01 | D43: 3761.448085 | E43: 279.3160591 | F43: 21.9417805 | G43: 301.2578396 | H43: 63.26414631 | I43: 364.5219859 | K43: 3482.132026
B44: 26 | C44: 2018-01-01 | D44: 3482.132026 | E44: 280.9454028 | F44: 20.31243682 | G44: 301.2578396 | H44: 63.26414631 | I44: 364.5219859 | K44: 3201.186623
B45: 27 | C45: 2018-02-01 | D45: 3201.186623 | E45: 282.584251 | F45: 18.67358864 | G45: 301.2578396 | H45: 63.26414631 | I45: 364.5219859 | K45: 2918.602372
B46: 28 | C46: 2018-03-01 | D46: 2918.602372 | E46: 284.2326591 | F46: 17.02518051 | G46: 301.2578396 | H46: 63.26414631 | I46: 364.5219859 | K46: 2634.369713
B47: 29 | C47: 2018-04-01 | D47: 2634.369713 | E47: 285.8906829 | F47: 15.36715666 | G47: 301.2578396 | H47: 63.26414631 | I47: 364.5219859 | K47: 2348.47903
B48: 30 | C48: 2018-05-01 | D48: 2348.47903 | E48: 287.5583786 | F48: 13.69946101 | G48: 301.2578396 | H48: 63.26414631 | I48: 364.5219859 | K48: 2060.920652
B49: 31 | C49: 2018-06-01 | D49: 2060.920652 | E49: 289.2358025 | F49: 12.02203713 | G49: 301.2578396 | H49: 63.26414631 | I49: 364.5219859 | K49: 1771.684849
B50: 32 | C50: 2018-07-01 | D50: 1771.684849 | E50: 290.9230113 | F50: 10.33482829 | G50: 301.2578396 | H50: 63.26414631 | I50: 364.5219859 | K50: 1480.761838
B51: 33 | C51: 2018-08-01 | D51: 1480.761838 | E51: 292.6200622 | F51: 8.637777388 | G51: 301.2578396 | H51: 63.26414631 | I51: 364.5219859 | K51: 1188.141776
B52: 34 | C52: 2018-09-01 | D52: 1188.141776 | E52: 294.3270126 | F52: 6.930827025 | G52: 301.2578396 | H52: 63.26414631 | I52: 364.5219859 | K52: 893.8147632
B53: =IF(tipo=1,IF(AND((B52+2<=n*q),(B52<>0)),B52+1,0),IF(AND((B52+1<=n*q),(B52<>0)),B52+1,0)) -> 35 | C53: =IF(B53<>0, DATE( YEAR(C52),MONTH(C52)+(12/q),MIN(DAY($C$18),DAY(DATE(YEAR(C52),MONTH(C52)+(12/q)+1,0))) ),"") -> 2018-10-01 | D53: =IF(B53<>0,K52,0) -> 893.8147632 | E53: =IF(B53<>0,CUOTA-F53,0) -> 296.0439201 | F53: =IF(B53<>0,D53*i/q,0) -> 5.213919452 | G53: =E53+F53 -> 301.2578396 | H53: =G53*IVA -> 63.26414631 | I53: =G53+H53 -> 364.5219859 | K53: =D53-E53 -> 597.770843
B54: =IF(tipo=1,IF(AND((B53+2<=n*q),(B53<>0)),B53+1,0),IF(AND((B53+1<=n*q),(B53<>0)),B53+1,0)) -> 36 | C54: =IF(B54<>0, DATE( YEAR(C53),MONTH(C53)+(12/q),MIN(DAY($C$18),DAY(DATE(YEAR(C53),MONTH(C53)+(12/q)+1,0))) ),"") -> 2018-11-01 | D54: =IF(B54<>0,K53,0) -> 597.770843 | E54: =IF(B54<>0,CUOTA-F54,0) -> 297.770843 | F54: =IF(B54<>0,D54*i/q,0) -> 3.486996584 | G54: =E54+F54 -> 301.2578396 | H54: =G54*IVA -> 63.26414631 | I54: =G54+H54 -> 364.5219859 | K54: =D54-E54 -> 300
B55: V.residual | C55: =IF(B55<>0, DATE( YEAR(C54),MONTH(C54)+(12/q),MIN(DAY($C$18),DAY(DATE(YEAR(C54),MONTH(C54)+(12/q)+1,0))) ),"") -> 2018-12-01 | E55: =VR -> 300 | G55: =E55 -> 300 | H55: =G55*IVA -> 63 | I55: =G55+H55 -> 363
B56: TOTALES | E56: =SUM(E18:E55) -> 10000 | F56: =SUM(F19:F55) -> 1145.282225 | G56: =SUM(G18:G55) -> 11145.28223 | H56: =SUM(H18:H55) -> 2340.509267 | I56: =SUM(I18:I55) -> 13485.79149

Sheet Recibo Leasing (hidden)
K8: Titular
C9: RECIBO DE LEASING | K9: BUENA VISIÓN, S.A.
C11: Nº de leasing | E11: L-54872916 | J11: Capital pendiente anterior | L11: =+'Leasing 3 Años Postpagable'!D19 -> 10000
C12: Importe concedido | E12: =+'Leasing 3 Años Postpagable'!VA -> 10000 | J12: Capital pendiente posterior | L12: =+'Leasing 3 Años Postpagable'!K19 -> 9757.075494
C13: Plazo | E13: =+'Leasing 3 Años Postpagable'!B19 -> 1 | J13: Próximo vencimiento | L13: =+'Leasing 3 Años Postpagable'!C20 -> 2016-01-01
C14: Tipo de interés | E14: =+'Leasing 3 Años Postpagable'!i -> 0.07 | M14: Importe | O14: =+L20 -> 364.5219859
C15: Tasa anual efectiva | E15: =+E14 -> 0.07
J16: Amortización de capital | L16: =+'Leasing 3 Años Postpagable'!E19 -> 242.9245063
C17: CL MARTÍN COLOMER, 45 | J17: Intereses | L17: =+'Leasing 3 Años Postpagable'!F19 -> 58.33333333
C18: 46007 LOCALIDAD | I18: =+'Leasing 3 Años Postpagable'!IVA -> 0.21 | J18: IVA | L18: =+'Leasing 3 Años Postpagable'!H19 -> 63.26414631
C19: VALENCIA
J20: TOTAL RECIBO | L20: =SUM(L16:L19) -> 364.5219859
M21: NIF | O21: A-20.396.059
C24: Para cualquier aclaración, deberá dirigirse con esta nota de adeudo al ordenante, que es quien ha facilitado esta información
C26: Titular | G26: IBAN | H26: País | I26: DC | J26: Entidad | K26: Oficina | L26: DC | M26: Nº de Cuenta | O26: Fecha | Q26: Valor
C27: BUENA VISIÓN, S.A. | H27: ES | I27: 54 | J27: 2038 | K27: 6015 | L27: 40 | M27: 3101767432 | O27: =+'Leasing 3 Años Postpagable'!C19 -> 2015-12-01 | Q27: =+O27 -> 2015-12-01

Sheet Recibo Opción Compra (hidden)
K8: Titular
C9: RECIBO DE LEASING | K9: BUENA VISIÓN, S.A.
C11: Nº de leasing | E11: L-54872916
C12: Importe concedido | E12: =+'Leasing 3 Años Postpagable'!VA -> 10000
C13: Plazo | E13: =+'Leasing 3 Años Postpagable'!B55 -> V.residual
C14: Tipo de interés | M14: Importe | O14: =+L20 -> 363
C15: Tasa anual efectiva
J16: Opción de compra | L16: =+'Leasing 3 Años Postpagable'!E55 -> 300
C17: CL MARTÍN COLOMER, 45
C18: 46007 LOCALIDAD | I18: =+'Leasing 3 Años Postpagable'!IVA -> 0.21 | J18: IVA | L18: =+'Leasing 3 Años Postpagable'!H55 -> 63
C19: VALENCIA
J20: TOTAL RECIBO | L20: =SUM(L16:L19) -> 363
M21: NIF | O21: A-20.396.059
C24: Para cualquier aclaración, deberá dirigirse con esta nota de adeudo al ordenante, que es quien ha facilitado esta información
C26: Titular | G26: IBAN | H26: País | I26: DC | J26: Entidad | K26: Oficina | L26: DC | M26: Nº de Cuenta | O26: Fecha | Q26: Valor
C27: BUENA VISIÓN, S.A. | H27: ES | I27: 54 | J27: 2038 | K27: 6015 | L27: 40 | M27: 3101767432 | O27: =+'Leasing 3 Años Postpagable'!C55 -> 2018-12-01 | Q27: =+O27 -> 2018-12-01

Sheet Solución Libro Diario Leasing (hidden)
C3: DEBE | I3: HABER
C4: IMPORTES | D4: Nº CUENTA | E4: NOMBRE CUENTA | F4: =+'Leasing 3 Años Postpagable'!FECHA -> 2015-11-01 | G4: Nº CUENTA | H4: NOMBRE CUENTA | I4: IMPORTES
C5: =+'Leasing 3 Años Postpagable'!VA -> 10000 | D5: 213 | E5: =IF(D5="","",VLOOKUP(D5,'Cuadro de Cuentas (3)'!$B$3:$C$558,2,FALSE)) -> Maquinaria | F5: a | G5: 174 | H5: =IF(G5="","",VLOOKUP(G5,'Cuadro de Cuentas (3)'!$B$3:$C$558,2,FALSE)) -> Acreedores por arrendamiento financiero a largo plazo | I5: =+C5 -> 10000
E6: =IF(D6="","",VLOOKUP(D6,'Cuadro de Cuentas (3)'!$B$3:$C$558,2,FALSE)) ->  | F6: =IF(G6="","","a") ->  | H6: =IF(G6="","",VLOOKUP(G6,'Cuadro de Cuentas (3)'!$B$3:$C$558,2,FALSE)) -> 
E7: A la formalización de la operación | H7: =IF(G7="","",VLOOKUP(G7,'Cuadro de Cuentas (3)'!$B$3:$C$558,2,FALSE)) -> 
E8: =IF(D8="","",VLOOKUP(D8,'Cuadro de Cuentas (3)'!$B$3:$C$558,2,FALSE)) ->  | F8: =+'Leasing 3 Años Postpagable'!FECHA -> 2015-11-01 | H8: =IF(G8="","",VLOOKUP(G8,'Cuadro de Cuentas (3)'!$B$3:$C$558,2,FALSE)) -> 
C9: =+'Leasing 3 Años Postpagable'!E19 -> 242.9245063 | D9: 174 | E9: =IF(D9="","",VLOOKUP(D9,'Cuadro de Cuentas (3)'!$B$3:$C$558,2,FALSE)) -> Acreedores por arrendamiento financiero a largo plazo | F9: a | G9: 524 | H9: =IF(G9="","",VLOOKUP(G9,'Cuadro de Cuentas (3)'!$B$3:$C$558,2,FALSE)) -> Acreedores por arrendamiento financiero a corto plazo | I9: =+C9 -> 242.9245063
E10: =IF(D10="","",VLOOKUP(D10,'Cuadro de Cuentas (3)'!$B$3:$C$558,2,FALSE)) ->  | F10: =IF(G10="","","a") ->  | H10: =IF(G10="","",VLOOKUP(G10,'Cuadro de Cuentas (3)'!$B$3:$C$558,2,FALSE)) -> 
E11: Reclasificación de la deuda a corto | H11: =IF(G11="","",VLOOKUP(G11,'Cuadro de Cuentas (3)'!$B$3:$C$558,2,FALSE)) -> 
E12: =IF(D12="","",VLOOKUP(D12,'Cuadro de Cuentas (3)'!$B$3:$C$558,2,FALSE)) ->  | F12: =+'Leasing 3 Años Postpagable'!C19 -> 2015-12-01 | H12: =IF(G12="","",VLOOKUP(G12,'Cuadro de Cuentas (3)'!$B$3:$C$558,2,FALSE)) -> 
C13: =+'Leasing 3 Años Postpagable'!E19 -> 242.9245063 | D13: 524 | E13: =IF(D13="","",VLOOKUP(D13,'Cuadro de Cuentas (3)'!$B$3:$C$558,2,FALSE)) -> Acreedores por arrendamiento financiero a corto plazo
C14: =+'Leasing 3 Años Postpagable'!F19 -> 58.33333333 | D14: 662 | E14: =IF(D14="","",VLOOKUP(D14,'Cuadro de Cuentas (3)'!$B$3:$C$558,2,FALSE)) -> Intereses de deudas | H14: =IF(G14="","",VLOOKUP(G14,'Cuadro de Cuentas (3)'!$B$3:$C$558,2,FALSE)) -> 
C15: =+'Leasing 3 Años Postpagable'!H19 -> 63.26414631 | D15: 472 | E15: =IF(D15="","",VLOOKUP(D15,'Cuadro de Cuentas (3)'!$B$3:$C$558,2,FALSE)) -> Hacienda Pública, IVA soportado | F15: a | G15: 572 | H15: =IF(G15="","",VLOOKUP(G15,'Cuadro de Cuentas (3)'!$B$3:$C$558,2,FALSE)) -> Bancos e instituciones de crédito c/c vista, euros | I15: =+'Leasing 3 Años Postpagable'!I19 -> 364.5219859
E16: =IF(D16="","",VLOOKUP(D16,'Cuadro de Cuentas (3)'!$B$3:$C$558,2,FALSE)) ->  | H16: =IF(G16="","",VLOOKUP(G16,'Cuadro de Cuentas (3)'!$B$3:$C$558,2,FALSE)) -> 
E17: Pago de la cuota
E18: =IF(D18="","",VLOOKUP(D18,'Cuadro de Cuentas (3)'!$B$3:$C$558,2,FALSE)) ->  | F18: 2015-12-31 | H18: =IF(G18="","",VLOOKUP(G18,'Cuadro de Cuentas (3)'!$B$3:$C$558,2,FALSE)) -> 
C19: =+('Enunciado Leasing'!H3-'Enunciado Leasing'!E5)/'Enunciado Leasing'!G4*0.166666666666667 -> 123.6111111 | D19: 681 | E19: =IF(D19="","",VLOOKUP(D19,'Cuadro de Cuentas (3)'!$B$3:$C$558,2,FALSE)) -> Amortización del inmovilizado material | F19: a | G19: 281 | H19: =IF(G19="","",VLOOKUP(G19,'Cuadro de Cuentas (3)'!$B$3:$C$558,2,FALSE)) -> Amortización acumulada del inmovilizado material | I19: =+C19 -> 123.6111111
E21: Dotación del periodo | H21: =IF(G21="","",VLOOKUP(G21,'Cuadro de Cuentas (3)'!$B$3:$C$558,2,FALSE)) -> 
E22: =IF(D22="","",VLOOKUP(D22,'Cuadro de Cuentas (3)'!$B$3:$C$558,2,FALSE)) ->  | F22: 2015-12-31 | H22: =IF(G22="","",VLOOKUP(G22,'Cuadro de Cuentas (3)'!$B$3:$C$558,2,FALSE)) -> 
C23: =+'Leasing 3 Años Postpagable'!F20 -> 56.91627371 | D23: 662 | E23: =IF(D23="","",VLOOKUP(D23,'Cuadro de Cuentas (3)'!$B$3:$C$558,2,FALSE)) -> Intereses de deudas | F23: a | G23: 524 | H23: =IF(G23="","",VLOOKUP(G23,'Cuadro de Cuentas (3)'!$B$3:$C$558,2,FALSE)) -> Acreedores por arrendamiento financiero a corto plazo | I23: =+C23 -> 56.91627371
E24: =IF(D24="","",VLOOKUP(D24,'Cuadro de Cuentas (3)'!$B$3:$C$558,2,FALSE)) -> 
E25: Periodificación intereses devengados | H25: =IF(G25="","",VLOOKUP(G25,'Cuadro de Cuentas (3)'!$B$3:$C$558,2,FALSE)) -> 
E26: =IF(D26="","",VLOOKUP(D26,'Cuadro de Cuentas (3)'!$B$3:$C$558,2,FALSE)) ->  | F26: 2015-12-31 | H26: =IF(G26="","",VLOOKUP(G26,'Cuadro de Cuentas (3)'!$B$3:$C$558,2,FALSE)) -> 
C27: =+SUM('Leasing 3 Años Postpagable'!E20:E31) -> 3028.023695 | D27: 174 | E27: =IF(D27="","",VLOOKUP(D27,'Cuadro de Cuentas (3)'!$B$3:$C$558,2,FALSE)) -> Acreedores por arrendamiento financiero a largo plazo | F27: a | G27: 524 | H27: =IF(G27="","",VLOOKUP(G27,'Cuadro de Cuentas (3)'!$B$3:$C$558,2,FALSE)) -> Acreedores por arrendamiento financiero a corto plazo | I27: =+C27 -> 3028.023695
E28: =IF(D28="","",VLOOKUP(D28,'Cuadro de Cuentas (3)'!$B$3:$C$558,2,FALSE)) ->  | H28: =IF(G28="","",VLOOKUP(G28,'Cuadro de Cuentas (3)'!$B$3:$C$558,2,FALSE)) -> 
E29: Reclasificación de la deuda a corto | H29: =IF(G29="","",VLOOKUP(G29,'Cuadro de Cuentas (3)'!$B$3:$C$558,2,FALSE)) -> 
E30: =IF(D30="","",VLOOKUP(D30,'Cuadro de Cuentas (3)'!$B$3:$C$558,2,FALSE)) ->  | F30: 2018-12-01 | H30: =IF(G30="","",VLOOKUP(G30,'Cuadro de Cuentas (3)'!$B$3:$C$558,2,FALSE)) -> 
C31: =+'Leasing 3 Años Postpagable'!G55 -> 300 | D31: 524 | E31: =IF(D31="","",VLOOKUP(D31,'Cuadro de Cuentas (3)'!$B$3:$C$558,2,FALSE)) -> Acreedores por arrendamiento financiero a corto plazo
C32: =+'Leasing 3 Años Postpagable'!H55 -> 63 | D32: 472 | E32: =IF(D32="","",VLOOKUP(D32,'Cuadro de Cuentas (3)'!$B$3:$C$558,2,FALSE)) -> Hacienda Pública, IVA soportado | F32: a | G32: 572 | H32: =IF(G32="","",VLOOKUP(G32,'Cuadro de Cuentas (3)'!$B$3:$C$558,2,FALSE)) -> Bancos e instituciones de crédito c/c vista, euros | I32: =+'Leasing 3 Años Postpagable'!I55 -> 363
E34: Ejercicio de la opción de compra
E38: =IF(D38="","",VLOOKUP(D38,'Cuadro de Cuentas (3)'!$B$3:$C$558,2,FALSE)) ->  | H38: =IF(G38="","",VLOOKUP(G38,'Cuadro de Cuentas (3)'!$B$3:$C$558,2,FALSE)) -> 
E39: =IF(D39="","",VLOOKUP(D39,'Cuadro de Cuentas (3)'!$B$3:$C$558,2,FALSE)) ->  | H39: =IF(G39="","",VLOOKUP(G39,'Cuadro de Cuentas (3)'!$B$3:$C$558,2,FALSE)) -> 
E49: =IF(D49="","",VLOOKUP(D49,'Cuadro de Cuentas (3)'!$B$3:$C$558,2,FALSE)) ->  | H49: =IF(G49="","",VLOOKUP(G49,'Cuadro de Cuentas (3)'!$B$3:$C$558,2,FALSE)) -> 
E50: =IF(D50="","",VLOOKUP(D50,'Cuadro de Cuentas (3)'!$B$3:$C$558,2,FALSE)) ->  | H50: =IF(G50="","",VLOOKUP(G50,'Cuadro de Cuentas (3)'!$B$3:$C$558,2,FALSE)) -> 
C54: DEBE | I54: HABER
C55: IMPORTES | D55: Nº CUENTA | E55: NOMBRE CUENTA | G55: Nº CUENTA | H55: NOMBRE CUENTA | I55: IMPORTES
E64: =IF(D64="","",VLOOKUP(D64,'Cuadro de Cuentas (3)'!$B$3:$C$558,2,FALSE)) ->  | F64: =IF(G64="","","a") ->  | H64: =IF(G64="","",VLOOKUP(G64,'Cuadro de Cuentas (3)'!$B$3:$C$558,2,FALSE)) -> 
E65: =IF(D65="","",VLOOKUP(D65,'Cuadro de Cuentas (3)'!$B$3:$C$558,2,FALSE)) ->  | H65: =IF(G65="","",VLOOKUP(G65,'Cuadro de Cuentas (3)'!$B$3:$C$558,2,FALSE)) -> 
E66: =IF(D66="","",VLOOKUP(D66,'Cuadro de Cuentas (3)'!$B$3:$C$558,2,FALSE)) ->  | H66: =IF(G66="","",VLOOKUP(G66,'Cuadro de Cuentas (3)'!$B$3:$C$558,2,FALSE)) -> 
E67: =IF(D67="","",VLOOKUP(D67,'Cuadro de Cuentas (3)'!$B$3:$C$558,2,FALSE)) ->  | H67: =IF(G67="","",VLOOKUP(G67,'Cuadro de Cuentas (3)'!$B$3:$C$558,2,FALSE)) -> 
E68: =IF(D68="","",VLOOKUP(D68,'Cuadro de Cuentas (3)'!$B$3:$C$558,2,FALSE)) ->  | H68: =IF(G68="","",VLOOKUP(G68,'Cuadro de Cuentas (3)'!$B$3:$C$558,2,FALSE)) -> 
E69: =IF(D69="","",VLOOKUP(D69,'Cuadro de Cuentas (3)'!$B$3:$C$558,2,FALSE)) ->  | H69: =IF(G69="","",VLOOKUP(G69,'Cuadro de Cuentas (3)'!$B$3:$C$558,2,FALSE)) -> 
E70: =IF(D70="","",VLOOKUP(D70,'Cuadro de Cuentas (3)'!$B$3:$C$558,2,FALSE)) ->  | H70: =IF(G70="","",VLOOKUP(G70,'Cuadro de Cuentas (3)'!$B$3:$C$558,2,FALSE)) -> 
E71: =IF(D71="","",VLOOKUP(D71,'Cuadro de Cuentas (3)'!$B$3:$C$558,2,FALSE)) ->  | H71: =IF(G71="","",VLOOKUP(G71,'Cuadro de Cuentas (3)'!$B$3:$C$558,2,FALSE)) -> 
E72: =IF(D72="","",VLOOKUP(D72,'Cuadro de Cuentas (3)'!$B$3:$C$558,2,FALSE)) ->  | H72: =IF(G72="","",VLOOKUP(G72,'Cuadro de Cuentas (3)'!$B$3:$C$558,2,FALSE)) -> 
E73: =IF(D73="","",VLOOKUP(D73,'Cuadro de Cuentas (3)'!$B$3:$C$558,2,FALSE)) ->  | H73: =IF(G73="","",VLOOKUP(G73,'Cuadro de Cuentas (3)'!$B$3:$C$558,2,FALSE)) -> 
E74: =IF(D74="","",VLOOKUP(D74,'Cuadro de Cuentas (3)'!$B$3:$C$558,2,FALSE)) ->  | H74: =IF(G74="","",VLOOKUP(G74,'Cuadro de Cuentas (3)'!$B$3:$C$558,2,FALSE)) -> 
E75: =IF(D75="","",VLOOKUP(D75,'Cuadro de Cuentas (3)'!$B$3:$C$558,2,FALSE)) ->  | H75: =IF(G75="","",VLOOKUP(G75,'Cuadro de Cuentas (3)'!$B$3:$C$558,2,FALSE)) -> 
E76: =IF(D76="","",VLOOKUP(D76,'Cuadro de Cuentas (3)'!$B$3:$C$558,2,FALSE)) ->  | H76: =IF(G76="","",VLOOKUP(G76,'Cuadro de Cuentas (3)'!$B$3:$C$558,2,FALSE)) -> 
E77: =IF(D77="","",VLOOKUP(D77,'Cuadro de Cuentas (3)'!$B$3:$C$558,2,FALSE)) ->  | H77: =IF(G77="","",VLOOKUP(G77,'Cuadro de Cuentas (3)'!$B$3:$C$558,2,FALSE)) -> 
E78: =IF(D78="","",VLOOKUP(D78,'Cuadro de Cuentas (3)'!$B$3:$C$558,2,FALSE)) ->  | H78: =IF(G78="","",VLOOKUP(G78,'Cuadro de Cuentas (3)'!$B$3:$C$558,2,FALSE)) -> 
E79: =IF(D79="","",VLOOKUP(D79,'Cuadro de Cuentas (3)'!$B$3:$C$558,2,FALSE)) ->  | H79: =IF(G79="","",VLOOKUP(G79,'Cuadro de Cuentas (3)'!$B$3:$C$558,2,FALSE)) -> 
E80: =IF(D80="","",VLOOKUP(D80,'Cuadro de Cuentas (3)'!$B$3:$C$558,2,FALSE)) ->  | H80: =IF(G80="","",VLOOKUP(G80,'Cuadro de Cuentas (3)'!$B$3:$C$558,2,FALSE)) -> 
E81: =IF(D81="","",VLOOKUP(D81,'Cuadro de Cuentas (3)'!$B$3:$C$558,2,FALSE)) ->  | H81: =IF(G81="","",VLOOKUP(G81,'Cuadro de Cuentas (3)'!$B$3:$C$558,2,FALSE)) -> 
E82: =IF(D82="","",VLOOKUP(D82,'Cuadro de Cuentas (3)'!$B$3:$C$558,2,FALSE)) ->  | H82: =IF(G82="","",VLOOKUP(G82,'Cuadro de Cuentas (3)'!$B$3:$C$558,2,FALSE)) -> 
E83: =IF(D83="","",VLOOKUP(D83,'Cuadro de Cuentas (3)'!$B$3:$C$558,2,FALSE)) ->  | H83: =IF(G83="","",VLOOKUP(G83,'Cuadro de Cuentas (3)'!$B$3:$C$558,2,FALSE)) -> 
E84: =IF(D84="","",VLOOKUP(D84,'Cuadro de Cuentas (3)'!$B$3:$C$558,2,FALSE)) ->  | H84: =IF(G84="","",VLOOKUP(G84,'Cuadro de Cuentas (3)'!$B$3:$C$558,2,FALSE)) -> 
E85: =IF(D85="","",VLOOKUP(D85,'Cuadro de Cuentas (3)'!$B$3:$C$558,2,FALSE)) ->  | H85: =IF(G85="","",VLOOKUP(G85,'Cuadro de Cuentas (3)'!$B$3:$C$558,2,FALSE)) -> 
E86: =IF(D86="","",VLOOKUP(D86,'Cuadro de Cuentas (3)'!$B$3:$C$558,2,FALSE)) ->  | H86: =IF(G86="","",VLOOKUP(G86,'Cuadro de Cuentas (3)'!$B$3:$C$558,2,FALSE)) -> 
E87: =IF(D87="","",VLOOKUP(D87,'Cuadro de Cuentas (3)'!$B$3:$C$558,2,FALSE)) ->  | H87: =IF(G87="","",VLOOKUP(G87,'Cuadro de Cuentas (3)'!$B$3:$C$558,2,FALSE)) -> 
E88: =IF(D88="","",VLOOKUP(D88,'Cuadro de Cuentas (3)'!$B$3:$C$558,2,FALSE)) ->  | H88: =IF(G88="","",VLOOKUP(G88,'Cuadro de Cuentas (3)'!$B$3:$C$558,2,FALSE)) -> 
E89: =IF(D89="","",VLOOKUP(D89,'Cuadro de Cuentas (3)'!$B$3:$C$558,2,FALSE)) ->  | H89: =IF(G89="","",VLOOKUP(G89,'Cuadro de Cuentas (3)'!$B$3:$C$558,2,FALSE)) -> 
E90: =IF(D90="","",VLOOKUP(D90,'Cuadro de Cuentas (3)'!$B$3:$C$558,2,FALSE)) ->  | H90: =IF(G90="","",VLOOKUP(G90,'Cuadro de Cuentas (3)'!$B$3:$C$558,2,FALSE)) -> 
E91: =IF(D91="","",VLOOKUP(D91,'Cuadro de Cuentas (3)'!$B$3:$C$558,2,FALSE)) ->  | H91: =IF(G91="","",VLOOKUP(G91,'Cuadro de Cuentas (3)'!$B$3:$C$558,2,FALSE)) -> 
E92: =IF(D92="","",VLOOKUP(D92,'Cuadro de Cuentas (3)'!$B$3:$C$558,2,FALSE)) ->  | H92: =IF(G92="","",VLOOKUP(G92,'Cuadro de Cuentas (3)'!$B$3:$C$558,2,FALSE)) -> 
E93: =IF(D93="","",VLOOKUP(D93,'Cuadro de Cuentas (3)'!$B$3:$C$558,2,FALSE)) ->  | H93: =IF(G93="","",VLOOKUP(G93,'Cuadro de Cuentas (3)'!$B$3:$C$558,2,FALSE)) -> 
E94: =IF(D94="","",VLOOKUP(D94,'Cuadro de Cuentas (3)'!$B$3:$C$558,2,FALSE)) ->  | H94: =IF(G94="","",VLOOKUP(G94,'Cuadro de Cuentas (3)'!$B$3:$C$558,2,FALSE)) -> 
E95: =IF(D95="","",VLOOKUP(D95,'Cuadro de Cuentas (3)'!$B$3:$C$558,2,FALSE)) ->  | H95: =IF(G95="","",VLOOKUP(G95,'Cuadro de Cuentas (3)'!$B$3:$C$558,2,FALSE)) -> 
E96: =IF(D96="","",VLOOKUP(D96,'Cuadro de Cuentas (3)'!$B$3:$C$558,2,FALSE)) ->  | H96: =IF(G96="","",VLOOKUP(G96,'Cuadro de Cuentas (3)'!$B$3:$C$558,2,FALSE)) -> 
E97: =IF(D97="","",VLOOKUP(D97,'Cuadro de Cuentas (3)'!$B$3:$C$558,2,FALSE)) ->  | H97: =IF(G97="","",VLOOKUP(G97,'Cuadro de Cuentas (3)'!$B$3:$C$558,2,FALSE)) -> 
E98: =IF(D98="","",VLOOKUP(D98,'Cuadro de Cuentas (3)'!$B$3:$C$558,2,FALSE)) ->  | H98: =IF(G98="","",VLOOKUP(G98,'Cuadro de Cuentas (3)'!$B$3:$C$558,2,FALSE)) -> 
E99: =IF(D99="","",VLOOKUP(D99,'Cuadro de Cuentas (3)'!$B$3:$C$558,2,FALSE)) ->  | H99: =IF(G99="","",VLOOKUP(G99,'Cuadro de Cuentas (3)'!$B$3:$C$558,2,FALSE)) -> 
E100: =IF(D100="","",VLOOKUP(D100,'Cuadro de Cuentas (3)'!$B$3:$C$558,2,FALSE)) ->  | H100: =IF(G100="","",VLOOKUP(G100,'Cuadro de Cuentas (3)'!$B$3:$C$558,2,FALSE)) -> 
C104: DEBE | I104: HABER
C105: IMPORTES | D105: Nº CUENTA | E105: NOMBRE CUENTA | G105: Nº CUENTA | H105: NOMBRE CUENTA | I105: IMPORTES
E106: =IF(D106="","",VLOOKUP(D106,'Cuadro de Cuentas (3)'!$B$3:$C$558,2,FALSE)) ->  | F106: =IF(G106="","","a") ->  | H106: =IF(G106="","",VLOOKUP(G106,'Cuadro de Cuentas (3)'!$B$3:$C$558,2,FALSE)) -> 
E107: =IF(D107="","",VLOOKUP(D107,'Cuadro de Cuentas (3)'!$B$3:$C$558,2,FALSE)) ->  | H107: =IF(G107="","",VLOOKUP(G107,'Cuadro de Cuentas (3)'!$B$3:$C$558,2,FALSE)) -> 
E108: =IF(D108="","",VLOOKUP(D108,'Cuadro de Cuentas (3)'!$B$3:$C$558,2,FALSE)) ->  | H108: =IF(G108="","",VLOOKUP(G108,'Cuadro de Cuentas (3)'!$B$3:$C$558,2,FALSE)) -> 
E109: =IF(D109="","",VLOOKUP(D109,'Cuadro de Cuentas (3)'!$B$3:$C$558,2,FALSE)) ->  | H109: =IF(G109="","",VLOOKUP(G109,'Cuadro de Cuentas (3)'!$B$3:$C$558,2,FALSE)) -> 
E110: =IF(D110="","",VLOOKUP(D110,'Cuadro de Cuentas (3)'!$B$3:$C$558,2,FALSE)) ->  | H110: =IF(G110="","",VLOOKUP(G110,'Cuadro de Cuentas (3)'!$B$3:$C$558,2,FALSE)) -> 
E111: =IF(D111="","",VLOOKUP(D111,'Cuadro de Cuentas (3)'!$B$3:$C$558,2,FALSE)) ->  | H111: =IF(G111="","",VLOOKUP(G111,'Cuadro de Cuentas (3)'!$B$3:$C$558,2,FALSE)) -> 
E112: =IF(D112="","",VLOOKUP(D112,'Cuadro de Cuentas (3)'!$B$3:$C$558,2,FALSE)) ->  | H112: =IF(G112="","",VLOOKUP(G112,'Cuadro de Cuentas (3)'!$B$3:$C$558,2,FALSE)) -> 
E113: =IF(D113="","",VLOOKUP(D113,'Cuadro de Cuentas (3)'!$B$3:$C$558,2,FALSE)) ->  | H113: =IF(G113="","",VLOOKUP(G113,'Cuadro de Cuentas (3)'!$B$3:$C$558,2,FALSE)) -> 
E114: =IF(D114="","",VLOOKUP(D114,'Cuadro de Cuentas (3)'!$B$3:$C$558,2,FALSE)) ->  | H114: =IF(G114="","",VLOOKUP(G114,'Cuadro de Cuentas (3)'!$B$3:$C$558,2,FALSE)) -> 
E115: =IF(D115="","",VLOOKUP(D115,'Cuadro de Cuentas (3)'!$B$3:$C$558,2,FALSE)) ->  | H115: =IF(G115="","",VLOOKUP(G115,'Cuadro de Cuentas (3)'!$B$3:$C$558,2,FALSE)) -> 
E116: =IF(D116="","",VLOOKUP(D116,'Cuadro de Cuentas (3)'!$B$3:$C$558,2,FALSE)) ->  | H116: =IF(G116="","",VLOOKUP(G116,'Cuadro de Cuentas (3)'!$B$3:$C$558,2,FALSE)) -> 
E117: =IF(D117="","",VLOOKUP(D117,'Cuadro de Cuentas (3)'!$B$3:$C$558,2,FALSE)) ->  | H117: =IF(G117="","",VLOOKUP(G117,'Cuadro de Cuentas (3)'!$B$3:$C$558,2,FALSE)) -> 
E118: =IF(D118="","",VLOOKUP(D118,'Cuadro de Cuentas (3)'!$B$3:$C$558,2,FALSE)) ->  | H118: =IF(G118="","",VLOOKUP(G118,'Cuadro de Cuentas (3)'!$B$3:$C$558,2,FALSE)) -> 
E119: =IF(D119="","",VLOOKUP(D119,'Cuadro de Cuentas (3)'!$B$3:$C$558,2,FALSE)) ->  | H119: =IF(G119="","",VLOOKUP(G119,'Cuadro de Cuentas (3)'!$B$3:$C$558,2,FALSE)) -> 
E120: =IF(D120="","",VLOOKUP(D120,'Cuadro de Cuentas (3)'!$B$3:$C$558,2,FALSE)) ->  | H120: =IF(G120="","",VLOOKUP(G120,'Cuadro de Cuentas (3)'!$B$3:$C$558,2,FALSE)) -> 
E121: =IF(D121="","",VLOOKUP(D121,'Cuadro de Cuentas (3)'!$B$3:$C$558,2,FALSE)) ->  | H121: =IF(G121="","",VLOOKUP(G121,'Cuadro de Cuentas (3)'!$B$3:$C$558,2,FALSE)) -> 
E122: =IF(D122="","",VLOOKUP(D122,'Cuadro de Cuentas (3)'!$B$3:$C$558,2,FALSE)) ->  | H122: =IF(G122="","",VLOOKUP(G122,'Cuadro de Cuentas (3)'!$B$3:$C$558,2,FALSE)) -> 
E123: =IF(D123="","",VLOOKUP(D123,'Cuadro de Cuentas (3)'!$B$3:$C$558,2,FALSE)) ->  | H123: =IF(G123="","",VLOOKUP(G123,'Cuadro de Cuentas (3)'!$B$3:$C$558,2,FALSE)) -> 
E124: =IF(D124="","",VLOOKUP(D124,'Cuadro de Cuentas (3)'!$B$3:$C$558,2,FALSE)) ->  | H124: =IF(G124="","",VLOOKUP(G124,'Cuadro de Cuentas (3)'!$B$3:$C$558,2,FALSE)) -> 
E125: =IF(D125="","",VLOOKUP(D125,'Cuadro de Cuentas (3)'!$B$3:$C$558,2,FALSE)) ->  | H125: =IF(G125="","",VLOOKUP(G125,'Cuadro de Cuentas (3)'!$B$3:$C$558,2,FALSE)) -> 
E126: =IF(D126="","",VLOOKUP(D126,'Cuadro de Cuentas (3)'!$B$3:$C$558,2,FALSE)) ->  | H126: =IF(G126="","",VLOOKUP(G126,'Cuadro de Cuentas (3)'!$B$3:$C$558,2,FALSE)) -> 
E127: =IF(D127="","",VLOOKUP(D127,'Cuadro de Cuentas (3)'!$B$3:$C$558,2,FALSE)) ->  | H127: =IF(G127="","",VLOOKUP(G127,'Cuadro de Cuentas (3)'!$B$3:$C$558,2,FALSE)) -> 
E128: =IF(D128="","",VLOOKUP(D128,'Cuadro de Cuentas (3)'!$B$3:$C$558,2,FALSE)) ->  | H128: =IF(G128="","",VLOOKUP(G128,'Cuadro de Cuentas (3)'!$B$3:$C$558,2,FALSE)) -> 
E129: =IF(D129="","",VLOOKUP(D129,'Cuadro de Cuentas (3)'!$B$3:$C$558,2,FALSE)) ->  | H129: =IF(G129="","",VLOOKUP(G129,'Cuadro de Cuentas (3)'!$B$3:$C$558,2,FALSE)) -> 
E130: =IF(D130="","",VLOOKUP(D130,'Cuadro de Cuentas (3)'!$B$3:$C$558,2,FALSE)) ->  | H130: =IF(G130="","",VLOOKUP(G130,'Cuadro de Cuentas (3)'!$B$3:$C$558,2,FALSE)) -> 
E131: =IF(D131="","",VLOOKUP(D131,'Cuadro de Cuentas (3)'!$B$3:$C$558,2,FALSE)) ->  | H131: =IF(G131="","",VLOOKUP(G131,'Cuadro de Cuentas (3)'!$B$3:$C$558,2,FALSE)) -> 
E132: =IF(D132="","",VLOOKUP(D132,'Cuadro de Cuentas (3)'!$B$3:$C$558,2,FALSE)) ->  | H132: =IF(G132="","",VLOOKUP(G132,'Cuadro de Cuentas (3)'!$B$3:$C$558,2,FALSE)) -> 
E133: =IF(D133="","",VLOOKUP(D133,'Cuadro de Cuentas (3)'!$B$3:$C$558,2,FALSE)) ->  | H133: =IF(G133="","",VLOOKUP(G133,'Cuadro de Cuentas (3)'!$B$3:$C$558,2,FALSE)) -> 
E134: =IF(D134="","",VLOOKUP(D134,'Cuadro de Cuentas (3)'!$B$3:$C$558,2,FALSE)) ->  | H134: =IF(G134="","",VLOOKUP(G134,'Cuadro de Cuentas (3)'!$B$3:$C$558,2,FALSE)) -> 
E135: =IF(D135="","",VLOOKUP(D135,'Cuadro de Cuentas (3)'!$B$3:$C$558,2,FALSE)) ->  | H135: =IF(G135="","",VLOOKUP(G135,'Cuadro de Cuentas (3)'!$B$3:$C$558,2,FALSE)) -> 
E136: =IF(D136="","",VLOOKUP(D136,'Cuadro de Cuentas (3)'!$B$3:$C$558,2,FALSE)) ->  | H136: =IF(G136="","",VLOOKUP(G136,'Cuadro de Cuentas (3)'!$B$3:$C$558,2,FALSE)) -> 
E137: =IF(D137="","",VLOOKUP(D137,'Cuadro de Cuentas (3)'!$B$3:$C$558,2,FALSE)) ->  | H137: =IF(G137="","",VLOOKUP(G137,'Cuadro de Cuentas (3)'!$B$3:$C$558,2,FALSE)) -> 
E138: =IF(D138="","",VLOOKUP(D138,'Cuadro de Cuentas (3)'!$B$3:$C$558,2,FALSE)) ->  | H138: =IF(G138="","",VLOOKUP(G138,'Cuadro de Cuentas (3)'!$B$3:$C$558,2,FALSE)) -> 
E139: =IF(D139="","",VLOOKUP(D139,'Cuadro de Cuentas (3)'!$B$3:$C$558,2,FALSE)) ->  | H139: =IF(G139="","",VLOOKUP(G139,'Cuadro de Cuentas (3)'!$B$3:$C$558,2,FALSE)) -> 
E140: =IF(D140="","",VLOOKUP(D140,'Cuadro de Cuentas (3)'!$B$3:$C$558,2,FALSE)) ->  | H140: =IF(G140="","",VLOOKUP(G140,'Cuadro de Cuentas (3)'!$B$3:$C$558,2,FALSE)) -> 
E141: =IF(D141="","",VLOOKUP(D141,'Cuadro de Cuentas (3)'!$B$3:$C$558,2,FALSE)) ->  | H141: =IF(G141="","",VLOOKUP(G141,'Cuadro de Cuentas (3)'!$B$3:$C$558,2,FALSE)) -> 
E142: =IF(D142="","",VLOOKUP(D142,'Cuadro de Cuentas (3)'!$B$3:$C$558,2,FALSE)) ->  | H142: =IF(G142="","",VLOOKUP(G142,'Cuadro de Cuentas (3)'!$B$3:$C$558,2,FALSE)) -> 
E143: =IF(D143="","",VLOOKUP(D143,'Cuadro de Cuentas (3)'!$B$3:$C$558,2,FALSE)) ->  | H143: =IF(G143="","",VLOOKUP(G143,'Cuadro de Cuentas (3)'!$B$3:$C$558,2,FALSE)) -> 
E144: =IF(D144="","",VLOOKUP(D144,'Cuadro de Cuentas (3)'!$B$3:$C$558,2,FALSE)) ->  | H144: =IF(G144="","",VLOOKUP(G144,'Cuadro de Cuentas (3)'!$B$3:$C$558,2,FALSE)) -> 
E145: =IF(D145="","",VLOOKUP(D145,'Cuadro de Cuentas (3)'!$B$3:$C$558,2,FALSE)) ->  | H145: =IF(G145="","",VLOOKUP(G145,'Cuadro de Cuentas (3)'!$B$3:$C$558,2,FALSE)) -> 
E146: =IF(D146="","",VLOOKUP(D146,'Cuadro de Cuentas (3)'!$B$3:$C$558,2,FALSE)) ->  | H146: =IF(G146="","",VLOOKUP(G146,'Cuadro de Cuentas (3)'!$B$3:$C$558,2,FALSE)) -> 
E147: =IF(D147="","",VLOOKUP(D147,'Cuadro de Cuentas (3)'!$B$3:$C$558,2,FALSE)) ->  | H147: =IF(G147="","",VLOOKUP(G147,'Cuadro de Cuentas (3)'!$B$3:$C$558,2,FALSE)) -> 
E148: =IF(D148="","",VLOOKUP(D148,'Cuadro de Cuentas (3)'!$B$3:$C$558,2,FALSE)) ->  | H148: =IF(G148="","",VLOOKUP(G148,'Cuadro de Cuentas (3)'!$B$3:$C$558,2,FALSE)) -> 
E149: =IF(D149="","",VLOOKUP(D149,'Cuadro de Cuentas (3)'!$B$3:$C$558,2,FALSE)) ->  | H149: =IF(G149="","",VLOOKUP(G149,'Cuadro de Cuentas (3)'!$B$3:$C$558,2,FALSE)) -> 
E150: =IF(D150="","",VLOOKUP(D150,'Cuadro de Cuentas (3)'!$B$3:$C$558,2,FALSE)) ->  | H150: =IF(G150="","",VLOOKUP(G150,'Cuadro de Cuentas (3)'!$B$3:$C$558,2,FALSE)) -> 
C154: DEBE | I154: HABER
C155: IMPORTES | D155: Nº CUENTA | E155: NOMBRE CUENTA | G155: Nº CUENTA | H155: NOMBRE CUENTA | I155: IMPORTES
E156: =IF(D156="","",VLOOKUP(D156,'Cuadro de Cuentas (3)'!$B$3:$C$558,2,FALSE)) ->  | F156: =IF(G156="","","a") ->  | H156: =IF(G156="","",VLOOKUP(G156,'Cuadro de Cuentas (3)'!$B$3:$C$558,2,FALSE)) -> 
E157: =IF(D157="","",VLOOKUP(D157,'Cuadro de Cuentas (3)'!$B$3:$C$558,2,FALSE)) ->  | H157: =IF(G157="","",VLOOKUP(G157,'Cuadro de Cuentas (3)'!$B$3:$C$558,2,FALSE)) -> 
E158: =IF(D158="","",VLOOKUP(D158,'Cuadro de Cuentas (3)'!$B$3:$C$558,2,FALSE)) ->  | H158: =IF(G158="","",VLOOKUP(G158,'Cuadro de Cuentas (3)'!$B$3:$C$558,2,FALSE)) -> 
E159: =IF(D159="","",VLOOKUP(D159,'Cuadro de Cuentas (3)'!$B$3:$C$558,2,FALSE)) ->  | H159: =IF(G159="","",VLOOKUP(G159,'Cuadro de Cuentas (3)'!$B$3:$C$558,2,FALSE)) -> 
E160: =IF(D160="","",VLOOKUP(D160,'Cuadro de Cuentas (3)'!$B$3:$C$558,2,FALSE)) ->  | H160: =IF(G160="","",VLOOKUP(G160,'Cuadro de Cuentas (3)'!$B$3:$C$558,2,FALSE)) -> 
E161: =IF(D161="","",VLOOKUP(D161,'Cuadro de Cuentas (3)'!$B$3:$C$558,2,FALSE)) ->  | H161: =IF(G161="","",VLOOKUP(G161,'Cuadro de Cuentas (3)'!$B$3:$C$558,2,FALSE)) -> 
E162: =IF(D162="","",VLOOKUP(D162,'Cuadro de Cuentas (3)'!$B$3:$C$558,2,FALSE)) ->  | H162: =IF(G162="","",VLOOKUP(G162,'Cuadro de Cuentas (3)'!$B$3:$C$558,2,FALSE)) -> 
E163: =IF(D163="","",VLOOKUP(D163,'Cuadro de Cuentas (3)'!$B$3:$C$558,2,FALSE)) ->  | H163: =IF(G163="","",VLOOKUP(G163,'Cuadro de Cuentas (3)'!$B$3:$C$558,2,FALSE)) -> 
E164: =IF(D164="","",VLOOKUP(D164,'Cuadro de Cuentas (3)'!$B$3:$C$558,2,FALSE)) ->  | H164: =IF(G164="","",VLOOKUP(G164,'Cuadro de Cuentas (3)'!$B$3:$C$558,2,FALSE)) -> 
E165: =IF(D165="","",VLOOKUP(D165,'Cuadro de Cuentas (3)'!$B$3:$C$558,2,FALSE)) ->  | H165: =IF(G165="","",VLOOKUP(G165,'Cuadro de Cuentas (3)'!$B$3:$C$558,2,FALSE)) -> 
E166: =IF(D166="","",VLOOKUP(D166,'Cuadro de Cuentas (3)'!$B$3:$C$558,2,FALSE)) ->  | H166: =IF(G166="","",VLOOKUP(G166,'Cuadro de Cuentas (3)'!$B$3:$C$558,2,FALSE)) -> 
E167: =IF(D167="","",VLOOKUP(D167,'Cuadro de Cuentas (3)'!$B$3:$C$558,2,FALSE)) ->  | H167: =IF(G167="","",VLOOKUP(G167,'Cuadro de Cuentas (3)'!$B$3:$C$558,2,FALSE)) -> 
E168: =IF(D168="","",VLOOKUP(D168,'Cuadro de Cuentas (3)'!$B$3:$C$558,2,FALSE)) ->  | H168: =IF(G168="","",VLOOKUP(G168,'Cuadro de Cuentas (3)'!$B$3:$C$558,2,FALSE)) -> 
E169: =IF(D169="","",VLOOKUP(D169,'Cuadro de Cuentas (3)'!$B$3:$C$558,2,FALSE)) ->  | H169: =IF(G169="","",VLOOKUP(G169,'Cuadro de Cuentas (3)'!$B$3:$C$558,2,FALSE)) -> 
E170: =IF(D170="","",VLOOKUP(D170,'Cuadro de Cuentas (3)'!$B$3:$C$558,2,FALSE)) ->  | H170: =IF(G170="","",VLOOKUP(G170,'Cuadro de Cuentas (3)'!$B$3:$C$558,2,FALSE)) -> 
E171: =IF(D171="","",VLOOKUP(D171,'Cuadro de Cuentas (3)'!$B$3:$C$558,2,FALSE)) ->  | H171: =IF(G171="","",VLOOKUP(G171,'Cuadro de Cuentas (3)'!$B$3:$C$558,2,FALSE)) -> 
E172: =IF(D172="","",VLOOKUP(D172,'Cuadro de Cuentas (3)'!$B$3:$C$558,2,FALSE)) ->  | H172: =IF(G172="","",VLOOKUP(G172,'Cuadro de Cuentas (3)'!$B$3:$C$558,2,FALSE)) -> 
E173: =IF(D173="","",VLOOKUP(D173,'Cuadro de Cuentas (3)'!$B$3:$C$558,2,FALSE)) ->  | H173: =IF(G173="","",VLOOKUP(G173,'Cuadro de Cuentas (3)'!$B$3:$C$558,2,FALSE)) -> 
E174: =IF(D174="","",VLOOKUP(D174,'Cuadro de Cuentas (3)'!$B$3:$C$558,2,FALSE)) ->  | H174: =IF(G174="","",VLOOKUP(G174,'Cuadro de Cuentas (3)'!$B$3:$C$558,2,FALSE)) -> 
E175: =IF(D175="","",VLOOKUP(D175,'Cuadro de Cuentas (3)'!$B$3:$C$558,2,FALSE)) ->  | H175: =IF(G175="","",VLOOKUP(G175,'Cuadro de Cuentas (3)'!$B$3:$C$558,2,FALSE)) -> 
E176: =IF(D176="","",VLOOKUP(D176,'Cuadro de Cuentas (3)'!$B$3:$C$558,2,FALSE)) ->  | H176: =IF(G176="","",VLOOKUP(G176,'Cuadro de Cuentas (3)'!$B$3:$C$558,2,FALSE)) -> 
E177: =IF(D177="","",VLOOKUP(D177,'Cuadro de Cuentas (3)'!$B$3:$C$558,2,FALSE)) ->  | H177: =IF(G177="","",VLOOKUP(G177,'Cuadro de Cuentas (3)'!$B$3:$C$558,2,FALSE)) -> 
E178: =IF(D178="","",VLOOKUP(D178,'Cuadro de Cuentas (3)'!$B$3:$C$558,2,FALSE)) ->  | H178: =IF(G178="","",VLOOKUP(G178,'Cuadro de Cuentas (3)'!$B$3:$C$558,2,FALSE)) -> 
E179: =IF(D179="","",VLOOKUP(D179,'Cuadro de Cuentas (3)'!$B$3:$C$558,2,FALSE)) ->  | H179: =IF(G179="","",VLOOKUP(G179,'Cuadro de Cuentas (3)'!$B$3:$C$558,2,FALSE)) -> 
E180: =IF(D180="","",VLOOKUP(D180,'Cuadro de Cuentas (3)'!$B$3:$C$558,2,FALSE)) ->  | H180: =IF(G180="","",VLOOKUP(G180,'Cuadro de Cuentas (3)'!$B$3:$C$558,2,FALSE)) -> 
E181: =IF(D181="","",VLOOKUP(D181,'Cuadro de Cuentas (3)'!$B$3:$C$558,2,FALSE)) ->  | H181: =IF(G181="","",VLOOKUP(G181,'Cuadro de Cuentas (3)'!$B$3:$C$558,2,FALSE)) -> 
E182: =IF(D182="","",VLOOKUP(D182,'Cuadro de Cuentas (3)'!$B$3:$C$558,2,FALSE)) ->  | H182: =IF(G182="","",VLOOKUP(G182,'Cuadro de Cuentas (3)'!$B$3:$C$558,2,FALSE)) -> 
E183: =IF(D183="","",VLOOKUP(D183,'Cuadro de Cuentas (3)'!$B$3:$C$558,2,FALSE)) ->  | H183: =IF(G183="","",VLOOKUP(G183,'Cuadro de Cuentas (3)'!$B$3:$C$558,2,FALSE)) -> 
E184: =IF(D184="","",VLOOKUP(D184,'Cuadro de Cuentas (3)'!$B$3:$C$558,2,FALSE)) ->  | H184: =IF(G184="","",VLOOKUP(G184,'Cuadro de Cuentas (3)'!$B$3:$C$558,2,FALSE)) -> 
E185: =IF(D185="","",VLOOKUP(D185,'Cuadro de Cuentas (3)'!$B$3:$C$558,2,FALSE)) ->  | H185: =IF(G185="","",VLOOKUP(G185,'Cuadro de Cuentas (3)'!$B$3:$C$558,2,FALSE)) -> 
E186: =IF(D186="","",VLOOKUP(D186,'Cuadro de Cuentas (3)'!$B$3:$C$558,2,FALSE)) ->  | H186: =IF(G186="","",VLOOKUP(G186,'Cuadro de Cuentas (3)'!$B$3:$C$558,2,FALSE)) -> 
E187: =IF(D187="","",VLOOKUP(D187,'Cuadro de Cuentas (3)'!$B$3:$C$558,2,FALSE)) ->  | H187: =IF(G187="","",VLOOKUP(G187,'Cuadro de Cuentas (3)'!$B$3:$C$558,2,FALSE)) -> 
E188: =IF(D188="","",VLOOKUP(D188,'Cuadro de Cuentas (3)'!$B$3:$C$558,2,FALSE)) ->  | H188: =IF(G188="","",VLOOKUP(G188,'Cuadro de Cuentas (3)'!$B$3:$C$558,2,FALSE)) -> 
E189: =IF(D189="","",VLOOKUP(D189,'Cuadro de Cuentas (3)'!$B$3:$C$558,2,FALSE)) ->  | H189: =IF(G189="","",VLOOKUP(G189,'Cuadro de Cuentas (3)'!$B$3:$C$558,2,FALSE)) -> 
E190: =IF(D190="","",VLOOKUP(D190,'Cuadro de Cuentas (3)'!$B$3:$C$558,2,FALSE)) ->  | H190: =IF(G190="","",VLOOKUP(G190,'Cuadro de Cuentas (3)'!$B$3:$C$558,2,FALSE)) -> 
E191: =IF(D191="","",VLOOKUP(D191,'Cuadro de Cuentas (3)'!$B$3:$C$558,2,FALSE)) ->  | H191: =IF(G191="","",VLOOKUP(G191,'Cuadro de Cuentas (3)'!$B$3:$C$558,2,FALSE)) -> 
E192: =IF(D192="","",VLOOKUP(D192,'Cuadro de Cuentas (3)'!$B$3:$C$558,2,FALSE)) ->  | H192: =IF(G192="","",VLOOKUP(G192,'Cuadro de Cuentas (3)'!$B$3:$C$558,2,FALSE)) -> 
E193: =IF(D193="","",VLOOKUP(D193,'Cuadro de Cuentas (3)'!$B$3:$C$558,2,FALSE)) ->  | H193: =IF(G193="","",VLOOKUP(G193,'Cuadro de Cuentas (3)'!$B$3:$C$558,2,FALSE)) -> 
E194: =IF(D194="","",VLOOKUP(D194,'Cuadro de Cuentas (3)'!$B$3:$C$558,2,FALSE)) ->  | H194: =IF(G194="","",VLOOKUP(G194,'Cuadro de Cuentas (3)'!$B$3:$C$558,2,FALSE)) -> 
E195: =IF(D195="","",VLOOKUP(D195,'Cuadro de Cuentas (3)'!$B$3:$C$558,2,FALSE)) ->  | H195: =IF(G195="","",VLOOKUP(G195,'Cuadro de Cuentas (3)'!$B$3:$C$558,2,FALSE)) -> 
E196: =IF(D196="","",VLOOKUP(D196,'Cuadro de Cuentas (3)'!$B$3:$C$558,2,FALSE)) ->  | H196: =IF(G196="","",VLOOKUP(G196,'Cuadro de Cuentas (3)'!$B$3:$C$558,2,FALSE)) -> 
E197: =IF(D197="","",VLOOKUP(D197,'Cuadro de Cuentas (3)'!$B$3:$C$558,2,FALSE)) ->  | H197: =IF(G197="","",VLOOKUP(G197,'Cuadro de Cuentas (3)'!$B$3:$C$558,2,FALSE)) -> 
E198: =IF(D198="","",VLOOKUP(D198,'Cuadro de Cuentas (3)'!$B$3:$C$558,2,FALSE)) ->  | H198: =IF(G198="","",VLOOKUP(G198,'Cuadro de Cuentas (3)'!$B$3:$C$558,2,FALSE)) -> 
E199: =IF(D199="","",VLOOKUP(D199,'Cuadro de Cuentas (3)'!$B$3:$C$558,2,FALSE)) ->  | H199: =IF(G199="","",VLOOKUP(G199,'Cuadro de Cuentas (3)'!$B$3:$C$558,2,FALSE)) -> 
E200: =IF(D200="","",VLOOKUP(D200,'Cuadro de Cuentas (3)'!$B$3:$C$558,2,FALSE)) ->  | H200: =IF(G200="","",VLOOKUP(G200,'Cuadro de Cuentas (3)'!$B$3:$C$558,2,FALSE)) -> 

Sheet Enunciado Permuta (hidden)
B3: El | C3: 2015-07-01 | D3: Buena Visión, S.A. adquiere un vehículo por | H3: 24000 | I3: La operación se
B4: realiza entregando como pago a cuenta un vehículo usado que el concesionario tasa en | I4: 3000 | J4: El importe restante
B5: se abona mediante cheque bancario en el momento de entrega del vehículo. El valor de adquisición del vehículo usado fue
B6: de | C6: 21500 | D6: y su amortización acumulada hasta la fecha es de | H6: 18000
B7: Contabilice la operación anterior teniendo en cuenta que el IVA aplicable es del | H7: 0.21
B33: Tipo de I.V.A. | C33: 0.21
B34: Método de amortización del split | E34: Lineal | F34: 0.2
B35: Método de amortización mobiliario | E35: Lineal | F35: 10 años

Sheet Factura Adquisición Vehículo (hidden)
K5: Fecha: | L5: =+'Enunciado Permuta'!C3 -> 2015-07-01
K6: Nº Factura: | L6: 1254
D11: MULTIMARCA AUTOSILLA, S.L.
D12: C/ Alcácer, 54. 46460 Silla
D13: CIF: B-465242458
C18: Cliente: | D18: Buena Visión, S.A.
C19: Dirección: | D19: C/ Martín Colomer, 45. 46007 Valencia
C20: CIF: | D20: A-20.396.059
C21: Ref:
C25: Cantidad | D25: Concepto | K25: Precio Unitario | L25: Importe
L26: =IF(D26<>"",D26*K26,"") -> 
C38: 1 | D38: Hyundai i40 1.7 CRDi | L38: =+'Enunciado Permuta'!H3 -> 24000
J53: Base Imponible | L53: =+SUM(L26:L52) -> 24000
I54: IVA | J54: =+'Enunciado Permuta'!H7 -> 0.21 | L54: =+L53*J54 -> 5040
J55: TOTAL FACTURA | L55: =+L53+L54 -> 29040
C58: DATOS DE PAGO:
C59: Banco:
C61: Código IBAN:
C63: Observaciones: | E63: Cheque bancario
C65: Con vencimiento el: | E65: =+L5 -> 2015-07-01 | I65: Por importe de: | K65: 25410

Sheet Cheque Concesionario (hidden)
L3: entidad | M3: oficina | N3: dc | O3: nº de cuenta
K4: CCC | L4: 2038 | M4: 6015 | N4: 40 | O4: 3101767432
K6: IBAN | L6: ES54 2038 6015 40 3101767432
C8: VALENCIA
C9: AVDA. REIAL, 4
K10: EUROS | L10: # | M10: =+'Factura Adquisición Vehículo'!K65 -> 25410 | N10: # | O10: €
C11: Páguese por este cheque a | F11: =+'Factura Adquisición Vehículo'!D11 -> MULTIMARCA AUTOSILLA, S.L.
C12: Euros | D12: Veinticinco mil cuatrocientos diez -----------------------------------------------------------------------------------------------------------
L14: Valencia, a | M14: =+'Factura Adquisición Vehículo'!L5 -> 2015-07-01
L15: La fecha debe consignarse en letra
C17: Serie FF | D17: N. | E17: 4509955 | F17: 2 | H17: 4200 | I17: 0
C19: =+E17 -> 4509955 | D19: =+L4 -> 2038 | E19: =+M4 -> 6015 | H19: =+O4 -> 3101767432 | J19: =+H17 -> 4200

Sheet Factura Venta Vehículo (hidden)
D5: Buena Visión, S.A.
D6: C/ Martín Colomer, 45
D7: 46007 Valencia
D8: CIF A-20.396.059
C12: Nombre: | D12: =+'Factura Adquisición Vehículo'!D11 -> MULTIMARCA AUTOSILLA, S.L.
C13: Dirección: | D13: =+'Factura Adquisición Vehículo'!D12 -> C/ Alcácer, 54. 46460 Silla
C14: CIF: | D14: =+'Factura Adquisición Vehículo'!D13 -> CIF: B-465242458
C15: Ref:
K20: Fecha: | L20: =+'Factura Adquisición Vehículo'!L5 -> 2015-07-01
K21: Nº Factura: | L21: 2015-1052
C25: Cantidad | D25: Concepto | K25: Precio Unitario | L25: Importe
L26: =IF(D26<>"",D26*K26,"") -> 
D38: Citroen C4 4251CON | L38: =+'Enunciado Permuta'!I4 -> 3000
J52: Base Imponible | L52: =+SUM(L26:L51) -> 3000
J53: IVA | K53: =+'Enunciado Permuta'!H7 -> 0.21 | L53: =+L52*K53 -> 630
J54: TOTAL FACTURA | L54: =+L52+L53 -> 3630
N57: Arancel = | O57: =C38*K38*2.2% -> 0
C58: Banco del Cliente: | N58: Derecho adicional = | O58: =C38*K38*15% -> 0
N59: IVA (21%) = | O59: =(C38*K38+O57+O58)*21% -> 0
C60: Código IBAN: | N60: Total a pagar = | O60: =O57+O58+O59 -> 0
C63: Observaciones:
C65: Con vencimiento el: | E65: =+L20 -> 2015-07-01 | H65: Por importe de: | K65: =L54 -> 3630

Sheet Cuadro de Cuentas (5) (hidden)
B2: Cuadro de Cuentas Plan General Contable 2008
B3: 1 | C3: Financiación Básica
B4: 10 | C4: Capital
B5: 100 | C5: Capital social
B6: 101 | C6: Fondo social
B7: 102 | C7: Capital
B8: 103 | C8: Socios por desembolsos no exigidos...
B9: 1030 | C9: Socios por desembolsos no exigidos, capital social
B10: 1034 | C10: Socios por desembolsos no exigidos, capital pendiente de inscripción
B11: 103 | C11: Socios por desembolsos no exigidos...
B12: 104 | C12: Socios por aportaciones no dinerarias pendientes...
B13: 1040 | C13: Socios por aportaciones no dinerarias pendientes, capital social
B14: 1044 | C14: Socios por aportaciones no dinerarias pendientes, capital pendiente de inscripción
B15: 108 | C15: Acciones o participaciones propias en situaciones especiales
B16: 109 | C16: Acciones o participaciones propias para reducción de capital
B17: 11 | C17: Reservas
B18: 110 | C18: Prima de emisión o asunción
B19: 111 | C19: Patrimonio neto por emisión de instrumentos financieros compuestos
B20: 112 | C20: Reserva legal
B21: 113 | C21: Reservas voluntarias
B22: 114 | C22: Reservas especiales
B23: 115 | C23: Reservas por pérdidas y ganancias actuariales y otros ajustes
B24: 117 | C24: Aportaciones de socios o propietarios
B25: 119 | C25: Diferencias por ajuste del capital a euros
B26: 12 | C26: Resultados pendientes de aplicación
B27: 120 | C27: Remanente
B28: 121 | C28: Resultados negativos de ejercicios anteriores
B29: 129 | C29: Resultados del ejercicio
B30: 13 | C30: Subvenciones, donaciones y ajustes por cambios de valor
B31: 130 | C31: Subvenciones oficiales de capital
B32: 131 | C32: Donaciones y legados de capital
B33: 132 | C33: Otras subvenciones, donaciones y legados
B34: 133 | C34: Ajustes por valoración en instrumentos financieros
B35: 134 | C35: Operaciones de cobertura
B36: 135 | C36: Diferencias de conversión
B37: 136 | C37: Ajustes por valoración en activos no corrientes y grupos enajenables de elementos mantenidos para la venta
B38: 137 | C38: Ingresos fiscales a distribuir en varios ejercicios
B39: 14 | C39: Provisiones
B40: 140 | C40: Provisión para retribuciones y otras prestaciones al personal.
B41: 141 | C41: Provisión para impuestos
B42: 142 | C42: Provisión para otras responsabilidades
B43: 143 | C43: Provisión por desmantelamiento, retiro o rehabilitación del inmovilizado.
B44: 144 | C44: Provisión para otras responsabilidades
B45: 145 | C45: Provisión para actuaciones medioambientales
B46: 146 | C46: Provisión para reestructuraciones
B47: 147 | C47: Provisiones por transacciones con pagos basados en instrumentos de patrimonio
B48: 15 | C48: Deudas a largo plazo con características especiales
B49: 150 | C49: Acciones o participaciones a largo plazo contabilizadas como pasivo
B50: 153 | C50: Desembolsos no exigidos por acciones o participaciones contabilizadas como pasivo.
B51: 154 | C51: Aportaciones no dinerarias pendientes por acciones o participaciones contabilizadas como pasivo
B52: 16 | C52: Deudas a largo plazo con partes vinculadas
B53: 160 | C53: Deudas a largo plazo con entidades de crédito vinculadas
B54: 161 | C54: Proveedores de inmovilizado a largo plazo, partes vinculadas
B55: 162 | C55: Otras deudas a largo plazo con partes vinculadas
B56: 163 | C56: Otras deudas a largo plazo con partes vinculadas
B57: 17 | C57: Deudas a largo plazo por préstamos recibidos y otros conceptos
B58: 170 | C58: Deudas a largo plazo con entidades de crédito
B59: 171 | C59: Deudas a largo plazo
B60: 172 | C60: Deudas a largo plazo transformables en subvenciones, donaciones y legados
B61: 173 | C61: Proveedores de inmovilizado a largo plazo
B62: 174 | C62: Acreedores por arrendamiento financiero a largo plazo
B63: 175 | C63: Efectos a pagar a largo plazo
B64: 176 | C64: Pasivos por derivados financieros a largo plazo
B65: 177 | C65: Obligaciones y bonos
B66: 178 | C66: Obligaciones y bonos convertibles
B67: 179 | C67: Deudas representadas en otros valores negociables
B68: 18 | C68: Pasivos por fianzas y garantías a largo plazo
B69: 180 | C69: Fianzas recibidas a largo plazo
B70: 181 | C70: Anticipos recibidos por ventas o prestaciones de servicios a largo plazo
B71: 185 | C71: Depósitos recibidos a largo plazo
B72: 189 | C72: Garantías financieras a largo plazo
B73: 19 | C73: Situaciones transitorias de financiación
B74: 190 | C74: Acciones o participaciones emitidas
B75: 192 | C75: Suscriptores de acciones
B76: 194 | C76: Capital emitido pendiente de inscripción
B77: 195 | C77: Acciones o participaciones emitidas consideradas como pasivos financieros
B78: 197 | C78: Suscriptores de acciones consideradas coo pasivos financieros
B79: 199 | C79: Acciones o participaciones emitidas consideradas como pasivo financieros, pendientes de inscripción
B80: 2 | C80: Inmovilizado
B81: 20 | C81: Inmovilizaciones intangibles
B82: 200 | C82: Investigación
B83: 201 | C83: Desarrollo
B84: 202 | C84: Concesiones administrativas
B85: 203 | C85: Propiedad industrial
B86: 204 | C86: Fondo de comercio
B87: 205 | C87: Derechos de traspaso
B88: 206 | C88: Aplicaciones informáticas
B89: 209 | C89: Anticipos para inmovilizaciones intangibles
B90: 21 | C90: Inmovilizaciones materiales
B91: 210 | C91: Terrenos y bienes naturales
B92: 211 | C92: Construcciones
B93: 212 | C93: Instalaciones técnicas
B94: 213 | C94: Maquinaria
B95: 214 | C95: Utillaje
B96: 215 | C96: Otras instalaciones
B97: 216 | C97: Mobiliario
B98: 217 | C98: Equipos para procesos de información
B99: 218 | C99: Elementos de transporte
B100: 219 | C100: Otro inmovilizado material
B101: 22 | C101: Inversiones inmobiliarias
B102: 220 | C102: Inversiones en terrenos y bienes naturales
B103: 221 | C103: Inversiones en construcciones
B104: 23 | C104: Inmovilizaciones materiales en curso
B105: 230 | C105: Adaptación de terrenos y bienes naturales
B106: 231 | C106: Construcciones en curso
B107: 232 | C107: Instalaciones técnicas en montaje
B108: 233 | C108: Maquinaria en montaje
B109: 237 | C109: Equipos para procesos de información en montaje
B110: 239 | C110: Anticipos para inmovilizaciones materiales
B111: 24 | C111: Inversiones financieras en partes vinculadas
B112: 240 | C112: Participaciones a largo plazo en partes vinculadas
B113: 241 | C113: Valores representativos de deuda a largo plazo de partes vinculadas
B114: 242 | C114: Créditos a largo plazo a partes vinculadas
B115: 249 | C115: Desembolsos pendientes sobre participaciones a largo plazo en partes vinculadas
B116: 25 | C116: Otras inversiones financieras a largo plazo
B117: 250 | C117: Inversiones financieras a largo plazo en instrumentos de patrimonio
B118: 251 | C118: Valores representativos de deuda a largo plazo
B119: 252 | C119: Créditos a largo plazo
B120: 253 | C120: Créditos a largo plazo por enajenación de inmovilizado
B121: 254 | C121: Créditos a largo plazo al personal
B122: 255 | C122: Activos por derivados financieros a largo plazo
B123: 257 | C123: Activos por retribuciones a largo plazo de prestación definida
B124: 258 | C124: Imposiciones a largo plazo
B125: 259 | C125: Desembolsos pendientes sobre participaciones en el patrimonio neto a largo plazo
B126: 26 | C126: Fianzas y depósitos constituidos a largo plazo
B127: 260 | C127: Fianzas constituidas a largo plazo
B128: 265 | C128: Depósitos constituidos a largo plazo
B129: 28 | C129: Amortización acumulada del inmovilizado
B130: 280 | C130: Amortización acumulada del inmovilizado intangible
B131: 281 | C131: Amortización acumulada del inmovilizado material
B132: 282 | C132: Amortización acumulada de las inversiones inmobiliarias
B133: 29 | C133: Deterioro de valor de inmovilizado
B134: 290 | C134: Deterioro de valor del inmovilizado intangible
B135: 291 | C135: Deterioro de valor del inmovilizado material
B136: 292 | C136: Deterioro de valor de las inversiones inmobiliarias
B137: 293 | C137: Deterioro de valor de participaciones a largo plazo en partes vinculadas
B138: 294 | C138: Deterioro de valor de valores representativos de deuda a largo plazo de partes vinculadas
B139: 295 | C139: Deterioro de valor de créditos a largo plazo a partes vinculadas
B140: 297 | C140: Deterioro de valor de valores representativos de deuda a largo plazo
B141: 298 | C141: Deterioro de valor de créditos a largo plazo
B142: 3 | C142: Existencias
B143: 30 | C143: Comerciales
B144: 300 | C144: Mercaderías A
B145: 301 | C145: Mercaderías B
B146: 302 | C146: Mercaderías C
B147: 303 | C147: Mercaderías D
B148: 304 | C148: Mercaderías E
B149: 305 | C149: Mercaderías F
B150: 306 | C150: Mercaderías G
B151: 307 | C151: Mercaderías H
B152: 308 | C152: Mercaderías I
B153: 309 | C153: Mercaderías J
B154: 31 | C154: Materias Primas
B155: 310 | C155: Materias primas A
B156: 312 | C156: Materias primas B
B157: 313 | C157: Materias primas C
B158: 314 | C158: Materias primas D
B159: 315 | C159: Materias primas E
B160: 316 | C160: Materias primas F
B161: 317 | C161: Materias primas H
B162: 318 | C162: Materias primas I
B163: 319 | C163: Materias primas J
B164: 32 | C164: Otros aprovisionamientos
B165: 320 | C165: Elementos y conjuntos incorporables
B166: 321 | C166: Combustibles
B167: 322 | C167: Repuestos
B168: 325 | C168: Materiales diversos
B169: 326 | C169: Embalajes
B170: 327 | C170: Envases
B171: 328 | C171: Material de oficina
B172: 33 | C172: Productos en curso
B173: 330 | C173: Productos en curso A
B174: 331 | C174: Productos en curso B
B175: 332 | C175: Productos en curso C
B176: 333 | C176: Productos en curso D
B177: 334 | C177: Productos en curso E
B178: 335 | C178: Productos en curso F
B179: 336 | C179: Productos en curso G
B180: 337 | C180: Productos en curso H
B181: 338 | C181: Productos en curso I
B182: 339 | C182: Productos en curso J
B183: 34 | C183: Productos semiterminados
B184: 340 | C184: Productos semiterminados A
B185: 341 | C185: Productos semiterminados B
B186: 342 | C186: Productos semiterminados C
B187: 343 | C187: Productos semiterminados D
B188: 344 | C188: Productos semiterminados E
B189: 345 | C189: Productos semiterminados F
B190: 346 | C190: Productos semiterminados G
B191: 347 | C191: Productos semiterminados H
B192: 348 | C192: Productos semiterminados I
B193: 349 | C193: Productos semiterminados J
B194: 35 | C194: Productos terminados
B195: 350 | C195: Productos terminados A
B196: 351 | C196: Productos terminados B
B197: 352 | C197: Productos terminados C
B198: 353 | C198: Productos terminados D
B199: 354 | C199: Productos terminados E
B200: 355 | C200: Productos terminados F
B201: 356 | C201: Productos terminados G
... 357 more rows

Sheet Solución Libro Diario Permuta (hidden)
C3: DEBE | I3: HABER
C4: IMPORTES | D4: Nº CUENTA | E4: NOMBRE CUENTA | F4: =+'Factura Adquisición Vehículo'!L5 -> 2015-07-01 | G4: Nº CUENTA | H4: NOMBRE CUENTA | I4: IMPORTES
C5: =+'Enunciado Permuta'!H6 -> 18000 | D5: 281 | E5: =IF(D5="","",VLOOKUP(D5,'Cuadro de Cuentas (5)'!$B$3:$C$558,2,FALSE)) -> Amortización acumulada del inmovilizado material | F5: =IF(G5="","","a") ->  | H5: =IF(G5="","",VLOOKUP(G5,'Cuadro de Cuentas (5)'!$B$3:$C$558,2,FALSE)) -> 
C6: =+'Factura Adquisición Vehículo'!L53 -> 24000 | D6: 218 | E6: =IF(D6="","",VLOOKUP(D6,'Cuadro de Cuentas (5)'!$B$3:$C$558,2,FALSE)) -> Elementos de transporte | H6: =IF(G6="","",VLOOKUP(G6,'Cuadro de Cuentas (5)'!$B$3:$C$558,2,FALSE)) -> 
C7: =+'Factura Adquisición Vehículo'!L54 -> 5040 | D7: 472 | E7: =IF(D7="","",VLOOKUP(D7,'Cuadro de Cuentas (5)'!$B$3:$C$558,2,FALSE)) -> Hacienda Pública, IVA soportado | H7: =IF(G7="","",VLOOKUP(G7,'Cuadro de Cuentas (5)'!$B$3:$C$558,2,FALSE)) -> 
C8: =+'Factura Venta Vehículo'!L54 -> 3630 | D8: 543 | E8: =IF(D8="","",VLOOKUP(D8,'Cuadro de Cuentas (5)'!$B$3:$C$558,2,FALSE)) -> Créditos a corto plazo por enajenación de inmovilizado | H8: =IF(G8="","",VLOOKUP(G8,'Cuadro de Cuentas (5)'!$B$3:$C$558,2,FALSE)) -> 
C9: =(+I9-C5)-'Factura Venta Vehículo'!L52 -> 500 | D9: 671 | E9: =IF(D9="","",VLOOKUP(D9,'Cuadro de Cuentas (5)'!$B$3:$C$558,2,FALSE)) -> Pérdidas procedentes del inmovilizado material | F9: a | G9: 218 | H9: =IF(G9="","",VLOOKUP(G9,'Cuadro de Cuentas (5)'!$B$3:$C$558,2,FALSE)) -> Elementos de transporte | I9: =+'Enunciado Permuta'!C6 -> 21500
F10: a | G10: 477 | H10: =IF(G10="","",VLOOKUP(G10,'Cuadro de Cuentas (5)'!$B$3:$C$558,2,FALSE)) -> Hacienda Pública, IVA repercutido | I10: =+'Factura Venta Vehículo'!L53 -> 630
F11: a | G11: 523 | H11: =IF(G11="","",VLOOKUP(G11,'Cuadro de Cuentas (5)'!$B$3:$C$558,2,FALSE)) -> Proveedores de inmovilizado a corto plazo | I11: =+'Factura Adquisición Vehículo'!L55 -> 29040
H12: =IF(G12="","",VLOOKUP(G12,'Cuadro de Cuentas (5)'!$B$3:$C$558,2,FALSE)) -> 
E13: A la compra del vehículo nuevo
E14: =IF(D14="","",VLOOKUP(D14,'Cuadro de Cuentas (5)'!$B$3:$C$558,2,FALSE)) ->  | F14: =+'Factura Adquisición Vehículo'!E65 -> 2015-07-01 | H14: =IF(G14="","",VLOOKUP(G14,'Cuadro de Cuentas (5)'!$B$3:$C$558,2,FALSE)) -> 
C15: =+I11 -> 29040 | D15: 523 | E15: =IF(D15="","",VLOOKUP(D15,'Cuadro de Cuentas (5)'!$B$3:$C$558,2,FALSE)) -> Proveedores de inmovilizado a corto plazo | F15: =IF(G15="","","a") -> a | G15: 543 | H15: =IF(G15="","",VLOOKUP(G15,'Cuadro de Cuentas (5)'!$B$3:$C$558,2,FALSE)) -> Créditos a corto plazo por enajenación de inmovilizado | I15: =+C8 -> 3630
E16: =IF(D16="","",VLOOKUP(D16,'Cuadro de Cuentas (5)'!$B$3:$C$558,2,FALSE)) ->  | F16: a | G16: 572 | H16: =IF(G16="","",VLOOKUP(G16,'Cuadro de Cuentas (5)'!$B$3:$C$558,2,FALSE)) -> Bancos e instituciones de crédito c/c vista, euros | I16: =+'Cheque Concesionario'!M10 -> 25410
E17: =IF(D17="","",VLOOKUP(D17,'Cuadro de Cuentas (5)'!$B$3:$C$558,2,FALSE)) ->  | H17: =IF(G17="","",VLOOKUP(G17,'Cuadro de Cuentas (5)'!$B$3:$C$558,2,FALSE)) -> 
E18: Pago deuda pendiente | H18: =IF(G18="","",VLOOKUP(G18,'Cuadro de Cuentas (5)'!$B$3:$C$558,2,FALSE)) -> 
E19: =IF(D19="","",VLOOKUP(D19,'Cuadro de Cuentas (5)'!$B$3:$C$558,2,FALSE)) ->  | H19: =IF(G19="","",VLOOKUP(G19,'Cuadro de Cuentas (5)'!$B$3:$C$558,2,FALSE)) -> 
E20: =IF(D20="","",VLOOKUP(D20,'Cuadro de Cuentas (5)'!$B$3:$C$558,2,FALSE)) ->  | F20: =IF(G20="","","a") ->  | H20: =IF(G20="","",VLOOKUP(G20,'Cuadro de Cuentas (5)'!$B$3:$C$558,2,FALSE)) -> 
E21: =IF(D21="","",VLOOKUP(D21,'Cuadro de Cuentas (5)'!$B$3:$C$558,2,FALSE)) ->  | H21: =IF(G21="","",VLOOKUP(G21,'Cuadro de Cuentas (5)'!$B$3:$C$558,2,FALSE)) -> 
E22: =IF(D22="","",VLOOKUP(D22,'Cuadro de Cuentas (5)'!$B$3:$C$558,2,FALSE)) ->  | H22: =IF(G22="","",VLOOKUP(G22,'Cuadro de Cuentas (5)'!$B$3:$C$558,2,FALSE)) -> 
E23: =IF(D23="","",VLOOKUP(D23,'Cuadro de Cuentas (5)'!$B$3:$C$558,2,FALSE)) ->  | H23: =IF(G23="","",VLOOKUP(G23,'Cuadro de Cuentas (5)'!$B$3:$C$558,2,FALSE)) -> 
E24: =IF(D24="","",VLOOKUP(D24,'Cuadro de Cuentas (5)'!$B$3:$C$558,2,FALSE)) ->  | H24: =IF(G24="","",VLOOKUP(G24,'Cuadro de Cuentas (5)'!$B$3:$C$558,2,FALSE)) -> 
E25: =IF(D25="","",VLOOKUP(D25,'Cuadro de Cuentas (5)'!$B$3:$C$558,2,FALSE)) ->  | H25: =IF(G25="","",VLOOKUP(G25,'Cuadro de Cuentas (5)'!$B$3:$C$558,2,FALSE)) -> 
E26: =IF(D26="","",VLOOKUP(D26,'Cuadro de Cuentas (5)'!$B$3:$C$558,2,FALSE)) ->  | H26: =IF(G26="","",VLOOKUP(G26,'Cuadro de Cuentas (5)'!$B$3:$C$558,2,FALSE)) -> 
E27: =IF(D27="","",VLOOKUP(D27,'Cuadro de Cuentas (5)'!$B$3:$C$558,2,FALSE)) ->  | H27: =IF(G27="","",VLOOKUP(G27,'Cuadro de Cuentas (5)'!$B$3:$C$558,2,FALSE)) -> 
E28: =IF(D28="","",VLOOKUP(D28,'Cuadro de Cuentas (5)'!$B$3:$C$558,2,FALSE)) ->  | F28: =IF(G28="","","a") ->  | H28: =IF(G28="","",VLOOKUP(G28,'Cuadro de Cuentas (5)'!$B$3:$C$558,2,FALSE)) -> 
E29: =IF(D29="","",VLOOKUP(D29,'Cuadro de Cuentas (5)'!$B$3:$C$558,2,FALSE)) ->  | H29: =IF(G29="","",VLOOKUP(G29,'Cuadro de Cuentas (5)'!$B$3:$C$558,2,FALSE)) -> 
E42: =IF(D42="","",VLOOKUP(D42,'Cuadro de Cuentas (5)'!$B$3:$C$558,2,FALSE)) ->  | H42: =IF(G42="","",VLOOKUP(G42,'Cuadro de Cuentas (5)'!$B$3:$C$558,2,FALSE)) -> 
E43: =IF(D43="","",VLOOKUP(D43,'Cuadro de Cuentas (5)'!$B$3:$C$558,2,FALSE)) ->  | H43: =IF(G43="","",VLOOKUP(G43,'Cuadro de Cuentas (5)'!$B$3:$C$558,2,FALSE)) -> 
E53: =IF(D53="","",VLOOKUP(D53,'Cuadro de Cuentas (5)'!$B$3:$C$558,2,FALSE)) ->  | H53: =IF(G53="","",VLOOKUP(G53,'Cuadro de Cuentas (5)'!$B$3:$C$558,2,FALSE)) -> 
E54: =IF(D54="","",VLOOKUP(D54,'Cuadro de Cuentas (5)'!$B$3:$C$558,2,FALSE)) ->  | H54: =IF(G54="","",VLOOKUP(G54,'Cuadro de Cuentas (5)'!$B$3:$C$558,2,FALSE)) -> 
C58: DEBE | I58: HABER
C59: IMPORTES | D59: Nº CUENTA | E59: NOMBRE CUENTA | G59: Nº CUENTA | H59: NOMBRE CUENTA | I59: IMPORTES
E68: =IF(D68="","",VLOOKUP(D68,'Cuadro de Cuentas (5)'!$B$3:$C$558,2,FALSE)) ->  | F68: =IF(G68="","","a") ->  | H68: =IF(G68="","",VLOOKUP(G68,'Cuadro de Cuentas (5)'!$B$3:$C$558,2,FALSE)) -> 
E69: =IF(D69="","",VLOOKUP(D69,'Cuadro de Cuentas (5)'!$B$3:$C$558,2,FALSE)) ->  | H69: =IF(G69="","",VLOOKUP(G69,'Cuadro de Cuentas (5)'!$B$3:$C$558,2,FALSE)) -> 
E70: =IF(D70="","",VLOOKUP(D70,'Cuadro de Cuentas (5)'!$B$3:$C$558,2,FALSE)) ->  | H70: =IF(G70="","",VLOOKUP(G70,'Cuadro de Cuentas (5)'!$B$3:$C$558,2,FALSE)) -> 
E71: =IF(D71="","",VLOOKUP(D71,'Cuadro de Cuentas (5)'!$B$3:$C$558,2,FALSE)) ->  | H71: =IF(G71="","",VLOOKUP(G71,'Cuadro de Cuentas (5)'!$B$3:$C$558,2,FALSE)) -> 
E72: =IF(D72="","",VLOOKUP(D72,'Cuadro de Cuentas (5)'!$B$3:$C$558,2,FALSE)) ->  | H72: =IF(G72="","",VLOOKUP(G72,'Cuadro de Cuentas (5)'!$B$3:$C$558,2,FALSE)) -> 
E73: =IF(D73="","",VLOOKUP(D73,'Cuadro de Cuentas (5)'!$B$3:$C$558,2,FALSE)) ->  | H73: =IF(G73="","",VLOOKUP(G73,'Cuadro de Cuentas (5)'!$B$3:$C$558,2,FALSE)) -> 
E74: =IF(D74="","",VLOOKUP(D74,'Cuadro de Cuentas (5)'!$B$3:$C$558,2,FALSE)) ->  | H74: =IF(G74="","",VLOOKUP(G74,'Cuadro de Cuentas (5)'!$B$3:$C$558,2,FALSE)) -> 
E75: =IF(D75="","",VLOOKUP(D75,'Cuadro de Cuentas (5)'!$B$3:$C$558,2,FALSE)) ->  | H75: =IF(G75="","",VLOOKUP(G75,'Cuadro de Cuentas (5)'!$B$3:$C$558,2,FALSE)) -> 
E76: =IF(D76="","",VLOOKUP(D76,'Cuadro de Cuentas (5)'!$B$3:$C$558,2,FALSE)) ->  | H76: =IF(G76="","",VLOOKUP(G76,'Cuadro de Cuentas (5)'!$B$3:$C$558,2,FALSE)) -> 
E77: =IF(D77="","",VLOOKUP(D77,'Cuadro de Cuentas (5)'!$B$3:$C$558,2,FALSE)) ->  | H77: =IF(G77="","",VLOOKUP(G77,'Cuadro de Cuentas (5)'!$B$3:$C$558,2,FALSE)) -> 
E78: =IF(D78="","",VLOOKUP(D78,'Cuadro de Cuentas (5)'!$B$3:$C$558,2,FALSE)) ->  | H78: =IF(G78="","",VLOOKUP(G78,'Cuadro de Cuentas (5)'!$B$3:$C$558,2,FALSE)) -> 
E79: =IF(D79="","",VLOOKUP(D79,'Cuadro de Cuentas (5)'!$B$3:$C$558,2,FALSE)) ->  | H79: =IF(G79="","",VLOOKUP(G79,'Cuadro de Cuentas (5)'!$B$3:$C$558,2,FALSE)) -> 
E80: =IF(D80="","",VLOOKUP(D80,'Cuadro de Cuentas (5)'!$B$3:$C$558,2,FALSE)) ->  | H80: =IF(G80="","",VLOOKUP(G80,'Cuadro de Cuentas (5)'!$B$3:$C$558,2,FALSE)) -> 
E81: =IF(D81="","",VLOOKUP(D81,'Cuadro de Cuentas (5)'!$B$3:$C$558,2,FALSE)) ->  | H81: =IF(G81="","",VLOOKUP(G81,'Cuadro de Cuentas (5)'!$B$3:$C$558,2,FALSE)) -> 
E82: =IF(D82="","",VLOOKUP(D82,'Cuadro de Cuentas (5)'!$B$3:$C$558,2,FALSE)) ->  | H82: =IF(G82="","",VLOOKUP(G82,'Cuadro de Cuentas (5)'!$B$3:$C$558,2,FALSE)) -> 
E83: =IF(D83="","",VLOOKUP(D83,'Cuadro de Cuentas (5)'!$B$3:$C$558,2,FALSE)) ->  | H83: =IF(G83="","",VLOOKUP(G83,'Cuadro de Cuentas (5)'!$B$3:$C$558,2,FALSE)) -> 
E84: =IF(D84="","",VLOOKUP(D84,'Cuadro de Cuentas (5)'!$B$3:$C$558,2,FALSE)) ->  | H84: =IF(G84="","",VLOOKUP(G84,'Cuadro de Cuentas (5)'!$B$3:$C$558,2,FALSE)) -> 
E85: =IF(D85="","",VLOOKUP(D85,'Cuadro de Cuentas (5)'!$B$3:$C$558,2,FALSE)) ->  | H85: =IF(G85="","",VLOOKUP(G85,'Cuadro de Cuentas (5)'!$B$3:$C$558,2,FALSE)) -> 
E86: =IF(D86="","",VLOOKUP(D86,'Cuadro de Cuentas (5)'!$B$3:$C$558,2,FALSE)) ->  | H86: =IF(G86="","",VLOOKUP(G86,'Cuadro de Cuentas (5)'!$B$3:$C$558,2,FALSE)) -> 
E87: =IF(D87="","",VLOOKUP(D87,'Cuadro de Cuentas (5)'!$B$3:$C$558,2,FALSE)) ->  | H87: =IF(G87="","",VLOOKUP(G87,'Cuadro de Cuentas (5)'!$B$3:$C$558,2,FALSE)) -> 
E88: =IF(D88="","",VLOOKUP(D88,'Cuadro de Cuentas (5)'!$B$3:$C$558,2,FALSE)) ->  | H88: =IF(G88="","",VLOOKUP(G88,'Cuadro de Cuentas (5)'!$B$3:$C$558,2,FALSE)) -> 
E89: =IF(D89="","",VLOOKUP(D89,'Cuadro de Cuentas (5)'!$B$3:$C$558,2,FALSE)) ->  | H89: =IF(G89="","",VLOOKUP(G89,'Cuadro de Cuentas (5)'!$B$3:$C$558,2,FALSE)) -> 
E90: =IF(D90="","",VLOOKUP(D90,'Cuadro de Cuentas (5)'!$B$3:$C$558,2,FALSE)) ->  | H90: =IF(G90="","",VLOOKUP(G90,'Cuadro de Cuentas (5)'!$B$3:$C$558,2,FALSE)) -> 
E91: =IF(D91="","",VLOOKUP(D91,'Cuadro de Cuentas (5)'!$B$3:$C$558,2,FALSE)) ->  | H91: =IF(G91="","",VLOOKUP(G91,'Cuadro de Cuentas (5)'!$B$3:$C$558,2,FALSE)) -> 
E92: =IF(D92="","",VLOOKUP(D92,'Cuadro de Cuentas (5)'!$B$3:$C$558,2,FALSE)) ->  | H92: =IF(G92="","",VLOOKUP(G92,'Cuadro de Cuentas (5)'!$B$3:$C$558,2,FALSE)) -> 
E93: =IF(D93="","",VLOOKUP(D93,'Cuadro de Cuentas (5)'!$B$3:$C$558,2,FALSE)) ->  | H93: =IF(G93="","",VLOOKUP(G93,'Cuadro de Cuentas (5)'!$B$3:$C$558,2,FALSE)) -> 
E94: =IF(D94="","",VLOOKUP(D94,'Cuadro de Cuentas (5)'!$B$3:$C$558,2,FALSE)) ->  | H94: =IF(G94="","",VLOOKUP(G94,'Cuadro de Cuentas (5)'!$B$3:$C$558,2,FALSE)) -> 
E95: =IF(D95="","",VLOOKUP(D95,'Cuadro de Cuentas (5)'!$B$3:$C$558,2,FALSE)) ->  | H95: =IF(G95="","",VLOOKUP(G95,'Cuadro de Cuentas (5)'!$B$3:$C$558,2,FALSE)) -> 
E96: =IF(D96="","",VLOOKUP(D96,'Cuadro de Cuentas (5)'!$B$3:$C$558,2,FALSE)) ->  | H96: =IF(G96="","",VLOOKUP(G96,'Cuadro de Cuentas (5)'!$B$3:$C$558,2,FALSE)) -> 
E97: =IF(D97="","",VLOOKUP(D97,'Cuadro de Cuentas (5)'!$B$3:$C$558,2,FALSE)) ->  | H97: =IF(G97="","",VLOOKUP(G97,'Cuadro de Cuentas (5)'!$B$3:$C$558,2,FALSE)) -> 
E98: =IF(D98="","",VLOOKUP(D98,'Cuadro de Cuentas (5)'!$B$3:$C$558,2,FALSE)) ->  | H98: =IF(G98="","",VLOOKUP(G98,'Cuadro de Cuentas (5)'!$B$3:$C$558,2,FALSE)) -> 
E99: =IF(D99="","",VLOOKUP(D99,'Cuadro de Cuentas (5)'!$B$3:$C$558,2,FALSE)) ->  | H99: =IF(G99="","",VLOOKUP(G99,'Cuadro de Cuentas (5)'!$B$3:$C$558,2,FALSE)) -> 
E100: =IF(D100="","",VLOOKUP(D100,'Cuadro de Cuentas (5)'!$B$3:$C$558,2,FALSE)) ->  | H100: =IF(G100="","",VLOOKUP(G100,'Cuadro de Cuentas (5)'!$B$3:$C$558,2,FALSE)) -> 
E101: =IF(D101="","",VLOOKUP(D101,'Cuadro de Cuentas (5)'!$B$3:$C$558,2,FALSE)) ->  | H101: =IF(G101="","",VLOOKUP(G101,'Cuadro de Cuentas (5)'!$B$3:$C$558,2,FALSE)) -> 
E102: =IF(D102="","",VLOOKUP(D102,'Cuadro de Cuentas (5)'!$B$3:$C$558,2,FALSE)) ->  | H102: =IF(G102="","",VLOOKUP(G102,'Cuadro de Cuentas (5)'!$B$3:$C$558,2,FALSE)) -> 
E103: =IF(D103="","",VLOOKUP(D103,'Cuadro de Cuentas (5)'!$B$3:$C$558,2,FALSE)) ->  | H103: =IF(G103="","",VLOOKUP(G103,'Cuadro de Cuentas (5)'!$B$3:$C$558,2,FALSE)) -> 
E104: =IF(D104="","",VLOOKUP(D104,'Cuadro de Cuentas (5)'!$B$3:$C$558,2,FALSE)) ->  | H104: =IF(G104="","",VLOOKUP(G104,'Cuadro de Cuentas (5)'!$B$3:$C$558,2,FALSE)) -> 
C108: DEBE | I108: HABER
C109: IMPORTES | D109: Nº CUENTA | E109: NOMBRE CUENTA | G109: Nº CUENTA | H109: NOMBRE CUENTA | I109: IMPORTES
E110: =IF(D110="","",VLOOKUP(D110,'Cuadro de Cuentas (5)'!$B$3:$C$558,2,FALSE)) ->  | F110: =IF(G110="","","a") ->  | H110: =IF(G110="","",VLOOKUP(G110,'Cuadro de Cuentas (5)'!$B$3:$C$558,2,FALSE)) -> 
E111: =IF(D111="","",VLOOKUP(D111,'Cuadro de Cuentas (5)'!$B$3:$C$558,2,FALSE)) ->  | H111: =IF(G111="","",VLOOKUP(G111,'Cuadro de Cuentas (5)'!$B$3:$C$558,2,FALSE)) -> 
E112: =IF(D112="","",VLOOKUP(D112,'Cuadro de Cuentas (5)'!$B$3:$C$558,2,FALSE)) ->  | H112: =IF(G112="","",VLOOKUP(G112,'Cuadro de Cuentas (5)'!$B$3:$C$558,2,FALSE)) -> 
E113: =IF(D113="","",VLOOKUP(D113,'Cuadro de Cuentas (5)'!$B$3:$C$558,2,FALSE)) ->  | H113: =IF(G113="","",VLOOKUP(G113,'Cuadro de Cuentas (5)'!$B$3:$C$558,2,FALSE)) -> 
E114: =IF(D114="","",VLOOKUP(D114,'Cuadro de Cuentas (5)'!$B$3:$C$558,2,FALSE)) ->  | H114: =IF(G114="","",VLOOKUP(G114,'Cuadro de Cuentas (5)'!$B$3:$C$558,2,FALSE)) -> 
E115: =IF(D115="","",VLOOKUP(D115,'Cuadro de Cuentas (5)'!$B$3:$C$558,2,FALSE)) ->  | H115: =IF(G115="","",VLOOKUP(G115,'Cuadro de Cuentas (5)'!$B$3:$C$558,2,FALSE)) -> 
E116: =IF(D116="","",VLOOKUP(D116,'Cuadro de Cuentas (5)'!$B$3:$C$558,2,FALSE)) ->  | H116: =IF(G116="","",VLOOKUP(G116,'Cuadro de Cuentas (5)'!$B$3:$C$558,2,FALSE)) -> 
E117: =IF(D117="","",VLOOKUP(D117,'Cuadro de Cuentas (5)'!$B$3:$C$558,2,FALSE)) ->  | H117: =IF(G117="","",VLOOKUP(G117,'Cuadro de Cuentas (5)'!$B$3:$C$558,2,FALSE)) -> 
E118: =IF(D118="","",VLOOKUP(D118,'Cuadro de Cuentas (5)'!$B$3:$C$558,2,FALSE)) ->  | H118: =IF(G118="","",VLOOKUP(G118,'Cuadro de Cuentas (5)'!$B$3:$C$558,2,FALSE)) -> 
E119: =IF(D119="","",VLOOKUP(D119,'Cuadro de Cuentas (5)'!$B$3:$C$558,2,FALSE)) ->  | H119: =IF(G119="","",VLOOKUP(G119,'Cuadro de Cuentas (5)'!$B$3:$C$558,2,FALSE)) -> 
E120: =IF(D120="","",VLOOKUP(D120,'Cuadro de Cuentas (5)'!$B$3:$C$558,2,FALSE)) ->  | H120: =IF(G120="","",VLOOKUP(G120,'Cuadro de Cuentas (5)'!$B$3:$C$558,2,FALSE)) -> 
E121: =IF(D121="","",VLOOKUP(D121,'Cuadro de Cuentas (5)'!$B$3:$C$558,2,FALSE)) ->  | H121: =IF(G121="","",VLOOKUP(G121,'Cuadro de Cuentas (5)'!$B$3:$C$558,2,FALSE)) -> 
E122: =IF(D122="","",VLOOKUP(D122,'Cuadro de Cuentas (5)'!$B$3:$C$558,2,FALSE)) ->  | H122: =IF(G122="","",VLOOKUP(G122,'Cuadro de Cuentas (5)'!$B$3:$C$558,2,FALSE)) -> 
E123: =IF(D123="","",VLOOKUP(D123,'Cuadro de Cuentas (5)'!$B$3:$C$558,2,FALSE)) ->  | H123: =IF(G123="","",VLOOKUP(G123,'Cuadro de Cuentas (5)'!$B$3:$C$558,2,FALSE)) -> 
E124: =IF(D124="","",VLOOKUP(D124,'Cuadro de Cuentas (5)'!$B$3:$C$558,2,FALSE)) ->  | H124: =IF(G124="","",VLOOKUP(G124,'Cuadro de Cuentas (5)'!$B$3:$C$558,2,FALSE)) -> 
E125: =IF(D125="","",VLOOKUP(D125,'Cuadro de Cuentas (5)'!$B$3:$C$558,2,FALSE)) ->  | H125: =IF(G125="","",VLOOKUP(G125,'Cuadro de Cuentas (5)'!$B$3:$C$558,2,FALSE)) -> 
E126: =IF(D126="","",VLOOKUP(D126,'Cuadro de Cuentas (5)'!$B$3:$C$558,2,FALSE)) ->  | H126: =IF(G126="","",VLOOKUP(G126,'Cuadro de Cuentas (5)'!$B$3:$C$558,2,FALSE)) -> 
E127: =IF(D127="","",VLOOKUP(D127,'Cuadro de Cuentas (5)'!$B$3:$C$558,2,FALSE)) ->  | H127: =IF(G127="","",VLOOKUP(G127,'Cuadro de Cuentas (5)'!$B$3:$C$558,2,FALSE)) -> 
E128: =IF(D128="","",VLOOKUP(D128,'Cuadro de Cuentas (5)'!$B$3:$C$558,2,FALSE)) ->  | H128: =IF(G128="","",VLOOKUP(G128,'Cuadro de Cuentas (5)'!$B$3:$C$558,2,FALSE)) -> 
E129: =IF(D129="","",VLOOKUP(D129,'Cuadro de Cuentas (5)'!$B$3:$C$558,2,FALSE)) ->  | H129: =IF(G129="","",VLOOKUP(G129,'Cuadro de Cuentas (5)'!$B$3:$C$558,2,FALSE)) -> 
E130: =IF(D130="","",VLOOKUP(D130,'Cuadro de Cuentas (5)'!$B$3:$C$558,2,FALSE)) ->  | H130: =IF(G130="","",VLOOKUP(G130,'Cuadro de Cuentas (5)'!$B$3:$C$558,2,FALSE)) -> 
E131: =IF(D131="","",VLOOKUP(D131,'Cuadro de Cuentas (5)'!$B$3:$C$558,2,FALSE)) ->  | H131: =IF(G131="","",VLOOKUP(G131,'Cuadro de Cuentas (5)'!$B$3:$C$558,2,FALSE)) -> 
E132: =IF(D132="","",VLOOKUP(D132,'Cuadro de Cuentas (5)'!$B$3:$C$558,2,FALSE)) ->  | H132: =IF(G132="","",VLOOKUP(G132,'Cuadro de Cuentas (5)'!$B$3:$C$558,2,FALSE)) -> 
E133: =IF(D133="","",VLOOKUP(D133,'Cuadro de Cuentas (5)'!$B$3:$C$558,2,FALSE)) ->  | H133: =IF(G133="","",VLOOKUP(G133,'Cuadro de Cuentas (5)'!$B$3:$C$558,2,FALSE)) -> 
E134: =IF(D134="","",VLOOKUP(D134,'Cuadro de Cuentas (5)'!$B$3:$C$558,2,FALSE)) ->  | H134: =IF(G134="","",VLOOKUP(G134,'Cuadro de Cuentas (5)'!$B$3:$C$558,2,FALSE)) -> 
E135: =IF(D135="","",VLOOKUP(D135,'Cuadro de Cuentas (5)'!$B$3:$C$558,2,FALSE)) ->  | H135: =IF(G135="","",VLOOKUP(G135,'Cuadro de Cuentas (5)'!$B$3:$C$558,2,FALSE)) -> 
E136: =IF(D136="","",VLOOKUP(D136,'Cuadro de Cuentas (5)'!$B$3:$C$558,2,FALSE)) ->  | H136: =IF(G136="","",VLOOKUP(G136,'Cuadro de Cuentas (5)'!$B$3:$C$558,2,FALSE)) -> 
E137: =IF(D137="","",VLOOKUP(D137,'Cuadro de Cuentas (5)'!$B$3:$C$558,2,FALSE)) ->  | H137: =IF(G137="","",VLOOKUP(G137,'Cuadro de Cuentas (5)'!$B$3:$C$558,2,FALSE)) -> 
E138: =IF(D138="","",VLOOKUP(D138,'Cuadro de Cuentas (5)'!$B$3:$C$558,2,FALSE)) ->  | H138: =IF(G138="","",VLOOKUP(G138,'Cuadro de Cuentas (5)'!$B$3:$C$558,2,FALSE)) -> 
E139: =IF(D139="","",VLOOKUP(D139,'Cuadro de Cuentas (5)'!$B$3:$C$558,2,FALSE)) ->  | H139: =IF(G139="","",VLOOKUP(G139,'Cuadro de Cuentas (5)'!$B$3:$C$558,2,FALSE)) -> 
E140: =IF(D140="","",VLOOKUP(D140,'Cuadro de Cuentas (5)'!$B$3:$C$558,2,FALSE)) ->  | H140: =IF(G140="","",VLOOKUP(G140,'Cuadro de Cuentas (5)'!$B$3:$C$558,2,FALSE)) -> 
E141: =IF(D141="","",VLOOKUP(D141,'Cuadro de Cuentas (5)'!$B$3:$C$558,2,FALSE)) ->  | H141: =IF(G141="","",VLOOKUP(G141,'Cuadro de Cuentas (5)'!$B$3:$C$558,2,FALSE)) -> 
E142: =IF(D142="","",VLOOKUP(D142,'Cuadro de Cuentas (5)'!$B$3:$C$558,2,FALSE)) ->  | H142: =IF(G142="","",VLOOKUP(G142,'Cuadro de Cuentas (5)'!$B$3:$C$558,2,FALSE)) -> 
E143: =IF(D143="","",VLOOKUP(D143,'Cuadro de Cuentas (5)'!$B$3:$C$558,2,FALSE)) ->  | H143: =IF(G143="","",VLOOKUP(G143,'Cuadro de Cuentas (5)'!$B$3:$C$558,2,FALSE)) -> 
E144: =IF(D144="","",VLOOKUP(D144,'Cuadro de Cuentas (5)'!$B$3:$C$558,2,FALSE)) ->  | H144: =IF(G144="","",VLOOKUP(G144,'Cuadro de Cuentas (5)'!$B$3:$C$558,2,FALSE)) -> 
E145: =IF(D145="","",VLOOKUP(D145,'Cuadro de Cuentas (5)'!$B$3:$C$558,2,FALSE)) ->  | H145: =IF(G145="","",VLOOKUP(G145,'Cuadro de Cuentas (5)'!$B$3:$C$558,2,FALSE)) -> 
E146: =IF(D146="","",VLOOKUP(D146,'Cuadro de Cuentas (5)'!$B$3:$C$558,2,FALSE)) ->  | H146: =IF(G146="","",VLOOKUP(G146,'Cuadro de Cuentas (5)'!$B$3:$C$558,2,FALSE)) -> 
E147: =IF(D147="","",VLOOKUP(D147,'Cuadro de Cuentas (5)'!$B$3:$C$558,2,FALSE)) ->  | H147: =IF(G147="","",VLOOKUP(G147,'Cuadro de Cuentas (5)'!$B$3:$C$558,2,FALSE)) -> 
E148: =IF(D148="","",VLOOKUP(D148,'Cuadro de Cuentas (5)'!$B$3:$C$558,2,FALSE)) ->  | H148: =IF(G148="","",VLOOKUP(G148,'Cuadro de Cuentas (5)'!$B$3:$C$558,2,FALSE)) -> 
E149: =IF(D149="","",VLOOKUP(D149,'Cuadro de Cuentas (5)'!$B$3:$C$558,2,FALSE)) ->  | H149: =IF(G149="","",VLOOKUP(G149,'Cuadro de Cuentas (5)'!$B$3:$C$558,2,FALSE)) -> 
E150: =IF(D150="","",VLOOKUP(D150,'Cuadro de Cuentas (5)'!$B$3:$C$558,2,FALSE)) ->  | H150: =IF(G150="","",VLOOKUP(G150,'Cuadro de Cuentas (5)'!$B$3:$C$558,2,FALSE)) -> 
E151: =IF(D151="","",VLOOKUP(D151,'Cuadro de Cuentas (5)'!$B$3:$C$558,2,FALSE)) ->  | H151: =IF(G151="","",VLOOKUP(G151,'Cuadro de Cuentas (5)'!$B$3:$C$558,2,FALSE)) -> 
E152: =IF(D152="","",VLOOKUP(D152,'Cuadro de Cuentas (5)'!$B$3:$C$558,2,FALSE)) ->  | H152: =IF(G152="","",VLOOKUP(G152,'Cuadro de Cuentas (5)'!$B$3:$C$558,2,FALSE)) -> 
E153: =IF(D153="","",VLOOKUP(D153,'Cuadro de Cuentas (5)'!$B$3:$C$558,2,FALSE)) ->  | H153: =IF(G153="","",VLOOKUP(G153,'Cuadro de Cuentas (5)'!$B$3:$C$558,2,FALSE)) -> 
E154: =IF(D154="","",VLOOKUP(D154,'Cuadro de Cuentas (5)'!$B$3:$C$558,2,FALSE)) ->  | H154: =IF(G154="","",VLOOKUP(G154,'Cuadro de Cuentas (5)'!$B$3:$C$558,2,FALSE)) -> 
C158: DEBE | I158: HABER
C159: IMPORTES | D159: Nº CUENTA | E159: NOMBRE CUENTA | G159: Nº CUENTA | H159: NOMBRE CUENTA | I159: IMPORTES
E160: =IF(D160="","",VLOOKUP(D160,'Cuadro de Cuentas (5)'!$B$3:$C$558,2,FALSE)) ->  | F160: =IF(G160="","","a") ->  | H160: =IF(G160="","",VLOOKUP(G160,'Cuadro de Cuentas (5)'!$B$3:$C$558,2,FALSE)) -> 
E161: =IF(D161="","",VLOOKUP(D161,'Cuadro de Cuentas (5)'!$B$3:$C$558,2,FALSE)) ->  | H161: =IF(G161="","",VLOOKUP(G161,'Cuadro de Cuentas (5)'!$B$3:$C$558,2,FALSE)) -> 
E162: =IF(D162="","",VLOOKUP(D162,'Cuadro de Cuentas (5)'!$B$3:$C$558,2,FALSE)) ->  | H162: =IF(G162="","",VLOOKUP(G162,'Cuadro de Cuentas (5)'!$B$3:$C$558,2,FALSE)) -> 
E163: =IF(D163="","",VLOOKUP(D163,'Cuadro de Cuentas (5)'!$B$3:$C$558,2,FALSE)) ->  | H163: =IF(G163="","",VLOOKUP(G163,'Cuadro de Cuentas (5)'!$B$3:$C$558,2,FALSE)) -> 
E164: =IF(D164="","",VLOOKUP(D164,'Cuadro de Cuentas (5)'!$B$3:$C$558,2,FALSE)) ->  | H164: =IF(G164="","",VLOOKUP(G164,'Cuadro de Cuentas (5)'!$B$3:$C$558,2,FALSE)) -> 
E165: =IF(D165="","",VLOOKUP(D165,'Cuadro de Cuentas (5)'!$B$3:$C$558,2,FALSE)) ->  | H165: =IF(G165="","",VLOOKUP(G165,'Cuadro de Cuentas (5)'!$B$3:$C$558,2,FALSE)) -> 
E166: =IF(D166="","",VLOOKUP(D166,'Cuadro de Cuentas (5)'!$B$3:$C$558,2,FALSE)) ->  | H166: =IF(G166="","",VLOOKUP(G166,'Cuadro de Cuentas (5)'!$B$3:$C$558,2,FALSE)) -> 
E167: =IF(D167="","",VLOOKUP(D167,'Cuadro de Cuentas (5)'!$B$3:$C$558,2,FALSE)) ->  | H167: =IF(G167="","",VLOOKUP(G167,'Cuadro de Cuentas (5)'!$B$3:$C$558,2,FALSE)) -> 
E168: =IF(D168="","",VLOOKUP(D168,'Cuadro de Cuentas (5)'!$B$3:$C$558,2,FALSE)) ->  | H168: =IF(G168="","",VLOOKUP(G168,'Cuadro de Cuentas (5)'!$B$3:$C$558,2,FALSE)) -> 
E169: =IF(D169="","",VLOOKUP(D169,'Cuadro de Cuentas (5)'!$B$3:$C$558,2,FALSE)) ->  | H169: =IF(G169="","",VLOOKUP(G169,'Cuadro de Cuentas (5)'!$B$3:$C$558,2,FALSE)) -> 
E170: =IF(D170="","",VLOOKUP(D170,'Cuadro de Cuentas (5)'!$B$3:$C$558,2,FALSE)) ->  | H170: =IF(G170="","",VLOOKUP(G170,'Cuadro de Cuentas (5)'!$B$3:$C$558,2,FALSE)) -> 
E171: =IF(D171="","",VLOOKUP(D171,'Cuadro de Cuentas (5)'!$B$3:$C$558,2,FALSE)) ->  | H171: =IF(G171="","",VLOOKUP(G171,'Cuadro de Cuentas (5)'!$B$3:$C$558,2,FALSE)) -> 
E172: =IF(D172="","",VLOOKUP(D172,'Cuadro de Cuentas (5)'!$B$3:$C$558,2,FALSE)) ->  | H172: =IF(G172="","",VLOOKUP(G172,'Cuadro de Cuentas (5)'!$B$3:$C$558,2,FALSE)) -> 
E173: =IF(D173="","",VLOOKUP(D173,'Cuadro de Cuentas (5)'!$B$3:$C$558,2,FALSE)) ->  | H173: =IF(G173="","",VLOOKUP(G173,'Cuadro de Cuentas (5)'!$B$3:$C$558,2,FALSE)) -> 
E174: =IF(D174="","",VLOOKUP(D174,'Cuadro de Cuentas (5)'!$B$3:$C$558,2,FALSE)) ->  | H174: =IF(G174="","",VLOOKUP(G174,'Cuadro de Cuentas (5)'!$B$3:$C$558,2,FALSE)) -> 
E175: =IF(D175="","",VLOOKUP(D175,'Cuadro de Cuentas (5)'!$B$3:$C$558,2,FALSE)) ->  | H175: =IF(G175="","",VLOOKUP(G175,'Cuadro de Cuentas (5)'!$B$3:$C$558,2,FALSE)) -> 
E176: =IF(D176="","",VLOOKUP(D176,'Cuadro de Cuentas (5)'!$B$3:$C$558,2,FALSE)) ->  | H176: =IF(G176="","",VLOOKUP(G176,'Cuadro de Cuentas (5)'!$B$3:$C$558,2,FALSE)) -> 
E177: =IF(D177="","",VLOOKUP(D177,'Cuadro de Cuentas (5)'!$B$3:$C$558,2,FALSE)) ->  | H177: =IF(G177="","",VLOOKUP(G177,'Cuadro de Cuentas (5)'!$B$3:$C$558,2,FALSE)) -> 
E178: =IF(D178="","",VLOOKUP(D178,'Cuadro de Cuentas (5)'!$B$3:$C$558,2,FALSE)) ->  | H178: =IF(G178="","",VLOOKUP(G178,'Cuadro de Cuentas (5)'!$B$3:$C$558,2,FALSE)) -> 
E179: =IF(D179="","",VLOOKUP(D179,'Cuadro de Cuentas (5)'!$B$3:$C$558,2,FALSE)) ->  | H179: =IF(G179="","",VLOOKUP(G179,'Cuadro de Cuentas (5)'!$B$3:$C$558,2,FALSE)) -> 
E180: =IF(D180="","",VLOOKUP(D180,'Cuadro de Cuentas (5)'!$B$3:$C$558,2,FALSE)) ->  | H180: =IF(G180="","",VLOOKUP(G180,'Cuadro de Cuentas (5)'!$B$3:$C$558,2,FALSE)) -> 
E181: =IF(D181="","",VLOOKUP(D181,'Cuadro de Cuentas (5)'!$B$3:$C$558,2,FALSE)) ->  | H181: =IF(G181="","",VLOOKUP(G181,'Cuadro de Cuentas (5)'!$B$3:$C$558,2,FALSE)) -> 
E182: =IF(D182="","",VLOOKUP(D182,'Cuadro de Cuentas (5)'!$B$3:$C$558,2,FALSE)) ->  | H182: =IF(G182="","",VLOOKUP(G182,'Cuadro de Cuentas (5)'!$B$3:$C$558,2,FALSE)) -> 
E183: =IF(D183="","",VLOOKUP(D183,'Cuadro de Cuentas (5)'!$B$3:$C$558,2,FALSE)) ->  | H183: =IF(G183="","",VLOOKUP(G183,'Cuadro de Cuentas (5)'!$B$3:$C$558,2,FALSE)) -> 
E184: =IF(D184="","",VLOOKUP(D184,'Cuadro de Cuentas (5)'!$B$3:$C$558,2,FALSE)) ->  | H184: =IF(G184="","",VLOOKUP(G184,'Cuadro de Cuentas (5)'!$B$3:$C$558,2,FALSE)) -> 
E185: =IF(D185="","",VLOOKUP(D185,'Cuadro de Cuentas (5)'!$B$3:$C$558,2,FALSE)) ->  | H185: =IF(G185="","",VLOOKUP(G185,'Cuadro de Cuentas (5)'!$B$3:$C$558,2,FALSE)) -> 
E186: =IF(D186="","",VLOOKUP(D186,'Cuadro de Cuentas (5)'!$B$3:$C$558,2,FALSE)) ->  | H186: =IF(G186="","",VLOOKUP(G186,'Cuadro de Cuentas (5)'!$B$3:$C$558,2,FALSE)) -> 
E187: =IF(D187="","",VLOOKUP(D187,'Cuadro de Cuentas (5)'!$B$3:$C$558,2,FALSE)) ->  | H187: =IF(G187="","",VLOOKUP(G187,'Cuadro de Cuentas (5)'!$B$3:$C$558,2,FALSE)) -> 
E188: =IF(D188="","",VLOOKUP(D188,'Cuadro de Cuentas (5)'!$B$3:$C$558,2,FALSE)) ->  | H188: =IF(G188="","",VLOOKUP(G188,'Cuadro de Cuentas (5)'!$B$3:$C$558,2,FALSE)) -> 
E189: =IF(D189="","",VLOOKUP(D189,'Cuadro de Cuentas (5)'!$B$3:$C$558,2,FALSE)) ->  | H189: =IF(G189="","",VLOOKUP(G189,'Cuadro de Cuentas (5)'!$B$3:$C$558,2,FALSE)) -> 
E190: =IF(D190="","",VLOOKUP(D190,'Cuadro de Cuentas (5)'!$B$3:$C$558,2,FALSE)) ->  | H190: =IF(G190="","",VLOOKUP(G190,'Cuadro de Cuentas (5)'!$B$3:$C$558,2,FALSE)) -> 
E191: =IF(D191="","",VLOOKUP(D191,'Cuadro de Cuentas (5)'!$B$3:$C$558,2,FALSE)) ->  | H191: =IF(G191="","",VLOOKUP(G191,'Cuadro de Cuentas (5)'!$B$3:$C$558,2,FALSE)) -> 
E192: =IF(D192="","",VLOOKUP(D192,'Cuadro de Cuentas (5)'!$B$3:$C$558,2,FALSE)) ->  | H192: =IF(G192="","",VLOOKUP(G192,'Cuadro de Cuentas (5)'!$B$3:$C$558,2,FALSE)) -> 
E193: =IF(D193="","",VLOOKUP(D193,'Cuadro de Cuentas (5)'!$B$3:$C$558,2,FALSE)) ->  | H193: =IF(G193="","",VLOOKUP(G193,'Cuadro de Cuentas (5)'!$B$3:$C$558,2,FALSE)) -> 
E194: =IF(D194="","",VLOOKUP(D194,'Cuadro de Cuentas (5)'!$B$3:$C$558,2,FALSE)) ->  | H194: =IF(G194="","",VLOOKUP(G194,'Cuadro de Cuentas (5)'!$B$3:$C$558,2,FALSE)) -> 
E195: =IF(D195="","",VLOOKUP(D195,'Cuadro de Cuentas (5)'!$B$3:$C$558,2,FALSE)) ->  | H195: =IF(G195="","",VLOOKUP(G195,'Cuadro de Cuentas (5)'!$B$3:$C$558,2,FALSE)) -> 
E196: =IF(D196="","",VLOOKUP(D196,'Cuadro de Cuentas (5)'!$B$3:$C$558,2,FALSE)) ->  | H196: =IF(G196="","",VLOOKUP(G196,'Cuadro de Cuentas (5)'!$B$3:$C$558,2,FALSE)) -> 
E197: =IF(D197="","",VLOOKUP(D197,'Cuadro de Cuentas (5)'!$B$3:$C$558,2,FALSE)) ->  | H197: =IF(G197="","",VLOOKUP(G197,'Cuadro de Cuentas (5)'!$B$3:$C$558,2,FALSE)) -> 
E198: =IF(D198="","",VLOOKUP(D198,'Cuadro de Cuentas (5)'!$B$3:$C$558,2,FALSE)) ->  | H198: =IF(G198="","",VLOOKUP(G198,'Cuadro de Cuentas (5)'!$B$3:$C$558,2,FALSE)) -> 
E199: =IF(D199="","",VLOOKUP(D199,'Cuadro de Cuentas (5)'!$B$3:$C$558,2,FALSE)) ->  | H199: =IF(G199="","",VLOOKUP(G199,'Cuadro de Cuentas (5)'!$B$3:$C$558,2,FALSE)) -> 
E200: =IF(D200="","",VLOOKUP(D200,'Cuadro de Cuentas (5)'!$B$3:$C$558,2,FALSE)) ->  | H200: =IF(G200="","",VLOOKUP(G200,'Cuadro de Cuentas (5)'!$B$3:$C$558,2,FALSE)) -> 
E201: =IF(D201="","",VLOOKUP(D201,'Cuadro de Cuentas (5)'!$B$3:$C$558,2,FALSE)) ->  | H201: =IF(G201="","",VLOOKUP(G201,'Cuadro de Cuentas (5)'!$B$3:$C$558,2,FALSE)) -> 
E202: =IF(D202="","",VLOOKUP(D202,'Cuadro de Cuentas (5)'!$B$3:$C$558,2,FALSE)) ->  | H202: =IF(G202="","",VLOOKUP(G202,'Cuadro de Cuentas (5)'!$B$3:$C$558,2,FALSE)) -> 
E203: =IF(D203="","",VLOOKUP(D203,'Cuadro de Cuentas (5)'!$B$3:$C$558,2,FALSE)) ->  | H203: =IF(G203="","",VLOOKUP(G203,'Cuadro de Cuentas (5)'!$B$3:$C$558,2,FALSE)) -> 
E204: =IF(D204="","",VLOOKUP(D204,'Cuadro de Cuentas (5)'!$B$3:$C$558,2,FALSE)) ->  | H204: =IF(G204="","",VLOOKUP(G204,'Cuadro de Cuentas (5)'!$B$3:$C$558,2,FALSE)) -> 

Sheet Enunciado Renovación Maquinaria (hidden)
B3: La empresa tiene una columna de refracción que adquirió el | G3: 2012-09-30 | H3: a la que se le asignó una vida útil de
B4: 10 | C4: años, considerando que el método de amortización adecuado era el lineal. Con fecha | I4: ='Factura Adquisición Renov. Maq.'!L5 -> 2015-10-31 | J4: la empresa
B5: decide sustituir el conjunto de lentes del equipo por unos de última generación que, aunque no incrementan la vida útil de la columna,
B6: mejoran sustancialmente la calidad del diagnóstico y reducen un 20% el tiempo necesario para realizarlo.
B7: Para ello adquirió a crédito a | D7: 75 | E7: días el pack de lentes necesario a una empresa inglesa especializada por
B8: ='Factura Adquisición Renov. Maq.'!K38 -> 2000 | C8: El valor de adquisición de la columna de refracción fue de | G8: 8400 | H8: y se estima que el juego de lentes supone el
B9: 0.15 | C9: del valor total del equipo.
B10: En la fecha de compra, la libra esterlina cotizaba a | F10: 1.42 | G10: Al cierre al | H10: 2015-12-31 | I10: la cotización estaba en
B11: 1.4 | C11: Finalmente, a la fecha de pago, el cambio había subido a | G11: 1.43
B12: Contabilice la adquisición del inmovilizado, los asientos necesarios a fecha de cierre del ejercicio y el pago de la factura al proveedor.
B13: Tipo IVA | C13: 0.21

Sheet Factura Adquisición Renov. Maq. (hidden)
K5: Date: | L5: 2015-10-31
K6: Invoice number: | L6: X-25184b
D11: Optical Industries Larsson, Ltd.
D12: 25 Russell Road
D13: North Sunderland, NE168 7UA, United Kingdom
D14: VAT Reg No | E14: GB991 1548 73
C18: Customer: | D18: Buena Visión, S.A.
C19: Address: | D19: C/ Martín Colomer, 45. 46007 Valencia
C20: VAT Reg No | D20: ES A-20.396.059
C21: Ref:
C25: Unist | D25: Concept | K25: Unit price | L25: Total
L26: =IF(D26<>"",D26*K26,"") -> 
C38: 1 | D38: Optical pack Zaiss Z-458i | K38: 2000 | L38: =C38*K38 -> 2000
J53: Tax Base | L53: =+SUM(L26:L52) -> 2000
I54: VAT | L54: =+L53*J54 -> 0
J55: INVOICE TOTAL | L55: =+L53+L54 -> 2000
C58: PAYMENT DATA
C59: Bank | E59: SANTANDER UK
C61: IBAN Code: | E61: GB26 LOYD 290769234794 | H61: BIC Code: | I61: LOYDGB21
C63: Observations: | E63: Wire transfer
C65: Due date: | E65: =L5+75 -> 2016-01-14

Sheet Transf. Bancaria Renov. Maq. (hidden)
H2: COMUNICACIÓN DE OPERACIÓN EN CUENTA
B6: Fecha | H6: Concepto | O6: Importe
I7: Su orden de transf. A | L7: =+E10 -> Optical Industries Larsson, Ltd. | O7: =+'Factura Adquisición Renov. Maq.'!L55*'Enunciado Renovación Maquinaria'!G11 -> 2860 | P7: €
E8: 2015-07-29
B9: Ordenante: | E9: Buena Visión S.A.
B10: Beneficiario: | E10: =+'Factura Adquisición Renov. Maq.'!D11 -> Optical Industries Larsson, Ltd.
B11: Concepto: | E11: Pago factura nº | F11: ='Factura Adquisición Renov. Maq.'!L6 -> X-25184b
B12: IBAN Beneficiario | E12: =+'Factura Adquisición Renov. Maq.'!E61 -> GB26 LOYD 290769234794 | G12: =+'Factura Adquisición Renov. Maq.'!I61 -> LOYDGB21
B13: Clave transferencia: | E13: 130T131175846352
B16: Cuenta Adeudo/Abono | F16: Moneda de la cuenta | H16: Fecha valor | K16: Anotación en cuenta
B17: 2038 | C17: 6015 | D17: 40 | E17: 3101767432 | F17: EURO | H17: =+'Enunciado Renovación Maquinaria'!I4+'Enunciado Renovación Maquinaria'!D7 -> 2016-01-14 | K17: Importe del recibo/factura | O17: =O7 -> 2860 | P17: =P7 -> €
B18: Titular/es de la cuenta | K18: Total anotado en cuenta | O18: =O17 -> 2860 | P18: =P17 -> €
D19: =+E9 -> Buena Visión S.A.

Sheet Cuadro de Cuentas (6) (hidden)
B2: Cuadro de Cuentas Plan General Contable 2008
B3: 1 | C3: Financiación Básica
B4: 10 | C4: Capital
B5: 100 | C5: Capital social
B6: 101 | C6: Fondo social
B7: 102 | C7: Capital
B8: 103 | C8: Socios por desembolsos no exigidos...
B9: 1030 | C9: Socios por desembolsos no exigidos, capital social
B10: 1034 | C10: Socios por desembolsos no exigidos, capital pendiente de inscripción
B11: 103 | C11: Socios por desembolsos no exigidos...
B12: 104 | C12: Socios por aportaciones no dinerarias pendientes...
B13: 1040 | C13: Socios por aportaciones no dinerarias pendientes, capital social
B14: 1044 | C14: Socios por aportaciones no dinerarias pendientes, capital pendiente de inscripción
B15: 108 | C15: Acciones o participaciones propias en situaciones especiales
B16: 109 | C16: Acciones o participaciones propias para reducción de capital
B17: 11 | C17: Reservas
B18: 110 | C18: Prima de emisión o asunción
B19: 111 | C19: Patrimonio neto por emisión de instrumentos financieros compuestos
B20: 112 | C20: Reserva legal
B21: 113 | C21: Reservas voluntarias
B22: 114 | C22: Reservas especiales
B23: 115 | C23: Reservas por pérdidas y ganancias actuariales y otros ajustes
B24: 117 | C24: Aportaciones de socios o propietarios
B25: 119 | C25: Diferencias por ajuste del capital a euros
B26: 12 | C26: Resultados pendientes de aplicación
B27: 120 | C27: Remanente
B28: 121 | C28: Resultados negativos de ejercicios anteriores
B29: 129 | C29: Resultados del ejercicio
B30: 13 | C30: Subvenciones, donaciones y ajustes por cambios de valor
B31: 130 | C31: Subvenciones oficiales de capital
B32: 131 | C32: Donaciones y legados de capital
B33: 132 | C33: Otras subvenciones, donaciones y legados
B34: 133 | C34: Ajustes por valoración en instrumentos financieros
B35: 134 | C35: Operaciones de cobertura
B36: 135 | C36: Diferencias de conversión
B37: 136 | C37: Ajustes por valoración en activos no corrientes y grupos enajenables de elementos mantenidos para la venta
B38: 137 | C38: Ingresos fiscales a distribuir en varios ejercicios
B39: 14 | C39: Provisiones
B40: 140 | C40: Provisión para retribuciones y otras prestaciones al personal.
B41: 141 | C41: Provisión para impuestos
B42: 142 | C42: Provisión para otras responsabilidades
B43: 143 | C43: Provisión por desmantelamiento, retiro o rehabilitación del inmovilizado.
B44: 144 | C44: Provisión para otras responsabilidades
B45: 145 | C45: Provisión para actuaciones medioambientales
B46: 146 | C46: Provisión para reestructuraciones
B47: 147 | C47: Provisiones por transacciones con pagos basados en instrumentos de patrimonio
B48: 15 | C48: Deudas a largo plazo con características especiales
B49: 150 | C49: Acciones o participaciones a largo plazo contabilizadas como pasivo
B50: 153 | C50: Desembolsos no exigidos por acciones o participaciones contabilizadas como pasivo.
B51: 154 | C51: Aportaciones no dinerarias pendientes por acciones o participaciones contabilizadas como pasivo
B52: 16 | C52: Deudas a largo plazo con partes vinculadas
B53: 160 | C53: Deudas a largo plazo con entidades de crédito vinculadas
B54: 161 | C54: Proveedores de inmovilizado a largo plazo, partes vinculadas
B55: 162 | C55: Otras deudas a largo plazo con partes vinculadas
B56: 163 | C56: Otras deudas a largo plazo con partes vinculadas
B57: 17 | C57: Deudas a largo plazo por préstamos recibidos y otros conceptos
B58: 170 | C58: Deudas a largo plazo con entidades de crédito
B59: 171 | C59: Deudas a largo plazo
B60: 172 | C60: Deudas a largo plazo transformables en subvenciones, donaciones y legados
B61: 173 | C61: Proveedores de inmovilizado a largo plazo
B62: 174 | C62: Acreedores por arrendamiento financiero a largo plazo
B63: 175 | C63: Efectos a pagar a largo plazo
B64: 176 | C64: Pasivos por derivados financieros a largo plazo
B65: 177 | C65: Obligaciones y bonos
B66: 178 | C66: Obligaciones y bonos convertibles
B67: 179 | C67: Deudas representadas en otros valores negociables
B68: 18 | C68: Pasivos por fianzas y garantías a largo plazo
B69: 180 | C69: Fianzas recibidas a largo plazo
B70: 181 | C70: Anticipos recibidos por ventas o prestaciones de servicios a largo plazo
B71: 185 | C71: Depósitos recibidos a largo plazo
B72: 189 | C72: Garantías financieras a largo plazo
B73: 19 | C73: Situaciones transitorias de financiación
B74: 190 | C74: Acciones o participaciones emitidas
B75: 192 | C75: Suscriptores de acciones
B76: 194 | C76: Capital emitido pendiente de inscripción
B77: 195 | C77: Acciones o participaciones emitidas consideradas como pasivos financieros
B78: 197 | C78: Suscriptores de acciones consideradas coo pasivos financieros
B79: 199 | C79: Acciones o participaciones emitidas consideradas como pasivo financieros, pendientes de inscripción
B80: 2 | C80: Inmovilizado
B81: 20 | C81: Inmovilizaciones intangibles
B82: 200 | C82: Investigación
B83: 201 | C83: Desarrollo
B84: 202 | C84: Concesiones administrativas
B85: 203 | C85: Propiedad industrial
B86: 204 | C86: Fondo de comercio
B87: 205 | C87: Derechos de traspaso
B88: 206 | C88: Aplicaciones informáticas
B89: 209 | C89: Anticipos para inmovilizaciones intangibles
B90: 21 | C90: Inmovilizaciones materiales
B91: 210 | C91: Terrenos y bienes naturales
B92: 211 | C92: Construcciones
B93: 212 | C93: Instalaciones técnicas
B94: 213 | C94: Maquinaria
B95: 214 | C95: Utillaje
B96: 215 | C96: Otras instalaciones
B97: 216 | C97: Mobiliario
B98: 217 | C98: Equipos para procesos de información
B99: 218 | C99: Elementos de transporte
B100: 219 | C100: Otro inmovilizado material
B101: 22 | C101: Inversiones inmobiliarias
B102: 220 | C102: Inversiones en terrenos y bienes naturales
B103: 221 | C103: Inversiones en construcciones
B104: 23 | C104: Inmovilizaciones materiales en curso
B105: 230 | C105: Adaptación de terrenos y bienes naturales
B106: 231 | C106: Construcciones en curso
B107: 232 | C107: Instalaciones técnicas en montaje
B108: 233 | C108: Maquinaria en montaje
B109: 237 | C109: Equipos para procesos de información en montaje
B110: 239 | C110: Anticipos para inmovilizaciones materiales
B111: 24 | C111: Inversiones financieras en partes vinculadas
B112: 240 | C112: Participaciones a largo plazo en partes vinculadas
B113: 241 | C113: Valores representativos de deuda a largo plazo de partes vinculadas
B114: 242 | C114: Créditos a largo plazo a partes vinculadas
B115: 249 | C115: Desembolsos pendientes sobre participaciones a largo plazo en partes vinculadas
B116: 25 | C116: Otras inversiones financieras a largo plazo
B117: 250 | C117: Inversiones financieras a largo plazo en instrumentos de patrimonio
B118: 251 | C118: Valores representativos de deuda a largo plazo
B119: 252 | C119: Créditos a largo plazo
B120: 253 | C120: Créditos a largo plazo por enajenación de inmovilizado
B121: 254 | C121: Créditos a largo plazo al personal
B122: 255 | C122: Activos por derivados financieros a largo plazo
B123: 257 | C123: Activos por retribuciones a largo plazo de prestación definida
B124: 258 | C124: Imposiciones a largo plazo
B125: 259 | C125: Desembolsos pendientes sobre participaciones en el patrimonio neto a largo plazo
B126: 26 | C126: Fianzas y depósitos constituidos a largo plazo
B127: 260 | C127: Fianzas constituidas a largo plazo
B128: 265 | C128: Depósitos constituidos a largo plazo
B129: 28 | C129: Amortización acumulada del inmovilizado
B130: 280 | C130: Amortización acumulada del inmovilizado intangible
B131: 281 | C131: Amortización acumulada del inmovilizado material
B132: 282 | C132: Amortización acumulada de las inversiones inmobiliarias
B133: 29 | C133: Deterioro de valor de inmovilizado
B134: 290 | C134: Deterioro de valor del inmovilizado intangible
B135: 291 | C135: Deterioro de valor del inmovilizado material
B136: 292 | C136: Deterioro de valor de las inversiones inmobiliarias
B137: 293 | C137: Deterioro de valor de participaciones a largo plazo en partes vinculadas
B138: 294 | C138: Deterioro de valor de valores representativos de deuda a largo plazo de partes vinculadas
B139: 295 | C139: Deterioro de valor de créditos a largo plazo a partes vinculadas
B140: 297 | C140: Deterioro de valor de valores representativos de deuda a largo plazo
B141: 298 | C141: Deterioro de valor de créditos a largo plazo
B142: 3 | C142: Existencias
B143: 30 | C143: Comerciales
B144: 300 | C144: Mercaderías A
B145: 301 | C145: Mercaderías B
B146: 302 | C146: Mercaderías C
B147: 303 | C147: Mercaderías D
B148: 304 | C148: Mercaderías E
B149: 305 | C149: Mercaderías F
B150: 306 | C150: Mercaderías G
B151: 307 | C151: Mercaderías H
B152: 308 | C152: Mercaderías I
B153: 309 | C153: Mercaderías J
B154: 31 | C154: Materias Primas
B155: 310 | C155: Materias primas A
B156: 312 | C156: Materias primas B
B157: 313 | C157: Materias primas C
B158: 314 | C158: Materias primas D
B159: 315 | C159: Materias primas E
B160: 316 | C160: Materias primas F
B161: 317 | C161: Materias primas H
B162: 318 | C162: Materias primas I
B163: 319 | C163: Materias primas J
B164: 32 | C164: Otros aprovisionamientos
B165: 320 | C165: Elementos y conjuntos incorporables
B166: 321 | C166: Combustibles
B167: 322 | C167: Repuestos
B168: 325 | C168: Materiales diversos
B169: 326 | C169: Embalajes
B170: 327 | C170: Envases
B171: 328 | C171: Material de oficina
B172: 33 | C172: Productos en curso
B173: 330 | C173: Productos en curso A
B174: 331 | C174: Productos en curso B
B175: 332 | C175: Productos en curso C
B176: 333 | C176: Productos en curso D
B177: 334 | C177: Productos en curso E
B178: 335 | C178: Productos en curso F
B179: 336 | C179: Productos en curso G
B180: 337 | C180: Productos en curso H
B181: 338 | C181: Productos en curso I
B182: 339 | C182: Productos en curso J
B183: 34 | C183: Productos semiterminados
B184: 340 | C184: Productos semiterminados A
B185: 341 | C185: Productos semiterminados B
B186: 342 | C186: Productos semiterminados C
B187: 343 | C187: Productos semiterminados D
B188: 344 | C188: Productos semiterminados E
B189: 345 | C189: Productos semiterminados F
B190: 346 | C190: Productos semiterminados G
B191: 347 | C191: Productos semiterminados H
B192: 348 | C192: Productos semiterminados I
B193: 349 | C193: Productos semiterminados J
B194: 35 | C194: Productos terminados
B195: 350 | C195: Productos terminados A
B196: 351 | C196: Productos terminados B
B197: 352 | C197: Productos terminados C
B198: 353 | C198: Productos terminados D
B199: 354 | C199: Productos terminados E
B200: 355 | C200: Productos terminados F
B201: 356 | C201: Productos terminados G
... 360 more rows

Sheet Sol. L Diario Renov. Maquinaria (hidden)
C3: DEBE | I3: HABER
C4: IMPORTES | D4: Nº CUENTA | E4: NOMBRE CUENTA | F4: ='Factura Adquisición Renov. Maq.'!L5 -> 2015-10-31 | G4: Nº CUENTA | H4: NOMBRE CUENTA | I4: IMPORTES
C5: =+(('Enunciado Renovación Maquinaria'!G8*'Enunciado Renovación Maquinaria'!B9)*(12-DATEDIF('Enunciado Renovación Maquinaria'!I4,'Enunciado Renovación Maquinaria'!H10,"m")))/('Enunciado Renovación Maquinaria'!B4*12) -> 105 | D5: 681 | E5: =IF(D5="","",VLOOKUP(D5,'Cuadro de Cuentas (6)'!$B$3:$C$561,2,FALSE)) -> Amortización del inmovilizado material | F5: =IF(G5="","","a") -> a | G5: 281 | H5: =IF(G5="","",VLOOKUP(G5,'Cuadro de Cuentas (6)'!$B$3:$C$561,2,FALSE)) -> Amortización acumulada del inmovilizado material | I5: =+C5 -> 105
E6: =IF(D6="","",VLOOKUP(D6,'Cuadro de Cuentas (6)'!$B$3:$C$561,2,FALSE)) ->  | H6: =IF(G6="","",VLOOKUP(G6,'Cuadro de Cuentas (6)'!$B$3:$C$561,2,FALSE)) -> 
E7: Por la amortización devengada de las lentes antiguas
F8: =+'Enunciado Renovación Maquinaria'!I4 -> 2015-10-31 | H8: =IF(G8="","",VLOOKUP(G8,'Cuadro de Cuentas (6)'!$B$3:$C$561,2,FALSE)) -> 
C9: =+(('Enunciado Renovación Maquinaria'!G8*'Enunciado Renovación Maquinaria'!B9)*(DATEDIF('Enunciado Renovación Maquinaria'!G3,'Enunciado Renovación Maquinaria'!I4,"m")))/('Enunciado Renovación Maquinaria'!B4*12) -> 388.5 | D9: 281 | E9: =IF(D9="","",VLOOKUP(D9,'Cuadro de Cuentas (6)'!$B$3:$C$561,2,FALSE)) -> Amortización acumulada del inmovilizado material | F9: a | G9: 213 | H9: =IF(G9="","",VLOOKUP(G9,'Cuadro de Cuentas (6)'!$B$3:$C$561,2,FALSE)) -> Maquinaria | I9: =+'Enunciado Renovación Maquinaria'!G8*'Enunciado Renovación Maquinaria'!B9 -> 1260
C10: =+I9-C9 -> 871.5 | D10: 671 | E10: =IF(D10="","",VLOOKUP(D10,'Cuadro de Cuentas (6)'!$B$3:$C$561,2,FALSE)) -> Pérdidas procedentes del inmovilizado material | H10: =IF(G10="","",VLOOKUP(G10,'Cuadro de Cuentas (6)'!$B$3:$C$561,2,FALSE)) -> 
E12: Por la baja de las lentes antiguas | H12: =IF(G12="","",VLOOKUP(G12,'Cuadro de Cuentas (6)'!$B$3:$C$561,2,FALSE)) -> 
F13: =+'Enunciado Renovación Maquinaria'!I4 -> 2015-10-31 | H13: =IF(G13="","",VLOOKUP(G13,'Cuadro de Cuentas (6)'!$B$3:$C$561,2,FALSE)) -> 
C14: ='Factura Adquisición Renov. Maq.'!L53*'Enunciado Renovación Maquinaria'!F10 -> 2840 | D14: 213 | E14: =IF(D14="","",VLOOKUP(D14,'Cuadro de Cuentas (6)'!$B$3:$C$561,2,FALSE)) -> Maquinaria
C15: =+C14*'Enunciado Renovación Maquinaria'!C13 -> 596.4 | D15: 4721 | E15: =IF(D15="","",VLOOKUP(D15,'Cuadro de Cuentas (6)'!$B$3:$C$561,2,FALSE)) -> Hacienda Pública, IVA soportado operaciones intracomunitarias | F15: a | G15: 5234 | H15: =IF(G15="","",VLOOKUP(G15,'Cuadro de Cuentas (6)'!$B$3:$C$561,2,FALSE)) -> Proveedores de inmovilizado a corto plazo, moneda extranjera | I15: ='Factura Adquisición Renov. Maq.'!L55 -> 2000
F16: =IF(G16="","","a") -> a | G16: 4771 | H16: =IF(G16="","",VLOOKUP(G16,'Cuadro de Cuentas (6)'!$B$3:$C$561,2,FALSE)) -> Hacienda Pública, IVA repercutido operaciones intracomunitarias | I16: =+C15 -> 596.4
E17: Por la compra de las lentes nuevas | F17: =IF(G17="","","a") ->  | H17: =IF(G17="","",VLOOKUP(G17,'Cuadro de Cuentas (6)'!$B$3:$C$561,2,FALSE)) -> 
F18: =+'Enunciado Renovación Maquinaria'!H10 -> 2015-12-31 | H18: =IF(G18="","",VLOOKUP(G18,'Cuadro de Cuentas (6)'!$B$3:$C$561,2,FALSE)) -> 
C19: =((+'Enunciado Renovación Maquinaria'!G8-'Sol. L Diario Renov. Maquinaria'!I9)/'Enunciado Renovación Maquinaria'!B4)+(C14*+(DATEDIF('Enunciado Renovación Maquinaria'!I4,'Enunciado Renovación Maquinaria'!H10,"m"))/DATEDIF('Enunciado Renovación Maquinaria'!H10,+DATE(YEAR('Enunciado Renovación Maquinaria'!G3)+'Enunciado Renovación Maquinaria'!B4,MONTH('Enunciado Renovación Maquinaria'!G3),DAY('Enunciado Renovación Maquinaria'!G3)),"m"))+(C14*+(DATEDIF('Enunciado Renovación Maquinaria'!I4,'Enunciado Renovación Maquinaria'!H10,"m"))/DATEDIF('Enunciado Renovación Maquinaria'!H10,+DATE(YEAR('Enunciado Renovación Maquinaria'!G3)+'Enunciado Renovación Maquinaria'!B4,MONTH('Enunciado Renovación Maquinaria'!G3),DAY('Enunciado Renovación Maquinaria'!G3)),"m")) -> 856 | D19: 681 | E19: =IF(D19="","",VLOOKUP(D19,'Cuadro de Cuentas (6)'!$B$3:$C$561,2,FALSE)) -> Amortización del inmovilizado material | F19: =IF(G19="","","a") -> a | G19: 281 | H19: =IF(G19="","",VLOOKUP(G19,'Cuadro de Cuentas (6)'!$B$3:$C$561,2,FALSE)) -> Amortización acumulada del inmovilizado material | I19: =C19 -> 856
E20: =IF(D20="","",VLOOKUP(D20,'Cuadro de Cuentas (6)'!$B$3:$C$561,2,FALSE)) ->  | H20: =IF(G20="","",VLOOKUP(G20,'Cuadro de Cuentas (6)'!$B$3:$C$561,2,FALSE)) -> 
E21: Por la amortización del ejercicio | H21: =IF(G21="","",VLOOKUP(G21,'Cuadro de Cuentas (6)'!$B$3:$C$561,2,FALSE)) -> 
E22: =IF(D22="","",VLOOKUP(D22,'Cuadro de Cuentas (6)'!$B$3:$C$561,2,FALSE)) ->  | F22: =+'Enunciado Renovación Maquinaria'!H10 -> 2015-12-31 | H22: =IF(G22="","",VLOOKUP(G22,'Cuadro de Cuentas (6)'!$B$3:$C$561,2,FALSE)) -> 
C23: =+IF('Enunciado Renovación Maquinaria'!F10>'Enunciado Renovación Maquinaria'!B11,'Enunciado Renovación Maquinaria'!B8*'Enunciado Renovación Maquinaria'!F10-'Enunciado Renovación Maquinaria'!B8*'Enunciado Renovación Maquinaria'!B11,-('Enunciado Renovación Maquinaria'!B8*'Enunciado Renovación Maquinaria'!F10-'Enunciado Renovación Maquinaria'!B8*'Enunciado Renovación Maquinaria'!B11)) -> 40 | D23: =+IF('Enunciado Renovación Maquinaria'!F10>'Enunciado Renovación Maquinaria'!B11,5234,668) -> 5234 | E23: =IF(D23="","",VLOOKUP(D23,'Cuadro de Cuentas (6)'!$B$3:$C$561,2,FALSE)) -> Proveedores de inmovilizado a corto plazo, moneda extranjera | F23: =IF(G23="","","a") -> a | G23: =+IF('Enunciado Renovación Maquinaria'!F10>'Enunciado Renovación Maquinaria'!B11,768,5234) -> 768 | H23: =IF(G23="","",VLOOKUP(G23,'Cuadro de Cuentas (6)'!$B$3:$C$561,2,FALSE)) -> Diferencias positivas de cambio | I23: =+C23 -> 40
E24: =IF(D24="","",VLOOKUP(D24,'Cuadro de Cuentas (6)'!$B$3:$C$561,2,FALSE)) ->  | H24: =IF(G24="","",VLOOKUP(G24,'Cuadro de Cuentas (6)'!$B$3:$C$561,2,FALSE)) -> 
E25: Por el ajuste del tipo de cambio al cierre del ejercicio | H25: =IF(G25="","",VLOOKUP(G25,'Cuadro de Cuentas (6)'!$B$3:$C$561,2,FALSE)) -> 
E26: =IF(D26="","",VLOOKUP(D26,'Cuadro de Cuentas (6)'!$B$3:$C$561,2,FALSE)) ->  | F26: 2015-12-31 | H26: =IF(G26="","",VLOOKUP(G26,'Cuadro de Cuentas (6)'!$B$3:$C$561,2,FALSE)) -> 
C27: =+I15+IF(D23=5234,-C23,+C23) -> 1960 | D27: 5234 | E27: =IF(D27="","",VLOOKUP(D27,'Cuadro de Cuentas (6)'!$B$3:$C$561,2,FALSE)) -> Proveedores de inmovilizado a corto plazo, moneda extranjera | G27: =+IF('Enunciado Renovación Maquinaria'!B11>'Enunciado Renovación Maquinaria'!G11,768,"") ->  | H27: =IF(G27="","",VLOOKUP(G27,'Cuadro de Cuentas (6)'!$B$3:$C$561,2,FALSE)) ->  | I27: =+IF('Enunciado Renovación Maquinaria'!B11>'Enunciado Renovación Maquinaria'!G11,'Enunciado Renovación Maquinaria'!B8*'Enunciado Renovación Maquinaria'!B11-'Enunciado Renovación Maquinaria'!B8*'Enunciado Renovación Maquinaria'!G11,"") -> 
C28: =+IF('Enunciado Renovación Maquinaria'!B11<'Enunciado Renovación Maquinaria'!G11,-('Enunciado Renovación Maquinaria'!B8*'Enunciado Renovación Maquinaria'!B11-'Enunciado Renovación Maquinaria'!B8*'Enunciado Renovación Maquinaria'!G11),"") -> 60 | D28: =+IF('Enunciado Renovación Maquinaria'!B11>'Enunciado Renovación Maquinaria'!G11,"",668) -> 668 | E28: =IF(D28="","",VLOOKUP(D28,'Cuadro de Cuentas (6)'!$B$3:$C$561,2,FALSE)) -> Diferencias negativas de cambio | F28: =IF(G28="","","a") -> a | G28: 572 | H28: =IF(G28="","",VLOOKUP(G28,'Cuadro de Cuentas (6)'!$B$3:$C$561,2,FALSE)) -> Bancos e instituciones de crédito c/c vista, euros | I28: =IF(C28<>"",C27+C28,C27-I27) -> 2020
E29: =IF(D29="","",VLOOKUP(D29,'Cuadro de Cuentas (6)'!$B$3:$C$561,2,FALSE)) ->  | H29: =IF(G29="","",VLOOKUP(G29,'Cuadro de Cuentas (6)'!$B$3:$C$561,2,FALSE)) -> 
E30: Por el pago de la deuda | H30: =IF(G30="","",VLOOKUP(G30,'Cuadro de Cuentas (6)'!$B$3:$C$561,2,FALSE)) -> 
E31: =IF(D31="","",VLOOKUP(D31,'Cuadro de Cuentas (6)'!$B$3:$C$561,2,FALSE)) ->  | H31: =IF(G31="","",VLOOKUP(G31,'Cuadro de Cuentas (6)'!$B$3:$C$561,2,FALSE)) -> 
E44: =IF(D44="","",VLOOKUP(D44,'Cuadro de Cuentas (6)'!$B$3:$C$561,2,FALSE)) ->  | H44: =IF(G44="","",VLOOKUP(G44,'Cuadro de Cuentas (6)'!$B$3:$C$561,2,FALSE)) -> 
E45: =IF(D45="","",VLOOKUP(D45,'Cuadro de Cuentas (6)'!$B$3:$C$561,2,FALSE)) ->  | H45: =IF(G45="","",VLOOKUP(G45,'Cuadro de Cuentas (6)'!$B$3:$C$561,2,FALSE)) -> 
E55: =IF(D55="","",VLOOKUP(D55,'Cuadro de Cuentas (6)'!$B$3:$C$561,2,FALSE)) ->  | H55: =IF(G55="","",VLOOKUP(G55,'Cuadro de Cuentas (6)'!$B$3:$C$561,2,FALSE)) -> 
E56: =IF(D56="","",VLOOKUP(D56,'Cuadro de Cuentas (6)'!$B$3:$C$561,2,FALSE)) ->  | H56: =IF(G56="","",VLOOKUP(G56,'Cuadro de Cuentas (6)'!$B$3:$C$561,2,FALSE)) -> 
C60: DEBE | I60: HABER
C61: IMPORTES | D61: Nº CUENTA | E61: NOMBRE CUENTA | G61: Nº CUENTA | H61: NOMBRE CUENTA | I61: IMPORTES
E70: =IF(D70="","",VLOOKUP(D70,'Cuadro de Cuentas (6)'!$B$3:$C$561,2,FALSE)) ->  | F70: =IF(G70="","","a") ->  | H70: =IF(G70="","",VLOOKUP(G70,'Cuadro de Cuentas (6)'!$B$3:$C$561,2,FALSE)) -> 
E71: =IF(D71="","",VLOOKUP(D71,'Cuadro de Cuentas (6)'!$B$3:$C$561,2,FALSE)) ->  | H71: =IF(G71="","",VLOOKUP(G71,'Cuadro de Cuentas (6)'!$B$3:$C$561,2,FALSE)) -> 
E72: =IF(D72="","",VLOOKUP(D72,'Cuadro de Cuentas (6)'!$B$3:$C$561,2,FALSE)) ->  | H72: =IF(G72="","",VLOOKUP(G72,'Cuadro de Cuentas (6)'!$B$3:$C$561,2,FALSE)) -> 
E73: =IF(D73="","",VLOOKUP(D73,'Cuadro de Cuentas (6)'!$B$3:$C$561,2,FALSE)) ->  | H73: =IF(G73="","",VLOOKUP(G73,'Cuadro de Cuentas (6)'!$B$3:$C$561,2,FALSE)) -> 
E74: =IF(D74="","",VLOOKUP(D74,'Cuadro de Cuentas (6)'!$B$3:$C$561,2,FALSE)) ->  | H74: =IF(G74="","",VLOOKUP(G74,'Cuadro de Cuentas (6)'!$B$3:$C$561,2,FALSE)) -> 
E75: =IF(D75="","",VLOOKUP(D75,'Cuadro de Cuentas (6)'!$B$3:$C$561,2,FALSE)) ->  | H75: =IF(G75="","",VLOOKUP(G75,'Cuadro de Cuentas (6)'!$B$3:$C$561,2,FALSE)) -> 
E76: =IF(D76="","",VLOOKUP(D76,'Cuadro de Cuentas (6)'!$B$3:$C$561,2,FALSE)) ->  | H76: =IF(G76="","",VLOOKUP(G76,'Cuadro de Cuentas (6)'!$B$3:$C$561,2,FALSE)) -> 
E77: =IF(D77="","",VLOOKUP(D77,'Cuadro de Cuentas (6)'!$B$3:$C$561,2,FALSE)) ->  | H77: =IF(G77="","",VLOOKUP(G77,'Cuadro de Cuentas (6)'!$B$3:$C$561,2,FALSE)) -> 
E78: =IF(D78="","",VLOOKUP(D78,'Cuadro de Cuentas (6)'!$B$3:$C$561,2,FALSE)) ->  | H78: =IF(G78="","",VLOOKUP(G78,'Cuadro de Cuentas (6)'!$B$3:$C$561,2,FALSE)) -> 
E79: =IF(D79="","",VLOOKUP(D79,'Cuadro de Cuentas (6)'!$B$3:$C$561,2,FALSE)) ->  | H79: =IF(G79="","",VLOOKUP(G79,'Cuadro de Cuentas (6)'!$B$3:$C$561,2,FALSE)) -> 
E80: =IF(D80="","",VLOOKUP(D80,'Cuadro de Cuentas (6)'!$B$3:$C$561,2,FALSE)) ->  | H80: =IF(G80="","",VLOOKUP(G80,'Cuadro de Cuentas (6)'!$B$3:$C$561,2,FALSE)) -> 
E81: =IF(D81="","",VLOOKUP(D81,'Cuadro de Cuentas (6)'!$B$3:$C$561,2,FALSE)) ->  | H81: =IF(G81="","",VLOOKUP(G81,'Cuadro de Cuentas (6)'!$B$3:$C$561,2,FALSE)) -> 
E82: =IF(D82="","",VLOOKUP(D82,'Cuadro de Cuentas (6)'!$B$3:$C$561,2,FALSE)) ->  | H82: =IF(G82="","",VLOOKUP(G82,'Cuadro de Cuentas (6)'!$B$3:$C$561,2,FALSE)) -> 
E83: =IF(D83="","",VLOOKUP(D83,'Cuadro de Cuentas (6)'!$B$3:$C$561,2,FALSE)) ->  | H83: =IF(G83="","",VLOOKUP(G83,'Cuadro de Cuentas (6)'!$B$3:$C$561,2,FALSE)) -> 
E84: =IF(D84="","",VLOOKUP(D84,'Cuadro de Cuentas (6)'!$B$3:$C$561,2,FALSE)) ->  | H84: =IF(G84="","",VLOOKUP(G84,'Cuadro de Cuentas (6)'!$B$3:$C$561,2,FALSE)) -> 
E85: =IF(D85="","",VLOOKUP(D85,'Cuadro de Cuentas (6)'!$B$3:$C$561,2,FALSE)) ->  | H85: =IF(G85="","",VLOOKUP(G85,'Cuadro de Cuentas (6)'!$B$3:$C$561,2,FALSE)) -> 
E86: =IF(D86="","",VLOOKUP(D86,'Cuadro de Cuentas (6)'!$B$3:$C$561,2,FALSE)) ->  | H86: =IF(G86="","",VLOOKUP(G86,'Cuadro de Cuentas (6)'!$B$3:$C$561,2,FALSE)) -> 
E87: =IF(D87="","",VLOOKUP(D87,'Cuadro de Cuentas (6)'!$B$3:$C$561,2,FALSE)) ->  | H87: =IF(G87="","",VLOOKUP(G87,'Cuadro de Cuentas (6)'!$B$3:$C$561,2,FALSE)) -> 
E88: =IF(D88="","",VLOOKUP(D88,'Cuadro de Cuentas (6)'!$B$3:$C$561,2,FALSE)) ->  | H88: =IF(G88="","",VLOOKUP(G88,'Cuadro de Cuentas (6)'!$B$3:$C$561,2,FALSE)) -> 
E89: =IF(D89="","",VLOOKUP(D89,'Cuadro de Cuentas (6)'!$B$3:$C$561,2,FALSE)) ->  | H89: =IF(G89="","",VLOOKUP(G89,'Cuadro de Cuentas (6)'!$B$3:$C$561,2,FALSE)) -> 
E90: =IF(D90="","",VLOOKUP(D90,'Cuadro de Cuentas (6)'!$B$3:$C$561,2,FALSE)) ->  | H90: =IF(G90="","",VLOOKUP(G90,'Cuadro de Cuentas (6)'!$B$3:$C$561,2,FALSE)) -> 
E91: =IF(D91="","",VLOOKUP(D91,'Cuadro de Cuentas (6)'!$B$3:$C$561,2,FALSE)) ->  | H91: =IF(G91="","",VLOOKUP(G91,'Cuadro de Cuentas (6)'!$B$3:$C$561,2,FALSE)) -> 
E92: =IF(D92="","",VLOOKUP(D92,'Cuadro de Cuentas (6)'!$B$3:$C$561,2,FALSE)) ->  | H92: =IF(G92="","",VLOOKUP(G92,'Cuadro de Cuentas (6)'!$B$3:$C$561,2,FALSE)) -> 
E93: =IF(D93="","",VLOOKUP(D93,'Cuadro de Cuentas (6)'!$B$3:$C$561,2,FALSE)) ->  | H93: =IF(G93="","",VLOOKUP(G93,'Cuadro de Cuentas (6)'!$B$3:$C$561,2,FALSE)) -> 
E94: =IF(D94="","",VLOOKUP(D94,'Cuadro de Cuentas (6)'!$B$3:$C$561,2,FALSE)) ->  | H94: =IF(G94="","",VLOOKUP(G94,'Cuadro de Cuentas (6)'!$B$3:$C$561,2,FALSE)) -> 
E95: =IF(D95="","",VLOOKUP(D95,'Cuadro de Cuentas (6)'!$B$3:$C$561,2,FALSE)) ->  | H95: =IF(G95="","",VLOOKUP(G95,'Cuadro de Cuentas (6)'!$B$3:$C$561,2,FALSE)) -> 
E96: =IF(D96="","",VLOOKUP(D96,'Cuadro de Cuentas (6)'!$B$3:$C$561,2,FALSE)) ->  | H96: =IF(G96="","",VLOOKUP(G96,'Cuadro de Cuentas (6)'!$B$3:$C$561,2,FALSE)) -> 
E97: =IF(D97="","",VLOOKUP(D97,'Cuadro de Cuentas (6)'!$B$3:$C$561,2,FALSE)) ->  | H97: =IF(G97="","",VLOOKUP(G97,'Cuadro de Cuentas (6)'!$B$3:$C$561,2,FALSE)) -> 
E98: =IF(D98="","",VLOOKUP(D98,'Cuadro de Cuentas (6)'!$B$3:$C$561,2,FALSE)) ->  | H98: =IF(G98="","",VLOOKUP(G98,'Cuadro de Cuentas (6)'!$B$3:$C$561,2,FALSE)) -> 
E99: =IF(D99="","",VLOOKUP(D99,'Cuadro de Cuentas (6)'!$B$3:$C$561,2,FALSE)) ->  | H99: =IF(G99="","",VLOOKUP(G99,'Cuadro de Cuentas (6)'!$B$3:$C$561,2,FALSE)) -> 
E100: =IF(D100="","",VLOOKUP(D100,'Cuadro de Cuentas (6)'!$B$3:$C$561,2,FALSE)) ->  | H100: =IF(G100="","",VLOOKUP(G100,'Cuadro de Cuentas (6)'!$B$3:$C$561,2,FALSE)) -> 
E101: =IF(D101="","",VLOOKUP(D101,'Cuadro de Cuentas (6)'!$B$3:$C$561,2,FALSE)) ->  | H101: =IF(G101="","",VLOOKUP(G101,'Cuadro de Cuentas (6)'!$B$3:$C$561,2,FALSE)) -> 
E102: =IF(D102="","",VLOOKUP(D102,'Cuadro de Cuentas (6)'!$B$3:$C$561,2,FALSE)) ->  | H102: =IF(G102="","",VLOOKUP(G102,'Cuadro de Cuentas (6)'!$B$3:$C$561,2,FALSE)) -> 
E103: =IF(D103="","",VLOOKUP(D103,'Cuadro de Cuentas (6)'!$B$3:$C$561,2,FALSE)) ->  | H103: =IF(G103="","",VLOOKUP(G103,'Cuadro de Cuentas (6)'!$B$3:$C$561,2,FALSE)) -> 
E104: =IF(D104="","",VLOOKUP(D104,'Cuadro de Cuentas (6)'!$B$3:$C$561,2,FALSE)) ->  | H104: =IF(G104="","",VLOOKUP(G104,'Cuadro de Cuentas (6)'!$B$3:$C$561,2,FALSE)) -> 
E105: =IF(D105="","",VLOOKUP(D105,'Cuadro de Cuentas (6)'!$B$3:$C$561,2,FALSE)) ->  | H105: =IF(G105="","",VLOOKUP(G105,'Cuadro de Cuentas (6)'!$B$3:$C$561,2,FALSE)) -> 
E106: =IF(D106="","",VLOOKUP(D106,'Cuadro de Cuentas (6)'!$B$3:$C$561,2,FALSE)) ->  | H106: =IF(G106="","",VLOOKUP(G106,'Cuadro de Cuentas (6)'!$B$3:$C$561,2,FALSE)) -> 
C110: DEBE | I110: HABER
C111: IMPORTES | D111: Nº CUENTA | E111: NOMBRE CUENTA | G111: Nº CUENTA | H111: NOMBRE CUENTA | I111: IMPORTES
E112: =IF(D112="","",VLOOKUP(D112,'Cuadro de Cuentas (6)'!$B$3:$C$561,2,FALSE)) ->  | F112: =IF(G112="","","a") ->  | H112: =IF(G112="","",VLOOKUP(G112,'Cuadro de Cuentas (6)'!$B$3:$C$561,2,FALSE)) -> 
E113: =IF(D113="","",VLOOKUP(D113,'Cuadro de Cuentas (6)'!$B$3:$C$561,2,FALSE)) ->  | H113: =IF(G113="","",VLOOKUP(G113,'Cuadro de Cuentas (6)'!$B$3:$C$561,2,FALSE)) -> 
E114: =IF(D114="","",VLOOKUP(D114,'Cuadro de Cuentas (6)'!$B$3:$C$561,2,FALSE)) ->  | H114: =IF(G114="","",VLOOKUP(G114,'Cuadro de Cuentas (6)'!$B$3:$C$561,2,FALSE)) -> 
E115: =IF(D115="","",VLOOKUP(D115,'Cuadro de Cuentas (6)'!$B$3:$C$561,2,FALSE)) ->  | H115: =IF(G115="","",VLOOKUP(G115,'Cuadro de Cuentas (6)'!$B$3:$C$561,2,FALSE)) -> 
E116: =IF(D116="","",VLOOKUP(D116,'Cuadro de Cuentas (6)'!$B$3:$C$561,2,FALSE)) ->  | H116: =IF(G116="","",VLOOKUP(G116,'Cuadro de Cuentas (6)'!$B$3:$C$561,2,FALSE)) -> 
E117: =IF(D117="","",VLOOKUP(D117,'Cuadro de Cuentas (6)'!$B$3:$C$561,2,FALSE)) ->  | H117: =IF(G117="","",VLOOKUP(G117,'Cuadro de Cuentas (6)'!$B$3:$C$561,2,FALSE)) -> 
E118: =IF(D118="","",VLOOKUP(D118,'Cuadro de Cuentas (6)'!$B$3:$C$561,2,FALSE)) ->  | H118: =IF(G118="","",VLOOKUP(G118,'Cuadro de Cuentas (6)'!$B$3:$C$561,2,FALSE)) -> 
E119: =IF(D119="","",VLOOKUP(D119,'Cuadro de Cuentas (6)'!$B$3:$C$561,2,FALSE)) ->  | H119: =IF(G119="","",VLOOKUP(G119,'Cuadro de Cuentas (6)'!$B$3:$C$561,2,FALSE)) -> 
E120: =IF(D120="","",VLOOKUP(D120,'Cuadro de Cuentas (6)'!$B$3:$C$561,2,FALSE)) ->  | H120: =IF(G120="","",VLOOKUP(G120,'Cuadro de Cuentas (6)'!$B$3:$C$561,2,FALSE)) -> 
E121: =IF(D121="","",VLOOKUP(D121,'Cuadro de Cuentas (6)'!$B$3:$C$561,2,FALSE)) ->  | H121: =IF(G121="","",VLOOKUP(G121,'Cuadro de Cuentas (6)'!$B$3:$C$561,2,FALSE)) -> 
E122: =IF(D122="","",VLOOKUP(D122,'Cuadro de Cuentas (6)'!$B$3:$C$561,2,FALSE)) ->  | H122: =IF(G122="","",VLOOKUP(G122,'Cuadro de Cuentas (6)'!$B$3:$C$561,2,FALSE)) -> 
E123: =IF(D123="","",VLOOKUP(D123,'Cuadro de Cuentas (6)'!$B$3:$C$561,2,FALSE)) ->  | H123: =IF(G123="","",VLOOKUP(G123,'Cuadro de Cuentas (6)'!$B$3:$C$561,2,FALSE)) -> 
E124: =IF(D124="","",VLOOKUP(D124,'Cuadro de Cuentas (6)'!$B$3:$C$561,2,FALSE)) ->  | H124: =IF(G124="","",VLOOKUP(G124,'Cuadro de Cuentas (6)'!$B$3:$C$561,2,FALSE)) -> 
E125: =IF(D125="","",VLOOKUP(D125,'Cuadro de Cuentas (6)'!$B$3:$C$561,2,FALSE)) ->  | H125: =IF(G125="","",VLOOKUP(G125,'Cuadro de Cuentas (6)'!$B$3:$C$561,2,FALSE)) -> 
E126: =IF(D126="","",VLOOKUP(D126,'Cuadro de Cuentas (6)'!$B$3:$C$561,2,FALSE)) ->  | H126: =IF(G126="","",VLOOKUP(G126,'Cuadro de Cuentas (6)'!$B$3:$C$561,2,FALSE)) -> 
E127: =IF(D127="","",VLOOKUP(D127,'Cuadro de Cuentas (6)'!$B$3:$C$561,2,FALSE)) ->  | H127: =IF(G127="","",VLOOKUP(G127,'Cuadro de Cuentas (6)'!$B$3:$C$561,2,FALSE)) -> 
E128: =IF(D128="","",VLOOKUP(D128,'Cuadro de Cuentas (6)'!$B$3:$C$561,2,FALSE)) ->  | H128: =IF(G128="","",VLOOKUP(G128,'Cuadro de Cuentas (6)'!$B$3:$C$561,2,FALSE)) -> 
E129: =IF(D129="","",VLOOKUP(D129,'Cuadro de Cuentas (6)'!$B$3:$C$561,2,FALSE)) ->  | H129: =IF(G129="","",VLOOKUP(G129,'Cuadro de Cuentas (6)'!$B$3:$C$561,2,FALSE)) -> 
E130: =IF(D130="","",VLOOKUP(D130,'Cuadro de Cuentas (6)'!$B$3:$C$561,2,FALSE)) ->  | H130: =IF(G130="","",VLOOKUP(G130,'Cuadro de Cuentas (6)'!$B$3:$C$561,2,FALSE)) -> 
E131: =IF(D131="","",VLOOKUP(D131,'Cuadro de Cuentas (6)'!$B$3:$C$561,2,FALSE)) ->  | H131: =IF(G131="","",VLOOKUP(G131,'Cuadro de Cuentas (6)'!$B$3:$C$561,2,FALSE)) -> 
E132: =IF(D132="","",VLOOKUP(D132,'Cuadro de Cuentas (6)'!$B$3:$C$561,2,FALSE)) ->  | H132: =IF(G132="","",VLOOKUP(G132,'Cuadro de Cuentas (6)'!$B$3:$C$561,2,FALSE)) -> 
E133: =IF(D133="","",VLOOKUP(D133,'Cuadro de Cuentas (6)'!$B$3:$C$561,2,FALSE)) ->  | H133: =IF(G133="","",VLOOKUP(G133,'Cuadro de Cuentas (6)'!$B$3:$C$561,2,FALSE)) -> 
E134: =IF(D134="","",VLOOKUP(D134,'Cuadro de Cuentas (6)'!$B$3:$C$561,2,FALSE)) ->  | H134: =IF(G134="","",VLOOKUP(G134,'Cuadro de Cuentas (6)'!$B$3:$C$561,2,FALSE)) -> 
E135: =IF(D135="","",VLOOKUP(D135,'Cuadro de Cuentas (6)'!$B$3:$C$561,2,FALSE)) ->  | H135: =IF(G135="","",VLOOKUP(G135,'Cuadro de Cuentas (6)'!$B$3:$C$561,2,FALSE)) -> 
E136: =IF(D136="","",VLOOKUP(D136,'Cuadro de Cuentas (6)'!$B$3:$C$561,2,FALSE)) ->  | H136: =IF(G136="","",VLOOKUP(G136,'Cuadro de Cuentas (6)'!$B$3:$C$561,2,FALSE)) -> 
E137: =IF(D137="","",VLOOKUP(D137,'Cuadro de Cuentas (6)'!$B$3:$C$561,2,FALSE)) ->  | H137: =IF(G137="","",VLOOKUP(G137,'Cuadro de Cuentas (6)'!$B$3:$C$561,2,FALSE)) -> 
E138: =IF(D138="","",VLOOKUP(D138,'Cuadro de Cuentas (6)'!$B$3:$C$561,2,FALSE)) ->  | H138: =IF(G138="","",VLOOKUP(G138,'Cuadro de Cuentas (6)'!$B$3:$C$561,2,FALSE)) -> 
E139: =IF(D139="","",VLOOKUP(D139,'Cuadro de Cuentas (6)'!$B$3:$C$561,2,FALSE)) ->  | H139: =IF(G139="","",VLOOKUP(G139,'Cuadro de Cuentas (6)'!$B$3:$C$561,2,FALSE)) -> 
E140: =IF(D140="","",VLOOKUP(D140,'Cuadro de Cuentas (6)'!$B$3:$C$561,2,FALSE)) ->  | H140: =IF(G140="","",VLOOKUP(G140,'Cuadro de Cuentas (6)'!$B$3:$C$561,2,FALSE)) -> 
E141: =IF(D141="","",VLOOKUP(D141,'Cuadro de Cuentas (6)'!$B$3:$C$561,2,FALSE)) ->  | H141: =IF(G141="","",VLOOKUP(G141,'Cuadro de Cuentas (6)'!$B$3:$C$561,2,FALSE)) -> 
E142: =IF(D142="","",VLOOKUP(D142,'Cuadro de Cuentas (6)'!$B$3:$C$561,2,FALSE)) ->  | H142: =IF(G142="","",VLOOKUP(G142,'Cuadro de Cuentas (6)'!$B$3:$C$561,2,FALSE)) -> 
E143: =IF(D143="","",VLOOKUP(D143,'Cuadro de Cuentas (6)'!$B$3:$C$561,2,FALSE)) ->  | H143: =IF(G143="","",VLOOKUP(G143,'Cuadro de Cuentas (6)'!$B$3:$C$561,2,FALSE)) -> 
E144: =IF(D144="","",VLOOKUP(D144,'Cuadro de Cuentas (6)'!$B$3:$C$561,2,FALSE)) ->  | H144: =IF(G144="","",VLOOKUP(G144,'Cuadro de Cuentas (6)'!$B$3:$C$561,2,FALSE)) -> 
E145: =IF(D145="","",VLOOKUP(D145,'Cuadro de Cuentas (6)'!$B$3:$C$561,2,FALSE)) ->  | H145: =IF(G145="","",VLOOKUP(G145,'Cuadro de Cuentas (6)'!$B$3:$C$561,2,FALSE)) -> 
E146: =IF(D146="","",VLOOKUP(D146,'Cuadro de Cuentas (6)'!$B$3:$C$561,2,FALSE)) ->  | H146: =IF(G146="","",VLOOKUP(G146,'Cuadro de Cuentas (6)'!$B$3:$C$561,2,FALSE)) -> 
E147: =IF(D147="","",VLOOKUP(D147,'Cuadro de Cuentas (6)'!$B$3:$C$561,2,FALSE)) ->  | H147: =IF(G147="","",VLOOKUP(G147,'Cuadro de Cuentas (6)'!$B$3:$C$561,2,FALSE)) -> 
E148: =IF(D148="","",VLOOKUP(D148,'Cuadro de Cuentas (6)'!$B$3:$C$561,2,FALSE)) ->  | H148: =IF(G148="","",VLOOKUP(G148,'Cuadro de Cuentas (6)'!$B$3:$C$561,2,FALSE)) -> 
E149: =IF(D149="","",VLOOKUP(D149,'Cuadro de Cuentas (6)'!$B$3:$C$561,2,FALSE)) ->  | H149: =IF(G149="","",VLOOKUP(G149,'Cuadro de Cuentas (6)'!$B$3:$C$561,2,FALSE)) -> 
E150: =IF(D150="","",VLOOKUP(D150,'Cuadro de Cuentas (6)'!$B$3:$C$561,2,FALSE)) ->  | H150: =IF(G150="","",VLOOKUP(G150,'Cuadro de Cuentas (6)'!$B$3:$C$561,2,FALSE)) -> 
E151: =IF(D151="","",VLOOKUP(D151,'Cuadro de Cuentas (6)'!$B$3:$C$561,2,FALSE)) ->  | H151: =IF(G151="","",VLOOKUP(G151,'Cuadro de Cuentas (6)'!$B$3:$C$561,2,FALSE)) -> 
E152: =IF(D152="","",VLOOKUP(D152,'Cuadro de Cuentas (6)'!$B$3:$C$561,2,FALSE)) ->  | H152: =IF(G152="","",VLOOKUP(G152,'Cuadro de Cuentas (6)'!$B$3:$C$561,2,FALSE)) -> 
E153: =IF(D153="","",VLOOKUP(D153,'Cuadro de Cuentas (6)'!$B$3:$C$561,2,FALSE)) ->  | H153: =IF(G153="","",VLOOKUP(G153,'Cuadro de Cuentas (6)'!$B$3:$C$561,2,FALSE)) -> 
E154: =IF(D154="","",VLOOKUP(D154,'Cuadro de Cuentas (6)'!$B$3:$C$561,2,FALSE)) ->  | H154: =IF(G154="","",VLOOKUP(G154,'Cuadro de Cuentas (6)'!$B$3:$C$561,2,FALSE)) -> 
E155: =IF(D155="","",VLOOKUP(D155,'Cuadro de Cuentas (6)'!$B$3:$C$561,2,FALSE)) ->  | H155: =IF(G155="","",VLOOKUP(G155,'Cuadro de Cuentas (6)'!$B$3:$C$561,2,FALSE)) -> 
E156: =IF(D156="","",VLOOKUP(D156,'Cuadro de Cuentas (6)'!$B$3:$C$561,2,FALSE)) ->  | H156: =IF(G156="","",VLOOKUP(G156,'Cuadro de Cuentas (6)'!$B$3:$C$561,2,FALSE)) -> 
C160: DEBE | I160: HABER
C161: IMPORTES | D161: Nº CUENTA | E161: NOMBRE CUENTA | G161: Nº CUENTA | H161: NOMBRE CUENTA | I161: IMPORTES
E162: =IF(D162="","",VLOOKUP(D162,'Cuadro de Cuentas (6)'!$B$3:$C$561,2,FALSE)) ->  | F162: =IF(G162="","","a") ->  | H162: =IF(G162="","",VLOOKUP(G162,'Cuadro de Cuentas (6)'!$B$3:$C$561,2,FALSE)) -> 
E163: =IF(D163="","",VLOOKUP(D163,'Cuadro de Cuentas (6)'!$B$3:$C$561,2,FALSE)) ->  | H163: =IF(G163="","",VLOOKUP(G163,'Cuadro de Cuentas (6)'!$B$3:$C$561,2,FALSE)) -> 
E164: =IF(D164="","",VLOOKUP(D164,'Cuadro de Cuentas (6)'!$B$3:$C$561,2,FALSE)) ->  | H164: =IF(G164="","",VLOOKUP(G164,'Cuadro de Cuentas (6)'!$B$3:$C$561,2,FALSE)) -> 
E165: =IF(D165="","",VLOOKUP(D165,'Cuadro de Cuentas (6)'!$B$3:$C$561,2,FALSE)) ->  | H165: =IF(G165="","",VLOOKUP(G165,'Cuadro de Cuentas (6)'!$B$3:$C$561,2,FALSE)) -> 
E166: =IF(D166="","",VLOOKUP(D166,'Cuadro de Cuentas (6)'!$B$3:$C$561,2,FALSE)) ->  | H166: =IF(G166="","",VLOOKUP(G166,'Cuadro de Cuentas (6)'!$B$3:$C$561,2,FALSE)) -> 
E167: =IF(D167="","",VLOOKUP(D167,'Cuadro de Cuentas (6)'!$B$3:$C$561,2,FALSE)) ->  | H167: =IF(G167="","",VLOOKUP(G167,'Cuadro de Cuentas (6)'!$B$3:$C$561,2,FALSE)) -> 
E168: =IF(D168="","",VLOOKUP(D168,'Cuadro de Cuentas (6)'!$B$3:$C$561,2,FALSE)) ->  | H168: =IF(G168="","",VLOOKUP(G168,'Cuadro de Cuentas (6)'!$B$3:$C$561,2,FALSE)) -> 
E169: =IF(D169="","",VLOOKUP(D169,'Cuadro de Cuentas (6)'!$B$3:$C$561,2,FALSE)) ->  | H169: =IF(G169="","",VLOOKUP(G169,'Cuadro de Cuentas (6)'!$B$3:$C$561,2,FALSE)) -> 
E170: =IF(D170="","",VLOOKUP(D170,'Cuadro de Cuentas (6)'!$B$3:$C$561,2,FALSE)) ->  | H170: =IF(G170="","",VLOOKUP(G170,'Cuadro de Cuentas (6)'!$B$3:$C$561,2,FALSE)) -> 
E171: =IF(D171="","",VLOOKUP(D171,'Cuadro de Cuentas (6)'!$B$3:$C$561,2,FALSE)) ->  | H171: =IF(G171="","",VLOOKUP(G171,'Cuadro de Cuentas (6)'!$B$3:$C$561,2,FALSE)) -> 
E172: =IF(D172="","",VLOOKUP(D172,'Cuadro de Cuentas (6)'!$B$3:$C$561,2,FALSE)) ->  | H172: =IF(G172="","",VLOOKUP(G172,'Cuadro de Cuentas (6)'!$B$3:$C$561,2,FALSE)) -> 
E173: =IF(D173="","",VLOOKUP(D173,'Cuadro de Cuentas (6)'!$B$3:$C$561,2,FALSE)) ->  | H173: =IF(G173="","",VLOOKUP(G173,'Cuadro de Cuentas (6)'!$B$3:$C$561,2,FALSE)) -> 
E174: =IF(D174="","",VLOOKUP(D174,'Cuadro de Cuentas (6)'!$B$3:$C$561,2,FALSE)) ->  | H174: =IF(G174="","",VLOOKUP(G174,'Cuadro de Cuentas (6)'!$B$3:$C$561,2,FALSE)) -> 
E175: =IF(D175="","",VLOOKUP(D175,'Cuadro de Cuentas (6)'!$B$3:$C$561,2,FALSE)) ->  | H175: =IF(G175="","",VLOOKUP(G175,'Cuadro de Cuentas (6)'!$B$3:$C$561,2,FALSE)) -> 
E176: =IF(D176="","",VLOOKUP(D176,'Cuadro de Cuentas (6)'!$B$3:$C$561,2,FALSE)) ->  | H176: =IF(G176="","",VLOOKUP(G176,'Cuadro de Cuentas (6)'!$B$3:$C$561,2,FALSE)) -> 
E177: =IF(D177="","",VLOOKUP(D177,'Cuadro de Cuentas (6)'!$B$3:$C$561,2,FALSE)) ->  | H177: =IF(G177="","",VLOOKUP(G177,'Cuadro de Cuentas (6)'!$B$3:$C$561,2,FALSE)) -> 
E178: =IF(D178="","",VLOOKUP(D178,'Cuadro de Cuentas (6)'!$B$3:$C$561,2,FALSE)) ->  | H178: =IF(G178="","",VLOOKUP(G178,'Cuadro de Cuentas (6)'!$B$3:$C$561,2,FALSE)) -> 
E179: =IF(D179="","",VLOOKUP(D179,'Cuadro de Cuentas (6)'!$B$3:$C$561,2,FALSE)) ->  | H179: =IF(G179="","",VLOOKUP(G179,'Cuadro de Cuentas (6)'!$B$3:$C$561,2,FALSE)) -> 
E180: =IF(D180="","",VLOOKUP(D180,'Cuadro de Cuentas (6)'!$B$3:$C$561,2,FALSE)) ->  | H180: =IF(G180="","",VLOOKUP(G180,'Cuadro de Cuentas (6)'!$B$3:$C$561,2,FALSE)) -> 
E181: =IF(D181="","",VLOOKUP(D181,'Cuadro de Cuentas (6)'!$B$3:$C$561,2,FALSE)) ->  | H181: =IF(G181="","",VLOOKUP(G181,'Cuadro de Cuentas (6)'!$B$3:$C$561,2,FALSE)) -> 
E182: =IF(D182="","",VLOOKUP(D182,'Cuadro de Cuentas (6)'!$B$3:$C$561,2,FALSE)) ->  | H182: =IF(G182="","",VLOOKUP(G182,'Cuadro de Cuentas (6)'!$B$3:$C$561,2,FALSE)) -> 
E183: =IF(D183="","",VLOOKUP(D183,'Cuadro de Cuentas (6)'!$B$3:$C$561,2,FALSE)) ->  | H183: =IF(G183="","",VLOOKUP(G183,'Cuadro de Cuentas (6)'!$B$3:$C$561,2,FALSE)) -> 
E184: =IF(D184="","",VLOOKUP(D184,'Cuadro de Cuentas (6)'!$B$3:$C$561,2,FALSE)) ->  | H184: =IF(G184="","",VLOOKUP(G184,'Cuadro de Cuentas (6)'!$B$3:$C$561,2,FALSE)) -> 
E185: =IF(D185="","",VLOOKUP(D185,'Cuadro de Cuentas (6)'!$B$3:$C$561,2,FALSE)) ->  | H185: =IF(G185="","",VLOOKUP(G185,'Cuadro de Cuentas (6)'!$B$3:$C$561,2,FALSE)) -> 
E186: =IF(D186="","",VLOOKUP(D186,'Cuadro de Cuentas (6)'!$B$3:$C$561,2,FALSE)) ->  | H186: =IF(G186="","",VLOOKUP(G186,'Cuadro de Cuentas (6)'!$B$3:$C$561,2,FALSE)) -> 
E187: =IF(D187="","",VLOOKUP(D187,'Cuadro de Cuentas (6)'!$B$3:$C$561,2,FALSE)) ->  | H187: =IF(G187="","",VLOOKUP(G187,'Cuadro de Cuentas (6)'!$B$3:$C$561,2,FALSE)) -> 
E188: =IF(D188="","",VLOOKUP(D188,'Cuadro de Cuentas (6)'!$B$3:$C$561,2,FALSE)) ->  | H188: =IF(G188="","",VLOOKUP(G188,'Cuadro de Cuentas (6)'!$B$3:$C$561,2,FALSE)) -> 
E189: =IF(D189="","",VLOOKUP(D189,'Cuadro de Cuentas (6)'!$B$3:$C$561,2,FALSE)) ->  | H189: =IF(G189="","",VLOOKUP(G189,'Cuadro de Cuentas (6)'!$B$3:$C$561,2,FALSE)) -> 
E190: =IF(D190="","",VLOOKUP(D190,'Cuadro de Cuentas (6)'!$B$3:$C$561,2,FALSE)) ->  | H190: =IF(G190="","",VLOOKUP(G190,'Cuadro de Cuentas (6)'!$B$3:$C$561,2,FALSE)) -> 
E191: =IF(D191="","",VLOOKUP(D191,'Cuadro de Cuentas (6)'!$B$3:$C$561,2,FALSE)) ->  | H191: =IF(G191="","",VLOOKUP(G191,'Cuadro de Cuentas (6)'!$B$3:$C$561,2,FALSE)) -> 
E192: =IF(D192="","",VLOOKUP(D192,'Cuadro de Cuentas (6)'!$B$3:$C$561,2,FALSE)) ->  | H192: =IF(G192="","",VLOOKUP(G192,'Cuadro de Cuentas (6)'!$B$3:$C$561,2,FALSE)) -> 
E193: =IF(D193="","",VLOOKUP(D193,'Cuadro de Cuentas (6)'!$B$3:$C$561,2,FALSE)) ->  | H193: =IF(G193="","",VLOOKUP(G193,'Cuadro de Cuentas (6)'!$B$3:$C$561,2,FALSE)) -> 
E194: =IF(D194="","",VLOOKUP(D194,'Cuadro de Cuentas (6)'!$B$3:$C$561,2,FALSE)) ->  | H194: =IF(G194="","",VLOOKUP(G194,'Cuadro de Cuentas (6)'!$B$3:$C$561,2,FALSE)) -> 
E195: =IF(D195="","",VLOOKUP(D195,'Cuadro de Cuentas (6)'!$B$3:$C$561,2,FALSE)) ->  | H195: =IF(G195="","",VLOOKUP(G195,'Cuadro de Cuentas (6)'!$B$3:$C$561,2,FALSE)) -> 
E196: =IF(D196="","",VLOOKUP(D196,'Cuadro de Cuentas (6)'!$B$3:$C$561,2,FALSE)) ->  | H196: =IF(G196="","",VLOOKUP(G196,'Cuadro de Cuentas (6)'!$B$3:$C$561,2,FALSE)) -> 
E197: =IF(D197="","",VLOOKUP(D197,'Cuadro de Cuentas (6)'!$B$3:$C$561,2,FALSE)) ->  | H197: =IF(G197="","",VLOOKUP(G197,'Cuadro de Cuentas (6)'!$B$3:$C$561,2,FALSE)) -> 
E198: =IF(D198="","",VLOOKUP(D198,'Cuadro de Cuentas (6)'!$B$3:$C$561,2,FALSE)) ->  | H198: =IF(G198="","",VLOOKUP(G198,'Cuadro de Cuentas (6)'!$B$3:$C$561,2,FALSE)) -> 
E199: =IF(D199="","",VLOOKUP(D199,'Cuadro de Cuentas (6)'!$B$3:$C$561,2,FALSE)) ->  | H199: =IF(G199="","",VLOOKUP(G199,'Cuadro de Cuentas (6)'!$B$3:$C$561,2,FALSE)) -> 
E200: =IF(D200="","",VLOOKUP(D200,'Cuadro de Cuentas (6)'!$B$3:$C$561,2,FALSE)) ->  | H200: =IF(G200="","",VLOOKUP(G200,'Cuadro de Cuentas (6)'!$B$3:$C$561,2,FALSE)) -> 
E201: =IF(D201="","",VLOOKUP(D201,'Cuadro de Cuentas (6)'!$B$3:$C$561,2,FALSE)) ->  | H201: =IF(G201="","",VLOOKUP(G201,'Cuadro de Cuentas (6)'!$B$3:$C$561,2,FALSE)) -> 
E202: =IF(D202="","",VLOOKUP(D202,'Cuadro de Cuentas (6)'!$B$3:$C$561,2,FALSE)) ->  | H202: =IF(G202="","",VLOOKUP(G202,'Cuadro de Cuentas (6)'!$B$3:$C$561,2,FALSE)) -> 
E203: =IF(D203="","",VLOOKUP(D203,'Cuadro de Cuentas (6)'!$B$3:$C$561,2,FALSE)) ->  | H203: =IF(G203="","",VLOOKUP(G203,'Cuadro de Cuentas (6)'!$B$3:$C$561,2,FALSE)) -> 
E204: =IF(D204="","",VLOOKUP(D204,'Cuadro de Cuentas (6)'!$B$3:$C$561,2,FALSE)) ->  | H204: =IF(G204="","",VLOOKUP(G204,'Cuadro de Cuentas (6)'!$B$3:$C$561,2,FALSE)) -> 
E205: =IF(D205="","",VLOOKUP(D205,'Cuadro de Cuentas (6)'!$B$3:$C$561,2,FALSE)) ->  | H205: =IF(G205="","",VLOOKUP(G205,'Cuadro de Cuentas (6)'!$B$3:$C$561,2,FALSE)) -> 
E206: =IF(D206="","",VLOOKUP(D206,'Cuadro de Cuentas (6)'!$B$3:$C$561,2,FALSE)) ->  | H206: =IF(G206="","",VLOOKUP(G206,'Cuadro de Cuentas (6)'!$B$3:$C$561,2,FALSE)) -> 

Sheet Enunciado Inmovilizados Varios (hidden)
B3: Buena Visión, S.A. acomete en el mes de junio de 2015 la adecuación del local en el que desarrolla su actividad. En este sentido,
B4: realiza las siguientes operaciones:
B5: a) Adquiere un aire acondicionado por | D5: 1000 | E5: que la empresa proveedora se compromete a instalar con un coste adicional de
B6: 200 | C6: Dicha instalación se realiza el | E6: 2015-06-20 | F6: En esa fecha el propio instalador entrega la factura que deberá ser
B7: abonada a | C7: 30 | D7: días mediante cheque bancario.
B8: b) El | C8: 2015-06-25 | D8: la empresa Pint-Rapid, S.L. entrega factura por importe de | I8: 788.92 | J8: por los
B9: trabajos de pintura y decoración. El pago se realiza a | F9: 15 | G9: días mediante transferencia bancaria.
B10: c) El | C10: 2015-07-03 | D10: adquiere mobiliario por | F10: =+SUM('Factura Mobiliario'!H26:H29) -> 2500 | G10: El proveedor incluye en factura un
B11: descuento del | C11: 0.05 | D11: El pago se realiza al contado mediante cheque. El precio de adquisición del mobiliario sustituido
B12: asciende a | C12: 1800 | D12: y está amortizado en un | F12: 0.8 | G12: Debido a su deterioro, Buena Visión opta por depositarlo
B13: en el Ecoparque para su reciclaje.
B14: Contabilice las operaciones anteriores y la amortización del primer año teniendo en cuenta los siguientes datos:
B16: Tipo de I.V.A. | C16: 0.21
B17: Método de amortización del aire acondicionado | E17: Lineal | F17: 0.2
B18: Método de amortización del mobiliario | E18: Lineal | F18: 10 | G18: años

Sheet Factura Adquisición AA (hidden)
K5: Fecha: | L5: 2015-06-20
K6: Nº Factura: | L6: 533
D11: CLIMATIZACIÓN GARCÍA, S.L.
D12: C/ Fesco, 45 46008 Valencia
D13: CIF: B-46203648
C18: Cliente: | D18: Buena Visión, S.A.
C19: Dirección: | D19: C/ Martín Colomer, 45. 46007 Valencia
C20: CIF: | D20: A-20.396.059
C21: Ref:
C25: Cantidad | D25: Concepto | K25: Precio Unitario | L25: Importe
L26: =IF(D26<>"",D26*K26,"") -> 
C38: 1 | D38: Split aire acondicionado f/c 5.000 Kcal | K38: =+'Enunciado Inmovilizados Varios'!D5 -> 1000 | L38: =C38*K38 -> 1000
C40: 1 | D40: Instalación split en docimicilio cliente | K40: =+'Enunciado Inmovilizados Varios'!B6 -> 200 | L40: =C40*K40 -> 200
J53: Base Imponible | L53: =+SUM(L26:L52) -> 1200
I54: IVA | J54: =+'Enunciado Inmovilizados Varios'!C16 -> 0.21 | L54: =+L53*J54 -> 252
J55: TOTAL FACTURA | L55: =+L53+L54 -> 1452
C58: DATOS DE PAGO:
C59: Banco:
C61: Código IBAN:
C63: Observaciones: | E63: Cheque bancario
C65: Con vencimiento el: | E65: =+L5+'Enunciado Inmovilizados Varios'!C7 -> 2015-07-20 | I65: Por importe de: | K65: =L55 -> 1452

Sheet Cheque AA (hidden)
L3: entidad | M3: oficina | N3: dc | O3: nº de cuenta
K4: CCC | L4: 2038 | M4: 6015 | N4: 40 | O4: 3101767432
K6: IBAN | L6: ES54 2038 6015 40 3101767432
C8: VALENCIA
C9: AVDA. REIAL, 4
K10: EUROS | L10: # | M10: =+'Factura Adquisición AA'!L55 -> 1452 | N10: # | O10: €
C11: Páguese por este cheque a | F11: =+'Factura Adquisición AA'!D11 -> CLIMATIZACIÓN GARCÍA, S.L.
C12: Euros | D12: Mil cuatocientos cincuenta y dos -----------------------------------------------------------------------------
L14: Valencia, a | M14: =+'Factura Adquisición AA'!L5+'Enunciado Inmovilizados Varios'!C7 -> 2015-07-20
L15: La fecha debe consignarse en letra
C17: Serie FF | D17: N. | E17: 4509962 | F17: 2 | H17: 4200 | I17: 0
C19: =+E17 -> 4509962 | D19: =+L4 -> 2038 | E19: =+M4 -> 6015 | H19: =+O4 -> 3101767432 | J19: =+H17 -> 4200

Sheet Factura Pintura (hidden)
K5: Fecha: | L5: =+'Enunciado Inmovilizados Varios'!C8 -> 2015-06-25
K6: Nº Factura: | L6: 653
D11: PINT-RAPID, S.L.
D12: C/ Rosaleda, 22 46117 Bétera
D13: CIF: B-46158563
C18: Cliente: | D18: Buena Visión, S.A.
C19: Dirección: | D19: C/ Martín Colomer, 45. 46007 Valencia
C20: CIF: | D20: A-20.396.059
C21: Ref:
C25: Cantidad | D25: Concepto | K25: Precio Unitario | L25: Importe
L26: =IF(D26<>"",D26*K26,"") -> 
D38: Trabajos varios de pintura y decoración | L38: =+'Enunciado Inmovilizados Varios'!I8/(1+'Enunciado Inmovilizados Varios'!C16) -> 652
J53: Base Imponible | L53: =+SUM(L26:L52) -> 652
I54: IVA | J54: =+'Enunciado Inmovilizados Varios'!C16 -> 0.21 | L54: =+L53*J54 -> 136.92
J55: TOTAL FACTURA | L55: =+L53+L54 -> 788.92
C58: DATOS DE PAGO:
C59: Banco:
C61: Código IBAN:
C63: Observaciones: | E63: Transferencia bancaria
C65: Con vencimiento el: | E65: =+L5+'Enunciado Inmovilizados Varios'!F9 -> 2015-07-10 | I65: Por importe de: | K65: =L55 -> 788.92

Sheet Transferencia Bancaria Pintura (hidden)
H2: COMUNICACIÓN DE OPERACIÓN EN CUENTA
B6: Fecha | H6: Concepto | O6: Importe
I7: Su orden de transf. a Pint-Rapid, S.L. | O7: =+'Factura Pintura'!K65 -> 788.92 | P7: €
E8: =+'Factura Pintura'!E65:F65 -> 2015-07-10
B9: Ordenante: | E9: Buena Visión S.A.
B10: Beneficiario: | E10: =+'Factura Pintura'!D11 -> PINT-RAPID, S.L.
B11: Concepto: | E11: Pago factura nº | F11: =+'Factura Pintura'!L6 -> 653
B12: IBAN Beneficiario | E12: ES28 2352 8596 2147 0012 6532
B13: Clave transferencia: | E13: 130T13185152436
B16: Cuenta Adeudo/Abono | F16: Moneda de la cuenta | H16: Fecha valor | K16: Anotación en cuenta
B17: 2038 | C17: 6015 | D17: 40 | E17: 3101767432 | F17: EURO | H17: =E8+1 -> 2015-07-11 | K17: Importe del recibo/factura | O17: =O7 -> 788.92 | P17: =P7 -> €
B18: Titular/es de la cuenta | K18: Total anotado en cuenta | O18: =O17 -> 788.92 | P18: =P17 -> €
D19: =+E9 -> Buena Visión S.A.

Sheet Factura Mobiliario (hidden)
E4: Ofidec, S.L.
E5: Dirección: Renacimiento, 24
E6: C.P. 46002 Valencia, España
E7: Teléfono/Fax: 96 317 28 43
E8: CIF: B-46215436
C10: FACTURA : | D10: 2015-0201 | G10: FECHA: | H10: =+'Enunciado Inmovilizados Varios'!C10 -> 2015-07-03
C14: Buena Visión, S.A.
C15: CIF: A-20.396.059
C16: Dirección: C/ Martín Colomer, 45
C17: 46007 Valencia
C23: DESCRIPCIÓN | H23: IMPORTE
C26: 3 Mesas mod. Venia 221 blanco | H26: 900
C27: 6 Sillas mod. 445 cuero blanco | H27: 600
C28: 3 Sillones director cuero negro | H28: 900
C29: 1 Lámpara de pie mod. Lumin | H29: 100
D31: Descuento | G31: =+'Enunciado Inmovilizados Varios'!C11 -> 0.05 | H31: =-SUM(H26:H29)*G31 -> -125
C33: BASE IMPONIBLE | H33: =SUM(H25:H32) -> 2375
D34: IVA | E34: % | G34: =+'Enunciado Inmovilizados Varios'!C16 -> 0.21 | H34: =H33*G34 -> 498.75
C36: TOTAL (EUR) | H36: =H33+H34 -> 2873.75
C39: Con vencimiento el: | D39: Contado | G39: Por importe de: | H39: =H36 -> 2873.75
C40: Cheque | D40: =+'Cheque Mobiliario'!C19 -> 4509995

Sheet Cheque Mobiliario (hidden)
L3: entidad | M3: oficina | N3: dc | O3: nº de cuenta
K4: CCC | L4: 2038 | M4: 6015 | N4: 40 | O4: 3101767432
K6: IBAN | L6: ES54 2038 6015 40 3101767432
C8: VALENCIA
C9: AVDA. REIAL, 4
K10: EUROS | L10: # | M10: =+'Factura Mobiliario'!H39 -> 2873.75 | N10: # | O10: €
C11: Páguese por este cheque a | F11: =+'Factura Mobiliario'!E4 -> Ofidec, S.L.
C12: Euros | D12: Dos mil ochocientos setenta y tres con setenta y cinco céntimos -----------------------------
L14: Valencia, a | M14: =+'Factura Mobiliario'!H10 -> 2015-07-03
L15: La fecha debe consignarse en letra
C17: Serie FF | D17: N. | E17: 4509995 | F17: 2 | H17: 4200 | I17: 0
C19: =+E17 -> 4509995 | D19: =+L4 -> 2038 | E19: =+M4 -> 6015 | H19: =+O4 -> 3101767432 | J19: =+H17 -> 4200

Sheet Sol. Lib. Diario Inmov. Varios (hidden)
C3: DEBE | I3: HABER
C4: IMPORTES | D4: Nº CUENTA | E4: NOMBRE CUENTA | F4: =+'Factura Adquisición AA'!L5 -> 2015-06-20 | G4: Nº CUENTA | H4: NOMBRE CUENTA | I4: IMPORTES
C5: =+'Factura Adquisición AA'!L53 -> 1200 | D5: 213 | E5: =IF(D5="","",VLOOKUP(D5,'Cuadro de Cuentas (7)'!$B$3:$C$558,2,FALSE)) -> Maquinaria | F5: =IF(G5="","","a") ->  | H5: =IF(G5="","",VLOOKUP(G5,'Cuadro de Cuentas (7)'!$B$3:$C$558,2,FALSE)) -> 
C6: =+'Factura Adquisición AA'!L54 -> 252 | D6: 472 | E6: =IF(D6="","",VLOOKUP(D6,'Cuadro de Cuentas (7)'!$B$3:$C$558,2,FALSE)) -> Hacienda Pública, IVA soportado | F6: a | G6: 523 | H6: =IF(G6="","",VLOOKUP(G6,'Cuadro de Cuentas (7)'!$B$3:$C$558,2,FALSE)) -> Proveedores de inmovilizado a corto plazo | I6: =+'Factura Adquisición AA'!L55 -> 1452
E7: =IF(D7="","",VLOOKUP(D7,'Cuadro de Cuentas (7)'!$B$3:$C$558,2,FALSE)) ->  | H7: =IF(G7="","",VLOOKUP(G7,'Cuadro de Cuentas (7)'!$B$3:$C$558,2,FALSE)) -> 
E8: Por la compra del equipo | H8: =IF(G8="","",VLOOKUP(G8,'Cuadro de Cuentas (7)'!$B$3:$C$558,2,FALSE)) -> 
E9: =IF(D9="","",VLOOKUP(D9,'Cuadro de Cuentas (7)'!$B$3:$C$558,2,FALSE)) ->  | F9: =+'Factura Pintura'!L5 -> 2015-06-25 | H9: =IF(G9="","",VLOOKUP(G9,'Cuadro de Cuentas (7)'!$B$3:$C$558,2,FALSE)) -> 
C10: =+'Factura Pintura'!L53 -> 652 | D10: 622 | E10: =IF(D10="","",VLOOKUP(D10,'Cuadro de Cuentas (7)'!$B$3:$C$558,2,FALSE)) -> Reparaciones y conservación | F10: =IF(G10="","","a") ->  | H10: =IF(G10="","",VLOOKUP(G10,'Cuadro de Cuentas (7)'!$B$3:$C$558,2,FALSE)) -> 
C11: =+'Factura Pintura'!L54 -> 136.92 | D11: 472 | E11: =IF(D11="","",VLOOKUP(D11,'Cuadro de Cuentas (7)'!$B$3:$C$558,2,FALSE)) -> Hacienda Pública, IVA soportado | F11: a | G11: 410 | H11: =IF(G11="","",VLOOKUP(G11,'Cuadro de Cuentas (7)'!$B$3:$C$558,2,FALSE)) -> Acreedores por prestaciones de servicios | I11: =+'Factura Pintura'!L55 -> 788.92
E12: =IF(D12="","",VLOOKUP(D12,'Cuadro de Cuentas (7)'!$B$3:$C$558,2,FALSE)) ->  | H12: =IF(G12="","",VLOOKUP(G12,'Cuadro de Cuentas (7)'!$B$3:$C$558,2,FALSE)) -> 
E13: Fra. Trabajos de pintura y decoración
E14: =IF(D14="","",VLOOKUP(D14,'Cuadro de Cuentas (7)'!$B$3:$C$558,2,FALSE)) ->  | F14: =+'Factura Mobiliario'!H10 -> 2015-07-03 | H14: =IF(G14="","",VLOOKUP(G14,'Cuadro de Cuentas (7)'!$B$3:$C$558,2,FALSE)) -> 
C15: =+'Factura Mobiliario'!H33 -> 2375 | D15: 216 | E15: =IF(D15="","",VLOOKUP(D15,'Cuadro de Cuentas (7)'!$B$3:$C$558,2,FALSE)) -> Mobiliario | F15: =IF(G15="","","a") -> 
C16: =+'Factura Mobiliario'!H34 -> 498.75 | D16: 472 | E16: =IF(D16="","",VLOOKUP(D16,'Cuadro de Cuentas (7)'!$B$3:$C$558,2,FALSE)) -> Hacienda Pública, IVA soportado | F16: a | G16: 523 | H16: =IF(G16="","",VLOOKUP(G16,'Cuadro de Cuentas (7)'!$B$3:$C$558,2,FALSE)) -> Proveedores de inmovilizado a corto plazo | I16: =+'Factura Mobiliario'!H39 -> 2873.75
E18: Por la compra del mobiliario
E19: =IF(D19="","",VLOOKUP(D19,'Cuadro de Cuentas (7)'!$B$3:$C$558,2,FALSE)) ->  | F19: =+'Factura Mobiliario'!H10 -> 2015-07-03 | H19: =IF(G19="","",VLOOKUP(G19,'Cuadro de Cuentas (7)'!$B$3:$C$558,2,FALSE)) -> 
C20: =+I16 -> 2873.75 | D20: 523 | E20: =IF(D20="","",VLOOKUP(D20,'Cuadro de Cuentas (7)'!$B$3:$C$558,2,FALSE)) -> Proveedores de inmovilizado a corto plazo | F20: =IF(G20="","","a") -> a | G20: 572 | H20: =IF(G20="","",VLOOKUP(G20,'Cuadro de Cuentas (7)'!$B$3:$C$558,2,FALSE)) -> Bancos e instituciones de crédito c/c vista, euros | I20: =+'Cheque Mobiliario'!M10 -> 2873.75
E21: =IF(D21="","",VLOOKUP(D21,'Cuadro de Cuentas (7)'!$B$3:$C$558,2,FALSE)) ->  | H21: =IF(G21="","",VLOOKUP(G21,'Cuadro de Cuentas (7)'!$B$3:$C$558,2,FALSE)) -> 
E22: Pago fra. Mobiliario | H22: =IF(G22="","",VLOOKUP(G22,'Cuadro de Cuentas (7)'!$B$3:$C$558,2,FALSE)) -> 
E23: =IF(D23="","",VLOOKUP(D23,'Cuadro de Cuentas (7)'!$B$3:$C$558,2,FALSE)) ->  | H23: =IF(G23="","",VLOOKUP(G23,'Cuadro de Cuentas (7)'!$B$3:$C$558,2,FALSE)) -> 
E24: =IF(D24="","",VLOOKUP(D24,'Cuadro de Cuentas (7)'!$B$3:$C$558,2,FALSE)) ->  | F24: =+'Transferencia Bancaria Pintura'!E8 -> 2015-07-10 | H24: =IF(G24="","",VLOOKUP(G24,'Cuadro de Cuentas (7)'!$B$3:$C$558,2,FALSE)) -> 
C25: =+I11 -> 788.92 | D25: 410 | E25: =IF(D25="","",VLOOKUP(D25,'Cuadro de Cuentas (7)'!$B$3:$C$558,2,FALSE)) -> Acreedores por prestaciones de servicios | F25: =IF(G25="","","a") -> a | G25: 572 | H25: =IF(G25="","",VLOOKUP(G25,'Cuadro de Cuentas (7)'!$B$3:$C$558,2,FALSE)) -> Bancos e instituciones de crédito c/c vista, euros | I25: =+'Transferencia Bancaria Pintura'!O18 -> 788.92
E26: =IF(D26="","",VLOOKUP(D26,'Cuadro de Cuentas (7)'!$B$3:$C$558,2,FALSE)) ->  | H26: =IF(G26="","",VLOOKUP(G26,'Cuadro de Cuentas (7)'!$B$3:$C$558,2,FALSE)) -> 
E27: =IF(D27="","",VLOOKUP(D27,'Cuadro de Cuentas (7)'!$B$3:$C$558,2,FALSE)) ->  | H27: =IF(G27="","",VLOOKUP(G27,'Cuadro de Cuentas (7)'!$B$3:$C$558,2,FALSE)) -> 
E28: Pago fra. Pintura | H28: =IF(G28="","",VLOOKUP(G28,'Cuadro de Cuentas (7)'!$B$3:$C$558,2,FALSE)) -> 
E29: =IF(D29="","",VLOOKUP(D29,'Cuadro de Cuentas (7)'!$B$3:$C$558,2,FALSE)) ->  | F29: =+'Factura Adquisición AA'!E65 -> 2015-07-20 | H29: =IF(G29="","",VLOOKUP(G29,'Cuadro de Cuentas (7)'!$B$3:$C$558,2,FALSE)) -> 
C30: =+'Factura Adquisición AA'!L55 -> 1452 | D30: 523 | E30: =IF(D30="","",VLOOKUP(D30,'Cuadro de Cuentas (7)'!$B$3:$C$558,2,FALSE)) -> Proveedores de inmovilizado a corto plazo | F30: =IF(G30="","","a") -> a | G30: 572 | H30: =IF(G30="","",VLOOKUP(G30,'Cuadro de Cuentas (7)'!$B$3:$C$558,2,FALSE)) -> Bancos e instituciones de crédito c/c vista, euros | I30: =+'Cheque AA'!M10 -> 1452
E31: =IF(D31="","",VLOOKUP(D31,'Cuadro de Cuentas (7)'!$B$3:$C$558,2,FALSE)) ->  | H31: =IF(G31="","",VLOOKUP(G31,'Cuadro de Cuentas (7)'!$B$3:$C$558,2,FALSE)) -> 
E32: Pago fra. Equipo AA | H32: =IF(G32="","",VLOOKUP(G32,'Cuadro de Cuentas (7)'!$B$3:$C$558,2,FALSE)) -> 
E33: =IF(D33="","",VLOOKUP(D33,'Cuadro de Cuentas (7)'!$B$3:$C$558,2,FALSE)) ->  | H33: =IF(G33="","",VLOOKUP(G33,'Cuadro de Cuentas (7)'!$B$3:$C$558,2,FALSE)) -> 
E34: =IF(D34="","",VLOOKUP(D34,'Cuadro de Cuentas (7)'!$B$3:$C$558,2,FALSE)) ->  | H34: =IF(G34="","",VLOOKUP(G34,'Cuadro de Cuentas (7)'!$B$3:$C$558,2,FALSE)) -> 
E47: =IF(D47="","",VLOOKUP(D47,'Cuadro de Cuentas (7)'!$B$3:$C$558,2,FALSE)) ->  | F47: =IF(G47="","","a") ->  | H47: =IF(G47="","",VLOOKUP(G47,'Cuadro de Cuentas (7)'!$B$3:$C$558,2,FALSE)) -> 
E48: =IF(D48="","",VLOOKUP(D48,'Cuadro de Cuentas (7)'!$B$3:$C$558,2,FALSE)) ->  | H48: =IF(G48="","",VLOOKUP(G48,'Cuadro de Cuentas (7)'!$B$3:$C$558,2,FALSE)) -> 
E58: =IF(D58="","",VLOOKUP(D58,'Cuadro de Cuentas (7)'!$B$3:$C$558,2,FALSE)) ->  | H58: =IF(G58="","",VLOOKUP(G58,'Cuadro de Cuentas (7)'!$B$3:$C$558,2,FALSE)) -> 
E59: =IF(D59="","",VLOOKUP(D59,'Cuadro de Cuentas (7)'!$B$3:$C$558,2,FALSE)) ->  | H59: =IF(G59="","",VLOOKUP(G59,'Cuadro de Cuentas (7)'!$B$3:$C$558,2,FALSE)) -> 
C63: DEBE | I63: HABER
C64: IMPORTES | D64: Nº CUENTA | E64: NOMBRE CUENTA | G64: Nº CUENTA | H64: NOMBRE CUENTA | I64: IMPORTES
E73: =IF(D73="","",VLOOKUP(D73,'Cuadro de Cuentas (7)'!$B$3:$C$558,2,FALSE)) ->  | F73: =IF(G73="","","a") ->  | H73: =IF(G73="","",VLOOKUP(G73,'Cuadro de Cuentas (7)'!$B$3:$C$558,2,FALSE)) -> 
E74: =IF(D74="","",VLOOKUP(D74,'Cuadro de Cuentas (7)'!$B$3:$C$558,2,FALSE)) ->  | H74: =IF(G74="","",VLOOKUP(G74,'Cuadro de Cuentas (7)'!$B$3:$C$558,2,FALSE)) -> 
E75: =IF(D75="","",VLOOKUP(D75,'Cuadro de Cuentas (7)'!$B$3:$C$558,2,FALSE)) ->  | H75: =IF(G75="","",VLOOKUP(G75,'Cuadro de Cuentas (7)'!$B$3:$C$558,2,FALSE)) -> 
E76: =IF(D76="","",VLOOKUP(D76,'Cuadro de Cuentas (7)'!$B$3:$C$558,2,FALSE)) ->  | H76: =IF(G76="","",VLOOKUP(G76,'Cuadro de Cuentas (7)'!$B$3:$C$558,2,FALSE)) -> 
E77: =IF(D77="","",VLOOKUP(D77,'Cuadro de Cuentas (7)'!$B$3:$C$558,2,FALSE)) ->  | H77: =IF(G77="","",VLOOKUP(G77,'Cuadro de Cuentas (7)'!$B$3:$C$558,2,FALSE)) -> 
E78: =IF(D78="","",VLOOKUP(D78,'Cuadro de Cuentas (7)'!$B$3:$C$558,2,FALSE)) ->  | H78: =IF(G78="","",VLOOKUP(G78,'Cuadro de Cuentas (7)'!$B$3:$C$558,2,FALSE)) -> 
E79: =IF(D79="","",VLOOKUP(D79,'Cuadro de Cuentas (7)'!$B$3:$C$558,2,FALSE)) ->  | H79: =IF(G79="","",VLOOKUP(G79,'Cuadro de Cuentas (7)'!$B$3:$C$558,2,FALSE)) -> 
E80: =IF(D80="","",VLOOKUP(D80,'Cuadro de Cuentas (7)'!$B$3:$C$558,2,FALSE)) ->  | H80: =IF(G80="","",VLOOKUP(G80,'Cuadro de Cuentas (7)'!$B$3:$C$558,2,FALSE)) -> 
E81: =IF(D81="","",VLOOKUP(D81,'Cuadro de Cuentas (7)'!$B$3:$C$558,2,FALSE)) ->  | H81: =IF(G81="","",VLOOKUP(G81,'Cuadro de Cuentas (7)'!$B$3:$C$558,2,FALSE)) -> 
E82: =IF(D82="","",VLOOKUP(D82,'Cuadro de Cuentas (7)'!$B$3:$C$558,2,FALSE)) ->  | H82: =IF(G82="","",VLOOKUP(G82,'Cuadro de Cuentas (7)'!$B$3:$C$558,2,FALSE)) -> 
E83: =IF(D83="","",VLOOKUP(D83,'Cuadro de Cuentas (7)'!$B$3:$C$558,2,FALSE)) ->  | H83: =IF(G83="","",VLOOKUP(G83,'Cuadro de Cuentas (7)'!$B$3:$C$558,2,FALSE)) -> 
E84: =IF(D84="","",VLOOKUP(D84,'Cuadro de Cuentas (7)'!$B$3:$C$558,2,FALSE)) ->  | H84: =IF(G84="","",VLOOKUP(G84,'Cuadro de Cuentas (7)'!$B$3:$C$558,2,FALSE)) -> 
E85: =IF(D85="","",VLOOKUP(D85,'Cuadro de Cuentas (7)'!$B$3:$C$558,2,FALSE)) ->  | H85: =IF(G85="","",VLOOKUP(G85,'Cuadro de Cuentas (7)'!$B$3:$C$558,2,FALSE)) -> 
E86: =IF(D86="","",VLOOKUP(D86,'Cuadro de Cuentas (7)'!$B$3:$C$558,2,FALSE)) ->  | H86: =IF(G86="","",VLOOKUP(G86,'Cuadro de Cuentas (7)'!$B$3:$C$558,2,FALSE)) -> 
E87: =IF(D87="","",VLOOKUP(D87,'Cuadro de Cuentas (7)'!$B$3:$C$558,2,FALSE)) ->  | H87: =IF(G87="","",VLOOKUP(G87,'Cuadro de Cuentas (7)'!$B$3:$C$558,2,FALSE)) -> 
E88: =IF(D88="","",VLOOKUP(D88,'Cuadro de Cuentas (7)'!$B$3:$C$558,2,FALSE)) ->  | H88: =IF(G88="","",VLOOKUP(G88,'Cuadro de Cuentas (7)'!$B$3:$C$558,2,FALSE)) -> 
E89: =IF(D89="","",VLOOKUP(D89,'Cuadro de Cuentas (7)'!$B$3:$C$558,2,FALSE)) ->  | H89: =IF(G89="","",VLOOKUP(G89,'Cuadro de Cuentas (7)'!$B$3:$C$558,2,FALSE)) -> 
E90: =IF(D90="","",VLOOKUP(D90,'Cuadro de Cuentas (7)'!$B$3:$C$558,2,FALSE)) ->  | H90: =IF(G90="","",VLOOKUP(G90,'Cuadro de Cuentas (7)'!$B$3:$C$558,2,FALSE)) -> 
E91: =IF(D91="","",VLOOKUP(D91,'Cuadro de Cuentas (7)'!$B$3:$C$558,2,FALSE)) ->  | H91: =IF(G91="","",VLOOKUP(G91,'Cuadro de Cuentas (7)'!$B$3:$C$558,2,FALSE)) -> 
E92: =IF(D92="","",VLOOKUP(D92,'Cuadro de Cuentas (7)'!$B$3:$C$558,2,FALSE)) ->  | H92: =IF(G92="","",VLOOKUP(G92,'Cuadro de Cuentas (7)'!$B$3:$C$558,2,FALSE)) -> 
E93: =IF(D93="","",VLOOKUP(D93,'Cuadro de Cuentas (7)'!$B$3:$C$558,2,FALSE)) ->  | H93: =IF(G93="","",VLOOKUP(G93,'Cuadro de Cuentas (7)'!$B$3:$C$558,2,FALSE)) -> 
E94: =IF(D94="","",VLOOKUP(D94,'Cuadro de Cuentas (7)'!$B$3:$C$558,2,FALSE)) ->  | H94: =IF(G94="","",VLOOKUP(G94,'Cuadro de Cuentas (7)'!$B$3:$C$558,2,FALSE)) -> 
E95: =IF(D95="","",VLOOKUP(D95,'Cuadro de Cuentas (7)'!$B$3:$C$558,2,FALSE)) ->  | H95: =IF(G95="","",VLOOKUP(G95,'Cuadro de Cuentas (7)'!$B$3:$C$558,2,FALSE)) -> 
E96: =IF(D96="","",VLOOKUP(D96,'Cuadro de Cuentas (7)'!$B$3:$C$558,2,FALSE)) ->  | H96: =IF(G96="","",VLOOKUP(G96,'Cuadro de Cuentas (7)'!$B$3:$C$558,2,FALSE)) -> 
E97: =IF(D97="","",VLOOKUP(D97,'Cuadro de Cuentas (7)'!$B$3:$C$558,2,FALSE)) ->  | H97: =IF(G97="","",VLOOKUP(G97,'Cuadro de Cuentas (7)'!$B$3:$C$558,2,FALSE)) -> 
E98: =IF(D98="","",VLOOKUP(D98,'Cuadro de Cuentas (7)'!$B$3:$C$558,2,FALSE)) ->  | H98: =IF(G98="","",VLOOKUP(G98,'Cuadro de Cuentas (7)'!$B$3:$C$558,2,FALSE)) -> 
E99: =IF(D99="","",VLOOKUP(D99,'Cuadro de Cuentas (7)'!$B$3:$C$558,2,FALSE)) ->  | H99: =IF(G99="","",VLOOKUP(G99,'Cuadro de Cuentas (7)'!$B$3:$C$558,2,FALSE)) -> 
E100: =IF(D100="","",VLOOKUP(D100,'Cuadro de Cuentas (7)'!$B$3:$C$558,2,FALSE)) ->  | H100: =IF(G100="","",VLOOKUP(G100,'Cuadro de Cuentas (7)'!$B$3:$C$558,2,FALSE)) -> 
E101: =IF(D101="","",VLOOKUP(D101,'Cuadro de Cuentas (7)'!$B$3:$C$558,2,FALSE)) ->  | H101: =IF(G101="","",VLOOKUP(G101,'Cuadro de Cuentas (7)'!$B$3:$C$558,2,FALSE)) -> 
E102: =IF(D102="","",VLOOKUP(D102,'Cuadro de Cuentas (7)'!$B$3:$C$558,2,FALSE)) ->  | H102: =IF(G102="","",VLOOKUP(G102,'Cuadro de Cuentas (7)'!$B$3:$C$558,2,FALSE)) -> 
E103: =IF(D103="","",VLOOKUP(D103,'Cuadro de Cuentas (7)'!$B$3:$C$558,2,FALSE)) ->  | H103: =IF(G103="","",VLOOKUP(G103,'Cuadro de Cuentas (7)'!$B$3:$C$558,2,FALSE)) -> 
E104: =IF(D104="","",VLOOKUP(D104,'Cuadro de Cuentas (7)'!$B$3:$C$558,2,FALSE)) ->  | H104: =IF(G104="","",VLOOKUP(G104,'Cuadro de Cuentas (7)'!$B$3:$C$558,2,FALSE)) -> 
E105: =IF(D105="","",VLOOKUP(D105,'Cuadro de Cuentas (7)'!$B$3:$C$558,2,FALSE)) ->  | H105: =IF(G105="","",VLOOKUP(G105,'Cuadro de Cuentas (7)'!$B$3:$C$558,2,FALSE)) -> 
E106: =IF(D106="","",VLOOKUP(D106,'Cuadro de Cuentas (7)'!$B$3:$C$558,2,FALSE)) ->  | H106: =IF(G106="","",VLOOKUP(G106,'Cuadro de Cuentas (7)'!$B$3:$C$558,2,FALSE)) -> 
E107: =IF(D107="","",VLOOKUP(D107,'Cuadro de Cuentas (7)'!$B$3:$C$558,2,FALSE)) ->  | H107: =IF(G107="","",VLOOKUP(G107,'Cuadro de Cuentas (7)'!$B$3:$C$558,2,FALSE)) -> 
E108: =IF(D108="","",VLOOKUP(D108,'Cuadro de Cuentas (7)'!$B$3:$C$558,2,FALSE)) ->  | H108: =IF(G108="","",VLOOKUP(G108,'Cuadro de Cuentas (7)'!$B$3:$C$558,2,FALSE)) -> 
E109: =IF(D109="","",VLOOKUP(D109,'Cuadro de Cuentas (7)'!$B$3:$C$558,2,FALSE)) ->  | H109: =IF(G109="","",VLOOKUP(G109,'Cuadro de Cuentas (7)'!$B$3:$C$558,2,FALSE)) -> 
C113: DEBE | I113: HABER
C114: IMPORTES | D114: Nº CUENTA | E114: NOMBRE CUENTA | G114: Nº CUENTA | H114: NOMBRE CUENTA | I114: IMPORTES
E115: =IF(D115="","",VLOOKUP(D115,'Cuadro de Cuentas (7)'!$B$3:$C$558,2,FALSE)) ->  | F115: =IF(G115="","","a") ->  | H115: =IF(G115="","",VLOOKUP(G115,'Cuadro de Cuentas (7)'!$B$3:$C$558,2,FALSE)) -> 
E116: =IF(D116="","",VLOOKUP(D116,'Cuadro de Cuentas (7)'!$B$3:$C$558,2,FALSE)) ->  | H116: =IF(G116="","",VLOOKUP(G116,'Cuadro de Cuentas (7)'!$B$3:$C$558,2,FALSE)) -> 
E117: =IF(D117="","",VLOOKUP(D117,'Cuadro de Cuentas (7)'!$B$3:$C$558,2,FALSE)) ->  | H117: =IF(G117="","",VLOOKUP(G117,'Cuadro de Cuentas (7)'!$B$3:$C$558,2,FALSE)) -> 
E118: =IF(D118="","",VLOOKUP(D118,'Cuadro de Cuentas (7)'!$B$3:$C$558,2,FALSE)) ->  | H118: =IF(G118="","",VLOOKUP(G118,'Cuadro de Cuentas (7)'!$B$3:$C$558,2,FALSE)) -> 
E119: =IF(D119="","",VLOOKUP(D119,'Cuadro de Cuentas (7)'!$B$3:$C$558,2,FALSE)) ->  | H119: =IF(G119="","",VLOOKUP(G119,'Cuadro de Cuentas (7)'!$B$3:$C$558,2,FALSE)) -> 
E120: =IF(D120="","",VLOOKUP(D120,'Cuadro de Cuentas (7)'!$B$3:$C$558,2,FALSE)) ->  | H120: =IF(G120="","",VLOOKUP(G120,'Cuadro de Cuentas (7)'!$B$3:$C$558,2,FALSE)) -> 
E121: =IF(D121="","",VLOOKUP(D121,'Cuadro de Cuentas (7)'!$B$3:$C$558,2,FALSE)) ->  | H121: =IF(G121="","",VLOOKUP(G121,'Cuadro de Cuentas (7)'!$B$3:$C$558,2,FALSE)) -> 
E122: =IF(D122="","",VLOOKUP(D122,'Cuadro de Cuentas (7)'!$B$3:$C$558,2,FALSE)) ->  | H122: =IF(G122="","",VLOOKUP(G122,'Cuadro de Cuentas (7)'!$B$3:$C$558,2,FALSE)) -> 
E123: =IF(D123="","",VLOOKUP(D123,'Cuadro de Cuentas (7)'!$B$3:$C$558,2,FALSE)) ->  | H123: =IF(G123="","",VLOOKUP(G123,'Cuadro de Cuentas (7)'!$B$3:$C$558,2,FALSE)) -> 
E124: =IF(D124="","",VLOOKUP(D124,'Cuadro de Cuentas (7)'!$B$3:$C$558,2,FALSE)) ->  | H124: =IF(G124="","",VLOOKUP(G124,'Cuadro de Cuentas (7)'!$B$3:$C$558,2,FALSE)) -> 
E125: =IF(D125="","",VLOOKUP(D125,'Cuadro de Cuentas (7)'!$B$3:$C$558,2,FALSE)) ->  | H125: =IF(G125="","",VLOOKUP(G125,'Cuadro de Cuentas (7)'!$B$3:$C$558,2,FALSE)) -> 
E126: =IF(D126="","",VLOOKUP(D126,'Cuadro de Cuentas (7)'!$B$3:$C$558,2,FALSE)) ->  | H126: =IF(G126="","",VLOOKUP(G126,'Cuadro de Cuentas (7)'!$B$3:$C$558,2,FALSE)) -> 
E127: =IF(D127="","",VLOOKUP(D127,'Cuadro de Cuentas (7)'!$B$3:$C$558,2,FALSE)) ->  | H127: =IF(G127="","",VLOOKUP(G127,'Cuadro de Cuentas (7)'!$B$3:$C$558,2,FALSE)) -> 
E128: =IF(D128="","",VLOOKUP(D128,'Cuadro de Cuentas (7)'!$B$3:$C$558,2,FALSE)) ->  | H128: =IF(G128="","",VLOOKUP(G128,'Cuadro de Cuentas (7)'!$B$3:$C$558,2,FALSE)) -> 
E129: =IF(D129="","",VLOOKUP(D129,'Cuadro de Cuentas (7)'!$B$3:$C$558,2,FALSE)) ->  | H129: =IF(G129="","",VLOOKUP(G129,'Cuadro de Cuentas (7)'!$B$3:$C$558,2,FALSE)) -> 
E130: =IF(D130="","",VLOOKUP(D130,'Cuadro de Cuentas (7)'!$B$3:$C$558,2,FALSE)) ->  | H130: =IF(G130="","",VLOOKUP(G130,'Cuadro de Cuentas (7)'!$B$3:$C$558,2,FALSE)) -> 
E131: =IF(D131="","",VLOOKUP(D131,'Cuadro de Cuentas (7)'!$B$3:$C$558,2,FALSE)) ->  | H131: =IF(G131="","",VLOOKUP(G131,'Cuadro de Cuentas (7)'!$B$3:$C$558,2,FALSE)) -> 
E132: =IF(D132="","",VLOOKUP(D132,'Cuadro de Cuentas (7)'!$B$3:$C$558,2,FALSE)) ->  | H132: =IF(G132="","",VLOOKUP(G132,'Cuadro de Cuentas (7)'!$B$3:$C$558,2,FALSE)) -> 
E133: =IF(D133="","",VLOOKUP(D133,'Cuadro de Cuentas (7)'!$B$3:$C$558,2,FALSE)) ->  | H133: =IF(G133="","",VLOOKUP(G133,'Cuadro de Cuentas (7)'!$B$3:$C$558,2,FALSE)) -> 
E134: =IF(D134="","",VLOOKUP(D134,'Cuadro de Cuentas (7)'!$B$3:$C$558,2,FALSE)) ->  | H134: =IF(G134="","",VLOOKUP(G134,'Cuadro de Cuentas (7)'!$B$3:$C$558,2,FALSE)) -> 
E135: =IF(D135="","",VLOOKUP(D135,'Cuadro de Cuentas (7)'!$B$3:$C$558,2,FALSE)) ->  | H135: =IF(G135="","",VLOOKUP(G135,'Cuadro de Cuentas (7)'!$B$3:$C$558,2,FALSE)) -> 
E136: =IF(D136="","",VLOOKUP(D136,'Cuadro de Cuentas (7)'!$B$3:$C$558,2,FALSE)) ->  | H136: =IF(G136="","",VLOOKUP(G136,'Cuadro de Cuentas (7)'!$B$3:$C$558,2,FALSE)) -> 
E137: =IF(D137="","",VLOOKUP(D137,'Cuadro de Cuentas (7)'!$B$3:$C$558,2,FALSE)) ->  | H137: =IF(G137="","",VLOOKUP(G137,'Cuadro de Cuentas (7)'!$B$3:$C$558,2,FALSE)) -> 
E138: =IF(D138="","",VLOOKUP(D138,'Cuadro de Cuentas (7)'!$B$3:$C$558,2,FALSE)) ->  | H138: =IF(G138="","",VLOOKUP(G138,'Cuadro de Cuentas (7)'!$B$3:$C$558,2,FALSE)) -> 
E139: =IF(D139="","",VLOOKUP(D139,'Cuadro de Cuentas (7)'!$B$3:$C$558,2,FALSE)) ->  | H139: =IF(G139="","",VLOOKUP(G139,'Cuadro de Cuentas (7)'!$B$3:$C$558,2,FALSE)) -> 
E140: =IF(D140="","",VLOOKUP(D140,'Cuadro de Cuentas (7)'!$B$3:$C$558,2,FALSE)) ->  | H140: =IF(G140="","",VLOOKUP(G140,'Cuadro de Cuentas (7)'!$B$3:$C$558,2,FALSE)) -> 
E141: =IF(D141="","",VLOOKUP(D141,'Cuadro de Cuentas (7)'!$B$3:$C$558,2,FALSE)) ->  | H141: =IF(G141="","",VLOOKUP(G141,'Cuadro de Cuentas (7)'!$B$3:$C$558,2,FALSE)) -> 
E142: =IF(D142="","",VLOOKUP(D142,'Cuadro de Cuentas (7)'!$B$3:$C$558,2,FALSE)) ->  | H142: =IF(G142="","",VLOOKUP(G142,'Cuadro de Cuentas (7)'!$B$3:$C$558,2,FALSE)) -> 
E143: =IF(D143="","",VLOOKUP(D143,'Cuadro de Cuentas (7)'!$B$3:$C$558,2,FALSE)) ->  | H143: =IF(G143="","",VLOOKUP(G143,'Cuadro de Cuentas (7)'!$B$3:$C$558,2,FALSE)) -> 
E144: =IF(D144="","",VLOOKUP(D144,'Cuadro de Cuentas (7)'!$B$3:$C$558,2,FALSE)) ->  | H144: =IF(G144="","",VLOOKUP(G144,'Cuadro de Cuentas (7)'!$B$3:$C$558,2,FALSE)) -> 
E145: =IF(D145="","",VLOOKUP(D145,'Cuadro de Cuentas (7)'!$B$3:$C$558,2,FALSE)) ->  | H145: =IF(G145="","",VLOOKUP(G145,'Cuadro de Cuentas (7)'!$B$3:$C$558,2,FALSE)) -> 
E146: =IF(D146="","",VLOOKUP(D146,'Cuadro de Cuentas (7)'!$B$3:$C$558,2,FALSE)) ->  | H146: =IF(G146="","",VLOOKUP(G146,'Cuadro de Cuentas (7)'!$B$3:$C$558,2,FALSE)) -> 
E147: =IF(D147="","",VLOOKUP(D147,'Cuadro de Cuentas (7)'!$B$3:$C$558,2,FALSE)) ->  | H147: =IF(G147="","",VLOOKUP(G147,'Cuadro de Cuentas (7)'!$B$3:$C$558,2,FALSE)) -> 
E148: =IF(D148="","",VLOOKUP(D148,'Cuadro de Cuentas (7)'!$B$3:$C$558,2,FALSE)) ->  | H148: =IF(G148="","",VLOOKUP(G148,'Cuadro de Cuentas (7)'!$B$3:$C$558,2,FALSE)) -> 
E149: =IF(D149="","",VLOOKUP(D149,'Cuadro de Cuentas (7)'!$B$3:$C$558,2,FALSE)) ->  | H149: =IF(G149="","",VLOOKUP(G149,'Cuadro de Cuentas (7)'!$B$3:$C$558,2,FALSE)) -> 
E150: =IF(D150="","",VLOOKUP(D150,'Cuadro de Cuentas (7)'!$B$3:$C$558,2,FALSE)) ->  | H150: =IF(G150="","",VLOOKUP(G150,'Cuadro de Cuentas (7)'!$B$3:$C$558,2,FALSE)) -> 
E151: =IF(D151="","",VLOOKUP(D151,'Cuadro de Cuentas (7)'!$B$3:$C$558,2,FALSE)) ->  | H151: =IF(G151="","",VLOOKUP(G151,'Cuadro de Cuentas (7)'!$B$3:$C$558,2,FALSE)) -> 
E152: =IF(D152="","",VLOOKUP(D152,'Cuadro de Cuentas (7)'!$B$3:$C$558,2,FALSE)) ->  | H152: =IF(G152="","",VLOOKUP(G152,'Cuadro de Cuentas (7)'!$B$3:$C$558,2,FALSE)) -> 
E153: =IF(D153="","",VLOOKUP(D153,'Cuadro de Cuentas (7)'!$B$3:$C$558,2,FALSE)) ->  | H153: =IF(G153="","",VLOOKUP(G153,'Cuadro de Cuentas (7)'!$B$3:$C$558,2,FALSE)) -> 
E154: =IF(D154="","",VLOOKUP(D154,'Cuadro de Cuentas (7)'!$B$3:$C$558,2,FALSE)) ->  | H154: =IF(G154="","",VLOOKUP(G154,'Cuadro de Cuentas (7)'!$B$3:$C$558,2,FALSE)) -> 
E155: =IF(D155="","",VLOOKUP(D155,'Cuadro de Cuentas (7)'!$B$3:$C$558,2,FALSE)) ->  | H155: =IF(G155="","",VLOOKUP(G155,'Cuadro de Cuentas (7)'!$B$3:$C$558,2,FALSE)) -> 
E156: =IF(D156="","",VLOOKUP(D156,'Cuadro de Cuentas (7)'!$B$3:$C$558,2,FALSE)) ->  | H156: =IF(G156="","",VLOOKUP(G156,'Cuadro de Cuentas (7)'!$B$3:$C$558,2,FALSE)) -> 
E157: =IF(D157="","",VLOOKUP(D157,'Cuadro de Cuentas (7)'!$B$3:$C$558,2,FALSE)) ->  | H157: =IF(G157="","",VLOOKUP(G157,'Cuadro de Cuentas (7)'!$B$3:$C$558,2,FALSE)) -> 
E158: =IF(D158="","",VLOOKUP(D158,'Cuadro de Cuentas (7)'!$B$3:$C$558,2,FALSE)) ->  | H158: =IF(G158="","",VLOOKUP(G158,'Cuadro de Cuentas (7)'!$B$3:$C$558,2,FALSE)) -> 
E159: =IF(D159="","",VLOOKUP(D159,'Cuadro de Cuentas (7)'!$B$3:$C$558,2,FALSE)) ->  | H159: =IF(G159="","",VLOOKUP(G159,'Cuadro de Cuentas (7)'!$B$3:$C$558,2,FALSE)) -> 
C163: DEBE | I163: HABER
C164: IMPORTES | D164: Nº CUENTA | E164: NOMBRE CUENTA | G164: Nº CUENTA | H164: NOMBRE CUENTA | I164: IMPORTES
E165: =IF(D165="","",VLOOKUP(D165,'Cuadro de Cuentas (7)'!$B$3:$C$558,2,FALSE)) ->  | F165: =IF(G165="","","a") ->  | H165: =IF(G165="","",VLOOKUP(G165,'Cuadro de Cuentas (7)'!$B$3:$C$558,2,FALSE)) -> 
E166: =IF(D166="","",VLOOKUP(D166,'Cuadro de Cuentas (7)'!$B$3:$C$558,2,FALSE)) ->  | H166: =IF(G166="","",VLOOKUP(G166,'Cuadro de Cuentas (7)'!$B$3:$C$558,2,FALSE)) -> 
E167: =IF(D167="","",VLOOKUP(D167,'Cuadro de Cuentas (7)'!$B$3:$C$558,2,FALSE)) ->  | H167: =IF(G167="","",VLOOKUP(G167,'Cuadro de Cuentas (7)'!$B$3:$C$558,2,FALSE)) -> 
E168: =IF(D168="","",VLOOKUP(D168,'Cuadro de Cuentas (7)'!$B$3:$C$558,2,FALSE)) ->  | H168: =IF(G168="","",VLOOKUP(G168,'Cuadro de Cuentas (7)'!$B$3:$C$558,2,FALSE)) -> 
E169: =IF(D169="","",VLOOKUP(D169,'Cuadro de Cuentas (7)'!$B$3:$C$558,2,FALSE)) ->  | H169: =IF(G169="","",VLOOKUP(G169,'Cuadro de Cuentas (7)'!$B$3:$C$558,2,FALSE)) -> 
E170: =IF(D170="","",VLOOKUP(D170,'Cuadro de Cuentas (7)'!$B$3:$C$558,2,FALSE)) ->  | H170: =IF(G170="","",VLOOKUP(G170,'Cuadro de Cuentas (7)'!$B$3:$C$558,2,FALSE)) -> 
E171: =IF(D171="","",VLOOKUP(D171,'Cuadro de Cuentas (7)'!$B$3:$C$558,2,FALSE)) ->  | H171: =IF(G171="","",VLOOKUP(G171,'Cuadro de Cuentas (7)'!$B$3:$C$558,2,FALSE)) -> 
E172: =IF(D172="","",VLOOKUP(D172,'Cuadro de Cuentas (7)'!$B$3:$C$558,2,FALSE)) ->  | H172: =IF(G172="","",VLOOKUP(G172,'Cuadro de Cuentas (7)'!$B$3:$C$558,2,FALSE)) -> 
E173: =IF(D173="","",VLOOKUP(D173,'Cuadro de Cuentas (7)'!$B$3:$C$558,2,FALSE)) ->  | H173: =IF(G173="","",VLOOKUP(G173,'Cuadro de Cuentas (7)'!$B$3:$C$558,2,FALSE)) -> 
E174: =IF(D174="","",VLOOKUP(D174,'Cuadro de Cuentas (7)'!$B$3:$C$558,2,FALSE)) ->  | H174: =IF(G174="","",VLOOKUP(G174,'Cuadro de Cuentas (7)'!$B$3:$C$558,2,FALSE)) -> 
E175: =IF(D175="","",VLOOKUP(D175,'Cuadro de Cuentas (7)'!$B$3:$C$558,2,FALSE)) ->  | H175: =IF(G175="","",VLOOKUP(G175,'Cuadro de Cuentas (7)'!$B$3:$C$558,2,FALSE)) -> 
E176: =IF(D176="","",VLOOKUP(D176,'Cuadro de Cuentas (7)'!$B$3:$C$558,2,FALSE)) ->  | H176: =IF(G176="","",VLOOKUP(G176,'Cuadro de Cuentas (7)'!$B$3:$C$558,2,FALSE)) -> 
E177: =IF(D177="","",VLOOKUP(D177,'Cuadro de Cuentas (7)'!$B$3:$C$558,2,FALSE)) ->  | H177: =IF(G177="","",VLOOKUP(G177,'Cuadro de Cuentas (7)'!$B$3:$C$558,2,FALSE)) -> 
E178: =IF(D178="","",VLOOKUP(D178,'Cuadro de Cuentas (7)'!$B$3:$C$558,2,FALSE)) ->  | H178: =IF(G178="","",VLOOKUP(G178,'Cuadro de Cuentas (7)'!$B$3:$C$558,2,FALSE)) -> 
E179: =IF(D179="","",VLOOKUP(D179,'Cuadro de Cuentas (7)'!$B$3:$C$558,2,FALSE)) ->  | H179: =IF(G179="","",VLOOKUP(G179,'Cuadro de Cuentas (7)'!$B$3:$C$558,2,FALSE)) -> 
E180: =IF(D180="","",VLOOKUP(D180,'Cuadro de Cuentas (7)'!$B$3:$C$558,2,FALSE)) ->  | H180: =IF(G180="","",VLOOKUP(G180,'Cuadro de Cuentas (7)'!$B$3:$C$558,2,FALSE)) -> 
E181: =IF(D181="","",VLOOKUP(D181,'Cuadro de Cuentas (7)'!$B$3:$C$558,2,FALSE)) ->  | H181: =IF(G181="","",VLOOKUP(G181,'Cuadro de Cuentas (7)'!$B$3:$C$558,2,FALSE)) -> 
E182: =IF(D182="","",VLOOKUP(D182,'Cuadro de Cuentas (7)'!$B$3:$C$558,2,FALSE)) ->  | H182: =IF(G182="","",VLOOKUP(G182,'Cuadro de Cuentas (7)'!$B$3:$C$558,2,FALSE)) -> 
E183: =IF(D183="","",VLOOKUP(D183,'Cuadro de Cuentas (7)'!$B$3:$C$558,2,FALSE)) ->  | H183: =IF(G183="","",VLOOKUP(G183,'Cuadro de Cuentas (7)'!$B$3:$C$558,2,FALSE)) -> 
E184: =IF(D184="","",VLOOKUP(D184,'Cuadro de Cuentas (7)'!$B$3:$C$558,2,FALSE)) ->  | H184: =IF(G184="","",VLOOKUP(G184,'Cuadro de Cuentas (7)'!$B$3:$C$558,2,FALSE)) -> 
E185: =IF(D185="","",VLOOKUP(D185,'Cuadro de Cuentas (7)'!$B$3:$C$558,2,FALSE)) ->  | H185: =IF(G185="","",VLOOKUP(G185,'Cuadro de Cuentas (7)'!$B$3:$C$558,2,FALSE)) -> 
E186: =IF(D186="","",VLOOKUP(D186,'Cuadro de Cuentas (7)'!$B$3:$C$558,2,FALSE)) ->  | H186: =IF(G186="","",VLOOKUP(G186,'Cuadro de Cuentas (7)'!$B$3:$C$558,2,FALSE)) -> 
E187: =IF(D187="","",VLOOKUP(D187,'Cuadro de Cuentas (7)'!$B$3:$C$558,2,FALSE)) ->  | H187: =IF(G187="","",VLOOKUP(G187,'Cuadro de Cuentas (7)'!$B$3:$C$558,2,FALSE)) -> 
E188: =IF(D188="","",VLOOKUP(D188,'Cuadro de Cuentas (7)'!$B$3:$C$558,2,FALSE)) ->  | H188: =IF(G188="","",VLOOKUP(G188,'Cuadro de Cuentas (7)'!$B$3:$C$558,2,FALSE)) -> 
E189: =IF(D189="","",VLOOKUP(D189,'Cuadro de Cuentas (7)'!$B$3:$C$558,2,FALSE)) ->  | H189: =IF(G189="","",VLOOKUP(G189,'Cuadro de Cuentas (7)'!$B$3:$C$558,2,FALSE)) -> 
E190: =IF(D190="","",VLOOKUP(D190,'Cuadro de Cuentas (7)'!$B$3:$C$558,2,FALSE)) ->  | H190: =IF(G190="","",VLOOKUP(G190,'Cuadro de Cuentas (7)'!$B$3:$C$558,2,FALSE)) -> 
E191: =IF(D191="","",VLOOKUP(D191,'Cuadro de Cuentas (7)'!$B$3:$C$558,2,FALSE)) ->  | H191: =IF(G191="","",VLOOKUP(G191,'Cuadro de Cuentas (7)'!$B$3:$C$558,2,FALSE)) -> 
E192: =IF(D192="","",VLOOKUP(D192,'Cuadro de Cuentas (7)'!$B$3:$C$558,2,FALSE)) ->  | H192: =IF(G192="","",VLOOKUP(G192,'Cuadro de Cuentas (7)'!$B$3:$C$558,2,FALSE)) -> 
E193: =IF(D193="","",VLOOKUP(D193,'Cuadro de Cuentas (7)'!$B$3:$C$558,2,FALSE)) ->  | H193: =IF(G193="","",VLOOKUP(G193,'Cuadro de Cuentas (7)'!$B$3:$C$558,2,FALSE)) -> 
E194: =IF(D194="","",VLOOKUP(D194,'Cuadro de Cuentas (7)'!$B$3:$C$558,2,FALSE)) ->  | H194: =IF(G194="","",VLOOKUP(G194,'Cuadro de Cuentas (7)'!$B$3:$C$558,2,FALSE)) -> 
E195: =IF(D195="","",VLOOKUP(D195,'Cuadro de Cuentas (7)'!$B$3:$C$558,2,FALSE)) ->  | H195: =IF(G195="","",VLOOKUP(G195,'Cuadro de Cuentas (7)'!$B$3:$C$558,2,FALSE)) -> 
E196: =IF(D196="","",VLOOKUP(D196,'Cuadro de Cuentas (7)'!$B$3:$C$558,2,FALSE)) ->  | H196: =IF(G196="","",VLOOKUP(G196,'Cuadro de Cuentas (7)'!$B$3:$C$558,2,FALSE)) -> 
E197: =IF(D197="","",VLOOKUP(D197,'Cuadro de Cuentas (7)'!$B$3:$C$558,2,FALSE)) ->  | H197: =IF(G197="","",VLOOKUP(G197,'Cuadro de Cuentas (7)'!$B$3:$C$558,2,FALSE)) -> 
E198: =IF(D198="","",VLOOKUP(D198,'Cuadro de Cuentas (7)'!$B$3:$C$558,2,FALSE)) ->  | H198: =IF(G198="","",VLOOKUP(G198,'Cuadro de Cuentas (7)'!$B$3:$C$558,2,FALSE)) -> 
E199: =IF(D199="","",VLOOKUP(D199,'Cuadro de Cuentas (7)'!$B$3:$C$558,2,FALSE)) ->  | H199: =IF(G199="","",VLOOKUP(G199,'Cuadro de Cuentas (7)'!$B$3:$C$558,2,FALSE)) -> 
E200: =IF(D200="","",VLOOKUP(D200,'Cuadro de Cuentas (7)'!$B$3:$C$558,2,FALSE)) ->  | H200: =IF(G200="","",VLOOKUP(G200,'Cuadro de Cuentas (7)'!$B$3:$C$558,2,FALSE)) -> 
E201: =IF(D201="","",VLOOKUP(D201,'Cuadro de Cuentas (7)'!$B$3:$C$558,2,FALSE)) ->  | H201: =IF(G201="","",VLOOKUP(G201,'Cuadro de Cuentas (7)'!$B$3:$C$558,2,FALSE)) -> 
E202: =IF(D202="","",VLOOKUP(D202,'Cuadro de Cuentas (7)'!$B$3:$C$558,2,FALSE)) ->  | H202: =IF(G202="","",VLOOKUP(G202,'Cuadro de Cuentas (7)'!$B$3:$C$558,2,FALSE)) -> 
E203: =IF(D203="","",VLOOKUP(D203,'Cuadro de Cuentas (7)'!$B$3:$C$558,2,FALSE)) ->  | H203: =IF(G203="","",VLOOKUP(G203,'Cuadro de Cuentas (7)'!$B$3:$C$558,2,FALSE)) -> 
E204: =IF(D204="","",VLOOKUP(D204,'Cuadro de Cuentas (7)'!$B$3:$C$558,2,FALSE)) ->  | H204: =IF(G204="","",VLOOKUP(G204,'Cuadro de Cuentas (7)'!$B$3:$C$558,2,FALSE)) -> 
E205: =IF(D205="","",VLOOKUP(D205,'Cuadro de Cuentas (7)'!$B$3:$C$558,2,FALSE)) ->  | H205: =IF(G205="","",VLOOKUP(G205,'Cuadro de Cuentas (7)'!$B$3:$C$558,2,FALSE)) -> 
E206: =IF(D206="","",VLOOKUP(D206,'Cuadro de Cuentas (7)'!$B$3:$C$558,2,FALSE)) ->  | H206: =IF(G206="","",VLOOKUP(G206,'Cuadro de Cuentas (7)'!$B$3:$C$558,2,FALSE)) -> 
E207: =IF(D207="","",VLOOKUP(D207,'Cuadro de Cuentas (7)'!$B$3:$C$558,2,FALSE)) ->  | H207: =IF(G207="","",VLOOKUP(G207,'Cuadro de Cuentas (7)'!$B$3:$C$558,2,FALSE)) -> 
E208: =IF(D208="","",VLOOKUP(D208,'Cuadro de Cuentas (7)'!$B$3:$C$558,2,FALSE)) ->  | H208: =IF(G208="","",VLOOKUP(G208,'Cuadro de Cuentas (7)'!$B$3:$C$558,2,FALSE)) -> 
E209: =IF(D209="","",VLOOKUP(D209,'Cuadro de Cuentas (7)'!$B$3:$C$558,2,FALSE)) ->  | H209: =IF(G209="","",VLOOKUP(G209,'Cuadro de Cuentas (7)'!$B$3:$C$558,2,FALSE)) -> 

Sheet Cuadro de Cuentas (7) (hidden)
B2: Cuadro de Cuentas Plan General Contable 2008
B3: 1 | C3: Financiación Básica
B4: 10 | C4: Capital
B5: 100 | C5: Capital social
B6: 101 | C6: Fondo social
B7: 102 | C7: Capital
B8: 103 | C8: Socios por desembolsos no exigidos...
B9: 1030 | C9: Socios por desembolsos no exigidos, capital social
B10: 1034 | C10: Socios por desembolsos no exigidos, capital pendiente de inscripción
B11: 103 | C11: Socios por desembolsos no exigidos...
B12: 104 | C12: Socios por aportaciones no dinerarias pendientes...
B13: 1040 | C13: Socios por aportaciones no dinerarias pendientes, capital social
B14: 1044 | C14: Socios por aportaciones no dinerarias pendientes, capital pendiente de inscripción
B15: 108 | C15: Acciones o participaciones propias en situaciones especiales
B16: 109 | C16: Acciones o participaciones propias para reducción de capital
B17: 11 | C17: Reservas
B18: 110 | C18: Prima de emisión o asunción
B19: 111 | C19: Patrimonio neto por emisión de instrumentos financieros compuestos
B20: 112 | C20: Reserva legal
B21: 113 | C21: Reservas voluntarias
B22: 114 | C22: Reservas especiales
B23: 115 | C23: Reservas por pérdidas y ganancias actuariales y otros ajustes
B24: 117 | C24: Aportaciones de socios o propietarios
B25: 119 | C25: Diferencias por ajuste del capital a euros
B26: 12 | C26: Resultados pendientes de aplicación
B27: 120 | C27: Remanente
B28: 121 | C28: Resultados negativos de ejercicios anteriores
B29: 129 | C29: Resultados del ejercicio
B30: 13 | C30: Subvenciones, donaciones y ajustes por cambios de valor
B31: 130 | C31: Subvenciones oficiales de capital
B32: 131 | C32: Donaciones y legados de capital
B33: 132 | C33: Otras subvenciones, donaciones y legados
B34: 133 | C34: Ajustes por valoración en instrumentos financieros
B35: 134 | C35: Operaciones de cobertura
B36: 135 | C36: Diferencias de conversión
B37: 136 | C37: Ajustes por valoración en activos no corrientes y grupos enajenables de elementos mantenidos para la venta
B38: 137 | C38: Ingresos fiscales a distribuir en varios ejercicios
B39: 14 | C39: Provisiones
B40: 140 | C40: Provisión para retribuciones y otras prestaciones al personal.
B41: 141 | C41: Provisión para impuestos
B42: 142 | C42: Provisión para otras responsabilidades
B43: 143 | C43: Provisión por desmantelamiento, retiro o rehabilitación del inmovilizado.
B44: 144 | C44: Provisión para otras responsabilidades
B45: 145 | C45: Provisión para actuaciones medioambientales
B46: 146 | C46: Provisión para reestructuraciones
B47: 147 | C47: Provisiones por transacciones con pagos basados en instrumentos de patrimonio
B48: 15 | C48: Deudas a largo plazo con características especiales
B49: 150 | C49: Acciones o participaciones a largo plazo contabilizadas como pasivo
B50: 153 | C50: Desembolsos no exigidos por acciones o participaciones contabilizadas como pasivo.
B51: 154 | C51: Aportaciones no dinerarias pendientes por acciones o participaciones contabilizadas como pasivo
B52: 16 | C52: Deudas a largo plazo con partes vinculadas
B53: 160 | C53: Deudas a largo plazo con entidades de crédito vinculadas
B54: 161 | C54: Proveedores de inmovilizado a largo plazo, partes vinculadas
B55: 162 | C55: Otras deudas a largo plazo con partes vinculadas
B56: 163 | C56: Otras deudas a largo plazo con partes vinculadas
B57: 17 | C57: Deudas a largo plazo por préstamos recibidos y otros conceptos
B58: 170 | C58: Deudas a largo plazo con entidades de crédito
B59: 171 | C59: Deudas a largo plazo
B60: 172 | C60: Deudas a largo plazo transformables en subvenciones, donaciones y legados
B61: 173 | C61: Proveedores de inmovilizado a largo plazo
B62: 174 | C62: Acreedores por arrendamiento financiero a largo plazo
B63: 175 | C63: Efectos a pagar a largo plazo
B64: 176 | C64: Pasivos por derivados financieros a largo plazo
B65: 177 | C65: Obligaciones y bonos
B66: 178 | C66: Obligaciones y bonos convertibles
B67: 179 | C67: Deudas representadas en otros valores negociables
B68: 18 | C68: Pasivos por fianzas y garantías a largo plazo
B69: 180 | C69: Fianzas recibidas a largo plazo
B70: 181 | C70: Anticipos recibidos por ventas o prestaciones de servicios a largo plazo
B71: 185 | C71: Depósitos recibidos a largo plazo
B72: 189 | C72: Garantías financieras a largo plazo
B73: 19 | C73: Situaciones transitorias de financiación
B74: 190 | C74: Acciones o participaciones emitidas
B75: 192 | C75: Suscriptores de acciones
B76: 194 | C76: Capital emitido pendiente de inscripción
B77: 195 | C77: Acciones o participaciones emitidas consideradas como pasivos financieros
B78: 197 | C78: Suscriptores de acciones consideradas coo pasivos financieros
B79: 199 | C79: Acciones o participaciones emitidas consideradas como pasivo financieros, pendientes de inscripción
B80: 2 | C80: Inmovilizado
B81: 20 | C81: Inmovilizaciones intangibles
B82: 200 | C82: Investigación
B83: 201 | C83: Desarrollo
B84: 202 | C84: Concesiones administrativas
B85: 203 | C85: Propiedad industrial
B86: 204 | C86: Fondo de comercio
B87: 205 | C87: Derechos de traspaso
B88: 206 | C88: Aplicaciones informáticas
B89: 209 | C89: Anticipos para inmovilizaciones intangibles
B90: 21 | C90: Inmovilizaciones materiales
B91: 210 | C91: Terrenos y bienes naturales
B92: 211 | C92: Construcciones
B93: 212 | C93: Instalaciones técnicas
B94: 213 | C94: Maquinaria
B95: 214 | C95: Utillaje
B96: 215 | C96: Otras instalaciones
B97: 216 | C97: Mobiliario
B98: 217 | C98: Equipos para procesos de información
B99: 218 | C99: Elementos de transporte
B100: 219 | C100: Otro inmovilizado material
B101: 22 | C101: Inversiones inmobiliarias
B102: 220 | C102: Inversiones en terrenos y bienes naturales
B103: 221 | C103: Inversiones en construcciones
B104: 23 | C104: Inmovilizaciones materiales en curso
B105: 230 | C105: Adaptación de terrenos y bienes naturales
B106: 231 | C106: Construcciones en curso
B107: 232 | C107: Instalaciones técnicas en montaje
B108: 233 | C108: Maquinaria en montaje
B109: 237 | C109: Equipos para procesos de información en montaje
B110: 239 | C110: Anticipos para inmovilizaciones materiales
B111: 24 | C111: Inversiones financieras en partes vinculadas
B112: 240 | C112: Participaciones a largo plazo en partes vinculadas
B113: 241 | C113: Valores representativos de deuda a largo plazo de partes vinculadas
B114: 242 | C114: Créditos a largo plazo a partes vinculadas
B115: 249 | C115: Desembolsos pendientes sobre participaciones a largo plazo en partes vinculadas
B116: 25 | C116: Otras inversiones financieras a largo plazo
B117: 250 | C117: Inversiones financieras a largo plazo en instrumentos de patrimonio
B118: 251 | C118: Valores representativos de deuda a largo plazo
B119: 252 | C119: Créditos a largo plazo
B120: 253 | C120: Créditos a largo plazo por enajenación de inmovilizado
B121: 254 | C121: Créditos a largo plazo al personal
B122: 255 | C122: Activos por derivados financieros a largo plazo
B123: 257 | C123: Activos por retribuciones a largo plazo de prestación definida
B124: 258 | C124: Imposiciones a largo plazo
B125: 259 | C125: Desembolsos pendientes sobre participaciones en el patrimonio neto a largo plazo
B126: 26 | C126: Fianzas y depósitos constituidos a largo plazo
B127: 260 | C127: Fianzas constituidas a largo plazo
B128: 265 | C128: Depósitos constituidos a largo plazo
B129: 28 | C129: Amortización acumulada del inmovilizado
B130: 280 | C130: Amortización acumulada del inmovilizado intangible
B131: 281 | C131: Amortización acumulada del inmovilizado material
B132: 282 | C132: Amortización acumulada de las inversiones inmobiliarias
B133: 29 | C133: Deterioro de valor de inmovilizado
B134: 290 | C134: Deterioro de valor del inmovilizado intangible
B135: 291 | C135: Deterioro de valor del inmovilizado material
B136: 292 | C136: Deterioro de valor de las inversiones inmobiliarias
B137: 293 | C137: Deterioro de valor de participaciones a largo plazo en partes vinculadas
B138: 294 | C138: Deterioro de valor de valores representativos de deuda a largo plazo de partes vinculadas
B139: 295 | C139: Deterioro de valor de créditos a largo plazo a partes vinculadas
B140: 297 | C140: Deterioro de valor de valores representativos de deuda a largo plazo
B141: 298 | C141: Deterioro de valor de créditos a largo plazo
B142: 3 | C142: Existencias
B143: 30 | C143: Comerciales
B144: 300 | C144: Mercaderías A
B145: 301 | C145: Mercaderías B
B146: 302 | C146: Mercaderías C
B147: 303 | C147: Mercaderías D
B148: 304 | C148: Mercaderías E
B149: 305 | C149: Mercaderías F
B150: 306 | C150: Mercaderías G
B151: 307 | C151: Mercaderías H
B152: 308 | C152: Mercaderías I
B153: 309 | C153: Mercaderías J
B154: 31 | C154: Materias Primas
B155: 310 | C155: Materias primas A
B156: 312 | C156: Materias primas B
B157: 313 | C157: Materias primas C
B158: 314 | C158: Materias primas D
B159: 315 | C159: Materias primas E
B160: 316 | C160: Materias primas F
B161: 317 | C161: Materias primas H
B162: 318 | C162: Materias primas I
B163: 319 | C163: Materias primas J
B164: 32 | C164: Otros aprovisionamientos
B165: 320 | C165: Elementos y conjuntos incorporables
B166: 321 | C166: Combustibles
B167: 322 | C167: Repuestos
B168: 325 | C168: Materiales diversos
B169: 326 | C169: Embalajes
B170: 327 | C170: Envases
B171: 328 | C171: Material de oficina
B172: 33 | C172: Productos en curso
B173: 330 | C173: Productos en curso A
B174: 331 | C174: Productos en curso B
B175: 332 | C175: Productos en curso C
B176: 333 | C176: Productos en curso D
B177: 334 | C177: Productos en curso E
B178: 335 | C178: Productos en curso F
B179: 336 | C179: Productos en curso G
B180: 337 | C180: Productos en curso H
B181: 338 | C181: Productos en curso I
B182: 339 | C182: Productos en curso J
B183: 34 | C183: Productos semiterminados
B184: 340 | C184: Productos semiterminados A
B185: 341 | C185: Productos semiterminados B
B186: 342 | C186: Productos semiterminados C
B187: 343 | C187: Productos semiterminados D
B188: 344 | C188: Productos semiterminados E
B189: 345 | C189: Productos semiterminados F
B190: 346 | C190: Productos semiterminados G
B191: 347 | C191: Productos semiterminados H
B192: 348 | C192: Productos semiterminados I
B193: 349 | C193: Productos semiterminados J
B194: 35 | C194: Productos terminados
B195: 350 | C195: Productos terminados A
B196: 351 | C196: Productos terminados B
B197: 352 | C197: Productos terminados C
B198: 353 | C198: Productos terminados D
B199: 354 | C199: Productos terminados E
B200: 355 | C200: Productos terminados F
B201: 356 | C201: Productos terminados G
... 357 more rows

Sheet Índice Tema 5 (hidden)
D3: TEMA 5. INMOVILIZADO INTANGIBLE | O3: ÍNDICE LIBRO
D5: OBJETIVO DEL TEMA
D7: CONCEPTOS BÁSICOS
D9: CASOS | E9: Objetivos de los casos propuestos
E10: CONTABILIZACIÓN DE LA OPERACIÓN DE APLICACIONES INFORMÁTICAS
E11: CONTABILIZACIÓN DE LA OPERACIÓN DE CONCESIÓN ADMINISTRATIVA
E12: CONTABILIZACIÓN DE LA OPERACIÓN DE PROPIEDAD INDUSTRIAL
E13: CONTABILIZACIÓN DE LA OPERACIÓN DE DERECHOS DE TRASPASO
C15: ANEXO. | D15: CUADRO DE CUENTAS

Sheet Objetivo Tema 5 (hidden)
G1: Haga un doble click sobre la imagen para ver esta Presentación
P3: ÍNDICE TEMA 5

Sheet Conceptos Básicos Tema 5 (hidden)
G1: Haga un doble click sobre la imagen para ver esta Presentación
P3: ÍNDICE TEMA 5

Sheet Enunciado Aplicac. Informática (hidden)
B3: La empresa adquirió a crédito a | E3: 60 | F3: días el | G3: 2010-01-02 | H3: un programa informático por importe de
B4: 12000 | C4: (IVA no incluido | E4: 0.16 | F4: ). Se decide amortizarlo en 4 años por el método lineal considerando
B5: un valor residual nulo. Llegado el vencimiento de la factura, ésta se paga mediante transferencia bancaria.
B6: El 30 de junio del año 2012 se realizan una serie de modificaciones en el programa cuyo coste asciente a
B7: la empresa adquirió a crédito a | C7: ( IVA no incluido | E7: 0.18 | F7: ). Se acuerda el pago mediante transferencia bancaria a los 30 días.
B8: A finales de 2012 se decide cambiar el programa informático, por lo que se da de baja el actual.
B9: El 2 de enero de 2013 se adquiere un nuevo programa informático por importe | H9: 25000 | I9: ( IVA no incluido
B10: 0.21 | C10: ),pagándose el | D10: 0.3 | E10: a la firma del contrato y el resto a | H10: 90 | I10: días
B11: mediante sendas transferencias bancarias.
B12: Contabilice todas las operaciones relacionadas con la aplicación informática detallada.

Sheet Diapositivas Aplicac. Inform. (hidden)
G1: Haga un doble click sobre la imagen para ver esta Presentación

Sheet Factura Adq. Aplic. Informática (hidden)
K5: Fecha: | L5: 2010-01-02
K6: Nº Factura: | L6: A-1225
D11: SOLUCIONES TELEMÁTICAS INSA, S.L.
D12: C/ José Espronceda, 44. 46022 Valencia
D13: CIF: A-40.314.895
C18: Cliente: | D18: Buena Visión, S.A.
C19: Dirección: | D19: C/ Martín Colomer, 45. 46007 Valencia
C20: CIF: | D20: A-20.396.059
C21: Ref:
C25: Cantidad | D25: Concepto | K25: Precio Unitario | L25: Importe
L26: =IF(D26<>"",D26*K26,"") -> 
C38: 1 | D38: Programa informático para óptica | K38: 12000 | L38: =C38*K38 -> 12000
J53: Base Imponible | L53: =+SUM(L26:L52) -> 12000
I54: IVA | J54: 0.16 | L54: =+L53*J54 -> 1920
J55: TOTAL FACTURA | L55: =+L53+L54 -> 13920
C59: Banco del Cliente: | E59: BANKINTER
C61: Código IBAN: | E61: ES332 2251 6582 7530 0001 1785
C63: Observaciones: | E63: Mediante transferencia bancaria
C65: Con vencimiento el: | E65: =L5+60 -> 2010-03-03 | I65: Por importe de: | K65: =L55 -> 13920

Sheet Transf. Bancaria Aplic. Inform. (hidden)
H2: COMUNICACIÓN DE OPERACIÓN EN CUENTA
B6: Fecha | H6: Concepto | O6: Importe
I7: Su orden de tranferencia a Soluciones Telemáticas INSA, S.L. | O7: ='Factura Adq. Aplic. Informática'!K65 -> 13920 | P7: €
E8: 2010-03-01
B9: Ordenante: | E9: Buena Visión S.A.
B10: Beneficiario: | E10: Soluciones telemáticas INSA, S.L.
B11: Concepto: | E11: Pago factura nº | F11: A-1225
B12: IBAN Beneficiario | E12: ES33 2251 6582 7530 0001 1785
B13: Clave transferencia: | E13: 130T13185002647
B16: Cuenta Adeudo/Abono | F16: Moneda de la cuenta | H16: Fecha valor | K16: Anotación en cuenta
B17: 2038 | C17: 6015 | D17: 40 | E17: 3101767432 | F17: EURO | H17: =E8+1 -> 2010-03-02 | K17: Importe del recibo/factura | O17: =O7 -> 13920 | P17: =P7 -> €
B18: Titular/es de la cuenta | K18: Total anotado en cuenta | O18: =O17 -> 13920 | P18: =P17 -> €
D19: SOLUCIONES TELEMÁTICAS INSA, S.L.

Sheet Factura Servicio Informático (hidden)
E4: Soluciones TECNOLAB, S.L.
E5: Dirección: Avda Fernando el Católico, 26
E6: C.P. 46013 Valencia, España
E7: Teléfono/Fax: 96 316 27 42
E8: CIF: A-36. 605.055
C10: FACTURA : | D10: 2012-0102 | G10: FECHA: | H10: 2012-06-30
C14: Buena Visión, S.A.
C15: CIF: A-20.396.059
C16: Dirección: C/ Martín Colomer, 45
C17: 46007 Valencia
C23: DESCRIPCIÓN | H23: IMPORTE
C27: Servicios de adecuación del programa informático de la empresa. | H27: 1200
C32: BASE IMPONIBLE | H32: =SUM(H25:H31) -> 1200
D33: IVA | E33: % | G33: 18 | H33: =H32*18% -> 216
C35: TOTAL (EUR) | H35: =H32+H33 -> 1416
C38: Con vencimiento el: | D38: =H10+30 -> 2012-07-30 | G38: Por importe de: | H38: =H35 -> 1416
C40: BANCO: BANCAGRAU
C41: Nº DE CUENTA: 2055 3012 33 3120566443
C42: IBAN: ES44 2055 3012 3331 2056 6443
C43: SWIFT:

Sheet Transf. Bancaria Serv. Inform. (hidden)
H2: COMUNICACIÓN DE OPERACIÓN EN CUENTA
B5: Fecha | H5: Concepto | O5: Importe
E6: ='Factura Servicio Informático'!D38 -> 2012-07-30 | I6: Su orden de tranferencia a Soluciones Tecnolab, S.L. | O6: ='Factura Servicio Informático'!H38 -> 1416 | P6: €
B8: Ordenante: | E8: Buena Visión S.A.
B9: Beneficiario: | E9: Soluciones Tecnolab, S.L.
B10: Concepto: | E10: Pago factura nº | F10: A-0102
B11: IBAN Beneficiario | E11: ES33 4451 6395 7530 0111 1743
B12: Clave transferencia: | E12: 130T13185002598
B15: Cuenta Adeudo/Abono | F15: Moneda de la cuenta | H15: Fecha valor | K15: Anotación en cuenta
B16: 2038 | C16: 6015 | D16: 40 | E16: 3101767432 | F16: EURO | H16: =E6+1 -> 2012-07-31 | K16: Importe del recibo/factura | O16: =O6 -> 1416 | P16: =P6 -> €
B17: Titular/es de la cuenta | K17: Total anotado en cuenta | O17: =O16 -> 1416 | P17: =P16 -> €
D18: SOLUCIONES TECNOLAB, S.L.

Sheet Fra. Compra Programa Inform. (hidden)
K5: Fecha: | L5: 2013-01-02
K6: Nº Factura: | L6: A-3443
D11: SOLUCIONES TELEMÁTICAS INSA, S.L.
D12: C/ José Espronceda, 44. 46022 Valencia
D13: CIF: A-40.314.895
C18: Cliente: | D18: Buena Visión, S.A.
C19: Dirección: | D19: C/ Martín Colomer, 45. 46007 Valencia
C20: CIF: | D20: A-20.396.059
C21: Ref:
C25: Cantidad | D25: Concepto | K25: Precio Unitario | L25: Importe
L26: =IF(D26<>"",D26*K26,"") -> 
C38: 1 | D38: Programa informático para óptica | K38: 25000 | L38: =C38*K38 -> 25000
J53: Base Imponible | L53: =+SUM(L26:L52) -> 25000
I54: IVA | J54: 0.21 | L54: =+L53*J54 -> 5250
J55: TOTAL FACTURA | L55: =+L53+L54 -> 30250
C59: Banco del Cliente: | E59: BANKINTER
C61: Código IBAN: | E61: ES332 2251 6582 7530 0001 1785
C63: Observaciones: | E63: Mediante transferencia bancaria
C65: Con vencimiento el: | E65: Contado | G65: 0.3 | I65: Por importe de: | K65: =L55*G65 -> 9075
E66: Aplazodo al | G66: =L5+90 -> 2013-04-02 | I66: Por importe de: | K66: =L55-K65 -> 21175

Sheet Transf. Bancaria P.I. 1er Pago (hidden)
H2: COMUNICACIÓN DE OPERACIÓN EN CUENTA
B6: Fecha | H6: Concepto | O6: Importe
E7: ='Fra. Compra Programa Inform.'!L5 -> 2013-01-02 | I7: Su orden de tranferencia a Soluciones Telemáticas INSA, S.L. | O7: ='Fra. Compra Programa Inform.'!K65 -> 9075 | P7: €
B9: Ordenante: | E9: Buena Visión S.A.
B10: Beneficiario: | E10: Soluciones telemáticas INSA, S.L.
B11: Concepto: | E11: Pago factura nº | F11: ='Fra. Compra Programa Inform.'!L6 -> A-3443
B12: IBAN Beneficiario | E12: ES33 2251 6582 7530 0001 1785
B13: Clave transferencia: | E13: 130T13185002647
B16: Cuenta Adeudo/Abono | F16: Moneda de la cuenta | H16: Fecha valor | K16: Anotación en cuenta
B17: 2038 | C17: 6015 | D17: 40 | E17: 3101767432 | F17: EURO | H17: =E7+1 -> 2013-01-03 | K17: Importe del recibo/factura | O17: =O7 -> 9075 | P17: =P7 -> €
B18: Titular/es de la cuenta | K18: Total anotado en cuenta | O18: =O17 -> 9075 | P18: =P17 -> €
D19: SOLUCIONES TELEMÁTICAS INSA, S.L.

Sheet Transf. Bancaria P.I. 2º Pago (hidden)
H2: COMUNICACIÓN DE OPERACIÓN EN CUENTA
B6: Fecha | H6: Concepto | O6: Importe
E7: ='Fra. Compra Programa Inform.'!L5+90 -> 2013-04-02 | I7: Su orden de tranferencia a Soluciones Telemáticas INSA, S.L. | O7: ='Fra. Compra Programa Inform.'!K66 -> 21175 | P7: €
B9: Ordenante: | E9: ='Transf. Bancaria P.I. 1er Pago'!E9 -> Buena Visión S.A.
B10: Beneficiario: | E10: Soluciones telemáticas INSA, S.L.
B11: Concepto: | E11: Pago factura nº | F11: ='Fra. Compra Programa Inform.'!L6 -> A-3443
B12: IBAN Beneficiario | E12: ES33 2251 6582 7530 0001 1785
B13: Clave transferencia: | E13: 130T13185002647
B16: Cuenta Adeudo/Abono | F16: Moneda de la cuenta | H16: Fecha valor | K16: Anotación en cuenta
B17: 2038 | C17: 6015 | D17: 40 | E17: 3101767432 | F17: EURO | H17: =E7+1 -> 2013-04-03 | K17: Importe del recibo/factura | O17: =O7 -> 21175 | P17: =P7 -> €
B18: Titular/es de la cuenta | K18: Total anotado en cuenta | O18: =O17 -> 21175 | P18: =P17 -> €
D19: SOLUCIONES TELEMÁTICAS INSA, S.L.

Sheet Cuadro de Cuentas (8) (hidden)
B2: Cuadro de Cuentas Plan General Contable 2008
B3: 1 | C3: Financiación Básica
B4: 10 | C4: Capital
B5: 100 | C5: Capital social
B6: 101 | C6: Fondo social
B7: 102 | C7: Capital
B8: 103 | C8: Socios por desembolsos no exigidos...
B9: 1030 | C9: Socios por desembolsos no exigidos, capital social
B10: 1034 | C10: Socios por desembolsos no exigidos, capital pendiente de inscripción
B11: 103 | C11: Socios por desembolsos no exigidos...
B12: 104 | C12: Socios por aportaciones no dinerarias pendientes...
B13: 1040 | C13: Socios por aportaciones no dinerarias pendientes, capital social
B14: 1044 | C14: Socios por aportaciones no dinerarias pendientes, capital pendiente de inscripción
B15: 108 | C15: Acciones o participaciones propias en situaciones especiales
B16: 109 | C16: Acciones o participaciones propias para reducción de capital
B17: 11 | C17: Reservas
B18: 110 | C18: Prima de emisión o asunción
B19: 111 | C19: Patrimonio neto por emisión de instrumentos financieros compuestos
B20: 112 | C20: Reserva legal
B21: 113 | C21: Reservas voluntarias
B22: 114 | C22: Reservas especiales
B23: 115 | C23: Reservas por pérdidas y ganancias actuariales y otros ajustes
B24: 117 | C24: Aportaciones de socios o propietarios
B25: 119 | C25: Diferencias por ajuste del capital a euros
B26: 12 | C26: Resultados pendientes de aplicación
B27: 120 | C27: Remanente
B28: 121 | C28: Resultados negativos de ejercicios anteriores
B29: 129 | C29: Resultados del ejercicio
B30: 13 | C30: Subvenciones, donaciones y ajustes por cambios de valor
B31: 130 | C31: Subvenciones oficiales de capital
B32: 131 | C32: Donaciones y legados de capital
B33: 132 | C33: Otras subvenciones, donaciones y legados
B34: 133 | C34: Ajustes por valoración en instrumentos financieros
B35: 134 | C35: Operaciones de cobertura
B36: 135 | C36: Diferencias de conversión
B37: 136 | C37: Ajustes por valoración en activos no corrientes y grupos enajenables de elementos mantenidos para la venta
B38: 137 | C38: Ingresos fiscales a distribuir en varios ejercicios
B39: 14 | C39: Provisiones
B40: 140 | C40: Provisión para retribuciones y otras prestaciones al personal.
B41: 141 | C41: Provisión para impuestos
B42: 142 | C42: Provisión para otras responsabilidades
B43: 143 | C43: Provisión por desmantelamiento, retiro o rehabilitación del inmovilizado.
B44: 144 | C44: Provisión para otras responsabilidades
B45: 145 | C45: Provisión para actuaciones medioambientales
B46: 146 | C46: Provisión para reestructuraciones
B47: 147 | C47: Provisiones por transacciones con pagos basados en instrumentos de patrimonio
B48: 148 | C48: Provisión para gastos de reversión
B49: 15 | C49: Deudas a largo plazo con características especiales
B50: 150 | C50: Acciones o participaciones a largo plazo contabilizadas como pasivo
B51: 153 | C51: Desembolsos no exigidos por acciones o participaciones contabilizadas como pasivo.
B52: 154 | C52: Aportaciones no dinerarias pendientes por acciones o participaciones contabilizadas como pasivo
B53: 16 | C53: Deudas a largo plazo con partes vinculadas
B54: 160 | C54: Deudas a largo plazo con entidades de crédito vinculadas
B55: 161 | C55: Proveedores de inmovilizado a largo plazo, partes vinculadas
B56: 162 | C56: Otras deudas a largo plazo con partes vinculadas
B57: 163 | C57: Otras deudas a largo plazo con partes vinculadas
B58: 17 | C58: Deudas a largo plazo por préstamos recibidos y otros conceptos
B59: 170 | C59: Deudas a largo plazo con entidades de crédito
B60: 171 | C60: Deudas a largo plazo
B61: 172 | C61: Deudas a largo plazo transformables en subvenciones, donaciones y legados
B62: 173 | C62: Proveedores de inmovilizado a largo plazo
B63: 174 | C63: Acreedores por arrendamiento financiero a largo plazo
B64: 175 | C64: Efectos a pagar a largo plazo
B65: 176 | C65: Pasivos por derivados financieros a largo plazo
B66: 177 | C66: Obligaciones y bonos
B67: 178 | C67: Obligaciones y bonos convertibles
B68: 179 | C68: Deudas representadas en otros valores negociables
B69: 18 | C69: Pasivos por fianzas y garantías a largo plazo
B70: 180 | C70: Fianzas recibidas a largo plazo
B71: 181 | C71: Anticipos recibidos por ventas o prestaciones de servicios a largo plazo
B72: 185 | C72: Depósitos recibidos a largo plazo
B73: 189 | C73: Garantías financieras a largo plazo
B74: 19 | C74: Situaciones transitorias de financiación
B75: 190 | C75: Acciones o participaciones emitidas
B76: 192 | C76: Suscriptores de acciones
B77: 194 | C77: Capital emitido pendiente de inscripción
B78: 195 | C78: Acciones o participaciones emitidas consideradas como pasivos financieros
B79: 197 | C79: Suscriptores de acciones consideradas coo pasivos financieros
B80: 199 | C80: Acciones o participaciones emitidas consideradas como pasivo financieros, pendientes de inscripción
B81: 2 | C81: Inmovilizado
B82: 20 | C82: Inmovilizaciones intangibles
B83: 200 | C83: Investigación
B84: 201 | C84: Desarrollo
B85: 202 | C85: Concesiones administrativas
B86: 203 | C86: Propiedad industrial
B87: 204 | C87: Fondo de comercio
B88: 205 | C88: Derechos de traspaso
B89: 206 | C89: Aplicaciones informáticas
B90: 209 | C90: Anticipos para inmovilizaciones intangibles
B91: 21 | C91: Inmovilizaciones materiales
B92: 210 | C92: Terrenos y bienes naturales
B93: 211 | C93: Construcciones
B94: 212 | C94: Instalaciones técnicas
B95: 213 | C95: Maquinaria
B96: 214 | C96: Utillaje
B97: 215 | C97: Otras instalaciones
B98: 216 | C98: Mobiliario
B99: 217 | C99: Equipos para procesos de información
B100: 218 | C100: Elementos de transporte
B101: 219 | C101: Otro inmovilizado material
B102: 22 | C102: Inversiones inmobiliarias
B103: 220 | C103: Inversiones en terrenos y bienes naturales
B104: 221 | C104: Inversiones en construcciones
B105: 23 | C105: Inmovilizaciones materiales en curso
B106: 230 | C106: Adaptación de terrenos y bienes naturales
B107: 231 | C107: Construcciones en curso
B108: 232 | C108: Instalaciones técnicas en montaje
B109: 233 | C109: Maquinaria en montaje
B110: 237 | C110: Equipos para procesos de información en montaje
B111: 239 | C111: Anticipos para inmovilizaciones materiales
B112: 24 | C112: Inversiones financieras en partes vinculadas
B113: 240 | C113: Participaciones a largo plazo en partes vinculadas
B114: 241 | C114: Valores representativos de deuda a largo plazo de partes vinculadas
B115: 242 | C115: Créditos a largo plazo a partes vinculadas
B116: 249 | C116: Desembolsos pendientes sobre participaciones a largo plazo en partes vinculadas
B117: 25 | C117: Otras inversiones financieras a largo plazo
B118: 250 | C118: Inversiones financieras a largo plazo en instrumentos de patrimonio
B119: 251 | C119: Valores representativos de deuda a largo plazo
B120: 252 | C120: Créditos a largo plazo
B121: 253 | C121: Créditos a largo plazo por enajenación de inmovilizado
B122: 254 | C122: Créditos a largo plazo al personal
B123: 255 | C123: Activos por derivados financieros a largo plazo
B124: 257 | C124: Activos por retribuciones a largo plazo de prestación definida
B125: 258 | C125: Imposiciones a largo plazo
B126: 259 | C126: Desembolsos pendientes sobre participaciones en el patrimonio neto a largo plazo
B127: 26 | C127: Fianzas y depósitos constituidos a largo plazo
B128: 260 | C128: Fianzas constituidas a largo plazo
B129: 265 | C129: Depósitos constituidos a largo plazo
B130: 28 | C130: Amortización acumulada del inmovilizado
B131: 280 | C131: Amortización acumulada del inmovilizado intangible
B132: 281 | C132: Amortización acumulada del inmovilizado material
B133: 282 | C133: Amortización acumulada de las inversiones inmobiliarias
B134: 29 | C134: Deterioro de valor de inmovilizado
B135: 290 | C135: Deterioro de valor del inmovilizado intangible
B136: 291 | C136: Deterioro de valor del inmovilizado material
B137: 292 | C137: Deterioro de valor de las inversiones inmobiliarias
B138: 293 | C138: Deterioro de valor de participaciones a largo plazo en partes vinculadas
B139: 294 | C139: Deterioro de valor de valores representativos de deuda a largo plazo de partes vinculadas
B140: 295 | C140: Deterioro de valor de créditos a largo plazo a partes vinculadas
B141: 297 | C141: Deterioro de valor de valores representativos de deuda a largo plazo
B142: 298 | C142: Deterioro de valor de créditos a largo plazo
B143: 3 | C143: Existencias
B144: 30 | C144: Comerciales
B145: 300 | C145: Mercaderías A
B146: 301 | C146: Mercaderías B
B147: 302 | C147: Mercaderías C
B148: 303 | C148: Mercaderías D
B149: 304 | C149: Mercaderías E
B150: 305 | C150: Mercaderías F
B151: 306 | C151: Mercaderías G
B152: 307 | C152: Mercaderías H
B153: 308 | C153: Mercaderías I
B154: 309 | C154: Mercaderías J
B155: 31 | C155: Materias Primas
B156: 310 | C156: Materias primas A
B157: 312 | C157: Materias primas B
B158: 313 | C158: Materias primas C
B159: 314 | C159: Materias primas D
B160: 315 | C160: Materias primas E
B161: 316 | C161: Materias primas F
B162: 317 | C162: Materias primas H
B163: 318 | C163: Materias primas I
B164: 319 | C164: Materias primas J
B165: 32 | C165: Otros aprovisionamientos
B166: 320 | C166: Elementos y conjuntos incorporables
B167: 321 | C167: Combustibles
B168: 322 | C168: Repuestos
B169: 325 | C169: Materiales diversos
B170: 326 | C170: Embalajes
B171: 327 | C171: Envases
B172: 328 | C172: Material de oficina
B173: 33 | C173: Productos en curso
B174: 330 | C174: Productos en curso A
B175: 331 | C175: Productos en curso B
B176: 332 | C176: Productos en curso C
B177: 333 | C177: Productos en curso D
B178: 334 | C178: Productos en curso E
B179: 335 | C179: Productos en curso F
B180: 336 | C180: Productos en curso G
B181: 337 | C181: Productos en curso H
B182: 338 | C182: Productos en curso I
B183: 339 | C183: Productos en curso J
B184: 34 | C184: Productos semiterminados
B185: 340 | C185: Productos semiterminados A
B186: 341 | C186: Productos semiterminados B
B187: 342 | C187: Productos semiterminados C
B188: 343 | C188: Productos semiterminados D
B189: 344 | C189: Productos semiterminados E
B190: 345 | C190: Productos semiterminados F
B191: 346 | C191: Productos semiterminados G
B192: 347 | C192: Productos semiterminados H
B193: 348 | C193: Productos semiterminados I
B194: 349 | C194: Productos semiterminados J
B195: 35 | C195: Productos terminados
B196: 350 | C196: Productos terminados A
B197: 351 | C197: Productos terminados B
B198: 352 | C198: Productos terminados C
B199: 353 | C199: Productos terminados D
B200: 354 | C200: Productos terminados E
B201: 355 | C201: Productos terminados F
... 358 more rows

Sheet Sol. L. Diario Apl. Informática (hidden)
C3: DEBE | I3: HABER
C4: IMPORTES | D4: Nº CUENTA | E4: NOMBRE CUENTA | F4: 2010-01-02 | G4: Nº CUENTA | H4: NOMBRE CUENTA | I4: IMPORTES | O4: Por la adquisición del programa informático
C5: ='Factura Adq. Aplic. Informática'!L53 -> 12000 | D5: ='Cuadro de Cuentas (8)'!B89 -> 206 | E5: =IF(D5="","",VLOOKUP(D5,'Cuadro de Cuentas (8)'!$B$3:$C$559,2,FALSE)) -> Aplicaciones informáticas | H5: =IF(G5="","",VLOOKUP(G5,'Cuadro de Cuentas (8)'!$B$3:$C$559,2,FALSE)) ->  | O5: Por el pago a los proveedores del inmovilizado intangible
C6: ='Factura Adq. Aplic. Informática'!L54 -> 1920 | D6: ='Cuadro de Cuentas (8)'!B256 -> 472 | E6: =IF(D6="","",VLOOKUP(D6,'Cuadro de Cuentas (8)'!$B$3:$C$559,2,FALSE)) -> Hacienda Pública, IVA soportado | F6: a | G6: 523 | H6: Proveedores de inmovilizado a corto plazo | I6: ='Factura Adq. Aplic. Informática'!L55 -> 13920 | O6: Por la amortización del inmov. Intangible
E7: =IF(D7="","",VLOOKUP(D7,'Cuadro de Cuentas (8)'!$B$3:$C$559,2,FALSE)) ->  | F7: =IF(G7="","","a") ->  | H7: =IF(G7="","",VLOOKUP(G7,'Cuadro de Cuentas (8)'!$B$3:$C$559,2,FALSE)) ->  | O7: Por modificaciones en programa
E8: =IF(D8="","",VLOOKUP(D8,'Cuadro de Cuentas (8)'!$B$3:$C$559,2,FALSE)) ->  | H8: =IF(G8="","",VLOOKUP(G8,'Cuadro de Cuentas (8)'!$B$3:$C$559,2,FALSE)) ->  | O8: Por el pago a los acreedores
E9: =O4 -> Por la adquisición del programa informático | F9: 2010-03-02 | H9: =IF(G9="","",VLOOKUP(G9,'Cuadro de Cuentas (8)'!$B$3:$C$559,2,FALSE)) -> 
C10: =I6 -> 13920 | D10: 523 | E10: =IF(D10="","",VLOOKUP(D10,'Cuadro de Cuentas (8)'!$B$3:$C$559,2,FALSE)) -> Proveedores de inmovilizado a corto plazo | F10: a | G10: ='Cuadro de Cuentas (8)'!B337 -> 572 | H10: =IF(G10="","",VLOOKUP(G10,'Cuadro de Cuentas (8)'!$B$3:$C$559,2,FALSE)) -> Bancos e instituciones de crédito c/c vista, euros | I10: =C10 -> 13920 | O10: Por la amortización anual
E11: =IF(D11="","",VLOOKUP(D11,'Cuadro de Cuentas (8)'!$B$3:$C$559,2,FALSE)) ->  | H11: =IF(G11="","",VLOOKUP(G11,'Cuadro de Cuentas (8)'!$B$3:$C$559,2,FALSE)) ->  | O11: Por la baja de inventario del programa infomático antiguo
E12: =IF(D12="","",VLOOKUP(D12,'Cuadro de Cuentas (8)'!$B$3:$C$559,2,FALSE)) ->  | H12: =IF(G12="","",VLOOKUP(G12,'Cuadro de Cuentas (8)'!$B$3:$C$559,2,FALSE)) -> 
E13: =IF(D13="","",VLOOKUP(D13,'Cuadro de Cuentas (8)'!$B$3:$C$559,2,FALSE)) ->  | H13: =IF(G13="","",VLOOKUP(G13,'Cuadro de Cuentas (8)'!$B$3:$C$559,2,FALSE)) ->  | O13: Por la adquisición de nuevo programa inform.
E14: =O5 -> Por el pago a los proveedores del inmovilizado intangible | F14: 2010-12-31 | H14: =IF(G14="","",VLOOKUP(G14,'Cuadro de Cuentas (8)'!$B$3:$C$559,2,FALSE)) -> 
C15: =C5/4 -> 3000 | D15: ='Cuadro de Cuentas (8)'!B426 -> 680 | E15: =IF(D15="","",VLOOKUP(D15,'Cuadro de Cuentas (8)'!$B$3:$C$559,2,FALSE)) -> Amortización del inmovilizado intangible | F15: a | G15: ='Cuadro de Cuentas (8)'!B131 -> 280 | H15: =IF(G15="","",VLOOKUP(G15,'Cuadro de Cuentas (8)'!$B$3:$C$559,2,FALSE)) -> Amortización acumulada del inmovilizado intangible | I15: =C15 -> 3000 | O15: Pago al contado del 30%
E16: =IF(D16="","",VLOOKUP(D16,'Cuadro de Cuentas (8)'!$B$3:$C$559,2,FALSE)) ->  | H16: =IF(G16="","",VLOOKUP(G16,'Cuadro de Cuentas (8)'!$B$3:$C$559,2,FALSE)) -> 
E17: =IF(D17="","",VLOOKUP(D17,'Cuadro de Cuentas (8)'!$B$3:$C$559,2,FALSE)) ->  | H17: =IF(G17="","",VLOOKUP(G17,'Cuadro de Cuentas (8)'!$B$3:$C$559,2,FALSE)) ->  | O17: Pago al vencimiento de programa informát.
E18: =IF(D18="","",VLOOKUP(D18,'Cuadro de Cuentas (8)'!$B$3:$C$559,2,FALSE)) ->  | H18: =IF(G18="","",VLOOKUP(G18,'Cuadro de Cuentas (8)'!$B$3:$C$559,2,FALSE)) -> 
E19: =O6 -> Por la amortización del inmov. Intangible | F19: 2011-06-30 | H19: =IF(G19="","",VLOOKUP(G19,'Cuadro de Cuentas (8)'!$B$3:$C$559,2,FALSE)) -> 
C20: ='Factura Servicio Informático'!H32 -> 1200 | D20: ='Cuadro de Cuentas (8)'!B383 -> 629 | E20: =IF(D20="","",VLOOKUP(D20,'Cuadro de Cuentas (8)'!$B$3:$C$559,2,FALSE)) -> Otros servicios | H20: =IF(G20="","",VLOOKUP(G20,'Cuadro de Cuentas (8)'!$B$3:$C$559,2,FALSE)) -> 
C21: ='Factura Servicio Informático'!H33 -> 216 | D21: ='Cuadro de Cuentas (8)'!B256 -> 472 | E21: =IF(D21="","",VLOOKUP(D21,'Cuadro de Cuentas (8)'!$B$3:$C$559,2,FALSE)) -> Hacienda Pública, IVA soportado | F21: a | G21: ='Cuadro de Cuentas (8)'!B231 -> 410 | H21: =IF(G21="","",VLOOKUP(G21,'Cuadro de Cuentas (8)'!$B$3:$C$559,2,FALSE)) -> Acreedores por prestaciones de servicios | I21: =C20+C21 -> 1416
E22: =IF(D22="","",VLOOKUP(D22,'Cuadro de Cuentas (8)'!$B$3:$C$559,2,FALSE)) ->  | H22: =IF(G22="","",VLOOKUP(G22,'Cuadro de Cuentas (8)'!$B$3:$C$559,2,FALSE)) -> 
E23: =IF(D23="","",VLOOKUP(D23,'Cuadro de Cuentas (8)'!$B$3:$C$559,2,FALSE)) ->  | H23: =IF(G23="","",VLOOKUP(G23,'Cuadro de Cuentas (8)'!$B$3:$C$559,2,FALSE)) -> 
E24: =O7 -> Por modificaciones en programa | F24: 2011-07-30 | H24: =IF(G24="","",VLOOKUP(G24,'Cuadro de Cuentas (8)'!$B$3:$C$559,2,FALSE)) -> 
C25: =I21 -> 1416 | D25: ='Cuadro de Cuentas (8)'!B231 -> 410 | E25: =IF(D25="","",VLOOKUP(D25,'Cuadro de Cuentas (8)'!$B$3:$C$559,2,FALSE)) -> Acreedores por prestaciones de servicios | F25: a | G25: ='Cuadro de Cuentas (8)'!B337 -> 572 | H25: =IF(G25="","",VLOOKUP(G25,'Cuadro de Cuentas (8)'!$B$3:$C$559,2,FALSE)) -> Bancos e instituciones de crédito c/c vista, euros | I25: =I21 -> 1416
E26: =IF(D26="","",VLOOKUP(D26,'Cuadro de Cuentas (8)'!$B$3:$C$559,2,FALSE)) ->  | H26: =IF(G26="","",VLOOKUP(G26,'Cuadro de Cuentas (8)'!$B$3:$C$559,2,FALSE)) -> 
E27: =IF(D27="","",VLOOKUP(D27,'Cuadro de Cuentas (8)'!$B$3:$C$559,2,FALSE)) ->  | H27: =IF(G27="","",VLOOKUP(G27,'Cuadro de Cuentas (8)'!$B$3:$C$559,2,FALSE)) -> 
E28: =IF(D28="","",VLOOKUP(D28,'Cuadro de Cuentas (8)'!$B$3:$C$559,2,FALSE)) ->  | H28: =IF(G28="","",VLOOKUP(G28,'Cuadro de Cuentas (8)'!$B$3:$C$559,2,FALSE)) -> 
E29: =O8 -> Por el pago a los acreedores | F29: 2011-12-31 | H29: =IF(G29="","",VLOOKUP(G29,'Cuadro de Cuentas (8)'!$B$3:$C$559,2,FALSE)) -> 
C30: =C15 -> 3000 | D30: ='Cuadro de Cuentas (8)'!B426 -> 680 | E30: =IF(D30="","",VLOOKUP(D30,'Cuadro de Cuentas (8)'!$B$3:$C$559,2,FALSE)) -> Amortización del inmovilizado intangible | F30: a | G30: ='Cuadro de Cuentas (8)'!B131 -> 280 | H30: =IF(G30="","",VLOOKUP(G30,'Cuadro de Cuentas (8)'!$B$3:$C$559,2,FALSE)) -> Amortización acumulada del inmovilizado intangible | I30: =C30 -> 3000
E31: =IF(D31="","",VLOOKUP(D31,'Cuadro de Cuentas (8)'!$B$3:$C$559,2,FALSE)) ->  | H31: =IF(G31="","",VLOOKUP(G31,'Cuadro de Cuentas (8)'!$B$3:$C$559,2,FALSE)) -> 
E32: =IF(D32="","",VLOOKUP(D32,'Cuadro de Cuentas (8)'!$B$3:$C$559,2,FALSE)) ->  | H32: =IF(G32="","",VLOOKUP(G32,'Cuadro de Cuentas (8)'!$B$3:$C$559,2,FALSE)) -> 
E33: =IF(D33="","",VLOOKUP(D33,'Cuadro de Cuentas (8)'!$B$3:$C$559,2,FALSE)) ->  | H33: =IF(G33="","",VLOOKUP(G33,'Cuadro de Cuentas (8)'!$B$3:$C$559,2,FALSE)) -> 
E34: =O10 -> Por la amortización anual | F34: 2012-12-31 | H34: =IF(G34="","",VLOOKUP(G34,'Cuadro de Cuentas (8)'!$B$3:$C$559,2,FALSE)) -> 
C35: =C30 -> 3000 | D35: ='Cuadro de Cuentas (8)'!B131 -> 280 | E35: =IF(D35="","",VLOOKUP(D35,'Cuadro de Cuentas (8)'!$B$3:$C$559,2,FALSE)) -> Amortización acumulada del inmovilizado intangible | F35: a | G35: ='Cuadro de Cuentas (8)'!B131 -> 280 | H35: =IF(G35="","",VLOOKUP(G35,'Cuadro de Cuentas (8)'!$B$3:$C$559,2,FALSE)) -> Amortización acumulada del inmovilizado intangible | I35: =C35 -> 3000
E36: =IF(D36="","",VLOOKUP(D36,'Cuadro de Cuentas (8)'!$B$3:$C$559,2,FALSE)) ->  | H36: =IF(G36="","",VLOOKUP(G36,'Cuadro de Cuentas (8)'!$B$3:$C$559,2,FALSE)) -> 
E37: =IF(D37="","",VLOOKUP(D37,'Cuadro de Cuentas (8)'!$B$3:$C$559,2,FALSE)) ->  | H37: =IF(G37="","",VLOOKUP(G37,'Cuadro de Cuentas (8)'!$B$3:$C$559,2,FALSE)) -> 
E38: =IF(D38="","",VLOOKUP(D38,'Cuadro de Cuentas (8)'!$B$3:$C$559,2,FALSE)) ->  | H38: =IF(G38="","",VLOOKUP(G38,'Cuadro de Cuentas (8)'!$B$3:$C$559,2,FALSE)) -> 
E39: =O10 -> Por la amortización anual | F39: 2012-12-31 | H39: =IF(G39="","",VLOOKUP(G39,'Cuadro de Cuentas (8)'!$B$3:$C$559,2,FALSE)) -> 
C40: =C15+C30+C35 -> 9000 | D40: ='Cuadro de Cuentas (8)'!B131 -> 280 | E40: =IF(D40="","",VLOOKUP(D40,'Cuadro de Cuentas (8)'!$B$3:$C$559,2,FALSE)) -> Amortización acumulada del inmovilizado intangible | H40: =IF(G40="","",VLOOKUP(G40,'Cuadro de Cuentas (8)'!$B$3:$C$559,2,FALSE)) -> 
C41: =I41-C40 -> 3000 | D41: ='Cuadro de Cuentas (8)'!B419 -> 670 | E41: =IF(D41="","",VLOOKUP(D41,'Cuadro de Cuentas (8)'!$B$3:$C$559,2,FALSE)) -> Pérdidas procedentes del inmovilizado intangible | F41: a | G41: ='Cuadro de Cuentas (8)'!B89 -> 206 | H41: =IF(G41="","",VLOOKUP(G41,'Cuadro de Cuentas (8)'!$B$3:$C$559,2,FALSE)) -> Aplicaciones informáticas | I41: =C5 -> 12000
E42: =IF(D42="","",VLOOKUP(D42,'Cuadro de Cuentas (8)'!$B$3:$C$559,2,FALSE)) ->  | H42: =IF(G42="","",VLOOKUP(G42,'Cuadro de Cuentas (8)'!$B$3:$C$559,2,FALSE)) -> 
E43: =IF(D43="","",VLOOKUP(D43,'Cuadro de Cuentas (8)'!$B$3:$C$559,2,FALSE)) ->  | H43: =IF(G43="","",VLOOKUP(G43,'Cuadro de Cuentas (8)'!$B$3:$C$559,2,FALSE)) -> 
E44: =O11 -> Por la baja de inventario del programa infomático antiguo | F44: 2013-01-02 | H44: =IF(G44="","",VLOOKUP(G44,'Cuadro de Cuentas (8)'!$B$3:$C$559,2,FALSE)) -> 
C45: ='Fra. Compra Programa Inform.'!L53 -> 25000 | D45: ='Cuadro de Cuentas (8)'!B89 -> 206 | E45: =IF(D45="","",VLOOKUP(D45,'Cuadro de Cuentas (8)'!$B$3:$C$559,2,FALSE)) -> Aplicaciones informáticas | H45: =IF(G45="","",VLOOKUP(G45,'Cuadro de Cuentas (8)'!$B$3:$C$559,2,FALSE)) -> 
C46: ='Fra. Compra Programa Inform.'!L54 -> 5250 | D46: ='Cuadro de Cuentas (8)'!B256 -> 472 | E46: =IF(D46="","",VLOOKUP(D46,'Cuadro de Cuentas (8)'!$B$3:$C$559,2,FALSE)) -> Hacienda Pública, IVA soportado | F46: a | G46: ='Cuadro de Cuentas (8)'!B289 -> 523 | H46: =IF(G46="","",VLOOKUP(G46,'Cuadro de Cuentas (8)'!$B$3:$C$559,2,FALSE)) -> Proveedores de inmovilizado a corto plazo | I46: =C45+C46 -> 30250
E47: =IF(D47="","",VLOOKUP(D47,'Cuadro de Cuentas (8)'!$B$3:$C$559,2,FALSE)) ->  | H47: =IF(G47="","",VLOOKUP(G47,'Cuadro de Cuentas (8)'!$B$3:$C$559,2,FALSE)) -> 
E48: =IF(D48="","",VLOOKUP(D48,'Cuadro de Cuentas (8)'!$B$3:$C$559,2,FALSE)) ->  | H48: =IF(G48="","",VLOOKUP(G48,'Cuadro de Cuentas (8)'!$B$3:$C$559,2,FALSE)) -> 
E49: =O13 -> Por la adquisición de nuevo programa inform. | H49: =IF(G49="","",VLOOKUP(G49,'Cuadro de Cuentas (8)'!$B$3:$C$559,2,FALSE)) -> 
C53: DEBE | I53: HABER
C54: IMPORTES | D54: Nº CUENTA | E54: NOMBRE CUENTA | F54: 2013-01-02 | G54: Nº CUENTA | H54: NOMBRE CUENTA | I54: IMPORTES
C55: ='Fra. Compra Programa Inform.'!K65 -> 9075 | D55: 523 | E55: =IF(D55="","",VLOOKUP(D55,'Cuadro de Cuentas (8)'!$B$3:$C$559,2,FALSE)) -> Proveedores de inmovilizado a corto plazo | F55: a | G55: ='Cuadro de Cuentas (8)'!B337 -> 572 | H55: =IF(G55="","",VLOOKUP(G55,'Cuadro de Cuentas (8)'!$B$3:$C$559,2,FALSE)) -> Bancos e instituciones de crédito c/c vista, euros | I55: ='Transf. Bancaria P.I. 1er Pago'!O7 -> 9075
E56: =IF(D56="","",VLOOKUP(D56,'Cuadro de Cuentas (8)'!$B$3:$C$559,2,FALSE)) ->  | F56: =IF(G56="","","a") ->  | H56: =IF(G56="","",VLOOKUP(G56,'Cuadro de Cuentas (8)'!$B$3:$C$559,2,FALSE)) -> 
E57: =IF(D57="","",VLOOKUP(D57,'Cuadro de Cuentas (8)'!$B$3:$C$559,2,FALSE)) -> 
E58: =IF(D58="","",VLOOKUP(D58,'Cuadro de Cuentas (8)'!$B$3:$C$559,2,FALSE)) ->  | H58: =IF(G58="","",VLOOKUP(G58,'Cuadro de Cuentas (8)'!$B$3:$C$559,2,FALSE)) -> 
E59: =O15 -> Pago al contado del 30% | F59: 2013-04-02 | H59: =IF(G59="","",VLOOKUP(G59,'Cuadro de Cuentas (8)'!$B$3:$C$559,2,FALSE)) -> 
C60: ='Fra. Compra Programa Inform.'!K66 -> 21175 | D60: 523 | E60: =IF(D60="","",VLOOKUP(D60,'Cuadro de Cuentas (8)'!$B$3:$C$559,2,FALSE)) -> Proveedores de inmovilizado a corto plazo | F60: a | G60: ='Cuadro de Cuentas (8)'!B337 -> 572 | H60: =IF(G60="","",VLOOKUP(G60,'Cuadro de Cuentas (8)'!$B$3:$C$559,2,FALSE)) -> Bancos e instituciones de crédito c/c vista, euros | I60: ='Transf. Bancaria P.I. 2º Pago'!O7 -> 21175
E61: =IF(D61="","",VLOOKUP(D61,'Cuadro de Cuentas (8)'!$B$3:$C$559,2,FALSE)) ->  | H61: =IF(G61="","",VLOOKUP(G61,'Cuadro de Cuentas (8)'!$B$3:$C$559,2,FALSE)) -> 
E62: =IF(D62="","",VLOOKUP(D62,'Cuadro de Cuentas (8)'!$B$3:$C$559,2,FALSE)) ->  | H62: =IF(G62="","",VLOOKUP(G62,'Cuadro de Cuentas (8)'!$B$3:$C$559,2,FALSE)) -> 
E63: =IF(D63="","",VLOOKUP(D63,'Cuadro de Cuentas (8)'!$B$3:$C$559,2,FALSE)) ->  | H63: =IF(G63="","",VLOOKUP(G63,'Cuadro de Cuentas (8)'!$B$3:$C$559,2,FALSE)) -> 
E64: =O17 -> Pago al vencimiento de programa informát. | H64: =IF(G64="","",VLOOKUP(G64,'Cuadro de Cuentas (8)'!$B$3:$C$559,2,FALSE)) -> 
E65: =IF(D65="","",VLOOKUP(D65,'Cuadro de Cuentas (8)'!$B$3:$C$559,2,FALSE)) ->  | H65: =IF(G65="","",VLOOKUP(G65,'Cuadro de Cuentas (8)'!$B$3:$C$559,2,FALSE)) -> 
E66: =IF(D66="","",VLOOKUP(D66,'Cuadro de Cuentas (8)'!$B$3:$C$559,2,FALSE)) ->  | H66: =IF(G66="","",VLOOKUP(G66,'Cuadro de Cuentas (8)'!$B$3:$C$559,2,FALSE)) -> 
E67: =IF(D67="","",VLOOKUP(D67,'Cuadro de Cuentas (8)'!$B$3:$C$559,2,FALSE)) ->  | H67: =IF(G67="","",VLOOKUP(G67,'Cuadro de Cuentas (8)'!$B$3:$C$559,2,FALSE)) -> 
E68: =IF(D68="","",VLOOKUP(D68,'Cuadro de Cuentas (8)'!$B$3:$C$559,2,FALSE)) ->  | H68: =IF(G68="","",VLOOKUP(G68,'Cuadro de Cuentas (8)'!$B$3:$C$559,2,FALSE)) -> 
E69: =IF(D69="","",VLOOKUP(D69,'Cuadro de Cuentas (8)'!$B$3:$C$559,2,FALSE)) ->  | H69: =IF(G69="","",VLOOKUP(G69,'Cuadro de Cuentas (8)'!$B$3:$C$559,2,FALSE)) -> 
E70: =IF(D70="","",VLOOKUP(D70,'Cuadro de Cuentas (8)'!$B$3:$C$559,2,FALSE)) ->  | H70: =IF(G70="","",VLOOKUP(G70,'Cuadro de Cuentas (8)'!$B$3:$C$559,2,FALSE)) -> 
E71: =IF(D71="","",VLOOKUP(D71,'Cuadro de Cuentas (8)'!$B$3:$C$559,2,FALSE)) ->  | H71: =IF(G71="","",VLOOKUP(G71,'Cuadro de Cuentas (8)'!$B$3:$C$559,2,FALSE)) -> 
E72: =IF(D72="","",VLOOKUP(D72,'Cuadro de Cuentas (8)'!$B$3:$C$559,2,FALSE)) ->  | H72: =IF(G72="","",VLOOKUP(G72,'Cuadro de Cuentas (8)'!$B$3:$C$559,2,FALSE)) -> 
E73: =IF(D73="","",VLOOKUP(D73,'Cuadro de Cuentas (8)'!$B$3:$C$559,2,FALSE)) ->  | H73: =IF(G73="","",VLOOKUP(G73,'Cuadro de Cuentas (8)'!$B$3:$C$559,2,FALSE)) -> 
E74: =IF(D74="","",VLOOKUP(D74,'Cuadro de Cuentas (8)'!$B$3:$C$559,2,FALSE)) ->  | H74: =IF(G74="","",VLOOKUP(G74,'Cuadro de Cuentas (8)'!$B$3:$C$559,2,FALSE)) -> 
E75: =IF(D75="","",VLOOKUP(D75,'Cuadro de Cuentas (8)'!$B$3:$C$559,2,FALSE)) ->  | H75: =IF(G75="","",VLOOKUP(G75,'Cuadro de Cuentas (8)'!$B$3:$C$559,2,FALSE)) -> 
E76: =IF(D76="","",VLOOKUP(D76,'Cuadro de Cuentas (8)'!$B$3:$C$559,2,FALSE)) ->  | H76: =IF(G76="","",VLOOKUP(G76,'Cuadro de Cuentas (8)'!$B$3:$C$559,2,FALSE)) -> 
E77: =IF(D77="","",VLOOKUP(D77,'Cuadro de Cuentas (8)'!$B$3:$C$559,2,FALSE)) ->  | H77: =IF(G77="","",VLOOKUP(G77,'Cuadro de Cuentas (8)'!$B$3:$C$559,2,FALSE)) -> 
E78: =IF(D78="","",VLOOKUP(D78,'Cuadro de Cuentas (8)'!$B$3:$C$559,2,FALSE)) ->  | H78: =IF(G78="","",VLOOKUP(G78,'Cuadro de Cuentas (8)'!$B$3:$C$559,2,FALSE)) -> 
E79: =IF(D79="","",VLOOKUP(D79,'Cuadro de Cuentas (8)'!$B$3:$C$559,2,FALSE)) ->  | H79: =IF(G79="","",VLOOKUP(G79,'Cuadro de Cuentas (8)'!$B$3:$C$559,2,FALSE)) -> 
E80: =IF(D80="","",VLOOKUP(D80,'Cuadro de Cuentas (8)'!$B$3:$C$559,2,FALSE)) ->  | H80: =IF(G80="","",VLOOKUP(G80,'Cuadro de Cuentas (8)'!$B$3:$C$559,2,FALSE)) -> 
E81: =IF(D81="","",VLOOKUP(D81,'Cuadro de Cuentas (8)'!$B$3:$C$559,2,FALSE)) ->  | H81: =IF(G81="","",VLOOKUP(G81,'Cuadro de Cuentas (8)'!$B$3:$C$559,2,FALSE)) -> 
E82: =IF(D82="","",VLOOKUP(D82,'Cuadro de Cuentas (8)'!$B$3:$C$559,2,FALSE)) ->  | H82: =IF(G82="","",VLOOKUP(G82,'Cuadro de Cuentas (8)'!$B$3:$C$559,2,FALSE)) -> 
E83: =IF(D83="","",VLOOKUP(D83,'Cuadro de Cuentas (8)'!$B$3:$C$559,2,FALSE)) ->  | H83: =IF(G83="","",VLOOKUP(G83,'Cuadro de Cuentas (8)'!$B$3:$C$559,2,FALSE)) -> 
E84: =IF(D84="","",VLOOKUP(D84,'Cuadro de Cuentas (8)'!$B$3:$C$559,2,FALSE)) ->  | H84: =IF(G84="","",VLOOKUP(G84,'Cuadro de Cuentas (8)'!$B$3:$C$559,2,FALSE)) -> 
E85: =IF(D85="","",VLOOKUP(D85,'Cuadro de Cuentas (8)'!$B$3:$C$559,2,FALSE)) ->  | H85: =IF(G85="","",VLOOKUP(G85,'Cuadro de Cuentas (8)'!$B$3:$C$559,2,FALSE)) -> 
E86: =IF(D86="","",VLOOKUP(D86,'Cuadro de Cuentas (8)'!$B$3:$C$559,2,FALSE)) ->  | H86: =IF(G86="","",VLOOKUP(G86,'Cuadro de Cuentas (8)'!$B$3:$C$559,2,FALSE)) -> 
E87: =IF(D87="","",VLOOKUP(D87,'Cuadro de Cuentas (8)'!$B$3:$C$559,2,FALSE)) ->  | H87: =IF(G87="","",VLOOKUP(G87,'Cuadro de Cuentas (8)'!$B$3:$C$559,2,FALSE)) -> 
E88: =IF(D88="","",VLOOKUP(D88,'Cuadro de Cuentas (8)'!$B$3:$C$559,2,FALSE)) ->  | H88: =IF(G88="","",VLOOKUP(G88,'Cuadro de Cuentas (8)'!$B$3:$C$559,2,FALSE)) -> 
E89: =IF(D89="","",VLOOKUP(D89,'Cuadro de Cuentas (8)'!$B$3:$C$559,2,FALSE)) ->  | H89: =IF(G89="","",VLOOKUP(G89,'Cuadro de Cuentas (8)'!$B$3:$C$559,2,FALSE)) -> 
E90: =IF(D90="","",VLOOKUP(D90,'Cuadro de Cuentas (8)'!$B$3:$C$559,2,FALSE)) ->  | H90: =IF(G90="","",VLOOKUP(G90,'Cuadro de Cuentas (8)'!$B$3:$C$559,2,FALSE)) -> 
E91: =IF(D91="","",VLOOKUP(D91,'Cuadro de Cuentas (8)'!$B$3:$C$559,2,FALSE)) ->  | H91: =IF(G91="","",VLOOKUP(G91,'Cuadro de Cuentas (8)'!$B$3:$C$559,2,FALSE)) -> 
E92: =IF(D92="","",VLOOKUP(D92,'Cuadro de Cuentas (8)'!$B$3:$C$559,2,FALSE)) ->  | H92: =IF(G92="","",VLOOKUP(G92,'Cuadro de Cuentas (8)'!$B$3:$C$559,2,FALSE)) -> 
E93: =IF(D93="","",VLOOKUP(D93,'Cuadro de Cuentas (8)'!$B$3:$C$559,2,FALSE)) ->  | H93: =IF(G93="","",VLOOKUP(G93,'Cuadro de Cuentas (8)'!$B$3:$C$559,2,FALSE)) -> 
E94: =IF(D94="","",VLOOKUP(D94,'Cuadro de Cuentas (8)'!$B$3:$C$559,2,FALSE)) ->  | H94: =IF(G94="","",VLOOKUP(G94,'Cuadro de Cuentas (8)'!$B$3:$C$559,2,FALSE)) -> 
E95: =IF(D95="","",VLOOKUP(D95,'Cuadro de Cuentas (8)'!$B$3:$C$559,2,FALSE)) ->  | H95: =IF(G95="","",VLOOKUP(G95,'Cuadro de Cuentas (8)'!$B$3:$C$559,2,FALSE)) -> 
E96: =IF(D96="","",VLOOKUP(D96,'Cuadro de Cuentas (8)'!$B$3:$C$559,2,FALSE)) ->  | H96: =IF(G96="","",VLOOKUP(G96,'Cuadro de Cuentas (8)'!$B$3:$C$559,2,FALSE)) -> 
E97: =IF(D97="","",VLOOKUP(D97,'Cuadro de Cuentas (8)'!$B$3:$C$559,2,FALSE)) ->  | H97: =IF(G97="","",VLOOKUP(G97,'Cuadro de Cuentas (8)'!$B$3:$C$559,2,FALSE)) -> 
E98: =IF(D98="","",VLOOKUP(D98,'Cuadro de Cuentas (8)'!$B$3:$C$559,2,FALSE)) ->  | H98: =IF(G98="","",VLOOKUP(G98,'Cuadro de Cuentas (8)'!$B$3:$C$559,2,FALSE)) -> 
E99: =IF(D99="","",VLOOKUP(D99,'Cuadro de Cuentas (8)'!$B$3:$C$559,2,FALSE)) ->  | H99: =IF(G99="","",VLOOKUP(G99,'Cuadro de Cuentas (8)'!$B$3:$C$559,2,FALSE)) -> 
C103: DEBE | I103: HABER
C104: IMPORTES | D104: Nº CUENTA | E104: NOMBRE CUENTA | G104: Nº CUENTA | H104: NOMBRE CUENTA | I104: IMPORTES
E105: =IF(D105="","",VLOOKUP(D105,'Cuadro de Cuentas (8)'!$B$3:$C$559,2,FALSE)) ->  | F105: =IF(G105="","","a") ->  | H105: =IF(G105="","",VLOOKUP(G105,'Cuadro de Cuentas (8)'!$B$3:$C$559,2,FALSE)) -> 
E106: =IF(D106="","",VLOOKUP(D106,'Cuadro de Cuentas (8)'!$B$3:$C$559,2,FALSE)) ->  | H106: =IF(G106="","",VLOOKUP(G106,'Cuadro de Cuentas (8)'!$B$3:$C$559,2,FALSE)) -> 
E107: =IF(D107="","",VLOOKUP(D107,'Cuadro de Cuentas (8)'!$B$3:$C$559,2,FALSE)) ->  | H107: =IF(G107="","",VLOOKUP(G107,'Cuadro de Cuentas (8)'!$B$3:$C$559,2,FALSE)) -> 
E108: =IF(D108="","",VLOOKUP(D108,'Cuadro de Cuentas (8)'!$B$3:$C$559,2,FALSE)) ->  | H108: =IF(G108="","",VLOOKUP(G108,'Cuadro de Cuentas (8)'!$B$3:$C$559,2,FALSE)) -> 
E109: =IF(D109="","",VLOOKUP(D109,'Cuadro de Cuentas (8)'!$B$3:$C$559,2,FALSE)) ->  | H109: =IF(G109="","",VLOOKUP(G109,'Cuadro de Cuentas (8)'!$B$3:$C$559,2,FALSE)) -> 
E110: =IF(D110="","",VLOOKUP(D110,'Cuadro de Cuentas (8)'!$B$3:$C$559,2,FALSE)) ->  | H110: =IF(G110="","",VLOOKUP(G110,'Cuadro de Cuentas (8)'!$B$3:$C$559,2,FALSE)) -> 
E111: =IF(D111="","",VLOOKUP(D111,'Cuadro de Cuentas (8)'!$B$3:$C$559,2,FALSE)) ->  | H111: =IF(G111="","",VLOOKUP(G111,'Cuadro de Cuentas (8)'!$B$3:$C$559,2,FALSE)) -> 
E112: =IF(D112="","",VLOOKUP(D112,'Cuadro de Cuentas (8)'!$B$3:$C$559,2,FALSE)) ->  | H112: =IF(G112="","",VLOOKUP(G112,'Cuadro de Cuentas (8)'!$B$3:$C$559,2,FALSE)) -> 
E113: =IF(D113="","",VLOOKUP(D113,'Cuadro de Cuentas (8)'!$B$3:$C$559,2,FALSE)) ->  | H113: =IF(G113="","",VLOOKUP(G113,'Cuadro de Cuentas (8)'!$B$3:$C$559,2,FALSE)) -> 
E114: =IF(D114="","",VLOOKUP(D114,'Cuadro de Cuentas (8)'!$B$3:$C$559,2,FALSE)) ->  | H114: =IF(G114="","",VLOOKUP(G114,'Cuadro de Cuentas (8)'!$B$3:$C$559,2,FALSE)) -> 
E115: =IF(D115="","",VLOOKUP(D115,'Cuadro de Cuentas (8)'!$B$3:$C$559,2,FALSE)) ->  | H115: =IF(G115="","",VLOOKUP(G115,'Cuadro de Cuentas (8)'!$B$3:$C$559,2,FALSE)) -> 
E116: =IF(D116="","",VLOOKUP(D116,'Cuadro de Cuentas (8)'!$B$3:$C$559,2,FALSE)) ->  | H116: =IF(G116="","",VLOOKUP(G116,'Cuadro de Cuentas (8)'!$B$3:$C$559,2,FALSE)) -> 
E117: =IF(D117="","",VLOOKUP(D117,'Cuadro de Cuentas (8)'!$B$3:$C$559,2,FALSE)) ->  | H117: =IF(G117="","",VLOOKUP(G117,'Cuadro de Cuentas (8)'!$B$3:$C$559,2,FALSE)) -> 
E118: =IF(D118="","",VLOOKUP(D118,'Cuadro de Cuentas (8)'!$B$3:$C$559,2,FALSE)) ->  | H118: =IF(G118="","",VLOOKUP(G118,'Cuadro de Cuentas (8)'!$B$3:$C$559,2,FALSE)) -> 
E119: =IF(D119="","",VLOOKUP(D119,'Cuadro de Cuentas (8)'!$B$3:$C$559,2,FALSE)) ->  | H119: =IF(G119="","",VLOOKUP(G119,'Cuadro de Cuentas (8)'!$B$3:$C$559,2,FALSE)) -> 
E120: =IF(D120="","",VLOOKUP(D120,'Cuadro de Cuentas (8)'!$B$3:$C$559,2,FALSE)) ->  | H120: =IF(G120="","",VLOOKUP(G120,'Cuadro de Cuentas (8)'!$B$3:$C$559,2,FALSE)) -> 
E121: =IF(D121="","",VLOOKUP(D121,'Cuadro de Cuentas (8)'!$B$3:$C$559,2,FALSE)) ->  | H121: =IF(G121="","",VLOOKUP(G121,'Cuadro de Cuentas (8)'!$B$3:$C$559,2,FALSE)) -> 
E122: =IF(D122="","",VLOOKUP(D122,'Cuadro de Cuentas (8)'!$B$3:$C$559,2,FALSE)) ->  | H122: =IF(G122="","",VLOOKUP(G122,'Cuadro de Cuentas (8)'!$B$3:$C$559,2,FALSE)) -> 
E123: =IF(D123="","",VLOOKUP(D123,'Cuadro de Cuentas (8)'!$B$3:$C$559,2,FALSE)) ->  | H123: =IF(G123="","",VLOOKUP(G123,'Cuadro de Cuentas (8)'!$B$3:$C$559,2,FALSE)) -> 
E124: =IF(D124="","",VLOOKUP(D124,'Cuadro de Cuentas (8)'!$B$3:$C$559,2,FALSE)) ->  | H124: =IF(G124="","",VLOOKUP(G124,'Cuadro de Cuentas (8)'!$B$3:$C$559,2,FALSE)) -> 
E125: =IF(D125="","",VLOOKUP(D125,'Cuadro de Cuentas (8)'!$B$3:$C$559,2,FALSE)) ->  | H125: =IF(G125="","",VLOOKUP(G125,'Cuadro de Cuentas (8)'!$B$3:$C$559,2,FALSE)) -> 
E126: =IF(D126="","",VLOOKUP(D126,'Cuadro de Cuentas (8)'!$B$3:$C$559,2,FALSE)) ->  | H126: =IF(G126="","",VLOOKUP(G126,'Cuadro de Cuentas (8)'!$B$3:$C$559,2,FALSE)) -> 
E127: =IF(D127="","",VLOOKUP(D127,'Cuadro de Cuentas (8)'!$B$3:$C$559,2,FALSE)) ->  | H127: =IF(G127="","",VLOOKUP(G127,'Cuadro de Cuentas (8)'!$B$3:$C$559,2,FALSE)) -> 
E128: =IF(D128="","",VLOOKUP(D128,'Cuadro de Cuentas (8)'!$B$3:$C$559,2,FALSE)) ->  | H128: =IF(G128="","",VLOOKUP(G128,'Cuadro de Cuentas (8)'!$B$3:$C$559,2,FALSE)) -> 
E129: =IF(D129="","",VLOOKUP(D129,'Cuadro de Cuentas (8)'!$B$3:$C$559,2,FALSE)) ->  | H129: =IF(G129="","",VLOOKUP(G129,'Cuadro de Cuentas (8)'!$B$3:$C$559,2,FALSE)) -> 
E130: =IF(D130="","",VLOOKUP(D130,'Cuadro de Cuentas (8)'!$B$3:$C$559,2,FALSE)) ->  | H130: =IF(G130="","",VLOOKUP(G130,'Cuadro de Cuentas (8)'!$B$3:$C$559,2,FALSE)) -> 
E131: =IF(D131="","",VLOOKUP(D131,'Cuadro de Cuentas (8)'!$B$3:$C$559,2,FALSE)) ->  | H131: =IF(G131="","",VLOOKUP(G131,'Cuadro de Cuentas (8)'!$B$3:$C$559,2,FALSE)) -> 
E132: =IF(D132="","",VLOOKUP(D132,'Cuadro de Cuentas (8)'!$B$3:$C$559,2,FALSE)) ->  | H132: =IF(G132="","",VLOOKUP(G132,'Cuadro de Cuentas (8)'!$B$3:$C$559,2,FALSE)) -> 
E133: =IF(D133="","",VLOOKUP(D133,'Cuadro de Cuentas (8)'!$B$3:$C$559,2,FALSE)) ->  | H133: =IF(G133="","",VLOOKUP(G133,'Cuadro de Cuentas (8)'!$B$3:$C$559,2,FALSE)) -> 
E134: =IF(D134="","",VLOOKUP(D134,'Cuadro de Cuentas (8)'!$B$3:$C$559,2,FALSE)) ->  | H134: =IF(G134="","",VLOOKUP(G134,'Cuadro de Cuentas (8)'!$B$3:$C$559,2,FALSE)) -> 
E135: =IF(D135="","",VLOOKUP(D135,'Cuadro de Cuentas (8)'!$B$3:$C$559,2,FALSE)) ->  | H135: =IF(G135="","",VLOOKUP(G135,'Cuadro de Cuentas (8)'!$B$3:$C$559,2,FALSE)) -> 
E136: =IF(D136="","",VLOOKUP(D136,'Cuadro de Cuentas (8)'!$B$3:$C$559,2,FALSE)) ->  | H136: =IF(G136="","",VLOOKUP(G136,'Cuadro de Cuentas (8)'!$B$3:$C$559,2,FALSE)) -> 
E137: =IF(D137="","",VLOOKUP(D137,'Cuadro de Cuentas (8)'!$B$3:$C$559,2,FALSE)) ->  | H137: =IF(G137="","",VLOOKUP(G137,'Cuadro de Cuentas (8)'!$B$3:$C$559,2,FALSE)) -> 
E138: =IF(D138="","",VLOOKUP(D138,'Cuadro de Cuentas (8)'!$B$3:$C$559,2,FALSE)) ->  | H138: =IF(G138="","",VLOOKUP(G138,'Cuadro de Cuentas (8)'!$B$3:$C$559,2,FALSE)) -> 
E139: =IF(D139="","",VLOOKUP(D139,'Cuadro de Cuentas (8)'!$B$3:$C$559,2,FALSE)) ->  | H139: =IF(G139="","",VLOOKUP(G139,'Cuadro de Cuentas (8)'!$B$3:$C$559,2,FALSE)) -> 
E140: =IF(D140="","",VLOOKUP(D140,'Cuadro de Cuentas (8)'!$B$3:$C$559,2,FALSE)) ->  | H140: =IF(G140="","",VLOOKUP(G140,'Cuadro de Cuentas (8)'!$B$3:$C$559,2,FALSE)) -> 
E141: =IF(D141="","",VLOOKUP(D141,'Cuadro de Cuentas (8)'!$B$3:$C$559,2,FALSE)) ->  | H141: =IF(G141="","",VLOOKUP(G141,'Cuadro de Cuentas (8)'!$B$3:$C$559,2,FALSE)) -> 
E142: =IF(D142="","",VLOOKUP(D142,'Cuadro de Cuentas (8)'!$B$3:$C$559,2,FALSE)) ->  | H142: =IF(G142="","",VLOOKUP(G142,'Cuadro de Cuentas (8)'!$B$3:$C$559,2,FALSE)) -> 
E143: =IF(D143="","",VLOOKUP(D143,'Cuadro de Cuentas (8)'!$B$3:$C$559,2,FALSE)) ->  | H143: =IF(G143="","",VLOOKUP(G143,'Cuadro de Cuentas (8)'!$B$3:$C$559,2,FALSE)) -> 
E144: =IF(D144="","",VLOOKUP(D144,'Cuadro de Cuentas (8)'!$B$3:$C$559,2,FALSE)) ->  | H144: =IF(G144="","",VLOOKUP(G144,'Cuadro de Cuentas (8)'!$B$3:$C$559,2,FALSE)) -> 
E145: =IF(D145="","",VLOOKUP(D145,'Cuadro de Cuentas (8)'!$B$3:$C$559,2,FALSE)) ->  | H145: =IF(G145="","",VLOOKUP(G145,'Cuadro de Cuentas (8)'!$B$3:$C$559,2,FALSE)) -> 
E146: =IF(D146="","",VLOOKUP(D146,'Cuadro de Cuentas (8)'!$B$3:$C$559,2,FALSE)) ->  | H146: =IF(G146="","",VLOOKUP(G146,'Cuadro de Cuentas (8)'!$B$3:$C$559,2,FALSE)) -> 
E147: =IF(D147="","",VLOOKUP(D147,'Cuadro de Cuentas (8)'!$B$3:$C$559,2,FALSE)) ->  | H147: =IF(G147="","",VLOOKUP(G147,'Cuadro de Cuentas (8)'!$B$3:$C$559,2,FALSE)) -> 
E148: =IF(D148="","",VLOOKUP(D148,'Cuadro de Cuentas (8)'!$B$3:$C$559,2,FALSE)) ->  | H148: =IF(G148="","",VLOOKUP(G148,'Cuadro de Cuentas (8)'!$B$3:$C$559,2,FALSE)) -> 
E149: =IF(D149="","",VLOOKUP(D149,'Cuadro de Cuentas (8)'!$B$3:$C$559,2,FALSE)) ->  | H149: =IF(G149="","",VLOOKUP(G149,'Cuadro de Cuentas (8)'!$B$3:$C$559,2,FALSE)) -> 
C153: DEBE | I153: HABER
C154: IMPORTES | D154: Nº CUENTA | E154: NOMBRE CUENTA | G154: Nº CUENTA | H154: NOMBRE CUENTA | I154: IMPORTES
E155: =IF(D155="","",VLOOKUP(D155,'Cuadro de Cuentas (8)'!$B$3:$C$559,2,FALSE)) ->  | F155: =IF(G155="","","a") ->  | H155: =IF(G155="","",VLOOKUP(G155,'Cuadro de Cuentas (8)'!$B$3:$C$559,2,FALSE)) -> 
E156: =IF(D156="","",VLOOKUP(D156,'Cuadro de Cuentas (8)'!$B$3:$C$559,2,FALSE)) ->  | H156: =IF(G156="","",VLOOKUP(G156,'Cuadro de Cuentas (8)'!$B$3:$C$559,2,FALSE)) -> 
E157: =IF(D157="","",VLOOKUP(D157,'Cuadro de Cuentas (8)'!$B$3:$C$559,2,FALSE)) ->  | H157: =IF(G157="","",VLOOKUP(G157,'Cuadro de Cuentas (8)'!$B$3:$C$559,2,FALSE)) -> 
E158: =IF(D158="","",VLOOKUP(D158,'Cuadro de Cuentas (8)'!$B$3:$C$559,2,FALSE)) ->  | H158: =IF(G158="","",VLOOKUP(G158,'Cuadro de Cuentas (8)'!$B$3:$C$559,2,FALSE)) -> 
E159: =IF(D159="","",VLOOKUP(D159,'Cuadro de Cuentas (8)'!$B$3:$C$559,2,FALSE)) ->  | H159: =IF(G159="","",VLOOKUP(G159,'Cuadro de Cuentas (8)'!$B$3:$C$559,2,FALSE)) -> 
E160: =IF(D160="","",VLOOKUP(D160,'Cuadro de Cuentas (8)'!$B$3:$C$559,2,FALSE)) ->  | H160: =IF(G160="","",VLOOKUP(G160,'Cuadro de Cuentas (8)'!$B$3:$C$559,2,FALSE)) -> 
E161: =IF(D161="","",VLOOKUP(D161,'Cuadro de Cuentas (8)'!$B$3:$C$559,2,FALSE)) ->  | H161: =IF(G161="","",VLOOKUP(G161,'Cuadro de Cuentas (8)'!$B$3:$C$559,2,FALSE)) -> 
E162: =IF(D162="","",VLOOKUP(D162,'Cuadro de Cuentas (8)'!$B$3:$C$559,2,FALSE)) ->  | H162: =IF(G162="","",VLOOKUP(G162,'Cuadro de Cuentas (8)'!$B$3:$C$559,2,FALSE)) -> 
E163: =IF(D163="","",VLOOKUP(D163,'Cuadro de Cuentas (8)'!$B$3:$C$559,2,FALSE)) ->  | H163: =IF(G163="","",VLOOKUP(G163,'Cuadro de Cuentas (8)'!$B$3:$C$559,2,FALSE)) -> 
E164: =IF(D164="","",VLOOKUP(D164,'Cuadro de Cuentas (8)'!$B$3:$C$559,2,FALSE)) ->  | H164: =IF(G164="","",VLOOKUP(G164,'Cuadro de Cuentas (8)'!$B$3:$C$559,2,FALSE)) -> 
E165: =IF(D165="","",VLOOKUP(D165,'Cuadro de Cuentas (8)'!$B$3:$C$559,2,FALSE)) ->  | H165: =IF(G165="","",VLOOKUP(G165,'Cuadro de Cuentas (8)'!$B$3:$C$559,2,FALSE)) -> 
E166: =IF(D166="","",VLOOKUP(D166,'Cuadro de Cuentas (8)'!$B$3:$C$559,2,FALSE)) ->  | H166: =IF(G166="","",VLOOKUP(G166,'Cuadro de Cuentas (8)'!$B$3:$C$559,2,FALSE)) -> 
E167: =IF(D167="","",VLOOKUP(D167,'Cuadro de Cuentas (8)'!$B$3:$C$559,2,FALSE)) ->  | H167: =IF(G167="","",VLOOKUP(G167,'Cuadro de Cuentas (8)'!$B$3:$C$559,2,FALSE)) -> 
E168: =IF(D168="","",VLOOKUP(D168,'Cuadro de Cuentas (8)'!$B$3:$C$559,2,FALSE)) ->  | H168: =IF(G168="","",VLOOKUP(G168,'Cuadro de Cuentas (8)'!$B$3:$C$559,2,FALSE)) -> 
E169: =IF(D169="","",VLOOKUP(D169,'Cuadro de Cuentas (8)'!$B$3:$C$559,2,FALSE)) ->  | H169: =IF(G169="","",VLOOKUP(G169,'Cuadro de Cuentas (8)'!$B$3:$C$559,2,FALSE)) -> 
E170: =IF(D170="","",VLOOKUP(D170,'Cuadro de Cuentas (8)'!$B$3:$C$559,2,FALSE)) ->  | H170: =IF(G170="","",VLOOKUP(G170,'Cuadro de Cuentas (8)'!$B$3:$C$559,2,FALSE)) -> 
E171: =IF(D171="","",VLOOKUP(D171,'Cuadro de Cuentas (8)'!$B$3:$C$559,2,FALSE)) ->  | H171: =IF(G171="","",VLOOKUP(G171,'Cuadro de Cuentas (8)'!$B$3:$C$559,2,FALSE)) -> 
E172: =IF(D172="","",VLOOKUP(D172,'Cuadro de Cuentas (8)'!$B$3:$C$559,2,FALSE)) ->  | H172: =IF(G172="","",VLOOKUP(G172,'Cuadro de Cuentas (8)'!$B$3:$C$559,2,FALSE)) -> 
E173: =IF(D173="","",VLOOKUP(D173,'Cuadro de Cuentas (8)'!$B$3:$C$559,2,FALSE)) ->  | H173: =IF(G173="","",VLOOKUP(G173,'Cuadro de Cuentas (8)'!$B$3:$C$559,2,FALSE)) -> 
E174: =IF(D174="","",VLOOKUP(D174,'Cuadro de Cuentas (8)'!$B$3:$C$559,2,FALSE)) ->  | H174: =IF(G174="","",VLOOKUP(G174,'Cuadro de Cuentas (8)'!$B$3:$C$559,2,FALSE)) -> 
E175: =IF(D175="","",VLOOKUP(D175,'Cuadro de Cuentas (8)'!$B$3:$C$559,2,FALSE)) ->  | H175: =IF(G175="","",VLOOKUP(G175,'Cuadro de Cuentas (8)'!$B$3:$C$559,2,FALSE)) -> 
E176: =IF(D176="","",VLOOKUP(D176,'Cuadro de Cuentas (8)'!$B$3:$C$559,2,FALSE)) ->  | H176: =IF(G176="","",VLOOKUP(G176,'Cuadro de Cuentas (8)'!$B$3:$C$559,2,FALSE)) -> 
E177: =IF(D177="","",VLOOKUP(D177,'Cuadro de Cuentas (8)'!$B$3:$C$559,2,FALSE)) ->  | H177: =IF(G177="","",VLOOKUP(G177,'Cuadro de Cuentas (8)'!$B$3:$C$559,2,FALSE)) -> 
E178: =IF(D178="","",VLOOKUP(D178,'Cuadro de Cuentas (8)'!$B$3:$C$559,2,FALSE)) ->  | H178: =IF(G178="","",VLOOKUP(G178,'Cuadro de Cuentas (8)'!$B$3:$C$559,2,FALSE)) -> 
E179: =IF(D179="","",VLOOKUP(D179,'Cuadro de Cuentas (8)'!$B$3:$C$559,2,FALSE)) ->  | H179: =IF(G179="","",VLOOKUP(G179,'Cuadro de Cuentas (8)'!$B$3:$C$559,2,FALSE)) -> 
E180: =IF(D180="","",VLOOKUP(D180,'Cuadro de Cuentas (8)'!$B$3:$C$559,2,FALSE)) ->  | H180: =IF(G180="","",VLOOKUP(G180,'Cuadro de Cuentas (8)'!$B$3:$C$559,2,FALSE)) -> 
E181: =IF(D181="","",VLOOKUP(D181,'Cuadro de Cuentas (8)'!$B$3:$C$559,2,FALSE)) ->  | H181: =IF(G181="","",VLOOKUP(G181,'Cuadro de Cuentas (8)'!$B$3:$C$559,2,FALSE)) -> 
E182: =IF(D182="","",VLOOKUP(D182,'Cuadro de Cuentas (8)'!$B$3:$C$559,2,FALSE)) ->  | H182: =IF(G182="","",VLOOKUP(G182,'Cuadro de Cuentas (8)'!$B$3:$C$559,2,FALSE)) -> 
E183: =IF(D183="","",VLOOKUP(D183,'Cuadro de Cuentas (8)'!$B$3:$C$559,2,FALSE)) ->  | H183: =IF(G183="","",VLOOKUP(G183,'Cuadro de Cuentas (8)'!$B$3:$C$559,2,FALSE)) -> 
E184: =IF(D184="","",VLOOKUP(D184,'Cuadro de Cuentas (8)'!$B$3:$C$559,2,FALSE)) ->  | H184: =IF(G184="","",VLOOKUP(G184,'Cuadro de Cuentas (8)'!$B$3:$C$559,2,FALSE)) -> 
E185: =IF(D185="","",VLOOKUP(D185,'Cuadro de Cuentas (8)'!$B$3:$C$559,2,FALSE)) ->  | H185: =IF(G185="","",VLOOKUP(G185,'Cuadro de Cuentas (8)'!$B$3:$C$559,2,FALSE)) -> 
E186: =IF(D186="","",VLOOKUP(D186,'Cuadro de Cuentas (8)'!$B$3:$C$559,2,FALSE)) ->  | H186: =IF(G186="","",VLOOKUP(G186,'Cuadro de Cuentas (8)'!$B$3:$C$559,2,FALSE)) -> 
E187: =IF(D187="","",VLOOKUP(D187,'Cuadro de Cuentas (8)'!$B$3:$C$559,2,FALSE)) ->  | H187: =IF(G187="","",VLOOKUP(G187,'Cuadro de Cuentas (8)'!$B$3:$C$559,2,FALSE)) -> 
E188: =IF(D188="","",VLOOKUP(D188,'Cuadro de Cuentas (8)'!$B$3:$C$559,2,FALSE)) ->  | H188: =IF(G188="","",VLOOKUP(G188,'Cuadro de Cuentas (8)'!$B$3:$C$559,2,FALSE)) -> 
E189: =IF(D189="","",VLOOKUP(D189,'Cuadro de Cuentas (8)'!$B$3:$C$559,2,FALSE)) ->  | H189: =IF(G189="","",VLOOKUP(G189,'Cuadro de Cuentas (8)'!$B$3:$C$559,2,FALSE)) -> 
E190: =IF(D190="","",VLOOKUP(D190,'Cuadro de Cuentas (8)'!$B$3:$C$559,2,FALSE)) ->  | H190: =IF(G190="","",VLOOKUP(G190,'Cuadro de Cuentas (8)'!$B$3:$C$559,2,FALSE)) -> 
E191: =IF(D191="","",VLOOKUP(D191,'Cuadro de Cuentas (8)'!$B$3:$C$559,2,FALSE)) ->  | H191: =IF(G191="","",VLOOKUP(G191,'Cuadro de Cuentas (8)'!$B$3:$C$559,2,FALSE)) -> 
E192: =IF(D192="","",VLOOKUP(D192,'Cuadro de Cuentas (8)'!$B$3:$C$559,2,FALSE)) ->  | H192: =IF(G192="","",VLOOKUP(G192,'Cuadro de Cuentas (8)'!$B$3:$C$559,2,FALSE)) -> 
E193: =IF(D193="","",VLOOKUP(D193,'Cuadro de Cuentas (8)'!$B$3:$C$559,2,FALSE)) ->  | H193: =IF(G193="","",VLOOKUP(G193,'Cuadro de Cuentas (8)'!$B$3:$C$559,2,FALSE)) -> 
E194: =IF(D194="","",VLOOKUP(D194,'Cuadro de Cuentas (8)'!$B$3:$C$559,2,FALSE)) ->  | H194: =IF(G194="","",VLOOKUP(G194,'Cuadro de Cuentas (8)'!$B$3:$C$559,2,FALSE)) -> 
E195: =IF(D195="","",VLOOKUP(D195,'Cuadro de Cuentas (8)'!$B$3:$C$559,2,FALSE)) ->  | H195: =IF(G195="","",VLOOKUP(G195,'Cuadro de Cuentas (8)'!$B$3:$C$559,2,FALSE)) -> 
E196: =IF(D196="","",VLOOKUP(D196,'Cuadro de Cuentas (8)'!$B$3:$C$559,2,FALSE)) ->  | H196: =IF(G196="","",VLOOKUP(G196,'Cuadro de Cuentas (8)'!$B$3:$C$559,2,FALSE)) -> 
E197: =IF(D197="","",VLOOKUP(D197,'Cuadro de Cuentas (8)'!$B$3:$C$559,2,FALSE)) ->  | H197: =IF(G197="","",VLOOKUP(G197,'Cuadro de Cuentas (8)'!$B$3:$C$559,2,FALSE)) -> 
E198: =IF(D198="","",VLOOKUP(D198,'Cuadro de Cuentas (8)'!$B$3:$C$559,2,FALSE)) ->  | H198: =IF(G198="","",VLOOKUP(G198,'Cuadro de Cuentas (8)'!$B$3:$C$559,2,FALSE)) -> 
E199: =IF(D199="","",VLOOKUP(D199,'Cuadro de Cuentas (8)'!$B$3:$C$559,2,FALSE)) ->  | H199: =IF(G199="","",VLOOKUP(G199,'Cuadro de Cuentas (8)'!$B$3:$C$559,2,FALSE)) -> 

Sheet Enunciado Concesión Administr. (hidden)
B3: La empresa Buena Visión S.A. obtuvo el | F3: 2014-01-02 | G3: la concesión de un duty-free en el aeropuerto de
B4: Valencia y en el de Madrid para la instalación de una tienda de gafas solares y de vista. El precio pagado por la misma
B5: es de | C5: 80000 | D5: El período de concesión es de 5 años. Cada año, la empresa ha de pagar el dia 31 de diciembre de cada año
B6: un cánon por importe de | D6: 20000
B7: Las obras de acondicionamiento del espacio ascienden a | G7: 12000 | H7: el mobiliario para ambas tiendas a
B8: 8000 | C8: las cajas registradoras de ambas tiendas a | G8: 3000 | H8: y el sistema de seguridad | J8: 5000
B9: La vida útil de las obras de acondicionamiento es de | F9: 20 | G9: años, la del mobiliario de | I9: 10 | J9: años
B10: la vida de las cajas registradoras de | E10: 5 | F10: años y la de los sistemas de seguridad de 6 años. | J10: El IVA
B11: aplicable a estas operaciones es del | E11: 0.21
B12: Cuando finalice el periodo de concesión, todos los activos revertirán a la Administración. Los gastos de reversión
B13: estimados ascienden a | D13: 10000 | E13: de valor actual.
B14: Estos gastos serán por cuenta del concesionario según especifica la normativa relativa a las concesiones. El tipo de
B15: interés estimado es el | D15: 0.03
B17: Se pide:
C18: Contabilice todas las operaciones entre el | F18: 2014-01-02 | G18: y el | H18: 2014-12-31

Sheet Transferencia Concesión Adm. 1 (hidden)
H2: COMUNICACIÓN DE OPERACIÓN EN CUENTA
B6: Fecha | H6: Concepto | O6: Importe
I7: Su orden de tranferencia a AEROPUERTOS ASOCIADOS S.A. | O7: 80000 | P7: €
E8: 2014-01-02
B9: Ordenante: | E9: Buena Visión S.A.
B10: Beneficiario: | E10: Aeropuertos Asociados S.A.
B11: Concepto: | E11: Pago Concesión administrativa
B12: IBAN Beneficiario | E12: ES49 9251 4580 6530 1001 9783
B13: Clave transferencia: | E13: 130T13185002647
B16: Cuenta Adeudo/Abono | F16: Moneda de la cuenta | H16: Fecha valor | K16: Anotación en cuenta
B17: 2038 | C17: 6015 | D17: 40 | E17: 3101767432 | F17: EURO | H17: =E8+1 -> 2014-01-03 | K17: Importe del recibo/factura | O17: =O7 -> 80000 | P17: =P7 -> €
B18: Titular/es de la cuenta | K18: Total anotado en cuenta | O18: =O17 -> 80000 | P18: =P17 -> €
D19: AEROPUERTOS ASOCIADOS, S.A.

Sheet Factura Otras Instalaciones (hidden)
K5: Fecha: | L5: 2014-01-07
K6: Nº Factura: | L6: D- 423
D11: REFORMAS INTEGRALES TOP
D12: C/Ausias March, 23. 46013Valencia
D13: CIF: A-22.817.895
C18: Cliente: | D18: Buena Visión, S.A.
C19: Dirección: | D19: C/ Martín Colomer, 45. 46007 Valencia
C20: CIF: | D20: A-20.396.059
C21: Ref:
C25: Cantidad | D25: Concepto | K25: Precio Unitario | L25: Importe
L26: =IF(D26<>"",D26*K26,"") -> 
C38: 1 | D38: Trabajos de albañileria para acondicionameinto de local comercial | K38: 12000 | L38: =C38*K38 -> 12000
J53: Base Imponible | L53: =+SUM(L26:L52) -> 12000
I54: IVA | J54: 0.21 | L54: =+L53*J54 -> 2520
J55: TOTAL FACTURA | L55: =+L53+L54 -> 14520
C59: Banco del Cliente: | E59: BANKINTER
C61: Código IBAN: | E61: ES332 2251 6582 7530 0001 1785
C63: Observaciones: | E63: Mediante transferencia bancaria
C65: Con vencimiento el: | E65: =L5+1 -> 2014-01-08 | I65: Por importe de: | K65: =L55 -> 14520

Sheet Factura Compra Mobiliario (hidden)
K5: Fecha: | L5: 2014-01-10
K6: Nº Factura: | L6: A- 767600
D11: NEW DECORMEC. S.L.
D12: C/Ernesto Ballester, 10. 46012 Valencia
D13: CIF: A-32.817.725
C18: Cliente: | D18: Buena Visión, S.A.
C19: Dirección: | D19: C/ Martín Colomer, 45. 46007 Valencia
C20: CIF: | D20: A-20.396.059
C21: Ref:
C25: Cantidad | D25: Concepto | K25: Precio Unitario | L25: Importe
L26: =IF(D26<>"",D26*K26,"") -> 
C38: 6 | D38: Mostradores para venta en òpticas | K38: 600 | L38: =C38*K38 -> 3600
C40: 12 | D40: Sillas art.modern.com | K40: 40 | L40: =C40*K40 -> 480
C42: 6 | D42: Paneles posa gafas | K42: 300 | L42: =C42*K42 -> 1800
C44: 4 | D44: Vitrinas modulares E-4422 | K44: 530 | L44: =C44*K44 -> 2120
J53: Base Imponible | L53: =+SUM(L26:L52) -> 8000
I54: IVA | J54: 0.21 | L54: =+L53*J54 -> 1680
J55: TOTAL FACTURA | L55: =+L53+L54 -> 9680
C59: Banco del Cliente: | E59: BANKINTER
C61: Código IBAN: | E61: ES33 2251 6582 7530 0001 1776
C63: Observaciones: | E63: Mediante transferencia bancaria
C65: Con vencimiento el: | E65: =L5+1 -> 2014-01-11 | I65: Por importe de: | K65: =L55 -> 9680

Sheet Factura Cajas Registradoras (hidden)
K5: Fecha: | L5: 2014-01-11
K6: Nº Factura: | L6: A- 50505
D11: MERCABALANZA
D12: C/Salvatierra, 120. 46011 Valencia
D13: CIF: A-55.817.725
C18: Cliente: | D18: Buena Visión, S.A.
C19: Dirección: | D19: C/ Martín Colomer, 45. 46007 Valencia
C20: CIF: | D20: A-20.396.059
C21: Ref:
C25: Cantidad | D25: Concepto | K25: Precio Unitario | L25: Importe
L26: =IF(D26<>"",D26*K26,"") -> 
C38: 2 | D38: Cajas registradoras Modelo A-22343 | K38: 1500 | L38: =C38*K38 -> 3000
J53: Base Imponible | L53: =+SUM(L26:L52) -> 3000
I54: IVA | J54: 0.21 | L54: =+L53*J54 -> 630
J55: TOTAL FACTURA | L55: =+L53+L54 -> 3630
C59: Banco del Cliente: | E59: BANKINTER
C61: Código IBAN: | E61: ES32 2251 6582 7530 0001 1785
C63: Observaciones: | E63: Mediante transferencia bancaria
C65: Con vencimiento el: | E65: =L5+1 -> 2014-01-12 | I65: Por importe de: | K65: =L55 -> 3630

Sheet Factura Seguridad (hidden)
K5: Fecha: | L5: 2014-01-12
K6: Nº Factura: | L6: A- 50505
D11: SEGUR-RESIDENCIAL
D12: C/Primero de Mayo, 12. 46016 Valencia
D13: CIF: A-42.817.225
C18: Cliente: | D18: Buena Visión, S.A.
C19: Dirección: | D19: C/ Martín Colomer, 45. 46007 Valencia
C20: CIF: | D20: A-20.396.059
C21: Ref:
C25: Cantidad | D25: Concepto | K25: Precio Unitario | L25: Importe
L26: =IF(D26<>"",D26*K26,"") -> 
C38: 1 | D38: Instalación de cámaras de vigilancia y sistema de seguridad en local | K38: 5000 | L38: =C38*K38 -> 5000
D39: comercial en aeropuertos de Madrid y Valencia
J53: Base Imponible | L53: =+SUM(L26:L52) -> 5000
I54: IVA | J54: 0.21 | L54: =+L53*J54 -> 1050
J55: TOTAL FACTURA | L55: =+L53+L54 -> 6050
C59: Banco del Cliente: | E59: BANKINTER
C61: Código IBAN: | E61: ES332 2251 6582 7530 0001 1785
C63: Observaciones: | E63: Mediante transferencia bancaria
C65: Con vencimiento el: | E65: =L5+1 -> 2014-01-13 | I65: Por importe de: | K65: =L55 -> 6050

Sheet Transf. Bancaria Otras Inst. 1 (hidden)
H2: COMUNICACIÓN DE OPERACIÓN EN CUENTA
B6: Fecha | H6: Concepto | O6: Importe
E7: ='Factura Otras Instalaciones'!L5 -> 2014-01-07 | I7: Su orden de tranferencia a REFORMAS INTEGRALES TOP | O7: ='Factura Otras Instalaciones'!L55 -> 14520 | P7: €
B9: Ordenante: | E9: ='Transf. Bancaria P.I. 1er Pago'!E9 -> Buena Visión S.A.
B10: Beneficiario: | E10: Reformas Integrales TOP
B11: Concepto: | E11: Pago factura nº | F11: D-423
B12: IBAN Beneficiario | E12: ='Factura Otras Instalaciones'!E61 -> ES332 2251 6582 7530 0001 1785
B13: Clave transferencia: | E13: 130T13185002647
B16: Cuenta Adeudo/Abono | F16: Moneda de la cuenta | H16: Fecha valor | K16: Anotación en cuenta
B17: 2038 | C17: 6015 | D17: 40 | E17: 3101767432 | F17: EURO | H17: =E7+1 -> 2014-01-08 | K17: Importe del recibo/factura | O17: =O7 -> 14520 | P17: =P7 -> €
B18: Titular/es de la cuenta | K18: Total anotado en cuenta | O18: =O17 -> 14520 | P18: =P17 -> €
D19: REFORMAS INTEGRALES TOP

Sheet Transf. Bancaria Otras Inst. 2 (hidden)
H2: COMUNICACIÓN DE OPERACIÓN EN CUENTA
B6: Fecha | H6: Concepto | O6: Importe
E7: ='Factura Compra Mobiliario'!L5 -> 2014-01-10 | I7: Su orden de tranferencia a REFORMAS INTEGRALES TOP | O7: ='Factura Otras Instalaciones'!L55 -> 14520 | P7: €
B9: Ordenante: | E9: ='Transf. Bancaria P.I. 1er Pago'!E9 -> Buena Visión S.A.
B10: Beneficiario: | E10: Reformas Integrales TOP
B11: Concepto: | E11: Pago factura nº | F11: ='Factura Compra Mobiliario'!L6 -> A- 767600
B12: IBAN Beneficiario | E12: ='Factura Compra Mobiliario'!E61 -> ES33 2251 6582 7530 0001 1776
B13: Clave transferencia: | E13: 130T13185002647
B16: Cuenta Adeudo/Abono | F16: Moneda de la cuenta | H16: Fecha valor | K16: Anotación en cuenta
B17: 2038 | C17: 6015 | D17: 40 | E17: 3101767432 | F17: EURO | H17: =E7+1 -> 2014-01-11 | K17: Importe del recibo/factura | O17: =O7 -> 14520 | P17: =P7 -> €
B18: Titular/es de la cuenta | K18: Total anotado en cuenta | O18: =O17 -> 14520 | P18: =P17 -> €
D19: NEW DECORMEC, S.L.

Sheet Transf. Bancaria Cajas Registr. (hidden)
H2: COMUNICACIÓN DE OPERACIÓN EN CUENTA
B6: Fecha | H6: Concepto | O6: Importe
E7: ='Factura Compra Mobiliario'!L5 -> 2014-01-10 | I7: Su orden de tranferencia a MERCABALANZA, S.A. | O7: ='Factura Compra Mobiliario'!K65 -> 9680 | P7: €
B9: Ordenante: | E9: ='Transf. Bancaria P.I. 1er Pago'!E9 -> Buena Visión S.A.
B10: Beneficiario: | E10: Mercabalanza, S.A.
B11: Concepto: | E11: Pago factura nº | F11: ='Factura Cajas Registradoras'!L6 -> A- 50505
B12: IBAN Beneficiario | E12: ES49 9251 4580 6530 1001 9783
B13: Clave transferencia: | E13: 130T13185002647
B16: Cuenta Adeudo/Abono | F16: Moneda de la cuenta | H16: Fecha valor | K16: Anotación en cuenta
B17: 2038 | C17: 6015 | D17: 40 | E17: 3101767432 | F17: EURO | H17: =E7+1 -> 2014-01-11 | K17: Importe del recibo/factura | O17: =O7 -> 9680 | P17: =P7 -> €
B18: Titular/es de la cuenta | K18: Total anotado en cuenta | O18: =O17 -> 9680 | P18: =P17 -> €
D19: MERCABALANZA, S.A.

Sheet Transf. Bancaria Seguridad (hidden)
H2: COMUNICACIÓN DE OPERACIÓN EN CUENTA
B6: Fecha | H6: Concepto | O6: Importe
I7: Su orden de tranferencia a SEGUR-RESIDENCIAL, S.L. | O7: ='Factura Seguridad'!L55 -> 6050 | P7: €
E8: ='Factura Compra Mobiliario'!L5 -> 2014-01-10
B9: Ordenante: | E9: ='Transf. Bancaria P.I. 1er Pago'!E9 -> Buena Visión S.A.
B10: Beneficiario: | E10: Segur-Residencial S.L.
B11: Concepto: | E11: Pago factura nº | F11: ='Factura Seguridad'!L6 -> A- 50505
B12: IBAN Beneficiario | E12: ES49 9251 4580 6530 1001 9783
B13: Clave transferencia: | E13: 130T13185002647
B16: Cuenta Adeudo/Abono | F16: Moneda de la cuenta | H16: Fecha valor | K16: Anotación en cuenta
B17: 2038 | C17: 6015 | D17: 40 | E17: 3101767432 | F17: EURO | H17: =E8+1 -> 2014-01-11 | K17: Importe del recibo/factura | O17: =O7 -> 6050 | P17: =P7 -> €
B18: Titular/es de la cuenta | K18: Total anotado en cuenta | O18: =O17 -> 6050 | P18: =P17 -> €
D19: SOLUCIONES TELEMÁTICAS INSA, S.L.

Sheet Transf. Bancaria Canon Anual (hidden)
H2: COMUNICACIÓN DE OPERACIÓN EN CUENTA
B6: Fecha | H6: Concepto | O6: Importe
E7: 2014-12-30 | I7: Su orden de tranferencia a AEROPUERTOS ASOCIADOS S.A. | O7: 20000 | P7: €
B9: Ordenante: | E9: Buena Visión S.A.
B10: Beneficiario: | E10: Aeropuertos Asociados S.A.
B11: Concepto: | E11: Pago Canon Anual de la Concesión Administrativa
B12: IBAN Beneficiario | E12: ES49 9251 4580 6530 1001 9783
B13: Clave transferencia: | E13: 130T13185002647
B16: Cuenta Adeudo/Abono | F16: Moneda de la cuenta | H16: Fecha valor | K16: Anotación en cuenta
B17: 2038 | C17: 6015 | D17: 40 | E17: 3101767432 | F17: EURO | H17: =E7+1 -> 2014-12-31 | K17: Importe del recibo/factura | O17: =O7 -> 20000 | P17: =P7 -> €
B18: Titular/es de la cuenta | K18: Total anotado en cuenta | O18: =O17 -> 20000 | P18: =P17 -> €
D19: AEROPUERTOS ASOCIADOS, S.A.

Sheet Sol. L. Diari Concesión Adm. (hidden)
C3: DEBE | I3: HABER | O3: Por la obtención de la concesión administrativa
C4: IMPORTES | D4: Nº CUENTA | E4: NOMBRE CUENTA | F4: ='Transferencia Concesión Adm. 1'!E8 -> 2014-01-02 | G4: Nº CUENTA | H4: NOMBRE CUENTA | I4: IMPORTES
C5: ='Transferencia Concesión Adm. 1'!O7 -> 80000 | D5: 202 | E5: =IF(D5="","",VLOOKUP(D5,'Cuadro de Cuentas (8)'!$B$3:$C$559,2,FALSE)) -> Concesiones administrativas | F5: =IF(G5="","","a") -> a | G5: 572 | H5: =IF(G5="","",VLOOKUP(G5,'Cuadro de Cuentas (8)'!$B$3:$C$559,2,FALSE)) -> Bancos e instituciones de crédito c/c vista, euros | I5: ='Transferencia Concesión Adm. 1'!O7 -> 80000 | O5: Por el pago de las obras de acondicionamiento
E6: =IF(D6="","",VLOOKUP(D6,'Cuadro de Cuentas (8)'!$B$3:$C$559,2,FALSE)) ->  | H6: =IF(G6="","",VLOOKUP(G6,'Cuadro de Cuentas (8)'!$B$3:$C$559,2,FALSE)) ->  | O6: y demás instalaciones de las tiendas
E7: =IF(D7="","",VLOOKUP(D7,'Cuadro de Cuentas (8)'!$B$3:$C$559,2,FALSE)) ->  | H7: =IF(G7="","",VLOOKUP(G7,'Cuadro de Cuentas (8)'!$B$3:$C$559,2,FALSE)) ->  | O7: Por la adquisición de mobiliario
E8: =IF(D8="","",VLOOKUP(D8,'Cuadro de Cuentas (8)'!$B$3:$C$559,2,FALSE)) ->  | H8: =IF(G8="","",VLOOKUP(G8,'Cuadro de Cuentas (8)'!$B$3:$C$559,2,FALSE)) ->  | O8: Por la adqusición de cajas registradoras
E9: =O3 -> Por la obtención de la concesión administrativa | F9: ='Factura Otras Instalaciones'!L5 -> 2014-01-07 | O9: Por la instalación sistemas de seguridad
C10: ='Factura Otras Instalaciones'!L53 -> 12000 | D10: 215 | E10: =IF(D10="","",VLOOKUP(D10,'Cuadro de Cuentas (8)'!$B$3:$C$559,2,FALSE)) -> Otras instalaciones | H10: =IF(G10="","",VLOOKUP(G10,'Cuadro de Cuentas (8)'!$B$3:$C$559,2,FALSE)) -> 
C11: ='Factura Otras Instalaciones'!L54 -> 2520 | D11: 472 | E11: =IF(D11="","",VLOOKUP(D11,'Cuadro de Cuentas (8)'!$B$3:$C$559,2,FALSE)) -> Hacienda Pública, IVA soportado | F11: a | G11: 572 | H11: =IF(G11="","",VLOOKUP(G11,'Cuadro de Cuentas (8)'!$B$3:$C$559,2,FALSE)) -> Bancos e instituciones de crédito c/c vista, euros | I11: ='Factura Otras Instalaciones'!L55 -> 14520
E12: =IF(D12="","",VLOOKUP(D12,'Cuadro de Cuentas (8)'!$B$3:$C$559,2,FALSE)) ->  | H12: =IF(G12="","",VLOOKUP(G12,'Cuadro de Cuentas (8)'!$B$3:$C$559,2,FALSE)) ->  | O12: Por los gastos de reversión
E13: =IF(D13="","",VLOOKUP(D13,'Cuadro de Cuentas (8)'!$B$3:$C$559,2,FALSE)) ->  | H13: =IF(G13="","",VLOOKUP(G13,'Cuadro de Cuentas (8)'!$B$3:$C$559,2,FALSE)) -> 
E14: =O5 -> Por el pago de las obras de acondicionamiento | F14: ='Factura Compra Mobiliario'!L5 -> 2014-01-10
C15: ='Factura Compra Mobiliario'!L53 -> 8000 | D15: 216 | E15: =IF(D15="","",VLOOKUP(D15,'Cuadro de Cuentas (8)'!$B$3:$C$559,2,FALSE)) -> Mobiliario | H15: =IF(G15="","",VLOOKUP(G15,'Cuadro de Cuentas (8)'!$B$3:$C$559,2,FALSE)) -> 
C16: ='Factura Compra Mobiliario'!L54 -> 1680 | D16: 472 | E16: =IF(D16="","",VLOOKUP(D16,'Cuadro de Cuentas (8)'!$B$3:$C$559,2,FALSE)) -> Hacienda Pública, IVA soportado | F16: a | G16: 572 | H16: =IF(G16="","",VLOOKUP(G16,'Cuadro de Cuentas (8)'!$B$3:$C$559,2,FALSE)) -> Bancos e instituciones de crédito c/c vista, euros | I16: ='Factura Compra Mobiliario'!L55 -> 9680
E17: =IF(D17="","",VLOOKUP(D17,'Cuadro de Cuentas (8)'!$B$3:$C$559,2,FALSE)) ->  | H17: =IF(G17="","",VLOOKUP(G17,'Cuadro de Cuentas (8)'!$B$3:$C$559,2,FALSE)) ->  | O17: Por el pago del canón anual
E18: =IF(D18="","",VLOOKUP(D18,'Cuadro de Cuentas (8)'!$B$3:$C$559,2,FALSE)) ->  | F18: a | H18: =IF(G18="","",VLOOKUP(G18,'Cuadro de Cuentas (8)'!$B$3:$C$559,2,FALSE)) -> 
E19: =O7 -> Por la adquisición de mobiliario | F19: ='Factura Cajas Registradoras'!L5 -> 2014-01-11 | O19: Por la amortización de la concesión administrativa
C20: ='Factura Cajas Registradoras'!L53 -> 3000 | D20: 217 | E20: =IF(D20="","",VLOOKUP(D20,'Cuadro de Cuentas (8)'!$B$3:$C$559,2,FALSE)) -> Equipos para procesos de información | H20: =IF(G20="","",VLOOKUP(G20,'Cuadro de Cuentas (8)'!$B$3:$C$559,2,FALSE)) -> 
C21: ='Factura Cajas Registradoras'!L54 -> 630 | D21: 472 | E21: =IF(D21="","",VLOOKUP(D21,'Cuadro de Cuentas (8)'!$B$3:$C$559,2,FALSE)) -> Hacienda Pública, IVA soportado | F21: a | G21: 572 | H21: =IF(G21="","",VLOOKUP(G21,'Cuadro de Cuentas (8)'!$B$3:$C$559,2,FALSE)) -> Bancos e instituciones de crédito c/c vista, euros | I21: ='Factura Cajas Registradoras'!L55 -> 3630 | O21: Por la amortización del inmovilizado material
E22: =IF(D22="","",VLOOKUP(D22,'Cuadro de Cuentas (8)'!$B$3:$C$559,2,FALSE)) ->  | H22: =IF(G22="","",VLOOKUP(G22,'Cuadro de Cuentas (8)'!$B$3:$C$559,2,FALSE)) -> 
E23: =IF(D23="","",VLOOKUP(D23,'Cuadro de Cuentas (8)'!$B$3:$C$559,2,FALSE)) ->  | H23: =IF(G23="","",VLOOKUP(G23,'Cuadro de Cuentas (8)'!$B$3:$C$559,2,FALSE)) ->  | O23: Capitalización del valor de la provisión
E24: =O8 -> Por la adqusición de cajas registradoras | F24: ='Factura Seguridad'!L5 -> 2014-01-12
C25: ='Factura Seguridad'!L53 -> 5000 | D25: 219 | E25: =IF(D25="","",VLOOKUP(D25,'Cuadro de Cuentas (8)'!$B$3:$C$559,2,FALSE)) -> Otro inmovilizado material | H25: =IF(G25="","",VLOOKUP(G25,'Cuadro de Cuentas (8)'!$B$3:$C$559,2,FALSE)) -> 
C26: ='Factura Seguridad'!L54 -> 1050 | D26: 472 | E26: =IF(D26="","",VLOOKUP(D26,'Cuadro de Cuentas (8)'!$B$3:$C$559,2,FALSE)) -> Hacienda Pública, IVA soportado | H26: =IF(G26="","",VLOOKUP(G26,'Cuadro de Cuentas (8)'!$B$3:$C$559,2,FALSE)) -> 
E27: =IF(D27="","",VLOOKUP(D27,'Cuadro de Cuentas (8)'!$B$3:$C$559,2,FALSE)) ->  | F27: a | G27: 572 | H27: =IF(G27="","",VLOOKUP(G27,'Cuadro de Cuentas (8)'!$B$3:$C$559,2,FALSE)) -> Bancos e instituciones de crédito c/c vista, euros | I27: ='Factura Seguridad'!L55 -> 6050
E28: =IF(D28="","",VLOOKUP(D28,'Cuadro de Cuentas (8)'!$B$3:$C$559,2,FALSE)) ->  | H28: =IF(G28="","",VLOOKUP(G28,'Cuadro de Cuentas (8)'!$B$3:$C$559,2,FALSE)) -> 
E29: =O9 -> Por la instalación sistemas de seguridad
C30: =(C10*I33)/(C10+C15+C20+C25) -> 4285.714286 | D30: 215 | E30: =IF(D30="","",VLOOKUP(D30,'Cuadro de Cuentas (8)'!$B$3:$C$559,2,FALSE)) -> Otras instalaciones | H30: =IF(G30="","",VLOOKUP(G30,'Cuadro de Cuentas (8)'!$B$3:$C$559,2,FALSE)) -> 
C31: =(C15*I33)/(C10+C15+C20+C25) -> 2857.142857 | D31: 216 | E31: =IF(D31="","",VLOOKUP(D31,'Cuadro de Cuentas (8)'!$B$3:$C$559,2,FALSE)) -> Mobiliario | H31: =IF(G31="","",VLOOKUP(G31,'Cuadro de Cuentas (8)'!$B$3:$C$559,2,FALSE)) -> 
C32: =(C20*I33)/(C10+C15+C20+C25) -> 1071.428571 | D32: 217 | E32: =IF(D32="","",VLOOKUP(D32,'Cuadro de Cuentas (8)'!$B$3:$C$559,2,FALSE)) -> Equipos para procesos de información | H32: =IF(G32="","",VLOOKUP(G32,'Cuadro de Cuentas (8)'!$B$3:$C$559,2,FALSE)) -> 
C33: =(C25*I33)/(C10+C15+C20+C25) -> 1785.714286 | D33: 219 | E33: =IF(D33="","",VLOOKUP(D33,'Cuadro de Cuentas (8)'!$B$3:$C$559,2,FALSE)) -> Otro inmovilizado material | F33: a | G33: 148 | H33: =IF(G33="","",VLOOKUP(G33,'Cuadro de Cuentas (8)'!$B$3:$C$559,2,FALSE)) -> Provisión para gastos de reversión | I33: ='Enunciado Concesión Administr.'!D13 -> 10000
E34: =O12 -> Por los gastos de reversión | F34: ='Transf. Bancaria Canon Anual'!E7 -> 2014-12-30
C35: ='Transf. Bancaria Canon Anual'!O7 -> 20000 | D35: 621 | E35: =IF(D35="","",VLOOKUP(D35,'Cuadro de Cuentas (8)'!$B$3:$C$559,2,FALSE)) -> Arrendamientos y cánones | F35: a | G35: 572 | H35: =IF(G35="","",VLOOKUP(G35,'Cuadro de Cuentas (8)'!$B$3:$C$559,2,FALSE)) -> Bancos e instituciones de crédito c/c vista, euros | I35: ='Transf. Bancaria Canon Anual'!O7 -> 20000
E36: =IF(D36="","",VLOOKUP(D36,'Cuadro de Cuentas (8)'!$B$3:$C$559,2,FALSE)) ->  | H36: =IF(G36="","",VLOOKUP(G36,'Cuadro de Cuentas (8)'!$B$3:$C$559,2,FALSE)) -> 
E37: =IF(D37="","",VLOOKUP(D37,'Cuadro de Cuentas (8)'!$B$3:$C$559,2,FALSE)) ->  | H37: =IF(G37="","",VLOOKUP(G37,'Cuadro de Cuentas (8)'!$B$3:$C$559,2,FALSE)) -> 
